Workbook

Sheet Overview
A1: งบใกล้บ้าน — ข้อมูลค้นหาปัจจุบัน รุ่น 8
A3: เริ่มที่ชีต Current Records • ข้อมูลชุดเดียวกับเว็บ 15,415 ระเบียน • ร่างงบ กทม. 2570
A5: งบรวมตามร่างข้อบัญญัติ | C5: งบผ่าน 72 หน่วยงาน (ไม่รวมงบกลาง) | E5: รายจ่ายงบกลาง | G5: เงินนอกงบประมาณ (แสดงแยก)
A6: ='Budget Framework'!B8 -> 93,918,922,000 | C6: ='Budget Framework'!B9 -> 76,197,311,550 | E6: ='Budget Framework'!B10 -> 17,721,610,450 | G6: ='Budget Framework'!B12 -> 1,033,259,700
A8: ข้อมูลปัจจุบัน: เปิดแท็บ Current Records ด้านล่าง • 15,415 ระเบียน
A9: 10 เขตที่มีงบสำนักงานเขตสูงสุด
A10: อันดับ | B10: เขต | C10: งบสำนักงานเขต | D10: งบส่วนกลางที่ระบุเขตชัด | E10: รวมขั้นต่ำโดยไม่บวกซ้ำ
A11: 1 | B11: ลาดกระบัง | C11: 792,436,500 | D11: 33,600,000 | E11: 826,036,500
A12: 2 | B12: หนองจอก | C12: 779,412,100 | D12: 238,694,500 | E12: 1,018,106,600
A13: 3 | B13: บางขุนเทียน | C13: 751,053,220 | D13: 70,000,000 | E13: 821,053,220
A14: 4 | B14: หนองแขม | C14: 686,266,130 | D14: 0 | E14: 686,266,130
A15: 5 | B15: ดอนเมือง | C15: 644,170,500 | D15: 0 | E15: 644,170,500
A16: 6 | B16: จตุจักร | C16: 643,846,600 | D16: 0 | E16: 643,846,600
A17: 7 | B17: คลองสามวา | C17: 613,478,230 | D17: 29,423,600 | E17: 642,901,830
A18: 8 | B18: ทุ่งครุ | C18: 589,208,420 | D18: 0 | E18: 589,208,420
A19: 9 | B19: บางกะปิ | C19: 560,928,600 | D19: 0 | E19: 560,928,600
A20: 10 | B20: มีนบุรี | C20: 557,587,800 | D20: 0 | E20: 557,587,800
A23: หลักการนับ: ใช้ยอดสรุปหน่วยงานและงบกลาง ไม่รวมยอดทุกแถวใน Current Records เพราะมีทั้งรายการหลัก รายการย่อย และมุมมองรายเขต
A25: สำเนาข้อมูลเว็บ ณ 2026-09-17 • Current Records คือข้อมูลปัจจุบัน • BOQ Evidence คือรายละเอียดเอกสารประกอบ • รุ่น 4 แยกเป็นไฟล์เก่า

Sheet District Summary
A1: สรุปงบครบ 50 เขต
A3: ยอดสำนักงานเขตใช้ตัวเลขหน้า 3 ของเอกสารแต่ละเขต • งบส่วนกลางนับให้เขตเฉพาะรายการที่ระบุเขตเดียวชัดเจน
A4: เขต | B4: งบสำนักงานเขต | C4: รายการหลักสำนักงานเขต | D4: รายการส่วนกลางที่ตรวจแล้ว | E4: รายการส่วนกลางเฉพาะเขต | F4: งบส่วนกลางเฉพาะเขต | G4: รวมขั้นต่ำโดยไม่บวกซ้ำ | H4: โครงการร่วม | I4: วงเงินโครงการร่วม | J4: หมวดสูงสุด | K4: วงเงินหมวดสูงสุด | L4: คำเตือนการเปรียบเทียบ
A5: พระนคร | B5: 428,877,940 | C5: 64 | D5: 8 | E5: 2 | F5: 217,100 | G5: =B5+F5 -> 429,095,040 | H5: 6 | I5: 386,391,740 | J5: บุคลากรและค่าตอบแทน | K5: 255,983,900 | L5: ยอดสำนักงานเขตใช้ยอดรวมหน้า 3 ของเอกสารแต่ละเขต รายการย่อยใช้เพื่อค้นหาและไม่บวกซ้ำ ส่วนงบสำนักส่วนกลางนับให้เขตเฉพาะเมื่อพบชื่อเขตชัดเจน
A6: ป้อมปราบศัตรูพ่าย | B6: 245,822,310 | C6: 37 | D6: 14 | E6: 6 | F6: 393,932,900 | G6: =B6+F6 -> 639,755,210 | H6: 8 | I6: 293,160,562 | J6: บุคลากรและค่าตอบแทน | K6: 164,717,600 | L6: ยอดสำนักงานเขตใช้ยอดรวมหน้า 3 ของเอกสารแต่ละเขต รายการย่อยใช้เพื่อค้นหาและไม่บวกซ้ำ ส่วนงบสำนักส่วนกลางนับให้เขตเฉพาะเมื่อพบชื่อเขตชัดเจน
A7: สัมพันธวงศ์ | B7: 219,070,820 | C7: 42 | D7: 2 | E7: 0 | F7: 0 | G7: =B7+F7 -> 219,070,820 | H7: 2 | I7: 167,174,000 | J7: บุคลากรและค่าตอบแทน | K7: 128,100,000 | L7: ยอดสำนักงานเขตใช้ยอดรวมหน้า 3 ของเอกสารแต่ละเขต รายการย่อยใช้เพื่อค้นหาและไม่บวกซ้ำ ส่วนงบสำนักส่วนกลางนับให้เขตเฉพาะเมื่อพบชื่อเขตชัดเจน
A8: บางรัก | B8: 256,109,100 | C8: 38 | D8: 7 | E8: 3 | F8: 64,400 | G8: =B8+F8 -> 256,173,500 | H8: 4 | I8: 202,077,320 | J8: บุคลากรและค่าตอบแทน | K8: 154,910,300 | L8: ยอดสำนักงานเขตใช้ยอดรวมหน้า 3 ของเอกสารแต่ละเขต รายการย่อยใช้เพื่อค้นหาและไม่บวกซ้ำ ส่วนงบสำนักส่วนกลางนับให้เขตเฉพาะเมื่อพบชื่อเขตชัดเจน
A9: ปทุมวัน | B9: 347,069,260 | C9: 65 | D9: 3 | E9: 1 | F9: 44,969,200 | G9: =B9+F9 -> 392,038,460 | H9: 2 | I9: 33,095,000 | J9: งบบุคลากร | K9: 196,183,300 | L9: ยอดสำนักงานเขตใช้ยอดรวมหน้า 3 ของเอกสารแต่ละเขต รายการย่อยใช้เพื่อค้นหาและไม่บวกซ้ำ ส่วนงบสำนักส่วนกลางนับให้เขตเฉพาะเมื่อพบชื่อเขตชัดเจน
A10: ยานนาวา | B10: 296,239,400 | C10: 92 | D10: 2 | E10: 1 | F10: 362,459,999 | G10: =B10+F10 -> 658,699,399 | H10: 1 | I10: 9,680,000 | J10: งบบุคลากร | K10: 165,644,000 | L10: ยอดสำนักงานเขตใช้ยอดรวมหน้า 3 ของเอกสารแต่ละเขต รายการย่อยใช้เพื่อค้นหาและไม่บวกซ้ำ ส่วนงบสำนักส่วนกลางนับให้เขตเฉพาะเมื่อพบชื่อเขตชัดเจน
A11: ดุสิต | B11: 386,237,060 | C11: 57 | D11: 27 | E11: 14 | F11: 3,018,988,744 | G11: =B11+F11 -> 3,405,225,804 | H11: 13 | I11: 681,078,897 | J11: บุคลากรและค่าตอบแทน | K11: 210,882,000 | L11: ยอดสำนักงานเขตใช้ยอดรวมหน้า 3 ของเอกสารแต่ละเขต รายการย่อยใช้เพื่อค้นหาและไม่บวกซ้ำ ส่วนงบสำนักส่วนกลางนับให้เขตเฉพาะเมื่อพบชื่อเขตชัดเจน
A12: พญาไท | B12: 295,200,440 | C12: 93 | D12: 3 | E12: 0 | F12: 0 | G12: =B12+F12 -> 295,200,440 | H12: 3 | I12: 175,544,000 | J12: งบบุคลากร | K12: 189,199,400 | L12: ยอดสำนักงานเขตใช้ยอดรวมหน้า 3 ของเอกสารแต่ละเขต รายการย่อยใช้เพื่อค้นหาและไม่บวกซ้ำ ส่วนงบสำนักส่วนกลางนับให้เขตเฉพาะเมื่อพบชื่อเขตชัดเจน
A13: ห้วยขวาง | B13: 354,587,390 | C13: 97 | D13: 4 | E13: 1 | F13: 65,080,000 | G13: =B13+F13 -> 419,667,390 | H13: 3 | I13: 39,049,000 | J13: งบบุคลากร | K13: 196,105,900 | L13: ยอดสำนักงานเขตใช้ยอดรวมหน้า 3 ของเอกสารแต่ละเขต รายการย่อยใช้เพื่อค้นหาและไม่บวกซ้ำ ส่วนงบสำนักส่วนกลางนับให้เขตเฉพาะเมื่อพบชื่อเขตชัดเจน
A14: พระโขนง | B14: 315,033,030 | C14: 111 | D14: 1 | E14: 0 | F14: 0 | G14: =B14+F14 -> 315,033,030 | H14: 1 | I14: 9,680,000 | J14: งบบุคลากร | K14: 153,015,120 | L14: ยอดสำนักงานเขตใช้ยอดรวมหน้า 3 ของเอกสารแต่ละเขต รายการย่อยใช้เพื่อค้นหาและไม่บวกซ้ำ ส่วนงบสำนักส่วนกลางนับให้เขตเฉพาะเมื่อพบชื่อเขตชัดเจน
A15: บางกะปิ | B15: 560,928,600 | C15: 112 | D15: 3 | E15: 0 | F15: 0 | G15: =B15+F15 -> 560,928,600 | H15: 2 | I15: 19,636,000 | J15: งบบุคลากร | K15: 233,643,400 | L15: ยอดสำนักงานเขตใช้ยอดรวมหน้า 3 ของเอกสารแต่ละเขต รายการย่อยใช้เพื่อค้นหาและไม่บวกซ้ำ ส่วนงบสำนักส่วนกลางนับให้เขตเฉพาะเมื่อพบชื่อเขตชัดเจน
A16: บางเขน | B16: 547,770,230 | C16: 92 | D16: 1 | E16: 0 | F16: 0 | G16: =B16+F16 -> 547,770,230 | H16: 1 | I16: 7,345,000 | J16: งบบุคลากร | K16: 221,099,400 | L16: ยอดสำนักงานเขตใช้ยอดรวมหน้า 3 ของเอกสารแต่ละเขต รายการย่อยใช้เพื่อค้นหาและไม่บวกซ้ำ ส่วนงบสำนักส่วนกลางนับให้เขตเฉพาะเมื่อพบชื่อเขตชัดเจน
A17: มีนบุรี | B17: 557,587,800 | C17: 125 | D17: 2 | E17: 0 | F17: 0 | G17: =B17+F17 -> 557,587,800 | H17: 2 | I17: 19,636,000 | J17: งบบุคลากร | K17: 202,387,860 | L17: ยอดสำนักงานเขตใช้ยอดรวมหน้า 3 ของเอกสารแต่ละเขต รายการย่อยใช้เพื่อค้นหาและไม่บวกซ้ำ ส่วนงบสำนักส่วนกลางนับให้เขตเฉพาะเมื่อพบชื่อเขตชัดเจน
A18: ลาดกระบัง | B18: 792,436,500 | C18: 88 | D18: 4 | E18: 1 | F18: 33,600,000 | G18: =B18+F18 -> 826,036,500 | H18: 3 | I18: 43,051,000 | J18: ส่วนที่เอกสารสรุปรวม แต่รายการย่อยแปลงได้ไม่ครบ | K18: 301,051,520 | L18: ยอดสำนักงานเขตใช้ยอดรวมหน้า 3 ของเอกสารแต่ละเขต รายการย่อยใช้เพื่อค้นหาและไม่บวกซ้ำ ส่วนงบสำนักส่วนกลางนับให้เขตเฉพาะเมื่อพบชื่อเขตชัดเจน
A19: หนองจอก | B19: 779,412,100 | C19: 99 | D19: 4 | E19: 1 | F19: 238,694,500 | G19: =B19+F19 -> 1,018,106,600 | H19: 3 | I19: 43,051,000 | J19: งบดำเนินงาน | K19: 260,526,830 | L19: ยอดสำนักงานเขตใช้ยอดรวมหน้า 3 ของเอกสารแต่ละเขต รายการย่อยใช้เพื่อค้นหาและไม่บวกซ้ำ ส่วนงบสำนักส่วนกลางนับให้เขตเฉพาะเมื่อพบชื่อเขตชัดเจน
A20: ธนบุรี | B20: 418,319,230 | C20: 91 | D20: 2 | E20: 0 | F20: 0 | G20: =B20+F20 -> 418,319,230 | H20: 2 | I20: 18,101,600 | J20: งบบุคลากร | K20: 226,730,700 | L20: ยอดสำนักงานเขตใช้ยอดรวมหน้า 3 ของเอกสารแต่ละเขต รายการย่อยใช้เพื่อค้นหาและไม่บวกซ้ำ ส่วนงบสำนักส่วนกลางนับให้เขตเฉพาะเมื่อพบชื่อเขตชัดเจน
A21: คลองสาน | B21: 331,760,650 | C21: 102 | D21: 4 | E21: 0 | F21: 0 | G21: =B21+F21 -> 331,760,650 | H21: 3 | I21: 37,614,600 | J21: งบบุคลากร | K21: 174,018,540 | L21: ยอดสำนักงานเขตใช้ยอดรวมหน้า 3 ของเอกสารแต่ละเขต รายการย่อยใช้เพื่อค้นหาและไม่บวกซ้ำ ส่วนงบสำนักส่วนกลางนับให้เขตเฉพาะเมื่อพบชื่อเขตชัดเจน
A22: บางกอกใหญ่ | B22: 285,980,760 | C22: 114 | D22: 5 | E22: 3 | F22: 121,797,920 | G22: =B22+F22 -> 407,778,680 | H22: 2 | I22: 18,101,600 | J22: งบบุคลากร | K22: 152,653,200 | L22: ยอดสำนักงานเขตใช้ยอดรวมหน้า 3 ของเอกสารแต่ละเขต รายการย่อยใช้เพื่อค้นหาและไม่บวกซ้ำ ส่วนงบสำนักส่วนกลางนับให้เขตเฉพาะเมื่อพบชื่อเขตชัดเจน
A23: บางกอกน้อย | B23: 409,071,100 | C23: 96 | D23: 3 | E23: 0 | F23: 0 | G23: =B23+F23 -> 409,071,100 | H23: 3 | I23: 118,101,600 | J23: งบบุคลากร | K23: 202,968,400 | L23: ยอดสำนักงานเขตใช้ยอดรวมหน้า 3 ของเอกสารแต่ละเขต รายการย่อยใช้เพื่อค้นหาและไม่บวกซ้ำ ส่วนงบสำนักส่วนกลางนับให้เขตเฉพาะเมื่อพบชื่อเขตชัดเจน
A24: ตลิ่งชัน | B24: 374,716,380 | C24: 103 | D24: 2 | E24: 0 | F24: 0 | G24: =B24+F24 -> 374,716,380 | H24: 2 | I24: 18,101,600 | J24: งบบุคลากร | K24: 185,538,300 | L24: ยอดสำนักงานเขตใช้ยอดรวมหน้า 3 ของเอกสารแต่ละเขต รายการย่อยใช้เพื่อค้นหาและไม่บวกซ้ำ ส่วนงบสำนักส่วนกลางนับให้เขตเฉพาะเมื่อพบชื่อเขตชัดเจน
A25: ภาษีเจริญ | B25: 422,935,200 | C25: 97 | D25: 3 | E25: 0 | F25: 0 | G25: =B25+F25 -> 422,935,200 | H25: 3 | I25: 37,197,000 | J25: งบบุคลากร | K25: 195,083,800 | L25: ยอดสำนักงานเขตใช้ยอดรวมหน้า 3 ของเอกสารแต่ละเขต รายการย่อยใช้เพื่อค้นหาและไม่บวกซ้ำ ส่วนงบสำนักส่วนกลางนับให้เขตเฉพาะเมื่อพบชื่อเขตชัดเจน
A26: หนองแขม | B26: 686,266,130 | C26: 119 | D26: 1 | E26: 0 | F26: 0 | G26: =B26+F26 -> 686,266,130 | H26: 1 | I26: 8,470,000 | J26: งบลงทุน | K26: 262,605,620 | L26: ยอดสำนักงานเขตใช้ยอดรวมหน้า 3 ของเอกสารแต่ละเขต รายการย่อยใช้เพื่อค้นหาและไม่บวกซ้ำ ส่วนงบสำนักส่วนกลางนับให้เขตเฉพาะเมื่อพบชื่อเขตชัดเจน
A27: บางขุนเทียน | B27: 751,053,220 | C27: 109 | D27: 3 | E27: 1 | F27: 70,000,000 | G27: =B27+F27 -> 821,053,220 | H27: 2 | I27: 17,684,000 | J27: งบลงทุน | K27: 247,274,740 | L27: ยอดสำนักงานเขตใช้ยอดรวมหน้า 3 ของเอกสารแต่ละเขต รายการย่อยใช้เพื่อค้นหาและไม่บวกซ้ำ ส่วนงบสำนักส่วนกลางนับให้เขตเฉพาะเมื่อพบชื่อเขตชัดเจน
A28: ราษฎร์บูรณะ | B28: 322,862,480 | C28: 112 | D28: 1 | E28: 0 | F28: 0 | G28: =B28+F28 -> 322,862,480 | H28: 1 | I28: 8,470,000 | J28: งบบุคลากร | K28: 172,225,900 | L28: ยอดสำนักงานเขตใช้ยอดรวมหน้า 3 ของเอกสารแต่ละเขต รายการย่อยใช้เพื่อค้นหาและไม่บวกซ้ำ ส่วนงบสำนักส่วนกลางนับให้เขตเฉพาะเมื่อพบชื่อเขตชัดเจน
A29: ดอนเมือง | B29: 644,170,500 | C29: 125 | D29: 1 | E29: 0 | F29: 0 | G29: =B29+F29 -> 644,170,500 | H29: 1 | I29: 7,345,000 | J29: งบลงทุน | K29: 246,617,880 | L29: ยอดสำนักงานเขตใช้ยอดรวมหน้า 3 ของเอกสารแต่ละเขต รายการย่อยใช้เพื่อค้นหาและไม่บวกซ้ำ ส่วนงบสำนักส่วนกลางนับให้เขตเฉพาะเมื่อพบชื่อเขตชัดเจน
A30: จตุจักร | B30: 643,846,600 | C30: 102 | D30: 2 | E30: 0 | F30: 0 | G30: =B30+F30 -> 643,846,600 | H30: 2 | I30: 15,855,000 | J30: งบบุคลากร | K30: 292,400,100 | L30: ยอดสำนักงานเขตใช้ยอดรวมหน้า 3 ของเอกสารแต่ละเขต รายการย่อยใช้เพื่อค้นหาและไม่บวกซ้ำ ส่วนงบสำนักส่วนกลางนับให้เขตเฉพาะเมื่อพบชื่อเขตชัดเจน
A31: ลาดพร้าว | B31: 436,553,050 | C31: 98 | D31: 1 | E31: 0 | F31: 0 | G31: =B31+F31 -> 436,553,050 | H31: 1 | I31: 7,345,000 | J31: งบบุคลากร | K31: 187,652,100 | L31: ยอดสำนักงานเขตใช้ยอดรวมหน้า 3 ของเอกสารแต่ละเขต รายการย่อยใช้เพื่อค้นหาและไม่บวกซ้ำ ส่วนงบสำนักส่วนกลางนับให้เขตเฉพาะเมื่อพบชื่อเขตชัดเจน
A32: บึงกุ่ม | B32: 431,222,800 | C32: 90 | D32: 2 | E32: 0 | F32: 0 | G32: =B32+F32 -> 431,222,800 | H32: 2 | I32: 19,636,000 | J32: งบบุคลากร | K32: 176,685,480 | L32: ยอดสำนักงานเขตใช้ยอดรวมหน้า 3 ของเอกสารแต่ละเขต รายการย่อยใช้เพื่อค้นหาและไม่บวกซ้ำ ส่วนงบสำนักส่วนกลางนับให้เขตเฉพาะเมื่อพบชื่อเขตชัดเจน
A33: สาทร | B33: 325,872,700 | C33: 88 | D33: 2 | E33: 1 | F33: 3,418,800 | G33: =B33+F33 -> 329,291,500 | H33: 1 | I33: 9,680,000 | J33: งบบุคลากร | K33: 160,575,900 | L33: ยอดสำนักงานเขตใช้ยอดรวมหน้า 3 ของเอกสารแต่ละเขต รายการย่อยใช้เพื่อค้นหาและไม่บวกซ้ำ ส่วนงบสำนักส่วนกลางนับให้เขตเฉพาะเมื่อพบชื่อเขตชัดเจน
A34: บางคอแหลม | B34: 330,609,410 | C34: 88 | D34: 2 | E34: 1 | F34: 93,199,920 | G34: =B34+F34 -> 423,809,330 | H34: 1 | I34: 9,680,000 | J34: งบบุคลากร | K34: 159,194,900 | L34: ยอดสำนักงานเขตใช้ยอดรวมหน้า 3 ของเอกสารแต่ละเขต รายการย่อยใช้เพื่อค้นหาและไม่บวกซ้ำ ส่วนงบสำนักส่วนกลางนับให้เขตเฉพาะเมื่อพบชื่อเขตชัดเจน
A35: บางซื่อ | B35: 383,060,480 | C35: 82 | D35: 3 | E35: 1 | F35: 36,275,860 | G35: =B35+F35 -> 419,336,340 | H35: 2 | I35: 32,094,000 | J35: งบบุคลากร | K35: 179,808,700 | L35: ยอดสำนักงานเขตใช้ยอดรวมหน้า 3 ของเอกสารแต่ละเขต รายการย่อยใช้เพื่อค้นหาและไม่บวกซ้ำ ส่วนงบสำนักส่วนกลางนับให้เขตเฉพาะเมื่อพบชื่อเขตชัดเจน
A36: ราชเทวี | B36: 338,530,570 | C36: 87 | D36: 3 | E36: 0 | F36: 0 | G36: =B36+F36 -> 338,530,570 | H36: 2 | I36: 30,679,000 | J36: งบบุคลากร | K36: 185,091,400 | L36: ยอดสำนักงานเขตใช้ยอดรวมหน้า 3 ของเอกสารแต่ละเขต รายการย่อยใช้เพื่อค้นหาและไม่บวกซ้ำ ส่วนงบสำนักส่วนกลางนับให้เขตเฉพาะเมื่อพบชื่อเขตชัดเจน
A37: คลองเตย | B37: 354,862,600 | C37: 86 | D37: 3 | E37: 0 | F37: 0 | G37: =B37+F37 -> 354,862,600 | H37: 2 | I37: 19,730,000 | J37: งบบุคลากร | K37: 191,455,300 | L37: ยอดสำนักงานเขตใช้ยอดรวมหน้า 3 ของเอกสารแต่ละเขต รายการย่อยใช้เพื่อค้นหาและไม่บวกซ้ำ ส่วนงบสำนักส่วนกลางนับให้เขตเฉพาะเมื่อพบชื่อเขตชัดเจน
A38: ประเวศ | B38: 536,682,840 | C38: 86 | D38: 5 | E38: 2 | F38: 122,448,965 | G38: =B38+F38 -> 659,131,805 | H38: 3 | I38: 34,926,000 | J38: งบบุคลากร | K38: 225,931,900 | L38: ยอดสำนักงานเขตใช้ยอดรวมหน้า 3 ของเอกสารแต่ละเขต รายการย่อยใช้เพื่อค้นหาและไม่บวกซ้ำ ส่วนงบสำนักส่วนกลางนับให้เขตเฉพาะเมื่อพบชื่อเขตชัดเจน
A39: บางพลัด | B39: 338,547,970 | C39: 91 | D39: 3 | E39: 0 | F39: 0 | G39: =B39+F39 -> 338,547,970 | H39: 3 | I39: 118,101,600 | J39: งบบุคลากร | K39: 165,173,700 | L39: ยอดสำนักงานเขตใช้ยอดรวมหน้า 3 ของเอกสารแต่ละเขต รายการย่อยใช้เพื่อค้นหาและไม่บวกซ้ำ ส่วนงบสำนักส่วนกลางนับให้เขตเฉพาะเมื่อพบชื่อเขตชัดเจน
A40: จอมทอง | B40: 434,014,940 | C40: 94 | D40: 1 | E40: 0 | F40: 0 | G40: =B40+F40 -> 434,014,940 | H40: 1 | I40: 9,163,000 | J40: งบบุคลากร | K40: 211,254,200 | L40: ยอดสำนักงานเขตใช้ยอดรวมหน้า 3 ของเอกสารแต่ละเขต รายการย่อยใช้เพื่อค้นหาและไม่บวกซ้ำ ส่วนงบสำนักส่วนกลางนับให้เขตเฉพาะเมื่อพบชื่อเขตชัดเจน
A41: ดินแดง | B41: 383,399,320 | C41: 78 | D41: 2 | E41: 0 | F41: 0 | G41: =B41+F41 -> 383,399,320 | H41: 2 | I41: 167,174,000 | J41: งบบุคลากร | K41: 193,093,400 | L41: ยอดสำนักงานเขตใช้ยอดรวมหน้า 3 ของเอกสารแต่ละเขต รายการย่อยใช้เพื่อค้นหาและไม่บวกซ้ำ ส่วนงบสำนักส่วนกลางนับให้เขตเฉพาะเมื่อพบชื่อเขตชัดเจน
A42: สวนหลวง | B42: 411,006,400 | C42: 88 | D42: 2 | E42: 0 | F42: 0 | G42: =B42+F42 -> 411,006,400 | H42: 2 | I42: 19,730,000 | J42: งบบุคลากร | K42: 204,701,400 | L42: ยอดสำนักงานเขตใช้ยอดรวมหน้า 3 ของเอกสารแต่ละเขต รายการย่อยใช้เพื่อค้นหาและไม่บวกซ้ำ ส่วนงบสำนักส่วนกลางนับให้เขตเฉพาะเมื่อพบชื่อเขตชัดเจน
A43: วัฒนา | B43: 377,042,000 | C43: 120 | D43: 1 | E43: 0 | F43: 0 | G43: =B43+F43 -> 377,042,000 | H43: 1 | I43: 9,680,000 | J43: งบบุคลากร | K43: 195,794,700 | L43: ยอดสำนักงานเขตใช้ยอดรวมหน้า 3 ของเอกสารแต่ละเขต รายการย่อยใช้เพื่อค้นหาและไม่บวกซ้ำ ส่วนงบสำนักส่วนกลางนับให้เขตเฉพาะเมื่อพบชื่อเขตชัดเจน
A44: บางแค | B44: 525,777,900 | C44: 114 | D44: 5 | E44: 2 | F44: 152,005,184 | G44: =B44+F44 -> 677,783,084 | H44: 3 | I44: 37,197,000 | J44: งบบุคลากร | K44: 224,695,460 | L44: ยอดสำนักงานเขตใช้ยอดรวมหน้า 3 ของเอกสารแต่ละเขต รายการย่อยใช้เพื่อค้นหาและไม่บวกซ้ำ ส่วนงบสำนักส่วนกลางนับให้เขตเฉพาะเมื่อพบชื่อเขตชัดเจน
A45: หลักสี่ | B45: 471,756,500 | C45: 111 | D45: 3 | E45: 1 | F45: 43,000,000 | G45: =B45+F45 -> 514,756,500 | H45: 2 | I45: 15,855,000 | J45: งบบุคลากร | K45: 175,652,200 | L45: ยอดสำนักงานเขตใช้ยอดรวมหน้า 3 ของเอกสารแต่ละเขต รายการย่อยใช้เพื่อค้นหาและไม่บวกซ้ำ ส่วนงบสำนักส่วนกลางนับให้เขตเฉพาะเมื่อพบชื่อเขตชัดเจน
A46: สายไหม | B46: 553,534,680 | C46: 105 | D46: 2 | E46: 0 | F46: 0 | G46: =B46+F46 -> 553,534,680 | H46: 1 | I46: 7,345,000 | J46: งบบุคลากร | K46: 183,509,500 | L46: ยอดสำนักงานเขตใช้ยอดรวมหน้า 3 ของเอกสารแต่ละเขต รายการย่อยใช้เพื่อค้นหาและไม่บวกซ้ำ ส่วนงบสำนักส่วนกลางนับให้เขตเฉพาะเมื่อพบชื่อเขตชัดเจน
A47: คันนายาว | B47: 356,409,500 | C47: 92 | D47: 3 | E47: 1 | F47: 33,853,000 | G47: =B47+F47 -> 390,262,500 | H47: 2 | I47: 19,636,000 | J47: งบบุคลากร | K47: 157,567,500 | L47: ยอดสำนักงานเขตใช้ยอดรวมหน้า 3 ของเอกสารแต่ละเขต รายการย่อยใช้เพื่อค้นหาและไม่บวกซ้ำ ส่วนงบสำนักส่วนกลางนับให้เขตเฉพาะเมื่อพบชื่อเขตชัดเจน
A48: สะพานสูง | B48: 393,385,840 | C48: 100 | D48: 1 | E48: 0 | F48: 0 | G48: =B48+F48 -> 393,385,840 | H48: 1 | I48: 10,464,000 | J48: งบบุคลากร | K48: 152,280,900 | L48: ยอดสำนักงานเขตใช้ยอดรวมหน้า 3 ของเอกสารแต่ละเขต รายการย่อยใช้เพื่อค้นหาและไม่บวกซ้ำ ส่วนงบสำนักส่วนกลางนับให้เขตเฉพาะเมื่อพบชื่อเขตชัดเจน
A49: วังทองหลาง | B49: 294,735,720 | C49: 73 | D49: 2 | E49: 1 | F49: 72,160,000 | G49: =B49+F49 -> 366,895,720 | H49: 1 | I49: 5,930,000 | J49: งบบุคลากร | K49: 161,947,900 | L49: ยอดสำนักงานเขตใช้ยอดรวมหน้า 3 ของเอกสารแต่ละเขต รายการย่อยใช้เพื่อค้นหาและไม่บวกซ้ำ ส่วนงบสำนักส่วนกลางนับให้เขตเฉพาะเมื่อพบชื่อเขตชัดเจน
A50: คลองสามวา | B50: 613,478,230 | C50: 92 | D50: 3 | E50: 1 | F50: 29,423,600 | G50: =B50+F50 -> 642,901,830 | H50: 2 | I50: 32,587,000 | J50: งบบุคลากร | K50: 200,827,000 | L50: ยอดสำนักงานเขตใช้ยอดรวมหน้า 3 ของเอกสารแต่ละเขต รายการย่อยใช้เพื่อค้นหาและไม่บวกซ้ำ ส่วนงบสำนักส่วนกลางนับให้เขตเฉพาะเมื่อพบชื่อเขตชัดเจน
A51: บางนา | B51: 358,456,230 | C51: 86 | D51: 5 | E51: 3 | F51: 97,168,000 | G51: =B51+F51 -> 455,624,230 | H51: 2 | I51: 19,730,000 | J51: งบบุคลากร | K51: 168,064,920 | L51: ยอดสำนักงานเขตใช้ยอดรวมหน้า 3 ของเอกสารแต่ละเขต รายการย่อยใช้เพื่อค้นหาและไม่บวกซ้ำ ส่วนงบสำนักส่วนกลางนับให้เขตเฉพาะเมื่อพบชื่อเขตชัดเจน
A52: ทวีวัฒนา | B52: 432,579,130 | C52: 95 | D52: 2 | E52: 0 | F52: 0 | G52: =B52+F52 -> 432,579,130 | H52: 2 | I52: 18,101,600 | J52: งบบุคลากร | K52: 195,578,100 | L52: ยอดสำนักงานเขตใช้ยอดรวมหน้า 3 ของเอกสารแต่ละเขต รายการย่อยใช้เพื่อค้นหาและไม่บวกซ้ำ ส่วนงบสำนักส่วนกลางนับให้เขตเฉพาะเมื่อพบชื่อเขตชัดเจน
A53: ทุ่งครุ | B53: 589,208,420 | C53: 101 | D53: 1 | E53: 0 | F53: 0 | G53: =B53+F53 -> 589,208,420 | H53: 1 | I53: 8,470,000 | J53: งบลงทุน | K53: 237,846,050 | L53: ยอดสำนักงานเขตใช้ยอดรวมหน้า 3 ของเอกสารแต่ละเขต รายการย่อยใช้เพื่อค้นหาและไม่บวกซ้ำ ส่วนงบสำนักส่วนกลางนับให้เขตเฉพาะเมื่อพบชื่อเขตชัดเจน
A54: บางบอน | B54: 498,830,830 | C54: 106 | D54: 1 | E54: 0 | F54: 0 | G54: =B54+F54 -> 498,830,830 | H54: 1 | I54: 8,470,000 | J54: งบบุคลากร | K54: 191,382,100 | L54: ยอดสำนักงานเขตใช้ยอดรวมหน้า 3 ของเอกสารแต่ละเขต รายการย่อยใช้เพื่อค้นหาและไม่บวกซ้ำ ส่วนงบสำนักส่วนกลางนับให้เขตเฉพาะเมื่อพบชื่อเขตชัดเจน

Sheet Agency Summary
A1: งบผ่านหน่วยรับงบ 72 หน่วย
A3: แยกเงินงบประมาณออกจากเงินนอกงบประมาณ • 50 สำนักงานเขต + 22 หน่วยงานส่วนกลาง • ไม่รวมรายจ่ายงบกลาง
A4: รหัสเอกสาร | B4: กลุ่มเอกสาร | C4: หน่วยงาน | D4: เงินงบประมาณ | E4: เงินนอกงบประมาณ | F4: ยอดตามหน้าสรุป | G4: หน้าอ้างอิงยอดรวม | H4: รายการที่แปลงได้ | I4: ไฟล์ต้นฉบับ
A5: 70007 | B5: สำนักส่วนกลาง | C5: สำนักงานเลขานุการสภากรุงเทพมหานคร | D5: 173,196,800 | E5: 0 | F5: =D5+E5 -> 173,196,800 | G5: 3 | H5: 0 | I5: https://drive.google.com/file/d/1RGZUVucCdX60TBcRWJ5HO12mSF19PDZC/view?usp=drivesdk
A6: 70008 | B6: สำนักส่วนกลาง | C6: สำนักงานเลขานุการผู้ว่าราชการกรุงเทพมหานคร | D6: 75,471,560 | E6: 0 | F6: =D6+E6 -> 75,471,560 | G6: 3 | H6: 0 | I6: https://drive.google.com/file/d/1cSKHYkJEkWpJeBWAOVgu8jOeHM5cQecF/view?usp=drivesdk
A7: 70009 | B7: สำนักส่วนกลาง | C7: สำนักงานคณะกรรมการข้าราชการกรุงเทพมหานคร | D7: 327,251,670 | E7: 0 | F7: =D7+E7 -> 327,251,670 | G7: 3 | H7: 0 | I7: https://drive.google.com/file/d/1ssQcNIt_r7-A03i_10lvAaVpBRhZBQPA/view?usp=drivesdk
A8: 70010 | B8: สำนักส่วนกลาง | C8: สำนักปลัดกรุงเทพมหานคร | D8: 699,590,150 | E8: 0 | F8: =D8+E8 -> 699,590,150 | G8: 3 | H8: 0 | I8: https://drive.google.com/file/d/1RVv7_5ca6zi_yZ7pXA9Vtuq1PQ5IRKNh/view?usp=drivesdk
A9: 70011 | B9: สำนักส่วนกลาง | C9: สำนักการแพทย์ | D9: 5,593,223,800 | E9: 0 | F9: =D9+E9 -> 5,593,223,800 | G9: 3 | H9: 2 | I9: https://drive.google.com/file/d/1hxJxIoFVtZ1tWDPD-JeXYWhQyyBP9FCe/view?usp=drivesdk
A10: 70012 | B10: สำนักส่วนกลาง | C10: สำนักอนามัย | D10: 2,520,874,000 | E10: 0 | F10: =D10+E10 -> 2,520,874,000 | G10: 3 | H10: 0 | I10: https://drive.google.com/file/d/1MIZy1x3g0x-UNGljOZKotSkrP07HI2Sf/view?usp=drivesdk
A11: 70013 | B11: สำนักส่วนกลาง | C11: สำนักการศึกษา | D11: 1,135,553,500 | E11: 0 | F11: =D11+E11 -> 1,135,553,500 | G11: 3 | H11: 0 | I11: https://drive.google.com/file/d/1go8hmylbEXpMWmF4QYmXNHb1eHmBZlrl/view?usp=drivesdk
A12: 70014 | B12: สำนักส่วนกลาง | C12: สำนักการโยธา | D12: 8,548,189,810 | E12: 158,344,100 | F12: =D12+E12 -> 8,706,533,910 | G12: 3 | H12: 9 | I12: https://drive.google.com/file/d/16Y16ZUrhcuEhxuguxxGQ2TmFH4fxxBaT/view?usp=drivesdk
A13: 70015 | B13: สำนักส่วนกลาง | C13: สำนักการระบายน้ำ | D13: 8,678,821,200 | E13: 864,915,600 | F13: =D13+E13 -> 9,543,736,800 | G13: 3 | H13: 11 | I13: https://drive.google.com/file/d/19B2U5T7iWxi_s62-_EDEnnFypzgc-Frf/view?usp=drivesdk
A14: 70016 | B14: สำนักส่วนกลาง | C14: สำนักการคลัง | D14: 5,009,105,800 | E14: 0 | F14: =D14+E14 -> 5,009,105,800 | G14: 3 | H14: 0 | I14: https://drive.google.com/file/d/1MvZJOKva_y9EB3YxQN84_y96ipmoj1bJ/view?usp=drivesdk
A15: 70017 | B15: สำนักส่วนกลาง | C15: สำนักเทศกิจ | D15: 193,474,400 | E15: 0 | F15: =D15+E15 -> 193,474,400 | G15: 3 | H15: 0 | I15: https://drive.google.com/file/d/1vd1LRtNP2OeWWdF2rk98icCA7nN6y2jO/view?usp=drivesdk
A16: 70018 | B16: สำนักส่วนกลาง | C16: สำนักการจราจรและขนส่ง | D16: 8,301,111,350 | E16: 0 | F16: =D16+E16 -> 8,301,111,350 | G16: 3 | H16: 6 | I16: https://drive.google.com/file/d/1-947x5WJCaV-kwSzaKeO253Y5L4A5IIb/view?usp=drivesdk
A17: 70019 | B17: สำนักส่วนกลาง | C17: สำนักการวางผังและพัฒนาเมือง | D17: 162,767,700 | E17: 0 | F17: =D17+E17 -> 162,767,700 | G17: 4 | H17: 0 | I17: https://drive.google.com/file/d/1EQy-MPNwS_yBhQ-7RX4u1aSqCgoLeELt/view?usp=drivesdk
A18: 70020 | B18: สำนักส่วนกลาง | C18: สำนักป้องกันและบรรเทาสาธารณภัย | D18: 766,574,260 | E18: 0 | F18: =D18+E18 -> 766,574,260 | G18: 4 | H18: 0 | I18: https://drive.google.com/file/d/1Ysu2oGf0kyRHL_6xA-O_BllQJlSI2xOY/view?usp=drivesdk
A19: 70021 | B19: สำนักส่วนกลาง | C19: สำนักงบประมาณกรุงเทพมหานคร | D19: 93,173,400 | E19: 0 | F19: =D19+E19 -> 93,173,400 | G19: 3 | H19: 0 | I19: https://drive.google.com/file/d/1TvN9cOq6s8INTdl9_vTTd_vy6MlnOOBH/view?usp=drivesdk
A20: 70022 | B20: สำนักส่วนกลาง | C20: สำนักยุทธศาสตร์และประเมินผล | D20: 68,940,600 | E20: 0 | F20: =D20+E20 -> 68,940,600 | G20: 3 | H20: 0 | I20: https://drive.google.com/file/d/1lhZVNqC6V_TwMY4TdD6C-UgTIgk430rV/view?usp=drivesdk
A21: 70023 | B21: สำนักส่วนกลาง | C21: สำนักสิ่งแวดล้อม | D21: 5,503,183,930 | E21: 0 | F21: =D21+E21 -> 5,503,183,930 | G21: 4 | H21: 0 | I21: https://drive.google.com/file/d/13FeFhRsLNGQSMeRxB1tvboxFks2o9v4I/view?usp=drivesdk
A22: 70024 | B22: สำนักส่วนกลาง | C22: สำนักวัฒนธรรม กีฬา และการท่องเที่ยว | D22: 1,790,725,420 | E22: 0 | F22: =D22+E22 -> 1,790,725,420 | G22: 3 | H22: 8 | I22: https://drive.google.com/file/d/1J8qW4B6-KNR34sfMSYIiXksbk10mkacF/view?usp=drivesdk
A23: 70025 | B23: สำนักส่วนกลาง | C23: สำนักพัฒนาสังคม | D23: 441,509,300 | E23: 0 | F23: =D23+E23 -> 441,509,300 | G23: 3 | H23: 0 | I23: https://drive.google.com/file/d/1x09gdkIA_UlETsB3DGwy94QcRnhwa2zd/view?usp=drivesdk
A24: 70026 | B24: สำนักส่วนกลาง | C24: สำนักดิจิทัลกรุงเทพมหานคร | D24: 845,320,670 | E24: 0 | F24: =D24+E24 -> 845,320,670 | G24: 3 | H24: 0 | I24: https://drive.google.com/file/d/1l9cDQ7EnJOvKz4gpafJ1zSiocaMf_b-i/view?usp=drivesdk
A25: 70027 | B25: สำนักงานเขต | C25: สำนักงานเขตพระนคร | D25: 428,877,940 | E25: 0 | F25: =D25+E25 -> 428,877,940 | G25: 3 | H25: 0 | I25: https://drive.google.com/file/d/1p5778Vda8X27HgthFfi7gs6MNC6egHWG/view?usp=drivesdk
A26: 70028 | B26: สำนักงานเขต | C26: สำนักงานเขตป้อมปราบศัตรูพ่าย | D26: 245,822,310 | E26: 0 | F26: =D26+E26 -> 245,822,310 | G26: 3 | H26: 0 | I26: https://drive.google.com/file/d/1QmgdXZ-8XLdv2HxotrbrM0Y0PRmrRIXL/view?usp=drivesdk
A27: 70029 | B27: สำนักงานเขต | C27: สำนักงานเขตสัมพันธวงศ์ | D27: 219,070,820 | E27: 0 | F27: =D27+E27 -> 219,070,820 | G27: 3 | H27: 0 | I27: https://drive.google.com/file/d/1zziamuHWdJi32H6obflAzv8ZzPEIDk6_/view?usp=drivesdk
A28: 70030 | B28: สำนักงานเขต | C28: สำนักงานเขตบางรัก | D28: 256,109,100 | E28: 0 | F28: =D28+E28 -> 256,109,100 | G28: 3 | H28: 0 | I28: https://drive.google.com/file/d/1skmUz0MTItOvU5mJgEM3CjITjnMg5ZMS/view?usp=drivesdk
A29: 70031 | B29: สำนักงานเขต | C29: สำนักงานเขตปทุมวัน | D29: 347,069,260 | E29: 0 | F29: =D29+E29 -> 347,069,260 | G29: 3 | H29: 117 | I29: https://data.bangkok.go.th/dataset/cd29e51a-3f50-49b1-8423-7c0c68014074/resource/3def3d36-8ce2-4dcb-aaca-6cfe8f973894/download/70031-.pdf
A30: 70032 | B30: สำนักงานเขต | C30: สำนักงานเขตยานนาวา | D30: 296,239,400 | E30: 0 | F30: =D30+E30 -> 296,239,400 | G30: 3 | H30: 192 | I30: https://data.bangkok.go.th/dataset/cd29e51a-3f50-49b1-8423-7c0c68014074/resource/dfbd569f-1dcc-4ca2-aa2b-97771694c7f6/download/70032-.pdf
A31: 70033 | B31: สำนักงานเขต | C31: สำนักงานเขตดุสิต | D31: 386,237,060 | E31: 0 | F31: =D31+E31 -> 386,237,060 | G31: 3 | H31: 0 | I31: https://drive.google.com/file/d/1w6-VfEbqdEjXXUiOGW9pCY4WTQo4mcnj/view?usp=drivesdk
A32: 70034 | B32: สำนักงานเขต | C32: สำนักงานเขตพญาไท | D32: 295,200,440 | E32: 0 | F32: =D32+E32 -> 295,200,440 | G32: 3 | H32: 144 | I32: https://data.bangkok.go.th/dataset/cd29e51a-3f50-49b1-8423-7c0c68014074/resource/acc14487-f064-4401-bbe3-e910ef79adaa/download/70034-.pdf
A33: 70035 | B33: สำนักงานเขต | C33: สำนักงานเขตห้วยขวาง | D33: 354,587,390 | E33: 0 | F33: =D33+E33 -> 354,587,390 | G33: 3 | H33: 145 | I33: https://data.bangkok.go.th/dataset/cd29e51a-3f50-49b1-8423-7c0c68014074/resource/f802a81a-6df1-4eee-8579-6d22108ac8a1/download/70035-.pdf
A34: 70036 | B34: สำนักงานเขต | C34: สำนักงานเขตพระโขนง | D34: 315,033,030 | E34: 0 | F34: =D34+E34 -> 315,033,030 | G34: 3 | H34: 182 | I34: https://data.bangkok.go.th/dataset/cd29e51a-3f50-49b1-8423-7c0c68014074/resource/f6551db1-31e0-4f70-8604-2d7b92b6aaa5/download/70036-.pdf
A35: 70037 | B35: สำนักงานเขต | C35: สำนักงานเขตบางกะปิ | D35: 560,928,600 | E35: 0 | F35: =D35+E35 -> 560,928,600 | G35: 3 | H35: 179 | I35: https://data.bangkok.go.th/dataset/cd29e51a-3f50-49b1-8423-7c0c68014074/resource/39bb7bce-c266-4356-afd2-d7854c45f619/download/70037-.pdf
A36: 70038 | B36: สำนักงานเขต | C36: สำนักงานเขตบางเขน | D36: 547,770,230 | E36: 0 | F36: =D36+E36 -> 547,770,230 | G36: 3 | H36: 151 | I36: https://data.bangkok.go.th/dataset/cd29e51a-3f50-49b1-8423-7c0c68014074/resource/2f96bca5-8cd4-45db-95c7-934036544968/download/70038-.pdf
A37: 70039 | B37: สำนักงานเขต | C37: สำนักงานเขตมีนบุรี | D37: 557,587,800 | E37: 0 | F37: =D37+E37 -> 557,587,800 | G37: 3 | H37: 257 | I37: https://data.bangkok.go.th/dataset/cd29e51a-3f50-49b1-8423-7c0c68014074/resource/2d2ab862-c73d-40c6-9f40-84200a5f1bce/download/70039-.pdf
A38: 70040 | B38: สำนักงานเขต | C38: สำนักงานเขตลาดกระบัง | D38: 792,436,500 | E38: 0 | F38: =D38+E38 -> 792,436,500 | G38: 3 | H38: 169 | I38: https://data.bangkok.go.th/dataset/cd29e51a-3f50-49b1-8423-7c0c68014074/resource/aa4f4189-4ecd-4104-af48-0551c3f3225b/download/70040-.pdf
A39: 70041 | B39: สำนักงานเขต | C39: สำนักงานเขตหนองจอก | D39: 779,412,100 | E39: 0 | F39: =D39+E39 -> 779,412,100 | G39: 3 | H39: 242 | I39: https://data.bangkok.go.th/dataset/cd29e51a-3f50-49b1-8423-7c0c68014074/resource/c06ef771-568e-4565-8267-c044dddd7b63/download/70041-.pdf
A40: 70042 | B40: สำนักงานเขต | C40: สำนักงานเขตธนบุรี | D40: 418,319,230 | E40: 0 | F40: =D40+E40 -> 418,319,230 | G40: 3 | H40: 195 | I40: https://data.bangkok.go.th/dataset/cd29e51a-3f50-49b1-8423-7c0c68014074/resource/ee9c0a67-5f1c-4e5c-8c8e-f95801275217/download/70042-.pdf
A41: 70043 | B41: สำนักงานเขต | C41: สำนักงานเขตคลองสาน | D41: 331,760,650 | E41: 0 | F41: =D41+E41 -> 331,760,650 | G41: 3 | H41: 162 | I41: https://data.bangkok.go.th/dataset/cd29e51a-3f50-49b1-8423-7c0c68014074/resource/5e616241-61e4-4fa8-822a-e375ab6ddc07/download/70043-.pdf
A42: 70044 | B42: สำนักงานเขต | C42: สำนักงานเขตบางกอกใหญ่ | D42: 285,980,760 | E42: 0 | F42: =D42+E42 -> 285,980,760 | G42: 3 | H42: 164 | I42: https://data.bangkok.go.th/dataset/cd29e51a-3f50-49b1-8423-7c0c68014074/resource/93195a7c-4a17-4830-80bb-b8850de3c674/download/70044-.pdf
A43: 70045 | B43: สำนักงานเขต | C43: สำนักงานเขตบางกอกน้อย | D43: 409,071,100 | E43: 0 | F43: =D43+E43 -> 409,071,100 | G43: 3 | H43: 160 | I43: https://data.bangkok.go.th/dataset/cd29e51a-3f50-49b1-8423-7c0c68014074/resource/f0758134-9f14-473f-a396-ddf075afb19e/download/70045-.pdf
A44: 70046 | B44: สำนักงานเขต | C44: สำนักงานเขตตลิ่งชัน | D44: 374,716,380 | E44: 0 | F44: =D44+E44 -> 374,716,380 | G44: 3 | H44: 155 | I44: https://data.bangkok.go.th/dataset/cd29e51a-3f50-49b1-8423-7c0c68014074/resource/2b622d49-7086-4681-a368-24b3e156c479/download/70046-.pdf
A45: 70047 | B45: สำนักงานเขต | C45: สำนักงานเขตภาษีเจริญ | D45: 422,935,200 | E45: 0 | F45: =D45+E45 -> 422,935,200 | G45: 3 | H45: 186 | I45: https://data.bangkok.go.th/dataset/cd29e51a-3f50-49b1-8423-7c0c68014074/resource/3665de84-bf98-4eb4-b3a3-48df348c7e0f/download/70047-.pdf
A46: 70048 | B46: สำนักงานเขต | C46: สำนักงานเขตหนองแขม | D46: 686,266,130 | E46: 0 | F46: =D46+E46 -> 686,266,130 | G46: 3 | H46: 206 | I46: https://data.bangkok.go.th/dataset/cd29e51a-3f50-49b1-8423-7c0c68014074/resource/c3d439a4-443d-489b-8e84-dfae0b3d7053/download/70048-.pdf
A47: 70049 | B47: สำนักงานเขต | C47: สำนักงานเขตบางขุนเทียน | D47: 751,053,220 | E47: 0 | F47: =D47+E47 -> 751,053,220 | G47: 3 | H47: 227 | I47: https://data.bangkok.go.th/dataset/cd29e51a-3f50-49b1-8423-7c0c68014074/resource/28f0f99f-1fe6-42ec-9f4b-0735ef28a67e/download/70049-.pdf
A48: 70050 | B48: สำนักงานเขต | C48: สำนักงานเขตราษฎร์บูรณะ | D48: 322,862,480 | E48: 0 | F48: =D48+E48 -> 322,862,480 | G48: 3 | H48: 190 | I48: https://data.bangkok.go.th/dataset/cd29e51a-3f50-49b1-8423-7c0c68014074/resource/31996436-58a6-476e-a6d1-e34613bdce17/download/70050-.pdf
A49: 70051 | B49: สำนักงานเขต | C49: สำนักงานเขตดอนเมือง | D49: 644,170,500 | E49: 0 | F49: =D49+E49 -> 644,170,500 | G49: 3 | H49: 199 | I49: https://data.bangkok.go.th/dataset/cd29e51a-3f50-49b1-8423-7c0c68014074/resource/81e192cb-8178-47d9-8060-52437bff510f/download/70051-.pdf
A50: 70052 | B50: สำนักงานเขต | C50: สำนักงานเขตจตุจักร | D50: 643,846,600 | E50: 0 | F50: =D50+E50 -> 643,846,600 | G50: 3 | H50: 162 | I50: https://data.bangkok.go.th/dataset/cd29e51a-3f50-49b1-8423-7c0c68014074/resource/333c072f-d81a-4582-8c53-eee5a6b4bb50/download/70052-.pdf
A51: 70053 | B51: สำนักงานเขต | C51: สำนักงานเขตลาดพร้าว | D51: 436,553,050 | E51: 0 | F51: =D51+E51 -> 436,553,050 | G51: 3 | H51: 171 | I51: https://data.bangkok.go.th/dataset/cd29e51a-3f50-49b1-8423-7c0c68014074/resource/0ae827a5-3390-4ddc-b628-91f81b7020c8/download/70053-.pdf
A52: 70054 | B52: สำนักงานเขต | C52: สำนักงานเขตบึงกุ่ม | D52: 431,222,800 | E52: 0 | F52: =D52+E52 -> 431,222,800 | G52: 3 | H52: 138 | I52: https://data.bangkok.go.th/dataset/cd29e51a-3f50-49b1-8423-7c0c68014074/resource/0a87c294-2554-4dee-a78e-42b7bbb97c2e/download/70054-.pdf
A53: 70055 | B53: สำนักงานเขต | C53: สำนักงานเขตสาทร | D53: 325,872,700 | E53: 0 | F53: =D53+E53 -> 325,872,700 | G53: 3 | H53: 128 | I53: https://data.bangkok.go.th/dataset/cd29e51a-3f50-49b1-8423-7c0c68014074/resource/c2fc0ae6-b279-4eba-af09-39162cdc21e7/download/70055-.pdf
A54: 70056 | B54: สำนักงานเขต | C54: สำนักงานเขตบางคอแหลม | D54: 330,609,410 | E54: 0 | F54: =D54+E54 -> 330,609,410 | G54: 3 | H54: 163 | I54: https://data.bangkok.go.th/dataset/cd29e51a-3f50-49b1-8423-7c0c68014074/resource/4037c44e-9997-465c-9f2f-c71858733419/download/70056-.pdf
A55: 70057 | B55: สำนักงานเขต | C55: สำนักงานเขตบางซื่อ | D55: 383,060,480 | E55: 0 | F55: =D55+E55 -> 383,060,480 | G55: 3 | H55: 145 | I55: https://data.bangkok.go.th/dataset/cd29e51a-3f50-49b1-8423-7c0c68014074/resource/7a49aa89-99ca-4a2c-a783-ee1734797727/download/70057-.pdf
A56: 70058 | B56: สำนักงานเขต | C56: สำนักงานเขตราชเทวี | D56: 338,530,570 | E56: 0 | F56: =D56+E56 -> 338,530,570 | G56: 3 | H56: 133 | I56: https://data.bangkok.go.th/dataset/cd29e51a-3f50-49b1-8423-7c0c68014074/resource/1863f301-5a07-47ab-a1ad-c1d2fe991218/download/70058-.pdf
A57: 70059 | B57: สำนักงานเขต | C57: สำนักงานเขตคลองเตย | D57: 354,862,600 | E57: 0 | F57: =D57+E57 -> 354,862,600 | G57: 3 | H57: 131 | I57: https://data.bangkok.go.th/dataset/cd29e51a-3f50-49b1-8423-7c0c68014074/resource/2beb1887-33f1-47f2-9a44-3b7e94fffcfd/download/70059-.pdf
A58: 70060 | B58: สำนักงานเขต | C58: สำนักงานเขตประเวศ | D58: 536,682,840 | E58: 0 | F58: =D58+E58 -> 536,682,840 | G58: 3 | H58: 183 | I58: https://data.bangkok.go.th/dataset/cd29e51a-3f50-49b1-8423-7c0c68014074/resource/63254c98-97e4-42cf-9eff-83996fd5d55b/download/70060-.pdf
A59: 70061 | B59: สำนักงานเขต | C59: สำนักงานเขตบางพลัด | D59: 338,547,970 | E59: 0 | F59: =D59+E59 -> 338,547,970 | G59: 3 | H59: 171 | I59: https://data.bangkok.go.th/dataset/cd29e51a-3f50-49b1-8423-7c0c68014074/resource/b65b3b71-6748-4363-8ec9-b10b4800502f/download/70061-.pdf
A60: 70062 | B60: สำนักงานเขต | C60: สำนักงานเขตจอมทอง | D60: 434,014,940 | E60: 0 | F60: =D60+E60 -> 434,014,940 | G60: 3 | H60: 157 | I60: https://data.bangkok.go.th/dataset/cd29e51a-3f50-49b1-8423-7c0c68014074/resource/7277a583-607b-4283-b7fb-84a62ad5b4de/download/70062-.pdf
A61: 70063 | B61: สำนักงานเขต | C61: สำนักงานเขตดินแดง | D61: 383,399,320 | E61: 0 | F61: =D61+E61 -> 383,399,320 | G61: 3 | H61: 114 | I61: https://data.bangkok.go.th/dataset/cd29e51a-3f50-49b1-8423-7c0c68014074/resource/8ade26b9-34db-431c-809a-913f5fced4ac/download/70063-.pdf
A62: 70064 | B62: สำนักงานเขต | C62: สำนักงานเขตสวนหลวง | D62: 411,006,400 | E62: 0 | F62: =D62+E62 -> 411,006,400 | G62: 3 | H62: 147 | I62: https://data.bangkok.go.th/dataset/cd29e51a-3f50-49b1-8423-7c0c68014074/resource/5f1a76ee-b72d-41f0-87fb-078066623994/download/70064-.pdf
A63: 70065 | B63: สำนักงานเขต | C63: สำนักงานเขตวัฒนา | D63: 377,042,000 | E63: 0 | F63: =D63+E63 -> 377,042,000 | G63: 3 | H63: 198 | I63: https://data.bangkok.go.th/dataset/cd29e51a-3f50-49b1-8423-7c0c68014074/resource/fb44d72b-8ac9-4fb7-b3ad-1dfdeca5a040/download/70065-.pdf
A64: 70066 | B64: สำนักงานเขต | C64: สำนักงานเขตบางแค | D64: 525,777,900 | E64: 0 | F64: =D64+E64 -> 525,777,900 | G64: 3 | H64: 199 | I64: https://data.bangkok.go.th/dataset/cd29e51a-3f50-49b1-8423-7c0c68014074/resource/62951035-72cc-405b-82d6-e3e231337b95/download/70066-.pdf
A65: 70067 | B65: สำนักงานเขต | C65: สำนักงานเขตหลักสี่ | D65: 471,756,500 | E65: 0 | F65: =D65+E65 -> 471,756,500 | G65: 3 | H65: 196 | I65: https://data.bangkok.go.th/dataset/cd29e51a-3f50-49b1-8423-7c0c68014074/resource/6e375db3-e64e-4def-9def-9fd97d1e126d/download/70067-.pdf
A66: 70068 | B66: สำนักงานเขต | C66: สำนักงานเขตสายไหม | D66: 553,534,680 | E66: 0 | F66: =D66+E66 -> 553,534,680 | G66: 3 | H66: 171 | I66: https://data.bangkok.go.th/dataset/cd29e51a-3f50-49b1-8423-7c0c68014074/resource/b9d4646a-b88d-42e6-9186-acfbc38bb122/download/70068-.pdf
A67: 70069 | B67: สำนักงานเขต | C67: สำนักงานเขตคันนายาว | D67: 356,409,500 | E67: 0 | F67: =D67+E67 -> 356,409,500 | G67: 3 | H67: 132 | I67: https://data.bangkok.go.th/dataset/cd29e51a-3f50-49b1-8423-7c0c68014074/resource/d5b85257-3ac1-4da6-85ed-30fe4ef39ee0/download/70069-.pdf
A68: 70070 | B68: สำนักงานเขต | C68: สำนักงานเขตสะพานสูง | D68: 393,385,840 | E68: 0 | F68: =D68+E68 -> 393,385,840 | G68: 3 | H68: 174 | I68: https://data.bangkok.go.th/dataset/cd29e51a-3f50-49b1-8423-7c0c68014074/resource/5e731305-688c-4206-aa05-915dc14f6e73/download/70070-.pdf
A69: 70071 | B69: สำนักงานเขต | C69: สำนักงานเขตวังทองหลาง | D69: 294,735,720 | E69: 0 | F69: =D69+E69 -> 294,735,720 | G69: 3 | H69: 101 | I69: https://data.bangkok.go.th/dataset/cd29e51a-3f50-49b1-8423-7c0c68014074/resource/06bc8d85-b68e-465a-a97d-5fe532e076d9/download/70071-.pdf
A70: 70072 | B70: สำนักงานเขต | C70: สำนักงานเขตคลองสามวา | D70: 613,478,230 | E70: 0 | F70: =D70+E70 -> 613,478,230 | G70: 3 | H70: 183 | I70: https://data.bangkok.go.th/dataset/cd29e51a-3f50-49b1-8423-7c0c68014074/resource/1a2063c9-845f-4a91-a672-d76d37b30871/download/70072-.pdf
A71: 70073 | B71: สำนักงานเขต | C71: สำนักงานเขตบางนา | D71: 358,456,230 | E71: 0 | F71: =D71+E71 -> 358,456,230 | G71: 3 | H71: 165 | I71: https://data.bangkok.go.th/dataset/cd29e51a-3f50-49b1-8423-7c0c68014074/resource/0bc533cf-cea6-4bd8-9c6f-b6afed09d165/download/70073-.pdf
A72: 70074 | B72: สำนักงานเขต | C72: สำนักงานเขตทวีวัฒนา | D72: 432,579,130 | E72: 0 | F72: =D72+E72 -> 432,579,130 | G72: 3 | H72: 151 | I72: https://data.bangkok.go.th/dataset/cd29e51a-3f50-49b1-8423-7c0c68014074/resource/a5ebac3a-49ec-495c-8efb-d75fc94ee0c3/download/70074-.pdf
A73: 70075 | B73: สำนักงานเขต | C73: สำนักงานเขตทุ่งครุ | D73: 589,208,420 | E73: 0 | F73: =D73+E73 -> 589,208,420 | G73: 3 | H73: 179 | I73: https://data.bangkok.go.th/dataset/cd29e51a-3f50-49b1-8423-7c0c68014074/resource/f3352d36-229a-4378-a788-d3762b3eaffd/download/70075-.pdf
A74: 70076 | B74: สำนักงานเขต | C74: สำนักงานเขตบางบอน | D74: 498,830,830 | E74: 0 | F74: =D74+E74 -> 498,830,830 | G74: 3 | H74: 181 | I74: https://data.bangkok.go.th/dataset/cd29e51a-3f50-49b1-8423-7c0c68014074/resource/8129e642-2500-4e34-9792-0dd7dbcd35a7/download/70076-.pdf
A75: 70077 | B75: สำนักส่วนกลาง | C75: มหาวิทยาลัยนวมินทราธิราช | D75: 2,507,407,940 | E75: 10,000,000 | F75: =D75+E75 -> 2,517,407,940 | G75: 3 | H75: 1 | I75: https://drive.google.com/file/d/1DFInpP6ER1J_KuuRqinpRdUVoxemiXjI/view?usp=drivesdk
A76: 70078 | B76: สำนักส่วนกลาง | C76: การพาณิชย์ของกรุงเทพมหานคร | D76: 918,922,000 | E76: 0 | F76: =D76+E76 -> 918,922,000 | G76: 7 | H76: 5 | I76: https://drive.google.com/file/d/1mDKUmRBLeuPDc3f4Wpgnl5giUDsFfLzo/view?usp=drivesdk

Sheet Master Dataset
A1: ชุดอ้างอิงเดิมรุ่น 4 — แยกเป็นไฟล์เก่า
A3: ชีตนี้เก็บลิงก์อ้างอิงเท่านั้น ไม่มีระเบียนรุ่นเก่าในไฟล์รุ่น 8 • ใช้ Current Records สำหรับข้อมูลปัจจุบัน
A5: ไฟล์เดิม 10,948 ระเบียน ใช้เทียบย้อนหลังเท่านั้น ไม่ใช่ข้อมูลล่าสุด และห้ามนำยอดมารวมกับ Current Records
A6: https://budgetbkk70.lataepat.com/downloads/ngob-klai-baan-master-dataset-2570-v4.xlsx

Sheet Source Register
A1: ทะเบียนเอกสารต้นทาง 78 ไฟล์
A3: แสดงเงินงบประมาณ เงินนอกงบประมาณ และยอดตามหน้าสรุปแยกกัน • 50 สำนักงานเขต • 23 เอกสารส่วนกลาง • 5 เอกสารภาพรวม
A4: รหัส | B4: กลุ่มเอกสาร | C4: หน่วยงาน | D4: ชื่อไฟล์ | E4: จำนวนหน้า | F4: เงินงบประมาณ | G4: เงินนอกงบประมาณ | H4: ยอดตามหน้าสรุป | I4: หน้าของยอดรวม | J4: สถานะตรวจ | K4: หมายเหตุคุณภาพ | L4: แหล่งข้อมูลหลัก | M4: สำเนาทำงาน/ไฟล์ที่เปิด | N4: SHA-256
A5: 70001 | B5: เอกสารภาพรวม | C5: สำนักงบประมาณกรุงเทพมหานคร | D5: 70001 - ประมาณการรายรับ - งบประมาณ พ.ศ. 2570.pdf | E5: 52 | H5: =IF(COUNTA(F5:G5)=0,"",SUM(F5:G5)) ->  | J5: ใช้ตรวจภาพรวมรายรับ ไม่สร้างรายการพื้นที่ | K5: ตรวจชั้นข้อความและเทียบหน้าที่ใช้สร้างรายการกับภาพ PDF; เก็บเลขหน้า PDF และหน้าในเล่มแยกกันเมื่อมีเลขพิมพ์ในเอกสาร | L5: https://data.bangkok.go.th/dataset/cd29e51a-3f50-49b1-8423-7c0c68014074/resource/7fe8da2c-7074-4fed-9a27-c64b473781f7/download/70001-.pdf | M5: https://drive.google.com/file/d/18SY-uz4df3c0zjJjT607z9HXKO-2822U/view?usp=drivesdk | N5: 2bea8be187bfe2d5d22822e75e89e2a614e068ffc5dd43aebc4a9ed96e51dc8d
A6: 70002 | B6: เอกสารภาพรวม | C6: สำนักงบประมาณกรุงเทพมหานคร | D6: 70002 - งบประมาณรายจ่าย - งบประมาณ พ.ศ. 2570.pdf | E6: 91 | H6: =IF(COUNTA(F6:G6)=0,"",SUM(F6:G6)) ->  | J6: ใช้ตรวจยอดภาพรวม ไม่สร้างรายการซ้ำ | K6: ตรวจชั้นข้อความและเทียบหน้าที่ใช้สร้างรายการกับภาพ PDF; เก็บเลขหน้า PDF และหน้าในเล่มแยกกันเมื่อมีเลขพิมพ์ในเอกสาร | L6: https://data.bangkok.go.th/dataset/cd29e51a-3f50-49b1-8423-7c0c68014074/resource/0d3c174f-4113-4edd-a0ae-8a7bbae37320/download/70002-.pdf | M6: https://drive.google.com/file/d/1w9614kbVxc5pKniys7FEueWFBe1zung2/view?usp=drivesdk | N6: 1831ee1d0b8aca3a6e85032debe599d51d31dc594f7e947a521deccfeb7efbbd
A7: 70003 | B7: เอกสารภาพรวม | C7: สำนักงบประมาณกรุงเทพมหานคร | D7: 70003 - งบประมาณรายจ่ายจำแนกตามด้าน สาขา แผนงาน งาน โครงการ - งบประมาณ พ.ศ. 2570.pdf | E7: 118 | H7: =IF(COUNTA(F7:G7)=0,"",SUM(F7:G7)) ->  | J7: ใช้ตรวจโครงสร้างงบ ไม่สร้างรายการซ้ำ | K7: ตรวจชั้นข้อความและเทียบหน้าที่ใช้สร้างรายการกับภาพ PDF; เก็บเลขหน้า PDF และหน้าในเล่มแยกกันเมื่อมีเลขพิมพ์ในเอกสาร | L7: https://data.bangkok.go.th/dataset/cd29e51a-3f50-49b1-8423-7c0c68014074/resource/c07aae06-0b41-47dc-9282-cba7a5bc719d/download/70003-.pdf | M7: https://drive.google.com/file/d/12XCkoC10vHIhMhE3YpWw6fUCroc9aHIb/view?usp=drivesdk | N7: 43c4c1b81cfd44d64d2b226cd09792ee61331324f5a0f7cf073478a35f61e85c
A8: 70004 | B8: เอกสารภาพรวม | C8: สำนักงบประมาณกรุงเทพมหานคร | D8: 70004 - รายงานการคลัง - งบประมาณ พ.ศ. 2570.pdf | E8: 72 | H8: =IF(COUNTA(F8:G8)=0,"",SUM(F8:G8)) ->  | J8: ใช้เป็นข้อมูลการคลังประกอบ ไม่สร้างรายการพื้นที่ | K8: ตรวจชั้นข้อความและเทียบหน้าที่ใช้สร้างรายการกับภาพ PDF; เก็บเลขหน้า PDF และหน้าในเล่มแยกกันเมื่อมีเลขพิมพ์ในเอกสาร | L8: https://data.bangkok.go.th/dataset/cd29e51a-3f50-49b1-8423-7c0c68014074/resource/40acdaa9-c539-4cda-8d97-cb4a40b522f4/download/70004-.pdf | M8: https://drive.google.com/file/d/1kDb7lyPT4CWK13WGohkse2vimPFUjcGv/view?usp=drivesdk | N8: b36c1e4a6c7b5803855723c36047f3efee87ce55e22f19b3af70678c253e3cd7
A9: 70005 | B9: เอกสารภาพรวม | C9: สำนักงบประมาณกรุงเทพมหานคร | D9: 70005 - งบประมาณรายจ่ายโดยสังเขป - งบประมาณ พ.ศ. 2570.pdf | E9: 124 | H9: =IF(COUNTA(F9:G9)=0,"",SUM(F9:G9)) ->  | J9: ใช้ตรวจยอดสรุป ไม่สร้างรายการซ้ำ | K9: ตรวจชั้นข้อความและเทียบหน้าที่ใช้สร้างรายการกับภาพ PDF; เก็บเลขหน้า PDF และหน้าในเล่มแยกกันเมื่อมีเลขพิมพ์ในเอกสาร | L9: https://data.bangkok.go.th/dataset/cd29e51a-3f50-49b1-8423-7c0c68014074/resource/aadbbd68-0712-44be-bd7f-d15db19d8f01/download/70005-.pdf | M9: https://drive.google.com/file/d/1SoLO0v9tFkS8kRhLHV5L1azaplJU6i6f/view?usp=drivesdk | N9: 98e8432b4dda6b12091fa300e5317df94d016a320a1458f05497343974b4ce7c
A10: 70006 | B10: สำนักส่วนกลาง | C10: แผนงานบูรณาการย่านสร้างสรรค์ | D10: 70006 - แผนงานบูรณาการย่านสร้างสรรค์ - งบประมาณ พ.ศ. 2570.pdf | E10: 12 | H10: =IF(COUNTA(F10:G10)=0,"",SUM(F10:G10)) ->  | J10: คัดกรองความเกี่ยวข้องกับ 5 เขต; สร้าง 0 รายการเฉพาะพื้นที่ | K10: มีชั้นข้อความ แต่เอกสารบางเล่มใช้รหัสอักขระไทยแบบเก่าหรือข้อความหมุน; รายการวงเงินสูงที่นำมาใช้ได้รับการเทียบภาพ PDF | L10: https://data.bangkok.go.th/dataset/70-pdf | M10: https://drive.google.com/file/d/1CodJP2yNnZiPR3zy8iChl0_TUgyhbLZX/view?usp=drivesdk | N10: cc433c46de1dae9608e13f70276b3c2d568712939c6ed5f88ce3af91d009253f
A11: 70007 | B11: สำนักส่วนกลาง | C11: สำนักงานเลขานุการสภากรุงเทพมหานคร | D11: 70007 - สำนักงานเลขานุการสภากรุงเทพมหานคร - งบประมาณ พ.ศ. 2570.pdf | E11: 10 | F11: 173,196,800 | G11: 0 | H11: =IF(COUNTA(F11:G11)=0,"",SUM(F11:G11)) -> 173,196,800 | I11: 3 | J11: ตรวจครบทั้งเล่ม; ไม่พบรายการที่ระบุพื้นที่ 5 เขต | K11: ตรวจชั้นข้อความและเทียบหน้าที่ใช้สร้างรายการกับภาพ PDF; เก็บเลขหน้า PDF และหน้าในเล่มแยกกันเมื่อมีเลขพิมพ์ในเอกสาร | L11: https://data.bangkok.go.th/dataset/cd29e51a-3f50-49b1-8423-7c0c68014074/resource/89fc2f5d-0803-4f01-b430-b96240e8c25a/download/70007-.pdf | M11: https://drive.google.com/file/d/1RGZUVucCdX60TBcRWJ5HO12mSF19PDZC/view?usp=drivesdk | N11: 6a642369a166bbb727823aa95d7f9acb190dd4f6fd6e7a5949c67b0412d6d458
A12: 70008 | B12: สำนักส่วนกลาง | C12: สำนักงานเลขานุการผู้ว่าราชการกรุงเทพมหานคร | D12: 70008 - สำนักงานเลขานุการผู้ว่าราชการกรุงเทพมหานคร - งบประมาณ พ.ศ. 2570.pdf | E12: 11 | F12: 75,471,560 | G12: 0 | H12: =IF(COUNTA(F12:G12)=0,"",SUM(F12:G12)) -> 75,471,560 | I12: 3 | J12: ตรวจครบทั้งเล่ม; ไม่พบรายการที่ระบุพื้นที่ 5 เขต | K12: ตรวจชั้นข้อความและเทียบหน้าที่ใช้สร้างรายการกับภาพ PDF; เก็บเลขหน้า PDF และหน้าในเล่มแยกกันเมื่อมีเลขพิมพ์ในเอกสาร | L12: https://data.bangkok.go.th/dataset/cd29e51a-3f50-49b1-8423-7c0c68014074/resource/6ae9baf2-0a59-4c84-a2f3-d883130b104c/download/70008-.pdf | M12: https://drive.google.com/file/d/1cSKHYkJEkWpJeBWAOVgu8jOeHM5cQecF/view?usp=drivesdk | N12: f95579f13bfd6577070a821efcef1c438d280bf1f9e2f8cd107596bf61a3c843
A13: 70009 | B13: สำนักส่วนกลาง | C13: สำนักงานคณะกรรมการข้าราชการกรุงเทพมหานคร | D13: 70009 - สำนักงานคณะกรรมการข้าราชการกรุงเทพมหานคร - งบประมาณ พ.ศ. 2570.pdf | E13: 19 | F13: 327,251,670 | G13: 0 | H13: =IF(COUNTA(F13:G13)=0,"",SUM(F13:G13)) -> 327,251,670 | I13: 3 | J13: ตรวจครบทั้งเล่ม; ไม่พบรายการที่ระบุพื้นที่ 5 เขต | K13: ตรวจชั้นข้อความและเทียบหน้าที่ใช้สร้างรายการกับภาพ PDF; เก็บเลขหน้า PDF และหน้าในเล่มแยกกันเมื่อมีเลขพิมพ์ในเอกสาร | L13: https://data.bangkok.go.th/dataset/cd29e51a-3f50-49b1-8423-7c0c68014074/resource/48faef79-8ae3-49a8-a0a8-78142e23cf54/download/70009-.pdf | M13: https://drive.google.com/file/d/1ssQcNIt_r7-A03i_10lvAaVpBRhZBQPA/view?usp=drivesdk | N13: 453122966603bf35500f266a280a08d887626b20510da6bc23a5fa097d944ae9
A14: 70010 | B14: สำนักส่วนกลาง | C14: สำนักปลัดกรุงเทพมหานคร | D14: 70010 - สำนักปลัดกรุงเทพมหานคร - งบประมาณ พ.ศ. 2570.pdf | E14: 45 | F14: 699,590,150 | G14: 0 | H14: =IF(COUNTA(F14:G14)=0,"",SUM(F14:G14)) -> 699,590,150 | I14: 3 | J14: ตรวจครบทั้งเล่ม; ไม่พบรายการที่ระบุพื้นที่ 5 เขต | K14: ตรวจชั้นข้อความและเทียบหน้าที่ใช้สร้างรายการกับภาพ PDF; เก็บเลขหน้า PDF และหน้าในเล่มแยกกันเมื่อมีเลขพิมพ์ในเอกสาร | L14: https://data.bangkok.go.th/dataset/cd29e51a-3f50-49b1-8423-7c0c68014074/resource/a149fc4c-9fe4-4177-9590-2f41da3c35d3/download/70010-.pdf | M14: https://drive.google.com/file/d/1RVv7_5ca6zi_yZ7pXA9Vtuq1PQ5IRKNh/view?usp=drivesdk | N14: 0584eb5fff7dcb9df3c8d20e23d5240834c775a6713c707cf7e8b800f8fd6ee2
A15: 70011 | B15: สำนักส่วนกลาง | C15: สำนักการแพทย์ | D15: 70011 - สำนักการแพทย์ - งบประมาณ พ.ศ. 2570.pdf | E15: 49 | F15: 5,593,223,800 | G15: 0 | H15: =IF(COUNTA(F15:G15)=0,"",SUM(F15:G15)) -> 5,593,223,800 | I15: 3 | J15: คัดกรองความเกี่ยวข้องกับ 5 เขต; สร้าง 2 รายการเฉพาะพื้นที่ | K15: มีชั้นข้อความ แต่เอกสารบางเล่มใช้รหัสอักขระไทยแบบเก่าหรือข้อความหมุน; รายการวงเงินสูงที่นำมาใช้ได้รับการเทียบภาพ PDF | L15: https://data.bangkok.go.th/dataset/70-pdf | M15: https://drive.google.com/file/d/1hxJxIoFVtZ1tWDPD-JeXYWhQyyBP9FCe/view?usp=drivesdk | N15: 44fe77b7fd2bd723f6ced2890ea7549398885f1c6d5ff0facfde90566ffcebdf
A16: 70012 | B16: สำนักส่วนกลาง | C16: สำนักอนามัย | D16: 70012 - สำนักอนามัย - งบประมาณ พ.ศ. 2570.pdf | E16: 82 | F16: 2,520,874,000 | G16: 0 | H16: =IF(COUNTA(F16:G16)=0,"",SUM(F16:G16)) -> 2,520,874,000 | I16: 3 | J16: คัดกรองความเกี่ยวข้องกับ 5 เขต; สร้าง 0 รายการเฉพาะพื้นที่ | K16: มีชั้นข้อความ แต่เอกสารบางเล่มใช้รหัสอักขระไทยแบบเก่าหรือข้อความหมุน; รายการวงเงินสูงที่นำมาใช้ได้รับการเทียบภาพ PDF | L16: https://data.bangkok.go.th/dataset/70-pdf | M16: https://drive.google.com/file/d/1MIZy1x3g0x-UNGljOZKotSkrP07HI2Sf/view?usp=drivesdk | N16: 173b029955847b454b1a05fb3407c64321a7f275c83272eddb61981565ed486b
A17: 70013 | B17: สำนักส่วนกลาง | C17: สำนักการศึกษา | D17: 70013 - สำนักการศึกษา - งบประมาณ พ.ศ. 2570.pdf | E17: 41 | F17: 1,135,553,500 | G17: 0 | H17: =IF(COUNTA(F17:G17)=0,"",SUM(F17:G17)) -> 1,135,553,500 | I17: 3 | J17: คัดกรองความเกี่ยวข้องกับ 5 เขต; สร้าง 0 รายการเฉพาะพื้นที่ | K17: มีชั้นข้อความ แต่เอกสารบางเล่มใช้รหัสอักขระไทยแบบเก่าหรือข้อความหมุน; รายการวงเงินสูงที่นำมาใช้ได้รับการเทียบภาพ PDF | L17: https://data.bangkok.go.th/dataset/70-pdf | M17: https://drive.google.com/file/d/1go8hmylbEXpMWmF4QYmXNHb1eHmBZlrl/view?usp=drivesdk | N17: 7da72a43693e24149d5c80b3c92537d14371f18d36f22c7f6ece81d69faf3b46
A18: 70014 | B18: สำนักส่วนกลาง | C18: สำนักการโยธา | D18: 70014 - สำนักการโยธา - งบประมาณ พ.ศ. 2570.pdf | E18: 80 | F18: 8,548,189,810 | G18: 158,344,100 | H18: =IF(COUNTA(F18:G18)=0,"",SUM(F18:G18)) -> 8,706,533,910 | I18: 3 | J18: คัดกรองความเกี่ยวข้องกับ 5 เขต; สร้าง 9 รายการเฉพาะพื้นที่ | K18: มีชั้นข้อความ แต่เอกสารบางเล่มใช้รหัสอักขระไทยแบบเก่าหรือข้อความหมุน; รายการวงเงินสูงที่นำมาใช้ได้รับการเทียบภาพ PDF | L18: https://data.bangkok.go.th/dataset/70-pdf | M18: https://drive.google.com/file/d/16Y16ZUrhcuEhxuguxxGQ2TmFH4fxxBaT/view?usp=drivesdk | N18: 7618129bc33d7ac1b17fdce0c495995f7d0208d8bf9a9b66118df2c82b6dcaea
A19: 70015 | B19: สำนักส่วนกลาง | C19: สำนักการระบายน้ำ | D19: 70015 - สำนักการระบายน้ำ - งบประมาณ พ.ศ. 2570.pdf | E19: 142 | F19: 8,678,821,200 | G19: 864,915,600 | H19: =IF(COUNTA(F19:G19)=0,"",SUM(F19:G19)) -> 9,543,736,800 | I19: 3 | J19: คัดกรองความเกี่ยวข้องกับ 5 เขต; สร้าง 11 รายการเฉพาะพื้นที่ | K19: มีชั้นข้อความ แต่เอกสารบางเล่มใช้รหัสอักขระไทยแบบเก่าหรือข้อความหมุน; รายการวงเงินสูงที่นำมาใช้ได้รับการเทียบภาพ PDF | L19: https://data.bangkok.go.th/dataset/70-pdf | M19: https://drive.google.com/file/d/19B2U5T7iWxi_s62-_EDEnnFypzgc-Frf/view?usp=drivesdk | N19: 7e9cd9976b220a6eeae8f6095ce610003c46cd3c8f0320df2f20762b9b6ffbf4
A20: 70016 | B20: สำนักส่วนกลาง | C20: สำนักการคลัง | D20: 70016 - สำนักการคลัง - งบประมาณ พ.ศ. 2570.pdf | E20: 32 | F20: 5,009,105,800 | G20: 0 | H20: =IF(COUNTA(F20:G20)=0,"",SUM(F20:G20)) -> 5,009,105,800 | I20: 3 | J20: ตรวจครบทั้งเล่ม; ไม่พบรายการที่ระบุพื้นที่ 5 เขต | K20: ตรวจชั้นข้อความและเทียบหน้าที่ใช้สร้างรายการกับภาพ PDF; เก็บเลขหน้า PDF และหน้าในเล่มแยกกันเมื่อมีเลขพิมพ์ในเอกสาร | L20: https://data.bangkok.go.th/dataset/cd29e51a-3f50-49b1-8423-7c0c68014074/resource/f0cb8349-9450-45ae-bbe1-18c77912b690/download/70016-.pdf | M20: https://drive.google.com/file/d/1MvZJOKva_y9EB3YxQN84_y96ipmoj1bJ/view?usp=drivesdk | N20: c02ea468e46d0f672df4b30b640567c02000ac7496900511b021776a9c6c32f9
A21: 70017 | B21: สำนักส่วนกลาง | C21: สำนักเทศกิจ | D21: 70017 - สำนักเทศกิจ - งบประมาณ พ.ศ. 2570.pdf | E21: 19 | F21: 193,474,400 | G21: 0 | H21: =IF(COUNTA(F21:G21)=0,"",SUM(F21:G21)) -> 193,474,400 | I21: 3 | J21: คัดกรองความเกี่ยวข้องกับ 5 เขต; สร้าง 0 รายการเฉพาะพื้นที่ | K21: มีชั้นข้อความ แต่เอกสารบางเล่มใช้รหัสอักขระไทยแบบเก่าหรือข้อความหมุน; รายการวงเงินสูงที่นำมาใช้ได้รับการเทียบภาพ PDF | L21: https://data.bangkok.go.th/dataset/70-pdf | M21: https://drive.google.com/file/d/1vd1LRtNP2OeWWdF2rk98icCA7nN6y2jO/view?usp=drivesdk | N21: 0ad87fd3bac93a679f868c159c3b105faa5748bb8303f3168dc1fb8d23a6a617
A22: 70018 | B22: สำนักส่วนกลาง | C22: สำนักการจราจรและขนส่ง | D22: 70018 - สำนักการจราจรและขนส่ง - งบประมาณ พ.ศ. 2570.pdf | E22: 46 | F22: 8,301,111,350 | G22: 0 | H22: =IF(COUNTA(F22:G22)=0,"",SUM(F22:G22)) -> 8,301,111,350 | I22: 3 | J22: คัดกรองความเกี่ยวข้องกับ 5 เขต; สร้าง 6 รายการเฉพาะพื้นที่ | K22: มีชั้นข้อความ แต่เอกสารบางเล่มใช้รหัสอักขระไทยแบบเก่าหรือข้อความหมุน; รายการวงเงินสูงที่นำมาใช้ได้รับการเทียบภาพ PDF | L22: https://data.bangkok.go.th/dataset/70-pdf | M22: https://drive.google.com/file/d/1-947x5WJCaV-kwSzaKeO253Y5L4A5IIb/view?usp=drivesdk | N22: 5907940dbd380dd3ec5dff3db136b6d088bb11c779d1f60914dcbf28c5b29dfb
A23: 70019 | B23: สำนักส่วนกลาง | C23: สำนักการวางผังและพัฒนาเมือง | D23: 70019 - สำนักการวางผังและพัฒนาเมือง - งบประมาณ พ.ศ. 2570.pdf | E23: 19 | F23: 162,767,700 | G23: 0 | H23: =IF(COUNTA(F23:G23)=0,"",SUM(F23:G23)) -> 162,767,700 | I23: 4 | J23: คัดกรองความเกี่ยวข้องกับ 5 เขต; สร้าง 0 รายการเฉพาะพื้นที่ | K23: มีชั้นข้อความ แต่เอกสารบางเล่มใช้รหัสอักขระไทยแบบเก่าหรือข้อความหมุน; รายการวงเงินสูงที่นำมาใช้ได้รับการเทียบภาพ PDF | L23: https://data.bangkok.go.th/dataset/70-pdf | M23: https://drive.google.com/file/d/1EQy-MPNwS_yBhQ-7RX4u1aSqCgoLeELt/view?usp=drivesdk | N23: a6418fcfab269af3bf7c7cb7b99747e6b33590e4cd8ecd1e0e760cb9812f3136
A24: 70020 | B24: สำนักส่วนกลาง | C24: สำนักป้องกันและบรรเทาสาธารณภัย | D24: 70020 - สำนักป้องกันและบรรเทาสาธารณภัย - งบประมาณ พ.ศ. 2570.pdf | E24: 25 | F24: 766,574,260 | G24: 0 | H24: =IF(COUNTA(F24:G24)=0,"",SUM(F24:G24)) -> 766,574,260 | I24: 4 | J24: คัดกรองความเกี่ยวข้องกับ 5 เขต; สร้าง 0 รายการเฉพาะพื้นที่ | K24: มีชั้นข้อความ แต่เอกสารบางเล่มใช้รหัสอักขระไทยแบบเก่าหรือข้อความหมุน; รายการวงเงินสูงที่นำมาใช้ได้รับการเทียบภาพ PDF | L24: https://data.bangkok.go.th/dataset/70-pdf | M24: https://drive.google.com/file/d/1Ysu2oGf0kyRHL_6xA-O_BllQJlSI2xOY/view?usp=drivesdk | N24: fba4bda2d71409b49018843d4df134bde945fae900f2362f374af25a6ff2ec9b
A25: 70021 | B25: สำนักส่วนกลาง | C25: สำนักงบประมาณกรุงเทพมหานคร | D25: 70021 - สำนักงบประมาณกรุงเทพมหานคร - งบประมาณ พ.ศ. 2570.pdf | E25: 12 | F25: 93,173,400 | G25: 0 | H25: =IF(COUNTA(F25:G25)=0,"",SUM(F25:G25)) -> 93,173,400 | I25: 3 | J25: ตรวจครบทั้งเล่ม; ไม่พบรายการที่ระบุพื้นที่ 5 เขต | K25: ตรวจชั้นข้อความและเทียบหน้าที่ใช้สร้างรายการกับภาพ PDF; เก็บเลขหน้า PDF และหน้าในเล่มแยกกันเมื่อมีเลขพิมพ์ในเอกสาร | L25: https://data.bangkok.go.th/dataset/cd29e51a-3f50-49b1-8423-7c0c68014074/resource/632d4cf6-f303-43ce-a9df-6c6905c90c5c/download/70021-.pdf | M25: https://drive.google.com/file/d/1TvN9cOq6s8INTdl9_vTTd_vy6MlnOOBH/view?usp=drivesdk | N25: fa207fb3fb2038bd973c1527784a6eea77527b1d5fd0b4ca1e443f102a305a6d
A26: 70022 | B26: สำนักส่วนกลาง | C26: สำนักยุทธศาสตร์และประเมินผล | D26: 70022 - สำนักยุทธศาสตร์และประเมินผล - งบประมาณ พ.ศ. 2570.pdf | E26: 11 | F26: 68,940,600 | G26: 0 | H26: =IF(COUNTA(F26:G26)=0,"",SUM(F26:G26)) -> 68,940,600 | I26: 3 | J26: ตรวจครบทั้งเล่ม; ไม่พบรายการที่ระบุพื้นที่ 5 เขต | K26: ตรวจชั้นข้อความและเทียบหน้าที่ใช้สร้างรายการกับภาพ PDF; เก็บเลขหน้า PDF และหน้าในเล่มแยกกันเมื่อมีเลขพิมพ์ในเอกสาร | L26: https://data.bangkok.go.th/dataset/cd29e51a-3f50-49b1-8423-7c0c68014074/resource/a8387732-176d-4dad-8a45-58fb139d2c2c/download/70022-.pdf | M26: https://drive.google.com/file/d/1lhZVNqC6V_TwMY4TdD6C-UgTIgk430rV/view?usp=drivesdk | N26: 7e03e32c93970bd74934d075cfe7b79fc27a31278f43e5b8751ea16aa67b98c9
A27: 70023 | B27: สำนักส่วนกลาง | C27: สำนักสิ่งแวดล้อม | D27: 70023 - สำนักสิ่งแวดล้อม - งบประมาณ พ.ศ. 2570.pdf | E27: 81 | F27: 5,503,183,930 | G27: 0 | H27: =IF(COUNTA(F27:G27)=0,"",SUM(F27:G27)) -> 5,503,183,930 | I27: 4 | J27: คัดกรองความเกี่ยวข้องกับ 5 เขต; สร้าง 0 รายการเฉพาะพื้นที่ | K27: มีชั้นข้อความ แต่เอกสารบางเล่มใช้รหัสอักขระไทยแบบเก่าหรือข้อความหมุน; รายการวงเงินสูงที่นำมาใช้ได้รับการเทียบภาพ PDF | L27: https://data.bangkok.go.th/dataset/70-pdf | M27: https://drive.google.com/file/d/13FeFhRsLNGQSMeRxB1tvboxFks2o9v4I/view?usp=drivesdk | N27: 104808258b7487d48859c46ca6e64b333b8c5f54f2999a90ffb8879f33394190
A28: 70024 | B28: สำนักส่วนกลาง | C28: สำนักวัฒนธรรม กีฬา และการท่องเที่ยว | D28: 70024 - สำนักวัฒนธรรม กีฬา และการท่องเที่ยว - งบประมาณ พ.ศ. 2570.pdf | E28: 60 | F28: 1,790,725,420 | G28: 0 | H28: =IF(COUNTA(F28:G28)=0,"",SUM(F28:G28)) -> 1,790,725,420 | I28: 3 | J28: คัดกรองความเกี่ยวข้องกับ 5 เขต; สร้าง 8 รายการเฉพาะพื้นที่ | K28: มีชั้นข้อความ แต่เอกสารบางเล่มใช้รหัสอักขระไทยแบบเก่าหรือข้อความหมุน; รายการวงเงินสูงที่นำมาใช้ได้รับการเทียบภาพ PDF | L28: https://data.bangkok.go.th/dataset/70-pdf | M28: https://drive.google.com/file/d/1J8qW4B6-KNR34sfMSYIiXksbk10mkacF/view?usp=drivesdk | N28: abdc354fe4b17112a8280ff15b90ea2a44698ae97ce112400c3a0b1be4a4294c
A29: 70025 | B29: สำนักส่วนกลาง | C29: สำนักพัฒนาสังคม | D29: 70025 - สำนักพัฒนาสังคม - งบประมาณ พ.ศ. 2570.pdf | E29: 34 | F29: 441,509,300 | G29: 0 | H29: =IF(COUNTA(F29:G29)=0,"",SUM(F29:G29)) -> 441,509,300 | I29: 3 | J29: คัดกรองความเกี่ยวข้องกับ 5 เขต; สร้าง 0 รายการเฉพาะพื้นที่ | K29: มีชั้นข้อความ แต่เอกสารบางเล่มใช้รหัสอักขระไทยแบบเก่าหรือข้อความหมุน; รายการวงเงินสูงที่นำมาใช้ได้รับการเทียบภาพ PDF | L29: https://data.bangkok.go.th/dataset/70-pdf | M29: https://drive.google.com/file/d/1x09gdkIA_UlETsB3DGwy94QcRnhwa2zd/view?usp=drivesdk | N29: 705438d92603a1e85f162bfa235c8176b0a4bf84a864861fe7be6968df1c41f4
A30: 70026 | B30: สำนักส่วนกลาง | C30: สำนักดิจิทัลกรุงเทพมหานคร | D30: 70026 - สำนักดิจิทัลกรุงเทพมหานคร - งบประมาณ พ.ศ. 2570.pdf | E30: 21 | F30: 845,320,670 | G30: 0 | H30: =IF(COUNTA(F30:G30)=0,"",SUM(F30:G30)) -> 845,320,670 | I30: 3 | J30: คัดกรองความเกี่ยวข้องกับ 5 เขต; สร้าง 0 รายการเฉพาะพื้นที่ | K30: มีชั้นข้อความ แต่เอกสารบางเล่มใช้รหัสอักขระไทยแบบเก่าหรือข้อความหมุน; รายการวงเงินสูงที่นำมาใช้ได้รับการเทียบภาพ PDF | L30: https://data.bangkok.go.th/dataset/70-pdf | M30: https://drive.google.com/file/d/1l9cDQ7EnJOvKz4gpafJ1zSiocaMf_b-i/view?usp=drivesdk | N30: 4e31b1093043b27f88fa7f1a25b8a0f189c1f0e25520dc0410442b5341b6b018
A31: 70027 | B31: สำนักงานเขต | C31: สำนักงานเขตพระนคร | D31: 70027 - สำนักงานเขตพระนคร - งบประมาณ พ.ศ. 2570.pdf | E31: 70 | F31: 428,877,940 | G31: 0 | H31: =IF(COUNTA(F31:G31)=0,"",SUM(F31:G31)) -> 428,877,940 | I31: 3 | J31: สกัดข้อมูลเต็มเล่มสำหรับ Master Dataset | K31: มีชั้นข้อความ แต่เอกสารบางเล่มใช้รหัสอักขระไทยแบบเก่าหรือข้อความหมุน; รายการวงเงินสูงที่นำมาใช้ได้รับการเทียบภาพ PDF | L31: https://data.bangkok.go.th/dataset/70-pdf | M31: https://drive.google.com/file/d/1p5778Vda8X27HgthFfi7gs6MNC6egHWG/view?usp=drivesdk | N31: 54ca352f653f32bc170cdee8499a662c0ec501374a7baec0b34b5ea3a6cb5a34
A32: 70028 | B32: สำนักงานเขต | C32: สำนักงานเขตป้อมปราบศัตรูพ่าย | D32: 70028 - สำนักงานเขตป้อมปราบศัตรูพ่าย - งบประมาณ พ.ศ. 2570.pdf | E32: 65 | F32: 245,822,310 | G32: 0 | H32: =IF(COUNTA(F32:G32)=0,"",SUM(F32:G32)) -> 245,822,310 | I32: 3 | J32: สกัดข้อมูลเต็มเล่มสำหรับ Master Dataset | K32: มีชั้นข้อความ แต่เอกสารบางเล่มใช้รหัสอักขระไทยแบบเก่าหรือข้อความหมุน; รายการวงเงินสูงที่นำมาใช้ได้รับการเทียบภาพ PDF | L32: https://data.bangkok.go.th/dataset/70-pdf | M32: https://drive.google.com/file/d/1QmgdXZ-8XLdv2HxotrbrM0Y0PRmrRIXL/view?usp=drivesdk | N32: 03854ef48f5bd25c3194dd39c68e76cf66907d1b4675d4ad33abf5027a6940cb
A33: 70029 | B33: สำนักงานเขต | C33: สำนักงานเขตสัมพันธวงศ์ | D33: 70029 - สำนักงานเขตสัมพันธวงศ์ - งบประมาณ พ.ศ. 2570.pdf | E33: 61 | F33: 219,070,820 | G33: 0 | H33: =IF(COUNTA(F33:G33)=0,"",SUM(F33:G33)) -> 219,070,820 | I33: 3 | J33: สกัดข้อมูลเต็มเล่มสำหรับ Master Dataset | K33: มีชั้นข้อความ แต่เอกสารบางเล่มใช้รหัสอักขระไทยแบบเก่าหรือข้อความหมุน; รายการวงเงินสูงที่นำมาใช้ได้รับการเทียบภาพ PDF | L33: https://data.bangkok.go.th/dataset/70-pdf | M33: https://drive.google.com/file/d/1zziamuHWdJi32H6obflAzv8ZzPEIDk6_/view?usp=drivesdk | N33: c18fd2284b53e3aa291d6adbbe7fc7f969aee9704a56edbd57edcdb9c5084efe
A34: 70030 | B34: สำนักงานเขต | C34: สำนักงานเขตบางรัก | D34: 70030 - สำนักงานเขตบางรัก - งบประมาณ พ.ศ. 2570.pdf | E34: 66 | F34: 256,109,100 | G34: 0 | H34: =IF(COUNTA(F34:G34)=0,"",SUM(F34:G34)) -> 256,109,100 | I34: 3 | J34: สกัดข้อมูลเต็มเล่มสำหรับ Master Dataset | K34: มีชั้นข้อความ แต่เอกสารบางเล่มใช้รหัสอักขระไทยแบบเก่าหรือข้อความหมุน; รายการวงเงินสูงที่นำมาใช้ได้รับการเทียบภาพ PDF | L34: https://data.bangkok.go.th/dataset/70-pdf | M34: https://drive.google.com/file/d/1skmUz0MTItOvU5mJgEM3CjITjnMg5ZMS/view?usp=drivesdk | N34: ca5863a501138e1e151b56aab8d289fa3cebe0177428e7d7ae1fab91f4675673
A35: 70031 | B35: สำนักงานเขต | C35: สำนักงานเขตปทุมวัน | D35: 70031 - สำนักงานเขตปทุมวัน - งบประมาณ พ.ศ. 2570.pdf | E35: 64 | F35: 347,069,260 | G35: 0 | H35: =IF(COUNTA(F35:G35)=0,"",SUM(F35:G35)) -> 347,069,260 | I35: 3 | J35: นำเข้ารายการที่แปลงได้ 117 รายการ; ยอดรวมตรวจเทียบหน้า 3 | K35: ยอดรวมหน่วยงานใช้ตัวเลขหน้า 3 ส่วนรายการย่อยมาจากชุดแปลง Machine-Readable สาธารณะและควรเทียบ PDF ก่อนใช้อ้างอิงทางการ | L35: https://data.bangkok.go.th/dataset/cd29e51a-3f50-49b1-8423-7c0c68014074/resource/3def3d36-8ce2-4dcb-aaca-6cfe8f973894/download/70031-.pdf | M35: https://data.bangkok.go.th/dataset/cd29e51a-3f50-49b1-8423-7c0c68014074/resource/3def3d36-8ce2-4dcb-aaca-6cfe8f973894/download/70031-.pdf | N35: ยังไม่ได้เก็บไฟล์เพื่อคำนวณ hash
A36: 70032 | B36: สำนักงานเขต | C36: สำนักงานเขตยานนาวา | D36: 70032 - สำนักงานเขตยานนาวา - งบประมาณ พ.ศ. 2570.pdf | E36: 71 | F36: 296,239,400 | G36: 0 | H36: =IF(COUNTA(F36:G36)=0,"",SUM(F36:G36)) -> 296,239,400 | I36: 3 | J36: นำเข้ารายการที่แปลงได้ 192 รายการ; ยอดรวมตรวจเทียบหน้า 3 | K36: ยอดรวมหน่วยงานใช้ตัวเลขหน้า 3 ส่วนรายการย่อยมาจากชุดแปลง Machine-Readable สาธารณะและควรเทียบ PDF ก่อนใช้อ้างอิงทางการ | L36: https://data.bangkok.go.th/dataset/cd29e51a-3f50-49b1-8423-7c0c68014074/resource/dfbd569f-1dcc-4ca2-aa2b-97771694c7f6/download/70032-.pdf | M36: https://data.bangkok.go.th/dataset/cd29e51a-3f50-49b1-8423-7c0c68014074/resource/dfbd569f-1dcc-4ca2-aa2b-97771694c7f6/download/70032-.pdf | N36: ยังไม่ได้เก็บไฟล์เพื่อคำนวณ hash
A37: 70033 | B37: สำนักงานเขต | C37: สำนักงานเขตดุสิต | D37: 70033 - สำนักงานเขตดุสิต - งบประมาณ พ.ศ. 2570.pdf | E37: 63 | F37: 386,237,060 | G37: 0 | H37: =IF(COUNTA(F37:G37)=0,"",SUM(F37:G37)) -> 386,237,060 | I37: 3 | J37: สกัดข้อมูลเต็มเล่มสำหรับ Master Dataset | K37: มีชั้นข้อความ แต่เอกสารบางเล่มใช้รหัสอักขระไทยแบบเก่าหรือข้อความหมุน; รายการวงเงินสูงที่นำมาใช้ได้รับการเทียบภาพ PDF | L37: https://data.bangkok.go.th/dataset/70-pdf | M37: https://drive.google.com/file/d/1w6-VfEbqdEjXXUiOGW9pCY4WTQo4mcnj/view?usp=drivesdk | N37: f15f03fa9029ae94dc1494901b831eb5f23d4e13395aff7360f10b516cd4b3d8
A38: 70034 | B38: สำนักงานเขต | C38: สำนักงานเขตพญาไท | D38: 70034 - สำนักงานเขตพญาไท - งบประมาณ พ.ศ. 2570.pdf | E38: 60 | F38: 295,200,440 | G38: 0 | H38: =IF(COUNTA(F38:G38)=0,"",SUM(F38:G38)) -> 295,200,440 | I38: 3 | J38: นำเข้ารายการที่แปลงได้ 144 รายการ; ยอดรวมตรวจเทียบหน้า 3 | K38: ยอดรวมหน่วยงานใช้ตัวเลขหน้า 3 ส่วนรายการย่อยมาจากชุดแปลง Machine-Readable สาธารณะและควรเทียบ PDF ก่อนใช้อ้างอิงทางการ | L38: https://data.bangkok.go.th/dataset/cd29e51a-3f50-49b1-8423-7c0c68014074/resource/acc14487-f064-4401-bbe3-e910ef79adaa/download/70034-.pdf | M38: https://data.bangkok.go.th/dataset/cd29e51a-3f50-49b1-8423-7c0c68014074/resource/acc14487-f064-4401-bbe3-e910ef79adaa/download/70034-.pdf | N38: ยังไม่ได้เก็บไฟล์เพื่อคำนวณ hash
A39: 70035 | B39: สำนักงานเขต | C39: สำนักงานเขตห้วยขวาง | D39: 70035 - สำนักงานเขตห้วยขวาง - งบประมาณ พ.ศ. 2570.pdf | E39: 61 | F39: 354,587,390 | G39: 0 | H39: =IF(COUNTA(F39:G39)=0,"",SUM(F39:G39)) -> 354,587,390 | I39: 3 | J39: นำเข้ารายการที่แปลงได้ 145 รายการ; ยอดรวมตรวจเทียบหน้า 3 | K39: ยอดรวมหน่วยงานใช้ตัวเลขหน้า 3 ส่วนรายการย่อยมาจากชุดแปลง Machine-Readable สาธารณะและควรเทียบ PDF ก่อนใช้อ้างอิงทางการ | L39: https://data.bangkok.go.th/dataset/cd29e51a-3f50-49b1-8423-7c0c68014074/resource/f802a81a-6df1-4eee-8579-6d22108ac8a1/download/70035-.pdf | M39: https://data.bangkok.go.th/dataset/cd29e51a-3f50-49b1-8423-7c0c68014074/resource/f802a81a-6df1-4eee-8579-6d22108ac8a1/download/70035-.pdf | N39: ยังไม่ได้เก็บไฟล์เพื่อคำนวณ hash
A40: 70036 | B40: สำนักงานเขต | C40: สำนักงานเขตพระโขนง | D40: 70036 - สำนักงานเขตพระโขนง - งบประมาณ พ.ศ. 2570.pdf | E40: 67 | F40: 315,033,030 | G40: 0 | H40: =IF(COUNTA(F40:G40)=0,"",SUM(F40:G40)) -> 315,033,030 | I40: 3 | J40: นำเข้ารายการที่แปลงได้ 182 รายการ; ยอดรวมตรวจเทียบหน้า 3 | K40: ยอดรวมหน่วยงานใช้ตัวเลขหน้า 3 ส่วนรายการย่อยมาจากชุดแปลง Machine-Readable สาธารณะและควรเทียบ PDF ก่อนใช้อ้างอิงทางการ | L40: https://data.bangkok.go.th/dataset/cd29e51a-3f50-49b1-8423-7c0c68014074/resource/f6551db1-31e0-4f70-8604-2d7b92b6aaa5/download/70036-.pdf | M40: https://data.bangkok.go.th/dataset/cd29e51a-3f50-49b1-8423-7c0c68014074/resource/f6551db1-31e0-4f70-8604-2d7b92b6aaa5/download/70036-.pdf | N40: ยังไม่ได้เก็บไฟล์เพื่อคำนวณ hash
A41: 70037 | B41: สำนักงานเขต | C41: สำนักงานเขตบางกะปิ | D41: 70037 - สำนักงานเขตบางกะปิ - งบประมาณ พ.ศ. 2570.pdf | E41: 66 | F41: 560,928,600 | G41: 0 | H41: =IF(COUNTA(F41:G41)=0,"",SUM(F41:G41)) -> 560,928,600 | I41: 3 | J41: นำเข้ารายการที่แปลงได้ 179 รายการ; ยอดรวมตรวจเทียบหน้า 3 | K41: ยอดรวมหน่วยงานใช้ตัวเลขหน้า 3 ส่วนรายการย่อยมาจากชุดแปลง Machine-Readable สาธารณะและควรเทียบ PDF ก่อนใช้อ้างอิงทางการ | L41: https://data.bangkok.go.th/dataset/cd29e51a-3f50-49b1-8423-7c0c68014074/resource/39bb7bce-c266-4356-afd2-d7854c45f619/download/70037-.pdf | M41: https://data.bangkok.go.th/dataset/cd29e51a-3f50-49b1-8423-7c0c68014074/resource/39bb7bce-c266-4356-afd2-d7854c45f619/download/70037-.pdf | N41: ยังไม่ได้เก็บไฟล์เพื่อคำนวณ hash
A42: 70038 | B42: สำนักงานเขต | C42: สำนักงานเขตบางเขน | D42: 70038 - สำนักงานเขตบางเขน - งบประมาณ พ.ศ. 2570.pdf | E42: 59 | F42: 547,770,230 | G42: 0 | H42: =IF(COUNTA(F42:G42)=0,"",SUM(F42:G42)) -> 547,770,230 | I42: 3 | J42: นำเข้ารายการที่แปลงได้ 151 รายการ; ยอดรวมตรวจเทียบหน้า 3 | K42: ยอดรวมหน่วยงานใช้ตัวเลขหน้า 3 ส่วนรายการย่อยมาจากชุดแปลง Machine-Readable สาธารณะและควรเทียบ PDF ก่อนใช้อ้างอิงทางการ | L42: https://data.bangkok.go.th/dataset/cd29e51a-3f50-49b1-8423-7c0c68014074/resource/2f96bca5-8cd4-45db-95c7-934036544968/download/70038-.pdf | M42: https://data.bangkok.go.th/dataset/cd29e51a-3f50-49b1-8423-7c0c68014074/resource/2f96bca5-8cd4-45db-95c7-934036544968/download/70038-.pdf | N42: ยังไม่ได้เก็บไฟล์เพื่อคำนวณ hash
A43: 70039 | B43: สำนักงานเขต | C43: สำนักงานเขตมีนบุรี | D43: 70039 - สำนักงานเขตมีนบุรี - งบประมาณ พ.ศ. 2570.pdf | E43: 75 | F43: 557,587,800 | G43: 0 | H43: =IF(COUNTA(F43:G43)=0,"",SUM(F43:G43)) -> 557,587,800 | I43: 3 | J43: นำเข้ารายการที่แปลงได้ 257 รายการ; ยอดรวมตรวจเทียบหน้า 3 | K43: ยอดรวมหน่วยงานใช้ตัวเลขหน้า 3 ส่วนรายการย่อยมาจากชุดแปลง Machine-Readable สาธารณะและควรเทียบ PDF ก่อนใช้อ้างอิงทางการ | L43: https://data.bangkok.go.th/dataset/cd29e51a-3f50-49b1-8423-7c0c68014074/resource/2d2ab862-c73d-40c6-9f40-84200a5f1bce/download/70039-.pdf | M43: https://data.bangkok.go.th/dataset/cd29e51a-3f50-49b1-8423-7c0c68014074/resource/2d2ab862-c73d-40c6-9f40-84200a5f1bce/download/70039-.pdf | N43: ยังไม่ได้เก็บไฟล์เพื่อคำนวณ hash
A44: 70040 | B44: สำนักงานเขต | C44: สำนักงานเขตลาดกระบัง | D44: 70040 - สำนักงานเขตลาดกระบัง - งบประมาณ พ.ศ. 2570.pdf | E44: 72 | F44: 792,436,500 | G44: 0 | H44: =IF(COUNTA(F44:G44)=0,"",SUM(F44:G44)) -> 792,436,500 | I44: 3 | J44: นำเข้ารายการที่แปลงได้ 169 รายการ; ยอดรวมตรวจเทียบหน้า 3 | K44: ยอดรวมหน่วยงานใช้ตัวเลขหน้า 3 ส่วนรายการย่อยมาจากชุดแปลง Machine-Readable สาธารณะและควรเทียบ PDF ก่อนใช้อ้างอิงทางการ | L44: https://data.bangkok.go.th/dataset/cd29e51a-3f50-49b1-8423-7c0c68014074/resource/aa4f4189-4ecd-4104-af48-0551c3f3225b/download/70040-.pdf | M44: https://data.bangkok.go.th/dataset/cd29e51a-3f50-49b1-8423-7c0c68014074/resource/aa4f4189-4ecd-4104-af48-0551c3f3225b/download/70040-.pdf | N44: ยังไม่ได้เก็บไฟล์เพื่อคำนวณ hash
A45: 70041 | B45: สำนักงานเขต | C45: สำนักงานเขตหนองจอก | D45: 70041 - สำนักงานเขตหนองจอก - งบประมาณ พ.ศ. 2570.pdf | E45: 82 | F45: 779,412,100 | G45: 0 | H45: =IF(COUNTA(F45:G45)=0,"",SUM(F45:G45)) -> 779,412,100 | I45: 3 | J45: นำเข้ารายการที่แปลงได้ 242 รายการ; ยอดรวมตรวจเทียบหน้า 3 | K45: ยอดรวมหน่วยงานใช้ตัวเลขหน้า 3 ส่วนรายการย่อยมาจากชุดแปลง Machine-Readable สาธารณะและควรเทียบ PDF ก่อนใช้อ้างอิงทางการ | L45: https://data.bangkok.go.th/dataset/cd29e51a-3f50-49b1-8423-7c0c68014074/resource/c06ef771-568e-4565-8267-c044dddd7b63/download/70041-.pdf | M45: https://data.bangkok.go.th/dataset/cd29e51a-3f50-49b1-8423-7c0c68014074/resource/c06ef771-568e-4565-8267-c044dddd7b63/download/70041-.pdf | N45: ยังไม่ได้เก็บไฟล์เพื่อคำนวณ hash
A46: 70042 | B46: สำนักงานเขต | C46: สำนักงานเขตธนบุรี | D46: 70042 - สำนักงานเขตธนบุรี - งบประมาณ พ.ศ. 2570.pdf | E46: 66 | F46: 418,319,230 | G46: 0 | H46: =IF(COUNTA(F46:G46)=0,"",SUM(F46:G46)) -> 418,319,230 | I46: 3 | J46: นำเข้ารายการที่แปลงได้ 195 รายการ; ยอดรวมตรวจเทียบหน้า 3 | K46: ยอดรวมหน่วยงานใช้ตัวเลขหน้า 3 ส่วนรายการย่อยมาจากชุดแปลง Machine-Readable สาธารณะและควรเทียบ PDF ก่อนใช้อ้างอิงทางการ | L46: https://data.bangkok.go.th/dataset/cd29e51a-3f50-49b1-8423-7c0c68014074/resource/ee9c0a67-5f1c-4e5c-8c8e-f95801275217/download/70042-.pdf | M46: https://data.bangkok.go.th/dataset/cd29e51a-3f50-49b1-8423-7c0c68014074/resource/ee9c0a67-5f1c-4e5c-8c8e-f95801275217/download/70042-.pdf | N46: ยังไม่ได้เก็บไฟล์เพื่อคำนวณ hash
A47: 70043 | B47: สำนักงานเขต | C47: สำนักงานเขตคลองสาน | D47: 70043 - สำนักงานเขตคลองสาน - งบประมาณ พ.ศ. 2570.pdf | E47: 70 | F47: 331,760,650 | G47: 0 | H47: =IF(COUNTA(F47:G47)=0,"",SUM(F47:G47)) -> 331,760,650 | I47: 3 | J47: นำเข้ารายการที่แปลงได้ 162 รายการ; ยอดรวมตรวจเทียบหน้า 3 | K47: ยอดรวมหน่วยงานใช้ตัวเลขหน้า 3 ส่วนรายการย่อยมาจากชุดแปลง Machine-Readable สาธารณะและควรเทียบ PDF ก่อนใช้อ้างอิงทางการ | L47: https://data.bangkok.go.th/dataset/cd29e51a-3f50-49b1-8423-7c0c68014074/resource/5e616241-61e4-4fa8-822a-e375ab6ddc07/download/70043-.pdf | M47: https://data.bangkok.go.th/dataset/cd29e51a-3f50-49b1-8423-7c0c68014074/resource/5e616241-61e4-4fa8-822a-e375ab6ddc07/download/70043-.pdf | N47: ยังไม่ได้เก็บไฟล์เพื่อคำนวณ hash
A48: 70044 | B48: สำนักงานเขต | C48: สำนักงานเขตบางกอกใหญ่ | D48: 70044 - สำนักงานเขตบางกอกใหญ่ - งบประมาณ พ.ศ. 2570.pdf | E48: 63 | F48: 285,980,760 | G48: 0 | H48: =IF(COUNTA(F48:G48)=0,"",SUM(F48:G48)) -> 285,980,760 | I48: 3 | J48: นำเข้ารายการที่แปลงได้ 164 รายการ; ยอดรวมตรวจเทียบหน้า 3 | K48: ยอดรวมหน่วยงานใช้ตัวเลขหน้า 3 ส่วนรายการย่อยมาจากชุดแปลง Machine-Readable สาธารณะและควรเทียบ PDF ก่อนใช้อ้างอิงทางการ | L48: https://data.bangkok.go.th/dataset/cd29e51a-3f50-49b1-8423-7c0c68014074/resource/93195a7c-4a17-4830-80bb-b8850de3c674/download/70044-.pdf | M48: https://data.bangkok.go.th/dataset/cd29e51a-3f50-49b1-8423-7c0c68014074/resource/93195a7c-4a17-4830-80bb-b8850de3c674/download/70044-.pdf | N48: ยังไม่ได้เก็บไฟล์เพื่อคำนวณ hash
A49: 70045 | B49: สำนักงานเขต | C49: สำนักงานเขตบางกอกน้อย | D49: 70045 - สำนักงานเขตบางกอกน้อย - งบประมาณ พ.ศ. 2570.pdf | E49: 68 | F49: 409,071,100 | G49: 0 | H49: =IF(COUNTA(F49:G49)=0,"",SUM(F49:G49)) -> 409,071,100 | I49: 3 | J49: นำเข้ารายการที่แปลงได้ 160 รายการ; ยอดรวมตรวจเทียบหน้า 3 | K49: ยอดรวมหน่วยงานใช้ตัวเลขหน้า 3 ส่วนรายการย่อยมาจากชุดแปลง Machine-Readable สาธารณะและควรเทียบ PDF ก่อนใช้อ้างอิงทางการ | L49: https://data.bangkok.go.th/dataset/cd29e51a-3f50-49b1-8423-7c0c68014074/resource/f0758134-9f14-473f-a396-ddf075afb19e/download/70045-.pdf | M49: https://data.bangkok.go.th/dataset/cd29e51a-3f50-49b1-8423-7c0c68014074/resource/f0758134-9f14-473f-a396-ddf075afb19e/download/70045-.pdf | N49: ยังไม่ได้เก็บไฟล์เพื่อคำนวณ hash
A50: 70046 | B50: สำนักงานเขต | C50: สำนักงานเขตตลิ่งชัน | D50: 70046 - สำนักงานเขตตลิ่งชัน - งบประมาณ พ.ศ. 2570.pdf | E50: 52 | F50: 374,716,380 | G50: 0 | H50: =IF(COUNTA(F50:G50)=0,"",SUM(F50:G50)) -> 374,716,380 | I50: 3 | J50: นำเข้ารายการที่แปลงได้ 155 รายการ; ยอดรวมตรวจเทียบหน้า 3 | K50: ยอดรวมหน่วยงานใช้ตัวเลขหน้า 3 ส่วนรายการย่อยมาจากชุดแปลง Machine-Readable สาธารณะและควรเทียบ PDF ก่อนใช้อ้างอิงทางการ | L50: https://data.bangkok.go.th/dataset/cd29e51a-3f50-49b1-8423-7c0c68014074/resource/2b622d49-7086-4681-a368-24b3e156c479/download/70046-.pdf | M50: https://data.bangkok.go.th/dataset/cd29e51a-3f50-49b1-8423-7c0c68014074/resource/2b622d49-7086-4681-a368-24b3e156c479/download/70046-.pdf | N50: ยังไม่ได้เก็บไฟล์เพื่อคำนวณ hash
A51: 70047 | B51: สำนักงานเขต | C51: สำนักงานเขตภาษีเจริญ | D51: 70047 - สำนักงานเขตภาษีเจริญ - งบประมาณ พ.ศ. 2570.pdf | E51: 59 | F51: 422,935,200 | G51: 0 | H51: =IF(COUNTA(F51:G51)=0,"",SUM(F51:G51)) -> 422,935,200 | I51: 3 | J51: นำเข้ารายการที่แปลงได้ 186 รายการ; ยอดรวมตรวจเทียบหน้า 3 | K51: ยอดรวมหน่วยงานใช้ตัวเลขหน้า 3 ส่วนรายการย่อยมาจากชุดแปลง Machine-Readable สาธารณะและควรเทียบ PDF ก่อนใช้อ้างอิงทางการ | L51: https://data.bangkok.go.th/dataset/cd29e51a-3f50-49b1-8423-7c0c68014074/resource/3665de84-bf98-4eb4-b3a3-48df348c7e0f/download/70047-.pdf | M51: https://data.bangkok.go.th/dataset/cd29e51a-3f50-49b1-8423-7c0c68014074/resource/3665de84-bf98-4eb4-b3a3-48df348c7e0f/download/70047-.pdf | N51: ยังไม่ได้เก็บไฟล์เพื่อคำนวณ hash
A52: 70048 | B52: สำนักงานเขต | C52: สำนักงานเขตหนองแขม | D52: 70048 - สำนักงานเขตหนองแขม - งบประมาณ พ.ศ. 2570.pdf | E52: 70 | F52: 686,266,130 | G52: 0 | H52: =IF(COUNTA(F52:G52)=0,"",SUM(F52:G52)) -> 686,266,130 | I52: 3 | J52: นำเข้ารายการที่แปลงได้ 206 รายการ; ยอดรวมตรวจเทียบหน้า 3 | K52: ยอดรวมหน่วยงานใช้ตัวเลขหน้า 3 ส่วนรายการย่อยมาจากชุดแปลง Machine-Readable สาธารณะและควรเทียบ PDF ก่อนใช้อ้างอิงทางการ | L52: https://data.bangkok.go.th/dataset/cd29e51a-3f50-49b1-8423-7c0c68014074/resource/c3d439a4-443d-489b-8e84-dfae0b3d7053/download/70048-.pdf | M52: https://data.bangkok.go.th/dataset/cd29e51a-3f50-49b1-8423-7c0c68014074/resource/c3d439a4-443d-489b-8e84-dfae0b3d7053/download/70048-.pdf | N52: ยังไม่ได้เก็บไฟล์เพื่อคำนวณ hash
A53: 70049 | B53: สำนักงานเขต | C53: สำนักงานเขตบางขุนเทียน | D53: 70049 - สำนักงานเขตบางขุนเทียน - งบประมาณ พ.ศ. 2570.pdf | E53: 69 | F53: 751,053,220 | G53: 0 | H53: =IF(COUNTA(F53:G53)=0,"",SUM(F53:G53)) -> 751,053,220 | I53: 3 | J53: นำเข้ารายการที่แปลงได้ 227 รายการ; ยอดรวมตรวจเทียบหน้า 3 | K53: ยอดรวมหน่วยงานใช้ตัวเลขหน้า 3 ส่วนรายการย่อยมาจากชุดแปลง Machine-Readable สาธารณะและควรเทียบ PDF ก่อนใช้อ้างอิงทางการ | L53: https://data.bangkok.go.th/dataset/cd29e51a-3f50-49b1-8423-7c0c68014074/resource/28f0f99f-1fe6-42ec-9f4b-0735ef28a67e/download/70049-.pdf | M53: https://data.bangkok.go.th/dataset/cd29e51a-3f50-49b1-8423-7c0c68014074/resource/28f0f99f-1fe6-42ec-9f4b-0735ef28a67e/download/70049-.pdf | N53: ยังไม่ได้เก็บไฟล์เพื่อคำนวณ hash
A54: 70050 | B54: สำนักงานเขต | C54: สำนักงานเขตราษฎร์บูรณะ | D54: 70050 - สำนักงานเขตราษฎร์บูรณะ - งบประมาณ พ.ศ. 2570.pdf | E54: 62 | F54: 322,862,480 | G54: 0 | H54: =IF(COUNTA(F54:G54)=0,"",SUM(F54:G54)) -> 322,862,480 | I54: 3 | J54: นำเข้ารายการที่แปลงได้ 190 รายการ; ยอดรวมตรวจเทียบหน้า 3 | K54: ยอดรวมหน่วยงานใช้ตัวเลขหน้า 3 ส่วนรายการย่อยมาจากชุดแปลง Machine-Readable สาธารณะและควรเทียบ PDF ก่อนใช้อ้างอิงทางการ | L54: https://data.bangkok.go.th/dataset/cd29e51a-3f50-49b1-8423-7c0c68014074/resource/31996436-58a6-476e-a6d1-e34613bdce17/download/70050-.pdf | M54: https://data.bangkok.go.th/dataset/cd29e51a-3f50-49b1-8423-7c0c68014074/resource/31996436-58a6-476e-a6d1-e34613bdce17/download/70050-.pdf | N54: ยังไม่ได้เก็บไฟล์เพื่อคำนวณ hash
A55: 70051 | B55: สำนักงานเขต | C55: สำนักงานเขตดอนเมือง | D55: 70051 - สำนักงานเขตดอนเมือง - งบประมาณ พ.ศ. 2570.pdf | E55: 70 | F55: 644,170,500 | G55: 0 | H55: =IF(COUNTA(F55:G55)=0,"",SUM(F55:G55)) -> 644,170,500 | I55: 3 | J55: นำเข้ารายการที่แปลงได้ 199 รายการ; ยอดรวมตรวจเทียบหน้า 3 | K55: ยอดรวมหน่วยงานใช้ตัวเลขหน้า 3 ส่วนรายการย่อยมาจากชุดแปลง Machine-Readable สาธารณะและควรเทียบ PDF ก่อนใช้อ้างอิงทางการ | L55: https://data.bangkok.go.th/dataset/cd29e51a-3f50-49b1-8423-7c0c68014074/resource/81e192cb-8178-47d9-8060-52437bff510f/download/70051-.pdf | M55: https://data.bangkok.go.th/dataset/cd29e51a-3f50-49b1-8423-7c0c68014074/resource/81e192cb-8178-47d9-8060-52437bff510f/download/70051-.pdf | N55: ยังไม่ได้เก็บไฟล์เพื่อคำนวณ hash
A56: 70052 | B56: สำนักงานเขต | C56: สำนักงานเขตจตุจักร | D56: 70052 - สำนักงานเขตจตุจักร - งบประมาณ พ.ศ. 2570.pdf | E56: 63 | F56: 643,846,600 | G56: 0 | H56: =IF(COUNTA(F56:G56)=0,"",SUM(F56:G56)) -> 643,846,600 | I56: 3 | J56: นำเข้ารายการที่แปลงได้ 162 รายการ; ยอดรวมตรวจเทียบหน้า 3 | K56: ยอดรวมหน่วยงานใช้ตัวเลขหน้า 3 ส่วนรายการย่อยมาจากชุดแปลง Machine-Readable สาธารณะและควรเทียบ PDF ก่อนใช้อ้างอิงทางการ | L56: https://data.bangkok.go.th/dataset/cd29e51a-3f50-49b1-8423-7c0c68014074/resource/333c072f-d81a-4582-8c53-eee5a6b4bb50/download/70052-.pdf | M56: https://data.bangkok.go.th/dataset/cd29e51a-3f50-49b1-8423-7c0c68014074/resource/333c072f-d81a-4582-8c53-eee5a6b4bb50/download/70052-.pdf | N56: ยังไม่ได้เก็บไฟล์เพื่อคำนวณ hash
A57: 70053 | B57: สำนักงานเขต | C57: สำนักงานเขตลาดพร้าว | D57: 70053 - สำนักงานเขตลาดพร้าว - งบประมาณ พ.ศ. 2570.pdf | E57: 67 | F57: 436,553,050 | G57: 0 | H57: =IF(COUNTA(F57:G57)=0,"",SUM(F57:G57)) -> 436,553,050 | I57: 3 | J57: นำเข้ารายการที่แปลงได้ 171 รายการ; ยอดรวมตรวจเทียบหน้า 3 | K57: ยอดรวมหน่วยงานใช้ตัวเลขหน้า 3 ส่วนรายการย่อยมาจากชุดแปลง Machine-Readable สาธารณะและควรเทียบ PDF ก่อนใช้อ้างอิงทางการ | L57: https://data.bangkok.go.th/dataset/cd29e51a-3f50-49b1-8423-7c0c68014074/resource/0ae827a5-3390-4ddc-b628-91f81b7020c8/download/70053-.pdf | M57: https://data.bangkok.go.th/dataset/cd29e51a-3f50-49b1-8423-7c0c68014074/resource/0ae827a5-3390-4ddc-b628-91f81b7020c8/download/70053-.pdf | N57: ยังไม่ได้เก็บไฟล์เพื่อคำนวณ hash
A58: 70054 | B58: สำนักงานเขต | C58: สำนักงานเขตบึงกุ่ม | D58: 70054 - สำนักงานเขตบึงกุ่ม - งบประมาณ พ.ศ. 2570.pdf | E58: 67 | F58: 431,222,800 | G58: 0 | H58: =IF(COUNTA(F58:G58)=0,"",SUM(F58:G58)) -> 431,222,800 | I58: 3 | J58: นำเข้ารายการที่แปลงได้ 138 รายการ; ยอดรวมตรวจเทียบหน้า 3 | K58: ยอดรวมหน่วยงานใช้ตัวเลขหน้า 3 ส่วนรายการย่อยมาจากชุดแปลง Machine-Readable สาธารณะและควรเทียบ PDF ก่อนใช้อ้างอิงทางการ | L58: https://data.bangkok.go.th/dataset/cd29e51a-3f50-49b1-8423-7c0c68014074/resource/0a87c294-2554-4dee-a78e-42b7bbb97c2e/download/70054-.pdf | M58: https://data.bangkok.go.th/dataset/cd29e51a-3f50-49b1-8423-7c0c68014074/resource/0a87c294-2554-4dee-a78e-42b7bbb97c2e/download/70054-.pdf | N58: ยังไม่ได้เก็บไฟล์เพื่อคำนวณ hash
A59: 70055 | B59: สำนักงานเขต | C59: สำนักงานเขตสาทร | D59: 70055 - สำนักงานเขตสาทร - งบประมาณ พ.ศ. 2570.pdf | E59: 62 | F59: 325,872,700 | G59: 0 | H59: =IF(COUNTA(F59:G59)=0,"",SUM(F59:G59)) -> 325,872,700 | I59: 3 | J59: นำเข้ารายการที่แปลงได้ 128 รายการ; ยอดรวมตรวจเทียบหน้า 3 | K59: ยอดรวมหน่วยงานใช้ตัวเลขหน้า 3 ส่วนรายการย่อยมาจากชุดแปลง Machine-Readable สาธารณะและควรเทียบ PDF ก่อนใช้อ้างอิงทางการ | L59: https://data.bangkok.go.th/dataset/cd29e51a-3f50-49b1-8423-7c0c68014074/resource/c2fc0ae6-b279-4eba-af09-39162cdc21e7/download/70055-.pdf | M59: https://data.bangkok.go.th/dataset/cd29e51a-3f50-49b1-8423-7c0c68014074/resource/c2fc0ae6-b279-4eba-af09-39162cdc21e7/download/70055-.pdf | N59: ยังไม่ได้เก็บไฟล์เพื่อคำนวณ hash
A60: 70056 | B60: สำนักงานเขต | C60: สำนักงานเขตบางคอแหลม | D60: 70056 - สำนักงานเขตบางคอแหลม - งบประมาณ พ.ศ. 2570.pdf | E60: 67 | F60: 330,609,410 | G60: 0 | H60: =IF(COUNTA(F60:G60)=0,"",SUM(F60:G60)) -> 330,609,410 | I60: 3 | J60: นำเข้ารายการที่แปลงได้ 163 รายการ; ยอดรวมตรวจเทียบหน้า 3 | K60: ยอดรวมหน่วยงานใช้ตัวเลขหน้า 3 ส่วนรายการย่อยมาจากชุดแปลง Machine-Readable สาธารณะและควรเทียบ PDF ก่อนใช้อ้างอิงทางการ | L60: https://data.bangkok.go.th/dataset/cd29e51a-3f50-49b1-8423-7c0c68014074/resource/4037c44e-9997-465c-9f2f-c71858733419/download/70056-.pdf | M60: https://data.bangkok.go.th/dataset/cd29e51a-3f50-49b1-8423-7c0c68014074/resource/4037c44e-9997-465c-9f2f-c71858733419/download/70056-.pdf | N60: ยังไม่ได้เก็บไฟล์เพื่อคำนวณ hash
A61: 70057 | B61: สำนักงานเขต | C61: สำนักงานเขตบางซื่อ | D61: 70057 - สำนักงานเขตบางซื่อ - งบประมาณ พ.ศ. 2570.pdf | E61: 56 | F61: 383,060,480 | G61: 0 | H61: =IF(COUNTA(F61:G61)=0,"",SUM(F61:G61)) -> 383,060,480 | I61: 3 | J61: นำเข้ารายการที่แปลงได้ 145 รายการ; ยอดรวมตรวจเทียบหน้า 3 | K61: ยอดรวมหน่วยงานใช้ตัวเลขหน้า 3 ส่วนรายการย่อยมาจากชุดแปลง Machine-Readable สาธารณะและควรเทียบ PDF ก่อนใช้อ้างอิงทางการ | L61: https://data.bangkok.go.th/dataset/cd29e51a-3f50-49b1-8423-7c0c68014074/resource/7a49aa89-99ca-4a2c-a783-ee1734797727/download/70057-.pdf | M61: https://data.bangkok.go.th/dataset/cd29e51a-3f50-49b1-8423-7c0c68014074/resource/7a49aa89-99ca-4a2c-a783-ee1734797727/download/70057-.pdf | N61: ยังไม่ได้เก็บไฟล์เพื่อคำนวณ hash
A62: 70058 | B62: สำนักงานเขต | C62: สำนักงานเขตราชเทวี | D62: 70058 - สำนักงานเขตราชเทวี - งบประมาณ พ.ศ. 2570.pdf | E62: 60 | F62: 338,530,570 | G62: 0 | H62: =IF(COUNTA(F62:G62)=0,"",SUM(F62:G62)) -> 338,530,570 | I62: 3 | J62: นำเข้ารายการที่แปลงได้ 133 รายการ; ยอดรวมตรวจเทียบหน้า 3 | K62: ยอดรวมหน่วยงานใช้ตัวเลขหน้า 3 ส่วนรายการย่อยมาจากชุดแปลง Machine-Readable สาธารณะและควรเทียบ PDF ก่อนใช้อ้างอิงทางการ | L62: https://data.bangkok.go.th/dataset/cd29e51a-3f50-49b1-8423-7c0c68014074/resource/1863f301-5a07-47ab-a1ad-c1d2fe991218/download/70058-.pdf | M62: https://data.bangkok.go.th/dataset/cd29e51a-3f50-49b1-8423-7c0c68014074/resource/1863f301-5a07-47ab-a1ad-c1d2fe991218/download/70058-.pdf | N62: ยังไม่ได้เก็บไฟล์เพื่อคำนวณ hash
A63: 70059 | B63: สำนักงานเขต | C63: สำนักงานเขตคลองเตย | D63: 70059 - สำนักงานเขตคลองเตย - งบประมาณ พ.ศ. 2570.pdf | E63: 63 | F63: 354,862,600 | G63: 0 | H63: =IF(COUNTA(F63:G63)=0,"",SUM(F63:G63)) -> 354,862,600 | I63: 3 | J63: นำเข้ารายการที่แปลงได้ 131 รายการ; ยอดรวมตรวจเทียบหน้า 3 | K63: ยอดรวมหน่วยงานใช้ตัวเลขหน้า 3 ส่วนรายการย่อยมาจากชุดแปลง Machine-Readable สาธารณะและควรเทียบ PDF ก่อนใช้อ้างอิงทางการ | L63: https://data.bangkok.go.th/dataset/cd29e51a-3f50-49b1-8423-7c0c68014074/resource/2beb1887-33f1-47f2-9a44-3b7e94fffcfd/download/70059-.pdf | M63: https://data.bangkok.go.th/dataset/cd29e51a-3f50-49b1-8423-7c0c68014074/resource/2beb1887-33f1-47f2-9a44-3b7e94fffcfd/download/70059-.pdf | N63: ยังไม่ได้เก็บไฟล์เพื่อคำนวณ hash
A64: 70060 | B64: สำนักงานเขต | C64: สำนักงานเขตประเวศ | D64: 70060 - สำนักงานเขตประเวศ - งบประมาณ พ.ศ. 2570.pdf | E64: 67 | F64: 536,682,840 | G64: 0 | H64: =IF(COUNTA(F64:G64)=0,"",SUM(F64:G64)) -> 536,682,840 | I64: 3 | J64: นำเข้ารายการที่แปลงได้ 183 รายการ; ยอดรวมตรวจเทียบหน้า 3 | K64: ยอดรวมหน่วยงานใช้ตัวเลขหน้า 3 ส่วนรายการย่อยมาจากชุดแปลง Machine-Readable สาธารณะและควรเทียบ PDF ก่อนใช้อ้างอิงทางการ | L64: https://data.bangkok.go.th/dataset/cd29e51a-3f50-49b1-8423-7c0c68014074/resource/63254c98-97e4-42cf-9eff-83996fd5d55b/download/70060-.pdf | M64: https://data.bangkok.go.th/dataset/cd29e51a-3f50-49b1-8423-7c0c68014074/resource/63254c98-97e4-42cf-9eff-83996fd5d55b/download/70060-.pdf | N64: ยังไม่ได้เก็บไฟล์เพื่อคำนวณ hash
A65: 70061 | B65: สำนักงานเขต | C65: สำนักงานเขตบางพลัด | D65: 70061 - สำนักงานเขตบางพลัด - งบประมาณ พ.ศ. 2570.pdf | E65: 63 | F65: 338,547,970 | G65: 0 | H65: =IF(COUNTA(F65:G65)=0,"",SUM(F65:G65)) -> 338,547,970 | I65: 3 | J65: นำเข้ารายการที่แปลงได้ 171 รายการ; ยอดรวมตรวจเทียบหน้า 3 | K65: ยอดรวมหน่วยงานใช้ตัวเลขหน้า 3 ส่วนรายการย่อยมาจากชุดแปลง Machine-Readable สาธารณะและควรเทียบ PDF ก่อนใช้อ้างอิงทางการ | L65: https://data.bangkok.go.th/dataset/cd29e51a-3f50-49b1-8423-7c0c68014074/resource/b65b3b71-6748-4363-8ec9-b10b4800502f/download/70061-.pdf | M65: https://data.bangkok.go.th/dataset/cd29e51a-3f50-49b1-8423-7c0c68014074/resource/b65b3b71-6748-4363-8ec9-b10b4800502f/download/70061-.pdf | N65: ยังไม่ได้เก็บไฟล์เพื่อคำนวณ hash
A66: 70062 | B66: สำนักงานเขต | C66: สำนักงานเขตจอมทอง | D66: 70062 - สำนักงานเขตจอมทอง - งบประมาณ พ.ศ. 2570.pdf | E66: 67 | F66: 434,014,940 | G66: 0 | H66: =IF(COUNTA(F66:G66)=0,"",SUM(F66:G66)) -> 434,014,940 | I66: 3 | J66: นำเข้ารายการที่แปลงได้ 157 รายการ; ยอดรวมตรวจเทียบหน้า 3 | K66: ยอดรวมหน่วยงานใช้ตัวเลขหน้า 3 ส่วนรายการย่อยมาจากชุดแปลง Machine-Readable สาธารณะและควรเทียบ PDF ก่อนใช้อ้างอิงทางการ | L66: https://data.bangkok.go.th/dataset/cd29e51a-3f50-49b1-8423-7c0c68014074/resource/7277a583-607b-4283-b7fb-84a62ad5b4de/download/70062-.pdf | M66: https://data.bangkok.go.th/dataset/cd29e51a-3f50-49b1-8423-7c0c68014074/resource/7277a583-607b-4283-b7fb-84a62ad5b4de/download/70062-.pdf | N66: ยังไม่ได้เก็บไฟล์เพื่อคำนวณ hash
A67: 70063 | B67: สำนักงานเขต | C67: สำนักงานเขตดินแดง | D67: 70063 - สำนักงานเขตดินแดง - งบประมาณ พ.ศ. 2570.pdf | E67: 59 | F67: 383,399,320 | G67: 0 | H67: =IF(COUNTA(F67:G67)=0,"",SUM(F67:G67)) -> 383,399,320 | I67: 3 | J67: นำเข้ารายการที่แปลงได้ 114 รายการ; ยอดรวมตรวจเทียบหน้า 3 | K67: ยอดรวมหน่วยงานใช้ตัวเลขหน้า 3 ส่วนรายการย่อยมาจากชุดแปลง Machine-Readable สาธารณะและควรเทียบ PDF ก่อนใช้อ้างอิงทางการ | L67: https://data.bangkok.go.th/dataset/cd29e51a-3f50-49b1-8423-7c0c68014074/resource/8ade26b9-34db-431c-809a-913f5fced4ac/download/70063-.pdf | M67: https://data.bangkok.go.th/dataset/cd29e51a-3f50-49b1-8423-7c0c68014074/resource/8ade26b9-34db-431c-809a-913f5fced4ac/download/70063-.pdf | N67: ยังไม่ได้เก็บไฟล์เพื่อคำนวณ hash
A68: 70064 | B68: สำนักงานเขต | C68: สำนักงานเขตสวนหลวง | D68: 70064 - สำนักงานเขตสวนหลวง - งบประมาณ พ.ศ. 2570.pdf | E68: 70 | F68: 411,006,400 | G68: 0 | H68: =IF(COUNTA(F68:G68)=0,"",SUM(F68:G68)) -> 411,006,400 | I68: 3 | J68: นำเข้ารายการที่แปลงได้ 147 รายการ; ยอดรวมตรวจเทียบหน้า 3 | K68: ยอดรวมหน่วยงานใช้ตัวเลขหน้า 3 ส่วนรายการย่อยมาจากชุดแปลง Machine-Readable สาธารณะและควรเทียบ PDF ก่อนใช้อ้างอิงทางการ | L68: https://data.bangkok.go.th/dataset/cd29e51a-3f50-49b1-8423-7c0c68014074/resource/5f1a76ee-b72d-41f0-87fb-078066623994/download/70064-.pdf | M68: https://data.bangkok.go.th/dataset/cd29e51a-3f50-49b1-8423-7c0c68014074/resource/5f1a76ee-b72d-41f0-87fb-078066623994/download/70064-.pdf | N68: ยังไม่ได้เก็บไฟล์เพื่อคำนวณ hash
A69: 70065 | B69: สำนักงานเขต | C69: สำนักงานเขตวัฒนา | D69: 70065 - สำนักงานเขตวัฒนา - งบประมาณ พ.ศ. 2570.pdf | E69: 64 | F69: 377,042,000 | G69: 0 | H69: =IF(COUNTA(F69:G69)=0,"",SUM(F69:G69)) -> 377,042,000 | I69: 3 | J69: นำเข้ารายการที่แปลงได้ 198 รายการ; ยอดรวมตรวจเทียบหน้า 3 | K69: ยอดรวมหน่วยงานใช้ตัวเลขหน้า 3 ส่วนรายการย่อยมาจากชุดแปลง Machine-Readable สาธารณะและควรเทียบ PDF ก่อนใช้อ้างอิงทางการ | L69: https://data.bangkok.go.th/dataset/cd29e51a-3f50-49b1-8423-7c0c68014074/resource/fb44d72b-8ac9-4fb7-b3ad-1dfdeca5a040/download/70065-.pdf | M69: https://data.bangkok.go.th/dataset/cd29e51a-3f50-49b1-8423-7c0c68014074/resource/fb44d72b-8ac9-4fb7-b3ad-1dfdeca5a040/download/70065-.pdf | N69: ยังไม่ได้เก็บไฟล์เพื่อคำนวณ hash
A70: 70066 | B70: สำนักงานเขต | C70: สำนักงานเขตบางแค | D70: 70066 - สำนักงานเขตบางแค - งบประมาณ พ.ศ. 2570.pdf | E70: 59 | F70: 525,777,900 | G70: 0 | H70: =IF(COUNTA(F70:G70)=0,"",SUM(F70:G70)) -> 525,777,900 | I70: 3 | J70: นำเข้ารายการที่แปลงได้ 199 รายการ; ยอดรวมตรวจเทียบหน้า 3 | K70: ยอดรวมหน่วยงานใช้ตัวเลขหน้า 3 ส่วนรายการย่อยมาจากชุดแปลง Machine-Readable สาธารณะและควรเทียบ PDF ก่อนใช้อ้างอิงทางการ | L70: https://data.bangkok.go.th/dataset/cd29e51a-3f50-49b1-8423-7c0c68014074/resource/62951035-72cc-405b-82d6-e3e231337b95/download/70066-.pdf | M70: https://data.bangkok.go.th/dataset/cd29e51a-3f50-49b1-8423-7c0c68014074/resource/62951035-72cc-405b-82d6-e3e231337b95/download/70066-.pdf | N70: ยังไม่ได้เก็บไฟล์เพื่อคำนวณ hash
A71: 70067 | B71: สำนักงานเขต | C71: สำนักงานเขตหลักสี่ | D71: 70067 - สำนักงานเขตหลักสี่ - งบประมาณ พ.ศ. 2570.pdf | E71: 64 | F71: 471,756,500 | G71: 0 | H71: =IF(COUNTA(F71:G71)=0,"",SUM(F71:G71)) -> 471,756,500 | I71: 3 | J71: นำเข้ารายการที่แปลงได้ 196 รายการ; ยอดรวมตรวจเทียบหน้า 3 | K71: ยอดรวมหน่วยงานใช้ตัวเลขหน้า 3 ส่วนรายการย่อยมาจากชุดแปลง Machine-Readable สาธารณะและควรเทียบ PDF ก่อนใช้อ้างอิงทางการ | L71: https://data.bangkok.go.th/dataset/cd29e51a-3f50-49b1-8423-7c0c68014074/resource/6e375db3-e64e-4def-9def-9fd97d1e126d/download/70067-.pdf | M71: https://data.bangkok.go.th/dataset/cd29e51a-3f50-49b1-8423-7c0c68014074/resource/6e375db3-e64e-4def-9def-9fd97d1e126d/download/70067-.pdf | N71: ยังไม่ได้เก็บไฟล์เพื่อคำนวณ hash
A72: 70068 | B72: สำนักงานเขต | C72: สำนักงานเขตสายไหม | D72: 70068 - สำนักงานเขตสายไหม - งบประมาณ พ.ศ. 2570.pdf | E72: 65 | F72: 553,534,680 | G72: 0 | H72: =IF(COUNTA(F72:G72)=0,"",SUM(F72:G72)) -> 553,534,680 | I72: 3 | J72: นำเข้ารายการที่แปลงได้ 171 รายการ; ยอดรวมตรวจเทียบหน้า 3 | K72: ยอดรวมหน่วยงานใช้ตัวเลขหน้า 3 ส่วนรายการย่อยมาจากชุดแปลง Machine-Readable สาธารณะและควรเทียบ PDF ก่อนใช้อ้างอิงทางการ | L72: https://data.bangkok.go.th/dataset/cd29e51a-3f50-49b1-8423-7c0c68014074/resource/b9d4646a-b88d-42e6-9186-acfbc38bb122/download/70068-.pdf | M72: https://data.bangkok.go.th/dataset/cd29e51a-3f50-49b1-8423-7c0c68014074/resource/b9d4646a-b88d-42e6-9186-acfbc38bb122/download/70068-.pdf | N72: ยังไม่ได้เก็บไฟล์เพื่อคำนวณ hash
A73: 70069 | B73: สำนักงานเขต | C73: สำนักงานเขตคันนายาว | D73: 70069 - สำนักงานเขตคันนายาว - งบประมาณ พ.ศ. 2570.pdf | E73: 78 | F73: 356,409,500 | G73: 0 | H73: =IF(COUNTA(F73:G73)=0,"",SUM(F73:G73)) -> 356,409,500 | I73: 3 | J73: นำเข้ารายการที่แปลงได้ 132 รายการ; ยอดรวมตรวจเทียบหน้า 3 | K73: ยอดรวมหน่วยงานใช้ตัวเลขหน้า 3 ส่วนรายการย่อยมาจากชุดแปลง Machine-Readable สาธารณะและควรเทียบ PDF ก่อนใช้อ้างอิงทางการ | L73: https://data.bangkok.go.th/dataset/cd29e51a-3f50-49b1-8423-7c0c68014074/resource/d5b85257-3ac1-4da6-85ed-30fe4ef39ee0/download/70069-.pdf | M73: https://data.bangkok.go.th/dataset/cd29e51a-3f50-49b1-8423-7c0c68014074/resource/d5b85257-3ac1-4da6-85ed-30fe4ef39ee0/download/70069-.pdf | N73: ยังไม่ได้เก็บไฟล์เพื่อคำนวณ hash
A74: 70070 | B74: สำนักงานเขต | C74: สำนักงานเขตสะพานสูง | D74: 70070 - สำนักงานเขตสะพานสูง - งบประมาณ พ.ศ. 2570.pdf | E74: 74 | F74: 393,385,840 | G74: 0 | H74: =IF(COUNTA(F74:G74)=0,"",SUM(F74:G74)) -> 393,385,840 | I74: 3 | J74: นำเข้ารายการที่แปลงได้ 174 รายการ; ยอดรวมตรวจเทียบหน้า 3 | K74: ยอดรวมหน่วยงานใช้ตัวเลขหน้า 3 ส่วนรายการย่อยมาจากชุดแปลง Machine-Readable สาธารณะและควรเทียบ PDF ก่อนใช้อ้างอิงทางการ | L74: https://data.bangkok.go.th/dataset/cd29e51a-3f50-49b1-8423-7c0c68014074/resource/5e731305-688c-4206-aa05-915dc14f6e73/download/70070-.pdf | M74: https://data.bangkok.go.th/dataset/cd29e51a-3f50-49b1-8423-7c0c68014074/resource/5e731305-688c-4206-aa05-915dc14f6e73/download/70070-.pdf | N74: ยังไม่ได้เก็บไฟล์เพื่อคำนวณ hash
A75: 70071 | B75: สำนักงานเขต | C75: สำนักงานเขตวังทองหลาง | D75: 70071 - สำนักงานเขตวังทองหลาง - งบประมาณ พ.ศ. 2570.pdf | E75: 59 | F75: 294,735,720 | G75: 0 | H75: =IF(COUNTA(F75:G75)=0,"",SUM(F75:G75)) -> 294,735,720 | I75: 3 | J75: นำเข้ารายการที่แปลงได้ 101 รายการ; ยอดรวมตรวจเทียบหน้า 3 | K75: ยอดรวมหน่วยงานใช้ตัวเลขหน้า 3 ส่วนรายการย่อยมาจากชุดแปลง Machine-Readable สาธารณะและควรเทียบ PDF ก่อนใช้อ้างอิงทางการ | L75: https://data.bangkok.go.th/dataset/cd29e51a-3f50-49b1-8423-7c0c68014074/resource/06bc8d85-b68e-465a-a97d-5fe532e076d9/download/70071-.pdf | M75: https://data.bangkok.go.th/dataset/cd29e51a-3f50-49b1-8423-7c0c68014074/resource/06bc8d85-b68e-465a-a97d-5fe532e076d9/download/70071-.pdf | N75: ยังไม่ได้เก็บไฟล์เพื่อคำนวณ hash
A76: 70072 | B76: สำนักงานเขต | C76: สำนักงานเขตคลองสามวา | D76: 70072 - สำนักงานเขตคลองสามวา - งบประมาณ พ.ศ. 2570.pdf | E76: 73 | F76: 613,478,230 | G76: 0 | H76: =IF(COUNTA(F76:G76)=0,"",SUM(F76:G76)) -> 613,478,230 | I76: 3 | J76: นำเข้ารายการที่แปลงได้ 183 รายการ; ยอดรวมตรวจเทียบหน้า 3 | K76: ยอดรวมหน่วยงานใช้ตัวเลขหน้า 3 ส่วนรายการย่อยมาจากชุดแปลง Machine-Readable สาธารณะและควรเทียบ PDF ก่อนใช้อ้างอิงทางการ | L76: https://data.bangkok.go.th/dataset/cd29e51a-3f50-49b1-8423-7c0c68014074/resource/1a2063c9-845f-4a91-a672-d76d37b30871/download/70072-.pdf | M76: https://data.bangkok.go.th/dataset/cd29e51a-3f50-49b1-8423-7c0c68014074/resource/1a2063c9-845f-4a91-a672-d76d37b30871/download/70072-.pdf | N76: ยังไม่ได้เก็บไฟล์เพื่อคำนวณ hash
A77: 70073 | B77: สำนักงานเขต | C77: สำนักงานเขตบางนา | D77: 70073 - สำนักงานเขตบางนา - งบประมาณ พ.ศ. 2570.pdf | E77: 69 | F77: 358,456,230 | G77: 0 | H77: =IF(COUNTA(F77:G77)=0,"",SUM(F77:G77)) -> 358,456,230 | I77: 3 | J77: นำเข้ารายการที่แปลงได้ 165 รายการ; ยอดรวมตรวจเทียบหน้า 3 | K77: ยอดรวมหน่วยงานใช้ตัวเลขหน้า 3 ส่วนรายการย่อยมาจากชุดแปลง Machine-Readable สาธารณะและควรเทียบ PDF ก่อนใช้อ้างอิงทางการ | L77: https://data.bangkok.go.th/dataset/cd29e51a-3f50-49b1-8423-7c0c68014074/resource/0bc533cf-cea6-4bd8-9c6f-b6afed09d165/download/70073-.pdf | M77: https://data.bangkok.go.th/dataset/cd29e51a-3f50-49b1-8423-7c0c68014074/resource/0bc533cf-cea6-4bd8-9c6f-b6afed09d165/download/70073-.pdf | N77: ยังไม่ได้เก็บไฟล์เพื่อคำนวณ hash
A78: 70074 | B78: สำนักงานเขต | C78: สำนักงานเขตทวีวัฒนา | D78: 70074 - สำนักงานเขตทวีวัฒนา - งบประมาณ พ.ศ. 2570.pdf | E78: 60 | F78: 432,579,130 | G78: 0 | H78: =IF(COUNTA(F78:G78)=0,"",SUM(F78:G78)) -> 432,579,130 | I78: 3 | J78: นำเข้ารายการที่แปลงได้ 151 รายการ; ยอดรวมตรวจเทียบหน้า 3 | K78: ยอดรวมหน่วยงานใช้ตัวเลขหน้า 3 ส่วนรายการย่อยมาจากชุดแปลง Machine-Readable สาธารณะและควรเทียบ PDF ก่อนใช้อ้างอิงทางการ | L78: https://data.bangkok.go.th/dataset/cd29e51a-3f50-49b1-8423-7c0c68014074/resource/a5ebac3a-49ec-495c-8efb-d75fc94ee0c3/download/70074-.pdf | M78: https://data.bangkok.go.th/dataset/cd29e51a-3f50-49b1-8423-7c0c68014074/resource/a5ebac3a-49ec-495c-8efb-d75fc94ee0c3/download/70074-.pdf | N78: ยังไม่ได้เก็บไฟล์เพื่อคำนวณ hash
A79: 70075 | B79: สำนักงานเขต | C79: สำนักงานเขตทุ่งครุ | D79: 70075 - สำนักงานเขตทุ่งครุ - งบประมาณ พ.ศ. 2570.pdf | E79: 70 | F79: 589,208,420 | G79: 0 | H79: =IF(COUNTA(F79:G79)=0,"",SUM(F79:G79)) -> 589,208,420 | I79: 3 | J79: นำเข้ารายการที่แปลงได้ 179 รายการ; ยอดรวมตรวจเทียบหน้า 3 | K79: ยอดรวมหน่วยงานใช้ตัวเลขหน้า 3 ส่วนรายการย่อยมาจากชุดแปลง Machine-Readable สาธารณะและควรเทียบ PDF ก่อนใช้อ้างอิงทางการ | L79: https://data.bangkok.go.th/dataset/cd29e51a-3f50-49b1-8423-7c0c68014074/resource/f3352d36-229a-4378-a788-d3762b3eaffd/download/70075-.pdf | M79: https://data.bangkok.go.th/dataset/cd29e51a-3f50-49b1-8423-7c0c68014074/resource/f3352d36-229a-4378-a788-d3762b3eaffd/download/70075-.pdf | N79: ยังไม่ได้เก็บไฟล์เพื่อคำนวณ hash
A80: 70076 | B80: สำนักงานเขต | C80: สำนักงานเขตบางบอน | D80: 70076 - สำนักงานเขตบางบอน - งบประมาณ พ.ศ. 2570.pdf | E80: 65 | F80: 498,830,830 | G80: 0 | H80: =IF(COUNTA(F80:G80)=0,"",SUM(F80:G80)) -> 498,830,830 | I80: 3 | J80: นำเข้ารายการที่แปลงได้ 181 รายการ; ยอดรวมตรวจเทียบหน้า 3 | K80: ยอดรวมหน่วยงานใช้ตัวเลขหน้า 3 ส่วนรายการย่อยมาจากชุดแปลง Machine-Readable สาธารณะและควรเทียบ PDF ก่อนใช้อ้างอิงทางการ | L80: https://data.bangkok.go.th/dataset/cd29e51a-3f50-49b1-8423-7c0c68014074/resource/8129e642-2500-4e34-9792-0dd7dbcd35a7/download/70076-.pdf | M80: https://data.bangkok.go.th/dataset/cd29e51a-3f50-49b1-8423-7c0c68014074/resource/8129e642-2500-4e34-9792-0dd7dbcd35a7/download/70076-.pdf | N80: ยังไม่ได้เก็บไฟล์เพื่อคำนวณ hash
A81: 70077 | B81: สำนักส่วนกลาง | C81: มหาวิทยาลัยนวมินทราธิราช | D81: 70077 - มหาวิทยาลัยนวมินทราธิราช - งบประมาณ พ.ศ. 2570.pdf | E81: 11 | F81: 2,507,407,940 | G81: 10,000,000 | H81: =IF(COUNTA(F81:G81)=0,"",SUM(F81:G81)) -> 2,517,407,940 | I81: 3 | J81: ตรวจครบทั้งเล่ม; สร้างงบก้อนหลัก 1 รายการและรายละเอียด 11 รายการ | K81: ตรวจชั้นข้อความและเทียบหน้าที่ใช้สร้างรายการกับภาพ PDF; เก็บเลขหน้า PDF และหน้าในเล่มแยกกันเมื่อมีเลขพิมพ์ในเอกสาร | L81: https://data.bangkok.go.th/dataset/cd29e51a-3f50-49b1-8423-7c0c68014074/resource/eace0b5b-965a-4d8d-8038-8f17b829dddb/download/70077-.pdf | M81: https://drive.google.com/file/d/1DFInpP6ER1J_KuuRqinpRdUVoxemiXjI/view?usp=drivesdk | N81: 6fb2de839de7534678fd54149bfe8ba0c371f825bd29aa00a16fb2f377b7c76b
A82: 70078 | B82: สำนักส่วนกลาง | C82: การพาณิชย์ของกรุงเทพมหานคร | D82: 70078 - การพาณิชย์ของกรุงเทพมหานคร - งบประมาณ พ.ศ. 2570.pdf | E82: 37 | F82: 918,922,000 | G82: 0 | H82: =IF(COUNTA(F82:G82)=0,"",SUM(F82:G82)) -> 918,922,000 | I82: 7 | J82: ตรวจครบทั้งเล่ม; พบ 3 รายการเฉพาะเขตและ 2 โครงการร่วม | K82: ตรวจชั้นข้อความและเทียบหน้าที่ใช้สร้างรายการกับภาพ PDF; เก็บเลขหน้า PDF และหน้าในเล่มแยกกันเมื่อมีเลขพิมพ์ในเอกสาร | L82: https://data.bangkok.go.th/dataset/cd29e51a-3f50-49b1-8423-7c0c68014074/resource/0352329f-304a-4422-98e4-2f02525f83b8/download/70078-.pdf | M82: https://drive.google.com/file/d/1mDKUmRBLeuPDc3f4Wpgnl5giUDsFfLzo/view?usp=drivesdk | N82: 0470b3bcd85a2ba971e60441b7a65f3f8871f7eb3e9dd2e18667c1bae7c09a8e

Sheet Data Dictionary
A1: พจนานุกรมข้อมูลชุดอ้างอิงเดิมรุ่น 4
A3: ใช้กับไฟล์รุ่น 4 ที่แยกดาวน์โหลดเท่านั้น • ความหมายฟิลด์ปัจจุบันอยู่ใน Current Fields
A4: ชื่อฟิลด์ | B4: ชื่อไทย | C4: ความหมาย | D4: ชนิดข้อมูล | E4: ที่มา
A5: record_level | B5: ระดับรายการ | C5: งาน/โครงการ หรือ รายการย่อย | D5: ตัวเลือก | E5: วิเคราะห์
A6: parent_record_id | B6: รหัสรายการแม่ | C6: เชื่อมรายการย่อยกับงาน/โครงการแม่ | D6: ข้อความ | E6: สร้างโดยระบบ
A7: include_in_district_total | B7: นำไปรวมยอดเขต | C7: TRUE เฉพาะระดับงาน/โครงการ เพื่อป้องกันการนับซ้ำ | D7: ตรรกะ | E7: วิเคราะห์
A8: display_record | B8: ใช้เป็นระเบียนแสดงผล | C8: ระเบียนที่ใช้ในหน้ารวม/แผนที่ตามกติกาไม่ซ้ำชั้น | D8: ตรรกะ | E8: วิเคราะห์
A9: fiscal_year | B9: ปีงบประมาณ | C9: ปีงบประมาณ พ.ศ. | D9: จำนวนเต็ม | E9: เอกสาร
A10: district | B10: เขต | C10: ชื่อสำนักงานเขต | D10: ข้อความ | E10: เอกสาร
A11: budget_group | B11: กลุ่มงบ | C11: ชั้นข้อมูลในเล่มงบประมาณ | D11: ข้อความ | E11: เอกสาร/วิเคราะห์
A12: work_or_project | B12: งานหรือโครงการ | C12: ชื่องานหรือโครงการแม่ | D12: ข้อความ | E12: เอกสาร
A13: government_budget_category | B13: หมวดงบประมาณราชการ | C13: งบบุคลากร ดำเนินงาน ลงทุน อุดหนุน รายจ่ายอื่น หรือหลายหมวด | D13: ตัวเลือก | E13: เอกสาร/จำแนกจากรหัส
A14: budget_code | B14: รหัสงบ | C14: รหัสงาน/โครงการหรือรหัสรายการตามเอกสาร | D14: ข้อความ | E14: เอกสาร
A15: official_name | B15: ชื่อรายการตามเอกสารต้นฉบับ | C15: ข้อความจากเอกสารหลังแก้รหัสอักขระที่ผิดรูป | D15: ข้อความ | E15: เอกสาร
A16: public_name | B16: ชื่อภาษาประชาชน | C16: ชื่อที่ย่อและอ่านง่ายโดยไม่ขยายความเกินเอกสาร | D16: ข้อความ | E16: วิเคราะห์
A17: short_description | B17: คำอธิบายสั้น ๆ | C17: สรุปว่าเงินใช้ทำอะไร | D17: ข้อความ | E17: วิเคราะห์
A18: public_category | B18: หมวดภาษาประชาชน | C18: หมวดตามวัตถุประสงค์หลักของงาน/รายการ | D18: ตัวเลือก | E18: วิเคราะห์
A19: quantity | B19: จำนวน | C19: จำนวนหน่วยที่ระบุในข้อความและพบเป็นชุดเดียวที่สัมพันธ์กับรายการ; เว้นว่างเมื่อรายละเอียดมีหลายจำนวน | D19: ตัวเลข/ว่าง | E19: เอกสาร/วิเคราะห์ความกำกวม
A20: unit | B20: หน่วย | C20: หน่วยนับตามเอกสาร; ระบุ 'หลายหน่วยในรายละเอียด' เมื่อไม่สามารถเลือกหน่วยรวมของรายการได้ | D20: ข้อความ | E20: เอกสาร/วิเคราะห์ความกำกวม
A21: budget_amount | B21: วงเงินงบประมาณ | C21: วงเงินที่ได้รับจัดสรร ไม่ใช่ยอดเบิกจ่ายหรือราคาสัญญา | D21: บาท | E21: เอกสาร
A22: unit_price | B22: ราคาต่อหน่วย | C22: วงเงินหารจำนวนเฉพาะเมื่อเอกสารระบุจำนวน/หน่วยชัดเจนเพียงชุดเดียว; ไม่คำนวณเมื่อมีหลายปริมาณงาน | D22: บาท/หน่วย/ว่าง | E22: คำนวณ
A23: district_budget_share | B23: สัดส่วนต่องบรวมของเขต | C23: วงเงินรายการหารงบรวมเขต | D23: ร้อยละ | E23: คำนวณ
A24: place_in_document | B24: สถานที่ตามที่ระบุในเอกสาร | C24: ชื่อสถานที่หรือพื้นที่; ไม่เดาหากไม่ปรากฏ | D24: ข้อความ | E24: เอกสาร
A25: road | B25: ถนน | C25: ชื่อถนนที่แยกจากข้อความ | D25: ข้อความ | E25: เอกสาร/สกัด
A26: soi | B26: ซอย | C26: ชื่อซอยหรือตรอกที่แยกจากข้อความ | D26: ข้อความ | E26: เอกสาร/สกัด
A27: landmark | B27: โรงเรียน วัด ชุมชน หรือสถานที่สำคัญ | C27: ชื่อสถานที่สำคัญที่แยกจากข้อความ | D27: ข้อความ | E27: เอกสาร/สกัด
A28: geo_type | B28: ประเภทตำแหน่งทางภูมิศาสตร์ | C28: A จุดเฉพาะ, B แนว/พื้นที่, C หลายจุด/ทั้งเขต, D บริหารภายใน | D28: ตัวเลือก | E28: วิเคราะห์
A29: geo_type_label | B29: คำอธิบายประเภทตำแหน่ง | C29: ชื่อเต็มของประเภท A-D | D29: ข้อความ | E29: วิเคราะห์
A30: latitude | B30: Latitude | C30: พิกัดละติจูด; เว้นว่างเพราะเอกสารไม่ระบุ | D30: ตัวเลข/ว่าง | E30: เอกสาร
A31: longitude | B31: Longitude | C31: พิกัดลองจิจูด; เว้นว่างเพราะเอกสารไม่ระบุ | D31: ตัวเลข/ว่าง | E31: เอกสาร
A32: location_accuracy | B32: ระดับความแม่นยำของตำแหน่ง | C32: สถานะการยืนยันพิกัด | D32: ข้อความ | E32: วิเคราะห์
A33: pdf_page | B33: หน้า PDF | C33: ลำดับหน้าจริงในไฟล์ PDF เริ่มที่ 1 | D33: จำนวนเต็ม | E33: เอกสาร
A34: volume_page | B34: หน้าในเล่มหรือภาคผนวก | C34: เลขหน้าที่พิมพ์ในเล่ม; โดยทั่วไปหน้า PDF ลบ 2 | D34: จำนวนเต็ม/ว่าง | E34: เอกสาร
A35: source_filename | B35: ชื่อไฟล์ต้นฉบับ | C35: ชื่อไฟล์ในโฟลเดอร์ทำงาน | D35: ข้อความ | E35: แหล่งข้อมูล
A36: source_url | B36: ลิงก์เอกสารต้นฉบับ | C36: หน้าชุดข้อมูลหลักของกรุงเทพมหานคร | D36: URL | E36: แหล่งข้อมูล
A37: working_copy_url | B37: ลิงก์สำเนาทำงาน | C37: ลิงก์ไฟล์ในโฟลเดอร์ Drive ที่ผู้ใช้ระบุ | D37: URL | E37: แหล่งข้อมูล
A38: observation | B38: ข้อสังเกต | C38: เหตุผลด้านตำแหน่งหรือคุณภาพข้อความ | D38: ข้อความ | E38: วิเคราะห์
A39: review_status | B39: สถานะการตรวจทานข้อมูล | C39: ระดับการตรวจยอด/โครงสร้าง/ภาพต้นฉบับ | D39: ตัวเลือก | E39: วิเคราะห์
A40: last_updated | B40: วันที่อัปเดตข้อมูลล่าสุด | C40: วันที่ปรับปรุงระเบียน | D40: วันที่ ISO | E40: ระบบ
A41: record_id | B41: รหัสรายการ | C41: รหัสระเบียนเฉพาะที่สร้างสำหรับโครงการงบใกล้บ้าน | D41: ข้อความ | E41: สร้างโดยระบบ
A42: owner_agency | B42: หน่วยงานเจ้าของงบ | C42: หน่วยงานที่ตั้งงบรายการนี้ | D42: ข้อความ | E42: เอกสาร
A43: source_group | B43: กลุ่มแหล่งงบ | C43: สำนักงานเขตหรือสำนักส่วนกลาง | D43: ตัวเลือก | E43: วิเคราะห์
A44: target_districts | B44: เขตเป้าหมายที่เกี่ยวข้อง | C44: รายชื่อ 1-5 เขตที่รายการเกี่ยวข้อง คั่นด้วยอัฒภาค | D44: ข้อความหลายค่า | E44: เอกสาร/ยืนยันสถานที่
A45: budget_scope | B45: ขอบเขตวงเงิน | C45: บอกว่าวงเงินเป็นของเขตเดียว รายการย่อย หรือวงเงินรวมหลายพื้นที่ | D45: ข้อความ | E45: วิเคราะห์
A46: district_amount_attributable | B46: วงเงินที่ใช้รวมระดับเขตได้ | C46: ใส่เฉพาะยอดที่กติกาอนุญาตให้นับในฐานที่กำหนด; ว่างเพื่อป้องกันการนับซ้ำ | D46: บาท/ว่าง | E46: วิเคราะห์
A47: amount_counting_rule | B47: กติกาการรวมยอด | C47: คำเตือนว่าจะนับวงเงินนี้ในยอดใดและป้องกันการนับซ้ำอย่างไร | D47: ข้อความ | E47: วิเคราะห์
A48: area_relation_type | B48: ลักษณะความสัมพันธ์กับพื้นที่ | C48: สถานที่เฉพาะ แนวถนน พื้นที่บริการหลายเขต หรือบริหารภายใน | D48: ข้อความ | E48: วิเคราะห์
A49: action_type | B49: ลักษณะสิ่งที่จะทำ | C49: เช่น ก่อสร้าง ปรับปรุง ติดตั้ง จัดซื้อ หรือจ้างบริการ | D49: ตัวเลือก | E49: วิเคราะห์จากข้อความ
A50: public_display_tier | B50: ระดับการแสดงผล | C50: หลัก งานบริการทั้งเขต เกี่ยวข้องหลายพื้นที่ เก็บในฐานข้อมูล งบบริหารภายใน หรือต้องตรวจ | D50: ตัวเลือก | E50: วิเคราะห์
A51: source_status | B51: สถานะความหมายของข้อมูล | C51: ย้ำว่าเป็นวงเงินงบประมาณ ไม่ใช่ยอดเบิกจ่าย ราคาสัญญา หรือหลักฐานเริ่มงาน | D51: ข้อความ | E51: วิเคราะห์
A52: outside_budget_amount | B52: เงินนอกงบประมาณปี 2570 | C52: วงเงินนอกงบประมาณที่เอกสารระบุสำหรับปี 2570; แยกจาก budget_amount | D52: บาท/ว่าง | E52: เอกสาร
A53: attribution_basis | B53: ฐานการผูกกับเขต | C53: หลักฐานที่ใช้สรุปว่ารายการเกี่ยวข้องกับเขต | D53: ข้อความ | E53: เอกสาร/แหล่งทางการ
A54: confidence_level | B54: ระดับความเชื่อมั่น | C54: สูงหรือต้องตรวจตามความชัดเจนของตัวเลขและพื้นที่ | D54: ตัวเลือก | E54: วิเคราะห์
A55: coverage_note | B55: หมายเหตุขอบเขตบริการ | C55: อธิบายพื้นที่อื่นที่รวมอยู่ในวงเงินหรือข้อจำกัดการตีความ | D55: ข้อความ | E55: เอกสาร/วิเคราะห์
A56: source_citation_count | B56: source_citation_count | C56: ฟิลด์ประกอบของชุดข้อมูล | D56: ข้อความ/ตัวเลข | E56: เอกสาร/วิเคราะห์

Sheet Reconciliation
A1: ตรวจยอดสำนักงานเขตครบ 50 เขต
A3: document_total และ master_total ใช้ยอดสรุปหน้า 3 • difference ต้องเป็นศูนย์ทุกเขต
A4: เขต | B4: ยอดตามเอกสาร | C4: ยอดที่ใช้ในเว็บ | D4: ผลต่าง | E4: รวมตามประเภทงบ | F4: สถานะ
A5: พระนคร | B5: 428,877,940 | C5: 428,877,940 | D5: =C5-B5 -> 0 | E5: 428,877,940 | F5: ตรงกับยอดรวมหน้า 3; รายการย่อยไม่ใช้บวกแทนยอดรวม
A6: ป้อมปราบศัตรูพ่าย | B6: 245,822,310 | C6: 245,822,310 | D6: =C6-B6 -> 0 | E6: 245,822,310 | F6: ตรงกับยอดรวมหน้า 3; รายการย่อยไม่ใช้บวกแทนยอดรวม
A7: สัมพันธวงศ์ | B7: 219,070,820 | C7: 219,070,820 | D7: =C7-B7 -> 0 | E7: 219,070,820 | F7: ตรงกับยอดรวมหน้า 3; รายการย่อยไม่ใช้บวกแทนยอดรวม
A8: บางรัก | B8: 256,109,100 | C8: 256,109,100 | D8: =C8-B8 -> 0 | E8: 256,109,100 | F8: ตรงกับยอดรวมหน้า 3; รายการย่อยไม่ใช้บวกแทนยอดรวม
A9: ปทุมวัน | B9: 347,069,260 | C9: 347,069,260 | D9: =C9-B9 -> 0 | E9: 347,069,260 | F9: ตรงกับยอดรวมหน้า 3; รายการย่อยไม่ใช้บวกแทนยอดรวม
A10: ยานนาวา | B10: 296,239,400 | C10: 296,239,400 | D10: =C10-B10 -> 0 | E10: 296,239,400 | F10: ตรงกับยอดรวมหน้า 3; รายการย่อยไม่ใช้บวกแทนยอดรวม
A11: ดุสิต | B11: 386,237,060 | C11: 386,237,060 | D11: =C11-B11 -> 0 | E11: 386,237,060 | F11: ตรงกับยอดรวมหน้า 3; รายการย่อยไม่ใช้บวกแทนยอดรวม
A12: พญาไท | B12: 295,200,440 | C12: 295,200,440 | D12: =C12-B12 -> 0 | E12: 295,200,440 | F12: ตรงกับยอดรวมหน้า 3; รายการย่อยไม่ใช้บวกแทนยอดรวม
A13: ห้วยขวาง | B13: 354,587,390 | C13: 354,587,390 | D13: =C13-B13 -> 0 | E13: 354,587,390 | F13: ตรงกับยอดรวมหน้า 3; รายการย่อยไม่ใช้บวกแทนยอดรวม
A14: พระโขนง | B14: 315,033,030 | C14: 315,033,030 | D14: =C14-B14 -> 0 | E14: 315,033,030 | F14: ตรงกับยอดรวมหน้า 3; รายการย่อยไม่ใช้บวกแทนยอดรวม
A15: บางกะปิ | B15: 560,928,600 | C15: 560,928,600 | D15: =C15-B15 -> 0 | E15: 560,928,600 | F15: ตรงกับยอดรวมหน้า 3; รายการย่อยไม่ใช้บวกแทนยอดรวม
A16: บางเขน | B16: 547,770,230 | C16: 547,770,230 | D16: =C16-B16 -> 0 | E16: 547,770,230 | F16: ตรงกับยอดรวมหน้า 3; รายการย่อยไม่ใช้บวกแทนยอดรวม
A17: มีนบุรี | B17: 557,587,800 | C17: 557,587,800 | D17: =C17-B17 -> 0 | E17: 557,587,800 | F17: ตรงกับยอดรวมหน้า 3; รายการย่อยไม่ใช้บวกแทนยอดรวม
A18: ลาดกระบัง | B18: 792,436,500 | C18: 792,436,500 | D18: =C18-B18 -> 0 | E18: 792,436,500 | F18: ตรงกับยอดรวมหน้า 3; รายการย่อยไม่ใช้บวกแทนยอดรวม
A19: หนองจอก | B19: 779,412,100 | C19: 779,412,100 | D19: =C19-B19 -> 0 | E19: 779,412,100 | F19: ตรงกับยอดรวมหน้า 3; รายการย่อยไม่ใช้บวกแทนยอดรวม
A20: ธนบุรี | B20: 418,319,230 | C20: 418,319,230 | D20: =C20-B20 -> 0 | E20: 418,319,230 | F20: ตรงกับยอดรวมหน้า 3; รายการย่อยไม่ใช้บวกแทนยอดรวม
A21: คลองสาน | B21: 331,760,650 | C21: 331,760,650 | D21: =C21-B21 -> 0 | E21: 331,760,650 | F21: ตรงกับยอดรวมหน้า 3; รายการย่อยไม่ใช้บวกแทนยอดรวม
A22: บางกอกใหญ่ | B22: 285,980,760 | C22: 285,980,760 | D22: =C22-B22 -> 0 | E22: 285,980,760 | F22: ตรงกับยอดรวมหน้า 3; รายการย่อยไม่ใช้บวกแทนยอดรวม
A23: บางกอกน้อย | B23: 409,071,100 | C23: 409,071,100 | D23: =C23-B23 -> 0 | E23: 409,071,100 | F23: ตรงกับยอดรวมหน้า 3; รายการย่อยไม่ใช้บวกแทนยอดรวม
A24: ตลิ่งชัน | B24: 374,716,380 | C24: 374,716,380 | D24: =C24-B24 -> 0 | E24: 374,716,380 | F24: ตรงกับยอดรวมหน้า 3; รายการย่อยไม่ใช้บวกแทนยอดรวม
A25: ภาษีเจริญ | B25: 422,935,200 | C25: 422,935,200 | D25: =C25-B25 -> 0 | E25: 422,935,200 | F25: ตรงกับยอดรวมหน้า 3; รายการย่อยไม่ใช้บวกแทนยอดรวม
A26: หนองแขม | B26: 686,266,130 | C26: 686,266,130 | D26: =C26-B26 -> 0 | E26: 686,266,130 | F26: ตรงกับยอดรวมหน้า 3; รายการย่อยไม่ใช้บวกแทนยอดรวม
A27: บางขุนเทียน | B27: 751,053,220 | C27: 751,053,220 | D27: =C27-B27 -> 0 | E27: 751,053,220 | F27: ตรงกับยอดรวมหน้า 3; รายการย่อยไม่ใช้บวกแทนยอดรวม
A28: ราษฎร์บูรณะ | B28: 322,862,480 | C28: 322,862,480 | D28: =C28-B28 -> 0 | E28: 322,862,480 | F28: ตรงกับยอดรวมหน้า 3; รายการย่อยไม่ใช้บวกแทนยอดรวม
A29: ดอนเมือง | B29: 644,170,500 | C29: 644,170,500 | D29: =C29-B29 -> 0 | E29: 644,170,500 | F29: ตรงกับยอดรวมหน้า 3; รายการย่อยไม่ใช้บวกแทนยอดรวม
A30: จตุจักร | B30: 643,846,600 | C30: 643,846,600 | D30: =C30-B30 -> 0 | E30: 643,846,600 | F30: ตรงกับยอดรวมหน้า 3; รายการย่อยไม่ใช้บวกแทนยอดรวม
A31: ลาดพร้าว | B31: 436,553,050 | C31: 436,553,050 | D31: =C31-B31 -> 0 | E31: 436,553,050 | F31: ตรงกับยอดรวมหน้า 3; รายการย่อยไม่ใช้บวกแทนยอดรวม
A32: บึงกุ่ม | B32: 431,222,800 | C32: 431,222,800 | D32: =C32-B32 -> 0 | E32: 431,222,800 | F32: ตรงกับยอดรวมหน้า 3; รายการย่อยไม่ใช้บวกแทนยอดรวม
A33: สาทร | B33: 325,872,700 | C33: 325,872,700 | D33: =C33-B33 -> 0 | E33: 325,872,700 | F33: ตรงกับยอดรวมหน้า 3; รายการย่อยไม่ใช้บวกแทนยอดรวม
A34: บางคอแหลม | B34: 330,609,410 | C34: 330,609,410 | D34: =C34-B34 -> 0 | E34: 330,609,410 | F34: ตรงกับยอดรวมหน้า 3; รายการย่อยไม่ใช้บวกแทนยอดรวม
A35: บางซื่อ | B35: 383,060,480 | C35: 383,060,480 | D35: =C35-B35 -> 0 | E35: 383,060,480 | F35: ตรงกับยอดรวมหน้า 3; รายการย่อยไม่ใช้บวกแทนยอดรวม
A36: ราชเทวี | B36: 338,530,570 | C36: 338,530,570 | D36: =C36-B36 -> 0 | E36: 338,530,570 | F36: ตรงกับยอดรวมหน้า 3; รายการย่อยไม่ใช้บวกแทนยอดรวม
A37: คลองเตย | B37: 354,862,600 | C37: 354,862,600 | D37: =C37-B37 -> 0 | E37: 354,862,600 | F37: ตรงกับยอดรวมหน้า 3; รายการย่อยไม่ใช้บวกแทนยอดรวม
A38: ประเวศ | B38: 536,682,840 | C38: 536,682,840 | D38: =C38-B38 -> 0 | E38: 536,682,840 | F38: ตรงกับยอดรวมหน้า 3; รายการย่อยไม่ใช้บวกแทนยอดรวม
A39: บางพลัด | B39: 338,547,970 | C39: 338,547,970 | D39: =C39-B39 -> 0 | E39: 338,547,970 | F39: ตรงกับยอดรวมหน้า 3; รายการย่อยไม่ใช้บวกแทนยอดรวม
A40: จอมทอง | B40: 434,014,940 | C40: 434,014,940 | D40: =C40-B40 -> 0 | E40: 434,014,940 | F40: ตรงกับยอดรวมหน้า 3; รายการย่อยไม่ใช้บวกแทนยอดรวม
A41: ดินแดง | B41: 383,399,320 | C41: 383,399,320 | D41: =C41-B41 -> 0 | E41: 383,399,320 | F41: ตรงกับยอดรวมหน้า 3; รายการย่อยไม่ใช้บวกแทนยอดรวม
A42: สวนหลวง | B42: 411,006,400 | C42: 411,006,400 | D42: =C42-B42 -> 0 | E42: 411,006,400 | F42: ตรงกับยอดรวมหน้า 3; รายการย่อยไม่ใช้บวกแทนยอดรวม
A43: วัฒนา | B43: 377,042,000 | C43: 377,042,000 | D43: =C43-B43 -> 0 | E43: 377,042,000 | F43: ตรงกับยอดรวมหน้า 3; รายการย่อยไม่ใช้บวกแทนยอดรวม
A44: บางแค | B44: 525,777,900 | C44: 525,777,900 | D44: =C44-B44 -> 0 | E44: 525,777,900 | F44: ตรงกับยอดรวมหน้า 3; รายการย่อยไม่ใช้บวกแทนยอดรวม
A45: หลักสี่ | B45: 471,756,500 | C45: 471,756,500 | D45: =C45-B45 -> 0 | E45: 471,756,500 | F45: ตรงกับยอดรวมหน้า 3; รายการย่อยไม่ใช้บวกแทนยอดรวม
A46: สายไหม | B46: 553,534,680 | C46: 553,534,680 | D46: =C46-B46 -> 0 | E46: 553,534,680 | F46: ตรงกับยอดรวมหน้า 3; รายการย่อยไม่ใช้บวกแทนยอดรวม
A47: คันนายาว | B47: 356,409,500 | C47: 356,409,500 | D47: =C47-B47 -> 0 | E47: 356,409,500 | F47: ตรงกับยอดรวมหน้า 3; รายการย่อยไม่ใช้บวกแทนยอดรวม
A48: สะพานสูง | B48: 393,385,840 | C48: 393,385,840 | D48: =C48-B48 -> 0 | E48: 393,385,840 | F48: ตรงกับยอดรวมหน้า 3; รายการย่อยไม่ใช้บวกแทนยอดรวม
A49: วังทองหลาง | B49: 294,735,720 | C49: 294,735,720 | D49: =C49-B49 -> 0 | E49: 294,735,720 | F49: ตรงกับยอดรวมหน้า 3; รายการย่อยไม่ใช้บวกแทนยอดรวม
A50: คลองสามวา | B50: 613,478,230 | C50: 613,478,230 | D50: =C50-B50 -> 0 | E50: 613,478,230 | F50: ตรงกับยอดรวมหน้า 3; รายการย่อยไม่ใช้บวกแทนยอดรวม
A51: บางนา | B51: 358,456,230 | C51: 358,456,230 | D51: =C51-B51 -> 0 | E51: 358,456,230 | F51: ตรงกับยอดรวมหน้า 3; รายการย่อยไม่ใช้บวกแทนยอดรวม
A52: ทวีวัฒนา | B52: 432,579,130 | C52: 432,579,130 | D52: =C52-B52 -> 0 | E52: 432,579,130 | F52: ตรงกับยอดรวมหน้า 3; รายการย่อยไม่ใช้บวกแทนยอดรวม
A53: ทุ่งครุ | B53: 589,208,420 | C53: 589,208,420 | D53: =C53-B53 -> 0 | E53: 589,208,420 | F53: ตรงกับยอดรวมหน้า 3; รายการย่อยไม่ใช้บวกแทนยอดรวม
A54: บางบอน | B54: 498,830,830 | C54: 498,830,830 | D54: =C54-B54 -> 0 | E54: 498,830,830 | F54: ตรงกับยอดรวมหน้า 3; รายการย่อยไม่ใช้บวกแทนยอดรวม

Sheet Methodology
A1: วิธีใช้ ขอบเขต และข้อจำกัด รุ่น 8
A3: Current Records ตรงกับชุดค้นหาบนเว็บ • ชุดข้อมูลอ้างอิงเดิมรุ่น 4 แยกเป็นไฟล์ดาวน์โหลด
A5: หัวข้อ | B5: รายละเอียด
A6: ขอบเขต | B6: เอกสารต้นทาง 78 ไฟล์: 50 สำนักงานเขต 23 เอกสารส่วนกลาง และ 5 เอกสารภาพรวม
A7: งบรวมทางการ | B7: 93,918,922,000 บาท = งบประมาณกรุงเทพมหานคร 93,000,000,000 บาท + งบการพาณิชย์ 918,922,000 บาท
A8: งบผ่าน 72 หน่วยงาน | B8: 76,197,311,550 บาท เป็นเงินงบประมาณของ 50 สำนักงานเขตและ 22 หน่วยงานส่วนกลาง โดยไม่รวมรายจ่ายงบกลาง
A9: รายจ่ายงบกลาง | B9: 17,721,610,450 บาท แสดงแยก และเมื่อนำมารวมกับงบผ่าน 72 หน่วยงานจะได้งบรวมทางการ 93,918,922,000 บาท
A10: เงินนอกงบประมาณ | B10: 1,033,259,700 บาท แสดงแยกจากเงินงบประมาณ และไม่นำไปบวกซ้ำในงบรวมตามร่างข้อบัญญัติ
A11: ยอดตามหน้าสรุป 72 หน่วยงาน | B11: 77,230,571,250 บาท = เงินงบประมาณ 72 หน่วยงาน 76,197,311,550 บาท + เงินนอกงบประมาณ 1,033,259,700 บาท จึงไม่ใช่งบรวมของกรุงเทพมหานคร
A12: สำนักงานเขต | B12: เงินงบประมาณ 50 เขตตรวจตรงกับเอกสารทุกเขต รวม 21,842,922,290 บาท
A13: หน่วยงานส่วนกลาง | B13: เงินงบประมาณ 22 หน่วยรวม 54,354,389,260 บาท ส่วนยอดตามหน้าสรุปรวม 55,387,648,960 บาท เพราะรวมเงินนอกงบประมาณ
A14: สูตรตรวจงบรวม | B14: 93,918,922,000 = 76,197,311,550 + 17,721,610,450 บาท
A15: รายการย่อย | B15: ใช้ค้นหาและอธิบายโครงสร้าง แต่ไม่นำยอดรายการย่อยมาบวกแทนยอดรวมหน่วยงานเพื่อป้องกันการนับซ้ำ
A16: การผูกพื้นที่ | B16: นับงบส่วนกลางให้เขตเฉพาะเมื่อเอกสารระบุเขตเดียวชัดเจน โครงการหลายเขตแสดงแยกและไม่เดาแบ่ง
A17: ความหมายของเงิน | B17: วงเงินงบประมาณไม่ใช่ยอดเบิกจ่าย ไม่ใช่ราคาสัญญา และไม่ใช่หลักฐานว่าโครงการเริ่มดำเนินงานแล้ว
A18: แหล่งข้อมูลทางการ | B18: https://data.bangkok.go.th/dataset/cd29e51a-3f50-49b1-8423-7c0c68014074/resource/0d3c174f-4113-4edd-a0ae-8a7bbae37320/download/70002-.pdf
A19: ชุดเอกสารหน่วยรับงบ | B19: https://data.bangkok.go.th/dataset/70-pdf
A20: ข้อมูลปัจจุบัน | B20: Current Records รวมดัชนีพื้นที่ รายละเอียด 15 ไฟล์ และโครงสร้างลำดับชั้น ด้วยกฎเดียวกับเว็บ ได้ 15,415 ระเบียนที่ไม่ซ้ำตาม record_id และ district
A21: รายการหลักและรายการย่อย | B21: วงเงินรายการย่อยรวมอยู่ในวงเงินรายการหลัก ห้าม SUM วงเงินทุกแถว ใช้ Budget Framework หรือ District Summary เมื่อต้องการยอดรวม
A22: มุมมองรายเขต | B22: view_role = area_projection คือข้อมูลมุมมองรายเขตของรายการอ้างอิง canonical_view_id ไม่ใช่งบเพิ่ม และห้ามนับยอดเต็มซ้ำทุกเขต
A23: ชุดอ้างอิงเดิม | B23: ไฟล์รุ่น 4 จำนวน 10,948 ระเบียนแยกดาวน์โหลดไว้เพื่อเทียบย้อนหลัง มีชื่อ รหัส รายละเอียด และการผูกพื้นที่ที่เว็บปรับแล้ว จึงห้ามใช้แทน Current Records
A24: ข้อจำกัดหลักฐาน | B24: รายละเอียดหลายรายการแปลงจาก PDF ด้วยระบบอัตโนมัติ การตรงกับเว็บไม่ได้หมายความว่าตรวจ PDF ครบทุกหน้า ควรเปิด source_url และ pdf_page ก่อนอ้างอิงทางการ
A25: วันที่สำเนาข้อมูล | B25: 2026-09-17 คือวันที่สร้างสำเนาข้อมูลเว็บ ไม่ใช่วันที่ร่างงบมีผลหรือวันที่ตรวจทุกรายการ
A26: ข้อมูลหลายค่า | B26: related_districts และข้อมูลชนิด object/array เก็บเป็นข้อความ JSON เพื่อรักษาค่าต้นฉบับ ส่วนเงิน จำนวน และ boolean คงชนิดข้อมูลเดิม
A27: ยอดย่อยในเอกสารไม่ตรงกัน | B27: พบ 4 หัวข้องบที่ยอดประเภทงบใน PDF รวมไม่ตรงกับยอดงานที่พิมพ์ไว้ จึงเก็บส่วนต่างไว้ ไม่บังคับปรับยอดให้เท่ากัน • ดู https://budgetbkk70.lataepat.com/data/source-discrepancies.json
A28: เอกสารประกอบ BOQ | B28: BOQ Evidence มี 95 รายการจาก 15 โครงการ ยอด evidence_total แสดงเฉพาะแถวแรกของแต่ละโครงการ ห้ามบวกยอดรายการหรือโครงการกับ Current Records และราคาต่อหน่วยอาจปัดเศษหลังคำนวณ Factor F

Sheet Budget Framework
A1: กรอบยอดงบประมาณที่ใช้ในเว็บและไฟล์ข้อมูล
A3: ตัวเลขทางการกับยอดหน้าสรุป 72 หน่วยงานเป็นคนละฐาน • ช่องสีส้มคือค่าจากเอกสารทางการ ช่องสีเขียวคือสูตรที่คำนวณจากชีตอื่น
A5: รายการ | B5: จำนวน (บาท) | C5: ผลต่างตรวจสอบ | D5: ประเภท | E5: แหล่งอ้างอิง | F5: คำอธิบาย
A6: งบประมาณกรุงเทพมหานคร | B6: 93,000,000,000 | D6: ข้อมูลทางการ | E6: https://data.bangkok.go.th/dataset/cd29e51a-3f50-49b1-8423-7c0c68014074/resource/0d3c174f-4113-4edd-a0ae-8a7bbae37320/download/70002-.pdf | F6: องค์ประกอบของงบรวม
A7: งบการพาณิชย์ | B7: 918,922,000 | D7: ข้อมูลทางการ | E7: https://data.bangkok.go.th/dataset/cd29e51a-3f50-49b1-8423-7c0c68014074/resource/0d3c174f-4113-4edd-a0ae-8a7bbae37320/download/70002-.pdf | F7: องค์ประกอบของงบรวม
A8: งบรวมตามร่างข้อบัญญัติ | B8: =B6+B7 -> 93,918,922,000 | D8: สูตรคำนวณ | E8: https://data.bangkok.go.th/dataset/cd29e51a-3f50-49b1-8423-7c0c68014074/resource/0d3c174f-4113-4edd-a0ae-8a7bbae37320/download/70002-.pdf | F8: งบประมาณกรุงเทพมหานคร + งบการพาณิชย์
A9: งบผ่าน 72 หน่วยงาน ไม่รวมงบกลาง | B9: =SUM('Agency Summary'!D5:D76) -> 76,197,311,550 | D9: สูตรคำนวณ | E9: https://data.bangkok.go.th/dataset/70-pdf | F9: รวมเฉพาะเงินงบประมาณใน Agency Summary
A10: รายจ่ายงบกลาง | B10: 17,721,610,450 | D10: ข้อมูลทางการ | E10: https://data.bangkok.go.th/dataset/cd29e51a-3f50-49b1-8423-7c0c68014074/resource/0d3c174f-4113-4edd-a0ae-8a7bbae37320/download/70002-.pdf | F10: แสดงแยกจาก 72 หน่วยงาน
A11: ตรวจยอดรวมตามร่างข้อบัญญัติ | B11: =B9+B10 -> 93,918,922,000 | C11: =B11-B8 -> 0 | D11: สูตรตรวจ | E11: https://data.bangkok.go.th/dataset/cd29e51a-3f50-49b1-8423-7c0c68014074/resource/0d3c174f-4113-4edd-a0ae-8a7bbae37320/download/70002-.pdf | F11: งบผ่าน 72 หน่วยงาน + รายจ่ายงบกลาง
A12: เงินนอกงบประมาณ 72 หน่วยงาน | B12: =SUM('Agency Summary'!E5:E76) -> 1,033,259,700 | D12: แสดงแยก | E12: https://data.bangkok.go.th/dataset/70-pdf | F12: ห้ามบวกซ้ำเข้ากับงบรวมตามร่างข้อบัญญัติ
A13: ยอดตามหน้าสรุป 72 หน่วยงาน | B13: =B9+B12 -> 77,230,571,250 | D13: สูตรคำนวณ | E13: https://data.bangkok.go.th/dataset/70-pdf | F13: เงินงบประมาณ 72 หน่วยงาน + เงินนอกงบประมาณ
A14: ตรวจยอดหน้าสรุป 72 หน่วยงาน | B14: =SUM('Agency Summary'!F5:F76) -> 77,230,571,250 | C14: =B14-B13 -> 0 | D14: สูตรตรวจ | E14: https://data.bangkok.go.th/dataset/70-pdf | F14: รวมคอลัมน์ยอดตามหน้าสรุปใน Agency Summary
A15: สำนักงานเขต 50 เขต | B15: =SUMIF('Agency Summary'!B5:B76,"สำนักงานเขต",'Agency Summary'!D5:D76) -> 21,842,922,290 | D15: สูตรคำนวณ | E15: https://data.bangkok.go.th/dataset/70-pdf | F15: เฉพาะเงินงบประมาณ
A16: หน่วยงานส่วนกลาง 22 หน่วย | B16: =SUMIF('Agency Summary'!B5:B76,"สำนักส่วนกลาง",'Agency Summary'!D5:D76) -> 54,354,389,260 | D16: สูตรคำนวณ | E16: https://data.bangkok.go.th/dataset/70-pdf | F16: เฉพาะเงินงบประมาณ
A17: ยอดหน้าสรุปหน่วยงานส่วนกลาง | B17: =SUMIF('Agency Summary'!B5:B76,"สำนักส่วนกลาง",'Agency Summary'!F5:F76) -> 55,387,648,960 | D17: สูตรคำนวณ | E17: https://data.bangkok.go.th/dataset/70-pdf | F17: เงินงบประมาณ + เงินนอกงบประมาณ
A18: จำนวนเอกสารหน่วยรับงบ | B18: =COUNTA('Agency Summary'!A5:A76) -> 72 | D18: สูตรตรวจ | E18: https://data.bangkok.go.th/dataset/70-pdf | F18: ต้องเท่ากับ 72 เอกสาร

Sheet Current Records
A1: ข้อมูลค้นหาปัจจุบัน — ชุดเดียวกับเว็บ
A3: 15,415 ระเบียน • รวมรายการหลัก รายการย่อย และมุมมองรายเขต • ห้ามบวกรวม budget_amount ทุกแถว
A4: district | B4: owner_agency | C4: public_name | D4: budget_amount | E4: public_category | F4: record_level | G4: view_role | H4: budget_scope | I4: amount_counting_rule | J4: view_id | K4: record_id | L4: parent_view_id | M4: parent_record_id | N4: canonical_view_id | O4: canonical_record_id | P4: budget_code | Q4: official_name | R4: short_description | S4: source_filename | T4: pdf_page | U4: source_url | V4: exclusive_district_amount | W4: count_in_district_office_total | X4: is_shared_budget | Y4: outside_budget_amount | Z4: action_type | AA4: amount_correction_evidence | AB4: amount_evidence | AC4: amount_origin | AD4: child_budget_sum | AE4: child_count | AF4: confidence_level | AG4: context_correction_evidence | AH4: description_origin | AI4: description_source_page | AJ4: district_relation_basis | AK4: district_relation_confidence | AL4: district_relation_evidence | AM4: district_relation_review_status | AN4: district_relation_source_page | AO4: document_context_name | AP4: document_context_official_name | AQ4: document_context_parent_record_id | AR4: document_context_parent_view_id | AS4: document_outline_code | AT4: geo_type | AU4: geo_type_label | AV4: hierarchy_depth | AW4: hierarchy_kind | AX4: hierarchy_level_label | AY4: hierarchy_status | AZ4: is_primary_public_item | BA4: landmark | BB4: latitude | BC4: link_review_status | BD4: location_accuracy | BE4: longitude | BF4: map_search_query | BG4: parent_budget_amount | BH4: parent_child_budget_sum | BI4: parent_child_count | BJ4: parent_official_name | BK4: parent_pdf_page | BL4: parent_public_name | BM4: parent_reconciliation_status | BN4: parent_volume_page | BO4: place_in_document | BP4: public_display_tier | BQ4: raw_extracted_budget_amount | BR4: raw_extracted_public_name | BS4: raw_extracted_short_description | BT4: reconciliation_difference | BU4: reconciliation_status | BV4: related_districts | BW4: review_status | BX4: road | BY4: soi | BZ4: source_group | CA4: source_item_id | CB4: source_status | CC4: volume_page
A5: คลองเตย | B5: สำนักงานเขตคลองเตย | C5: ค่าจ้างประจำ | D5: 87,063,100 | E5: บุคลากรและค่าตอบแทน | F5: รายการหลักจากตารางงบ | H5: รายการในเอกสารสำนักงานเขต | I5: ไม่รวมซ้ำ: ยอดรวมสำนักงานเขตใช้ตัวเลขสรุปหน้า 3 | J5: RAW-70059-37-01201-1-1 | K5: BKK70-RAW-70059-37-01201-1-1 | L5: DHIER-70059-43dc2a185cdb | M5: BKK70-DHIER-70059-43dc2a185cdb | P5: 01201-1 | Q5: (1) ค่าจ้างประจำ | R5: (1) ค่าจ้างประจำ — อยู่ในงานรายจ่ายบุคลากร | S5: 70059 - สำนักงานเขตคลองเตย - งบประมาณ พ.ศ. 2570.pdf | T5: 37 | U5: https://data.bangkok.go.th/dataset/cd29e51a-3f50-49b1-8423-7c0c68014074/resource/2beb1887-33f1-47f2-9a44-3b7e94fffcfd/download/70059-.pdf | W5: FALSE | X5: FALSE | Z5: จ้างบริการ | AD5: 0 | AE5: 0 | AF5: ปานกลาง | AS5: 01201-1 | AT5: C | AU5: ทั้งเขตหรือหลายพื้นที่ | AV5: 2 | AY5: child | AZ5: FALSE | BA5: ไม่ปรากฏในเอกสาร | BC5: heading_or_code_to_budget_type | BD5: ยังไม่ระบุพิกัด | BG5: 191,455,300 | BH5: 0 | BI5: 0 | BJ5: งบบุคลากร | BK5: 37 | BL5: งบบุคลากร | BM5: งบย่อยรวมตรงกับงบหลัก | BO5: เขตคลองเตย | BP5: รายการภายในงบหลัก | BT5: 0 | BU5: not_applicable | BV5: [] | BW5: ตรวจรหัส ชื่อ และวงเงินด้วยกฎอัตโนมัติ; ควรเทียบภาพ PDF ก่อนใช้อ้างอิงทางการ | BX5: ไม่ปรากฏในเอกสาร | BY5: ไม่ปรากฏในเอกสาร | BZ5: สำนักงานเขต | CA5: 70059-37-01201-1-1 | CB5: ข้อมูลตั้งงบประมาณปี 2570 ที่แปลงจาก PDF เป็น Machine-Readable; ไม่ใช่ยอดเบิกจ่ายหรือราคาสัญญา
A6: คลองเตย | B6: สำนักการโยธา | C6: ปรับปรุงผิวจราจรถนนสุขุมวิท ช่วงจากทางรถไฟสายแม่น้ำ ถึงถนนพระรามที่ 4 พื้นที่เขตวัฒนาและเขตคลองเตย | D6: 64,394,000 | E6: ระบายน้ำและป้องกันน้ำท่วม | F6: รายการใช้จ่าย | G6: canonical | H6: รายการของสำนักส่วนกลางที่ระบุชื่อเขต | I6: ไม่รวมซ้ำ: เป็นรายละเอียดภายในรายการก้อนหลัก | J6: RAW-70014-68-05313-16-1 | K6: BKK70-RAW-70014-68-05313-16-1 | L6: HIER-70014-ee7f2f179189 | M6: BKK70-HIER-70014-ee7f2f179189 | N6: RAW-70014-68-05313-16-1 | O6: BKK70-RAW-70014-68-05313-16-1 | P6: 05313-16 | Q6: (3) ปรับปรุงผิวจราจรถนนสุขุมวิท ช่วงจากทางรถไฟสายแม่น้ำ ถึงถนนพระรามที่ 4 พื้นที่เขตวัฒนาและเขตคลองเตย | R6: (3) ปรับปรุงผิวจราจรถนนสุขุมวิท ช่วงจากทางรถไฟสายแม่น้ำ ถึงถนนพระรามที่ 4 พื้นที่เขตวัฒนาและเขตคลองเตย — รายละเอียด: ปรับปรุงผิวจราจรแอสฟัลต์คอนกรีต หนาเฉลี่ย 0.05 ม. ตามแบบและรายการ เนื้อที่ประมาณ 138,500 ตร.ม. • ปรับปรุงผิวจราจร ค.ส.ล. หนา 0.25 ม. ตามแบบและรายการ เนื้อที่ประมาณ 640 ตร.ม. — อยู่ในผลผลิตบำรุงรักษาโครงข่ายถนน | S6: 70014 - สำนักการโยธา - งบประมาณ พ.ศ. 2570.pdf | T6: 68 | U6: https://drive.google.com/file/d/16Y16ZUrhcuEhxuguxxGQ2TmFH4fxxBaT/view?usp=drivesdk | W6: FALSE | X6: FALSE | Z6: ก่อสร้างหรือปรับปรุง | AC6: document | AD6: 0 | AE6: 0 | AF6: ปานกลาง | AT6: B | AU6: ถนนหรือแนวพื้นที่ | AV6: 4 | AW6: line_item | AX6: รายการใช้จ่าย | AY6: child | AZ6: FALSE | BA6: ไม่ปรากฏในเอกสาร | BD6: ยังไม่ระบุพิกัด | BG6: 995,893,499 | BH6: 0 | BI6: 0 | BJ6: ค่าที่ดินและสิ่งก่อสร้าง | BK6: 67 | BL6: ค่าที่ดินและสิ่งก่อสร้าง | BM6: ยังไม่ยืนยันความสัมพันธ์งบหลัก–งบย่อย | BN6: 65 | BO6: เขตคลองเตย | BP6: รายการภายในงบหลัก | BT6: 0 | BU6: not_applicable | BV6: [] | BW6: ตรวจรหัส ชื่อ และวงเงินด้วยกฎอัตโนมัติ; ควรเทียบภาพ PDF ก่อนใช้อ้างอิงทางการ | BX6: ไม่ปรากฏในเอกสาร | BY6: ไม่ปรากฏในเอกสาร | BZ6: สำนักส่วนกลาง | CA6: 70014-68-05313-16-1 | CB6: ข้อมูลตั้งงบประมาณปี 2570 ที่แปลงจาก PDF เป็น Machine-Readable; ไม่ใช่ยอดเบิกจ่ายหรือราคาสัญญา | CC6: 66
A7: คลองเตย | B7: สำนักงานเขตคลองเตย | C7: เงินเดือน | D7: 44,500,400 | E7: บุคลากรและค่าตอบแทน | F7: รายการหลักจากตารางงบ | H7: รายการในเอกสารสำนักงานเขต | I7: ไม่รวมซ้ำ: ยอดรวมสำนักงานเขตใช้ตัวเลขสรุปหน้า 3 | J7: RAW-70059-37-01101-1-1 | K7: BKK70-RAW-70059-37-01101-1-1 | L7: DHIER-70059-43dc2a185cdb | M7: BKK70-DHIER-70059-43dc2a185cdb | P7: 01101-1 | Q7: (1) เงินเดือน | R7: (1) เงินเดือน — อยู่ในงานรายจ่ายบุคลากร | S7: 70059 - สำนักงานเขตคลองเตย - งบประมาณ พ.ศ. 2570.pdf | T7: 37 | U7: https://data.bangkok.go.th/dataset/cd29e51a-3f50-49b1-8423-7c0c68014074/resource/2beb1887-33f1-47f2-9a44-3b7e94fffcfd/download/70059-.pdf | W7: FALSE | X7: FALSE | Z7: บริหารหรือดำเนินงาน | AD7: 0 | AE7: 0 | AF7: ปานกลาง | AS7: 01101-1 | AT7: C | AU7: ทั้งเขตหรือหลายพื้นที่ | AV7: 2 | AY7: child | AZ7: FALSE | BA7: ไม่ปรากฏในเอกสาร | BC7: heading_or_code_to_budget_type | BD7: ยังไม่ระบุพิกัด | BG7: 191,455,300 | BH7: 0 | BI7: 0 | BJ7: งบบุคลากร | BK7: 37 | BL7: งบบุคลากร | BM7: งบย่อยรวมตรงกับงบหลัก | BO7: เขตคลองเตย | BP7: รายการภายในงบหลัก | BT7: 0 | BU7: not_applicable | BV7: [] | BW7: ตรวจรหัส ชื่อ และวงเงินด้วยกฎอัตโนมัติ; ควรเทียบภาพ PDF ก่อนใช้อ้างอิงทางการ | BX7: ไม่ปรากฏในเอกสาร | BY7: ไม่ปรากฏในเอกสาร | BZ7: สำนักงานเขต | CA7: 70059-37-01101-1-1 | CB7: ข้อมูลตั้งงบประมาณปี 2570 ที่แปลงจาก PDF เป็น Machine-Readable; ไม่ใช่ยอดเบิกจ่ายหรือราคาสัญญา
A8: คลองเตย | B8: สำนักการจราจรและขนส่ง | C8: ติดตั้ง กล้องโทรทัศน์วงจรปิด (CCTV) แนวถนนสายหลักในพื้นที่กลุ่ม กรุงเทพใต้ | D8: 10,050,000 | E8: ความปลอดภัยและป้องกันภัย | F8: รายการใช้จ่าย | G8: canonical | H8: วงเงินรวมของรายการที่กล่าวถึงหลายเขต | I8: วงเงินร่วมหลายพื้นที่: เอกสารไม่แยกวงเงินรายเขต | J8: RAW-70018-30-05399-34-1-33 | K8: BKK70-RAW-70018-30-05399-34-1 | L8: RAW-70018-24-line-2-1-2-1 | M8: BKK70-RAW-70018-24-line-2-1-2-1 | N8: RAW-70018-30-05399-34-1-33 | O8: BKK70-RAW-70018-30-05399-34-1 | P8: 05399-34 | Q8: (22) ติดตั้ง กล้องโทรทัศน์วงจรปิด (CCTV) แนวถนนสายหลักในพื้นที่กลุ่ม กรุงเทพใต้ | R8: (22) ติดตั้ง กล้องโทรทัศน์วงจรปิด (CCTV) แนวถนนสายหลักในพื้นที่กลุ่ม กรุงเทพใต้ — รายละเอียด: บริเวณพื้นที่เขตคลองเตย จำนวน 20 จุด รวม 70 กล้อง • บริเวณพื้นที่เขตบางนา จำนวน 16 จุด รวม 45 กล้อง • บริเวณพื้นที่เขตสวนหลวง จำนวน 14 จุด รวม 42 กล้อง — อยู่ในผลผลิตโครงข่ายการจราจร | S8: 70018 - สำนักการจราจรและขนส่ง - งบประมาณ พ.ศ. 2570.pdf | T8: 30 | U8: https://drive.google.com/file/d/1-947x5WJCaV-kwSzaKeO253Y5L4A5IIb/view?usp=drivesdk | W8: FALSE | X8: TRUE | Z8: บริหารหรือดำเนินงาน | AC8: document | AD8: 0 | AE8: 0 | AF8: ปานกลาง | AT8: B | AU8: ถนนหรือแนวพื้นที่ | AV8: 4 | AW8: line_item | AX8: รายการใช้จ่าย | AY8: child | AZ8: FALSE | BD8: ชื่อสถานที่หรือหน่วยรับงบจากเอกสาร; ยังไม่ยืนยันพิกัด | BG8: 305,613,700 | BH8: 0 | BI8: 0 | BJ8: ค่าที่ดินและสิ่งก่อสร้าง | BK8: 24 | BL8: ค่าที่ดินและสิ่งก่อสร้าง | BM8: ยังไม่ยืนยันความสัมพันธ์งบหลัก–งบย่อย | BP8: รายการภายในงบหลัก | BT8: 0 | BU8: not_applicable | BV8: [] | BW8: ตรวจรหัส ชื่อ และวงเงินด้วยกฎอัตโนมัติ; ควรเทียบภาพ PDF ก่อนใช้อ้างอิงทางการ | BX8: ไม่ปรากฏในเอกสาร | BY8: ไม่ปรากฏในเอกสาร | BZ8: สำนักส่วนกลาง | CA8: 70018-30-05399-34-1 | CB8: ข้อมูลตั้งงบประมาณปี 2570 ที่แปลงจาก PDF เป็น Machine-Readable; ไม่ใช่ยอดเบิกจ่ายหรือราคาสัญญา | CC8: 28
A9: คลองเตย | B9: สำนักงานเขตคลองเตย | C9: ปรับปรุงซอยไผ่สิงห์โต จากถนนพระรามที่ 4 ถึงทางเข้าชุมชนอาคารทรัพย์สิน 26-7 | D9: 1,956,000 | E9: ระบายน้ำและป้องกันน้ำท่วม | F9: รายการหลักจากตารางงบ | H9: รายการในเอกสารสำนักงานเขต | I9: ไม่รวมซ้ำ: ยอดรวมสำนักงานเขตใช้ตัวเลขสรุปหน้า 3 | J9: RAW-70059-51-05313-3-1 | K9: BKK70-RAW-70059-51-05313-3-1 | L9: DHIER-70059-02182581af1c | M9: BKK70-DHIER-70059-02182581af1c | P9: 05313-3 | Q9: (2) ปรับปรุงซอยไผ่สิงห์โต จากถนนพระรามที่ 4 ถึงทางเข้าชุมชนอาคารทรัพย์สิน 26-7 | R9: (2) ปรับปรุงซอยไผ่สิงห์โต จากถนนพระรามที่ 4 ถึงทางเข้าชุมชนอาคารทรัพย์สิน 26-7 — รายละเอียด: รื้อคันหินรางตื้นพร้อมช่องรับน้ำเดิม (รื้อขนไป) ยาวประมาณ 477 ม. • สร้างคันหินรางตื้น ตามแบบ ขคล. 1/2570 ยาวประมาณ 452 ม. • รื้อทางเท้ากระเบื้องซีเมนต์เดิม (รื้อขนไป) เนื้อที่ประมาณ 743 ตร.ม. — อยู่ในงานบำรุงรักษาซ่อมแซม | S9: 70059 - สำนักงานเขตคลองเตย - งบประมาณ พ.ศ. 2570.pdf | T9: 51 | U9: https://data.bangkok.go.th/dataset/cd29e51a-3f50-49b1-8423-7c0c68014074/resource/2beb1887-33f1-47f2-9a44-3b7e94fffcfd/download/70059-.pdf | W9: FALSE | X9: FALSE | Z9: ก่อสร้างหรือปรับปรุง | AD9: 0 | AE9: 0 | AF9: ปานกลาง | AS9: 05313-3 | AT9: B | AU9: ถนนหรือแนวพื้นที่ | AV9: 3 | AY9: child | AZ9: FALSE | BA9: ไม่ปรากฏในเอกสาร | BC9: budget_code_to_reconstructed_category | BD9: ยังไม่ระบุพิกัด | BG9: 11,433,000 | BH9: 0 | BI9: 0 | BJ9: ค่าที่ดินและสิ่งก่อสร้าง | BK9: 50 | BL9: ค่าที่ดินและสิ่งก่อสร้าง | BM9: งบย่อยรวมตรงกับงบหลัก | BO9: เขตคลองเตย | BP9: รายการภายในงบหลัก | BT9: 0 | BU9: not_applicable | BV9: [] | BW9: ตรวจรหัส ชื่อ และวงเงินด้วยกฎอัตโนมัติ; ควรเทียบภาพ PDF ก่อนใช้อ้างอิงทางการ | BX9: ไม่ปรากฏในเอกสาร | BY9: ไม่ปรากฏในเอกสาร | BZ9: สำนักงานเขต | CA9: 70059-51-05313-3-1 | CB9: ข้อมูลตั้งงบประมาณปี 2570 ที่แปลงจาก PDF เป็น Machine-Readable; ไม่ใช่ยอดเบิกจ่ายหรือราคาสัญญา
A10: คลองสาน | B10: สำนักการจราจรและขนส่ง | C10: ปรับปรุงสัญญาณไฟจราจรทางแยก พื้นที่ธนบุรี 5 ทางแยก | D10: 19,513,000 | E10: ระบายน้ำและป้องกันน้ำท่วม | F10: รายการใช้จ่าย | G10: canonical | H10: วงเงินรวมของรายการที่กล่าวถึงหลายเขต | I10: วงเงินร่วมหลายพื้นที่: เอกสารไม่แยกวงเงินรายเขต | J10: RAW-70018-26-05399-14-1-17 | K10: BKK70-RAW-70018-26-05399-14-1 | L10: RAW-70018-24-line-2-1-2-1 | M10: BKK70-RAW-70018-24-line-2-1-2-1 | N10: RAW-70018-26-05399-14-1-17 | O10: BKK70-RAW-70018-26-05399-14-1 | P10: 05399-14 | Q10: (8) ปรับปรุงสัญญาณไฟจราจรทางแยก พื้นที่ธนบุรี 5 ทางแยก | R10: (8) ปรับปรุงสัญญาณไฟจราจรทางแยก พื้นที่ธนบุรี 5 ทางแยก — รายละเอียด: บริเวณทางแยกถนนเพชรเกษม - ถนนพุทธมณฑล • สาย 1 เขตภาษีเจริญ • บริเวณทางแยกถนนพุทธมณฑลสาย 1 - ถนน — อยู่ในผลผลิตโครงข่ายการจราจร | S10: 70018 - สำนักการจราจรและขนส่ง - งบประมาณ พ.ศ. 2570.pdf | T10: 26 | U10: https://drive.google.com/file/d/1-947x5WJCaV-kwSzaKeO253Y5L4A5IIb/view?usp=drivesdk | W10: FALSE | X10: TRUE | Z10: ก่อสร้างหรือปรับปรุง | AC10: document | AD10: 0 | AE10: 0 | AF10: ปานกลาง | AT10: C | AU10: หลายเขต | AV10: 4 | AW10: line_item | AX10: รายการใช้จ่าย | AY10: child | AZ10: FALSE | BD10: ชื่อสถานที่หรือหน่วยรับงบจากเอกสาร; ยังไม่ยืนยันพิกัด | BG10: 305,613,700 | BH10: 0 | BI10: 0 | BJ10: ค่าที่ดินและสิ่งก่อสร้าง | BK10: 24 | BL10: ค่าที่ดินและสิ่งก่อสร้าง | BM10: ยังไม่ยืนยันความสัมพันธ์งบหลัก–งบย่อย | BP10: รายการภายในงบหลัก | BT10: 0 | BU10: not_applicable | BV10: [] | BW10: ตรวจรหัส ชื่อ และวงเงินด้วยกฎอัตโนมัติ; ควรเทียบภาพ PDF ก่อนใช้อ้างอิงทางการ | BX10: ไม่ปรากฏในเอกสาร | BY10: ไม่ปรากฏในเอกสาร | BZ10: สำนักส่วนกลาง | CA10: 70018-26-05399-14-1 | CB10: ข้อมูลตั้งงบประมาณปี 2570 ที่แปลงจาก PDF เป็น Machine-Readable; ไม่ใช่ยอดเบิกจ่ายหรือราคาสัญญา | CC10: 24
A11: คลองสาน | B11: สำนักการโยธา | C11: ติดตั้ง ไฟฟ้าส่องสว่างสาธารณะทางเท้าบริเวณถนนท่าดินแดง ตั้ง แต่ถนนลาดหญ้าถึงแม่น้ำเจ้าพระยา พื้นที่เขตคลองสาน | D11: 11,333,000 | E11: ระบายน้ำและป้องกันน้ำท่วม | F11: รายการใช้จ่าย | G11: canonical | H11: รายการของสำนักส่วนกลางที่ระบุชื่อเขต | I11: ไม่รวมซ้ำ: เป็นรายละเอียดภายในรายการก้อนหลัก | J11: RAW-70014-69-05399-1-1 | K11: BKK70-RAW-70014-69-05399-1-1 | L11: HIER-70014-ee7f2f179189 | M11: BKK70-HIER-70014-ee7f2f179189 | N11: RAW-70014-69-05399-1-1 | O11: BKK70-RAW-70014-69-05399-1-1 | P11: 05399-1 | Q11: (7) ติดตั้ง ไฟฟ้าส่องสว่างสาธารณะทางเท้าบริเวณถนนท่าดินแดง ตั้ง แต่ถนนลาดหญ้าถึงแม่น้ำเจ้าพระยา พื้นที่เขตคลองสาน | R11: (7) ติดตั้ง ไฟฟ้าส่องสว่างสาธารณะทางเท้าบริเวณถนนท่าดินแดง ตั้ง แต่ถนนลาดหญ้าถึงแม่น้ำเจ้าพระยา พื้นที่เขตคลองสาน — รายละเอียด: ติดตั้ง เสาไฟฟ้ากิ่งเดี่ยวสูง 4 ม. และโคมไฟ LED ขนาดไม่เกิน 14 วัตต์ พร้อมอุปกรณ์ จำนวน 130 ต้น • งานเดินท่อร้อยสายไฟ • ติดตั้ง ตู้ควบคุมไฟฟ้าพร้อมอุปกรณ์ จำนวน 10 ตู้ — อยู่ในผลผลิตบำรุงรักษาโครงข่ายถนน | S11: 70014 - สำนักการโยธา - งบประมาณ พ.ศ. 2570.pdf | T11: 69 | U11: https://drive.google.com/file/d/16Y16ZUrhcuEhxuguxxGQ2TmFH4fxxBaT/view?usp=drivesdk | W11: FALSE | X11: FALSE | Z11: บริหารหรือดำเนินงาน | AC11: document | AD11: 0 | AE11: 0 | AF11: ปานกลาง | AT11: B | AU11: ถนนหรือแนวพื้นที่ | AV11: 4 | AW11: line_item | AX11: รายการใช้จ่าย | AY11: child | AZ11: FALSE | BA11: ไม่ปรากฏในเอกสาร | BD11: ยังไม่ระบุพิกัด | BG11: 995,893,499 | BH11: 0 | BI11: 0 | BJ11: ค่าที่ดินและสิ่งก่อสร้าง | BK11: 67 | BL11: ค่าที่ดินและสิ่งก่อสร้าง | BM11: ยังไม่ยืนยันความสัมพันธ์งบหลัก–งบย่อย | BN11: 65 | BO11: เขตคลองสาน | BP11: รายการภายในงบหลัก | BT11: 0 | BU11: not_applicable | BV11: [] | BW11: ตรวจรหัส ชื่อ และวงเงินด้วยกฎอัตโนมัติ; ควรเทียบภาพ PDF ก่อนใช้อ้างอิงทางการ | BX11: ไม่ปรากฏในเอกสาร | BY11: ไม่ปรากฏในเอกสาร | BZ11: สำนักส่วนกลาง | CA11: 70014-69-05399-1-1 | CB11: ข้อมูลตั้งงบประมาณปี 2570 ที่แปลงจาก PDF เป็น Machine-Readable; ไม่ใช่ยอดเบิกจ่ายหรือราคาสัญญา | CC11: 67
A12: คลองสาน | B12: สำนักการจราจรและขนส่ง | C12: ติดตั้ง กล้องโทรทัศน์วงจรปิด (CCTV) บริเวณตรอก ซอย ในพื้นที่กลุ่ม กรุงธนเหนือ | D12: 9,163,000 | E12: ความปลอดภัยและป้องกันภัย | F12: รายการใช้จ่าย | G12: area_projection | H12: วงเงินรวมหลายเขต ไม่แยกรายเขต | I12: วงเงินร่วมหลายพื้นที่: เอกสารไม่แยกวงเงินรายเขต ห้ามนับยอดเต็มซ้ำในแต่ละเขต | J12: RAW-70018-46-05399-1-2-17 | K12: BKK70-RAW-70018-46-05399-1-2 | L12: HIER-70018-ebae4a576017 | M12: BKK70-HIER-70018-ebae4a576017 | N12: RAW-70018-46-05399-1-2-16 | O12: BKK70-RAW-70018-46-05399-1-2 | P12: 05399-1 | Q12: ติดตั้ง กล้องโทรทัศน์วงจรปิด (CCTV) บริเวณตรอก ซอย ในพื้นที่กลุ่ม กรุงธนเหนือ | R12: เขตคลองสาน 11 จุด 31 กล้อง ภายในโครงการกลุ่มกรุงธนเหนือที่ระบุ 8 เขต วงเงินเป็นยอดรวมโครงการและไม่ได้แยกรายเขต | S12: 70018 - สำนักการจราจรและขนส่ง - งบประมาณ พ.ศ. 2570.pdf | T12: 46 | U12: https://drive.google.com/file/d/1-947x5WJCaV-kwSzaKeO253Y5L4A5IIb/view?usp=drivesdk | W12: FALSE | X12: TRUE | Z12: บริหารหรือดำเนินงาน | AC12: document | AD12: 0 | AE12: 0 | AF12: ปานกลาง | AJ12: เอกสารระบุชื่อเขตและจำนวนจุดติดตั้งโดยตรง | AK12: สูง | AL12: เอกสาร 70018 หน้า PDF 46: เขตคลองสาน 11 จุด 31 กล้อง | AM12: เทียบภาพ PDF และบริบทโครงการแล้ว 17 กันยายน 2569; วงเงินร่วม ไม่แยกรายเขต | AN12: 46 | AT12: C | AU12: หลายเขต | AV12: 4 | AW12: line_item | AX12: รายการใช้จ่าย | AY12: child | AZ12: TRUE | BC12: area_projection | BD12: ชื่อสถานที่หรือหน่วยรับงบจากเอกสาร; ยังไม่ยืนยันพิกัด | BG12: 9,163,000 | BH12: 0 | BI12: 0 | BJ12: ค่าที่ดินและสิ่งก่อสร้าง | BK12: 46 | BL12: ค่าที่ดินและสิ่งก่อสร้าง | BM12: ยังไม่ยืนยันความสัมพันธ์งบหลัก–งบย่อย | BN12: 44 | BO12: ตรอกซอยในพื้นที่กลุ่มกรุงธนเหนือ; เขตคลองสาน 11 จุด 31 กล้อง | BP12: แสดงเป็นรายการหลัก | BT12: 0 | BU12: not_applicable | BV12: [] | BW12: เทียบชื่อโครงการ วงเงิน และจำนวนจุด/กล้องรายเขตกับภาพ PDF แล้ว 17 กันยายน 2569; ยังไม่มีรายชื่อจุดติดตั้งรายจุด | BX12: ไม่ปรากฏในเอกสาร | BY12: ไม่ปรากฏในเอกสาร | BZ12: สำนักส่วนกลาง | CA12: 70018-46-05399-1-2 | CB12: ข้อมูลตั้งงบประมาณปี 2570 ที่แปลงจาก PDF เป็น Machine-Readable; ไม่ใช่ยอดเบิกจ่ายหรือราคาสัญญา
A13: คลองสาน | B13: สำนักการจราจรและขนส่ง | C13: ติดตั้ง กล้องโทรทัศน์วงจรปิด (CCTV) แนวถนนสายหลักในพื้นที่กลุ่ม กรุงธนเหนือ | D13: 8,938,600 | E13: ความปลอดภัยและป้องกันภัย | F13: รายการใช้จ่าย | G13: area_projection | H13: วงเงินรวมหลายเขต ไม่แยกรายเขต | I13: วงเงินร่วมหลายพื้นที่: เอกสารไม่แยกวงเงินรายเขต ห้ามนับยอดเต็มซ้ำในแต่ละเขต | J13: RAW-70018-29-05399-30-1-17 | K13: BKK70-RAW-70018-29-05399-30-1 | L13: RAW-70018-24-line-2-1-2-1 | M13: BKK70-RAW-70018-24-line-2-1-2-1 | N13: RAW-70018-29-05399-30-1-16 | O13: BKK70-RAW-70018-29-05399-30-1 | P13: 05399-30 | Q13: (18) ติดตั้ง กล้องโทรทัศน์วงจรปิด (CCTV) แนวถนนสายหลักในพื้นที่กลุ่ม กรุงธนเหนือ | R13: เขตคลองสาน 2 จุด 6 กล้อง ภายในโครงการกลุ่มกรุงธนเหนือที่ระบุ 7 เขต วงเงินเป็นยอดรวมโครงการและไม่ได้แยกรายเขต | S13: 70018 - สำนักการจราจรและขนส่ง - งบประมาณ พ.ศ. 2570.pdf | T13: 29 | U13: https://drive.google.com/file/d/1-947x5WJCaV-kwSzaKeO253Y5L4A5IIb/view?usp=drivesdk | W13: FALSE | X13: TRUE | Z13: บริหารหรือดำเนินงาน | AC13: document | AD13: 0 | AE13: 0 | AF13: ปานกลาง | AJ13: เอกสารระบุชื่อเขตและจำนวนจุดติดตั้งโดยตรง | AK13: สูง | AL13: เอกสาร 70018 หน้า PDF 29: เขตคลองสาน 2 จุด 6 กล้อง | AM13: เทียบภาพ PDF และบริบทโครงการแล้ว 17 กันยายน 2569; วงเงินร่วม ไม่แยกรายเขต | AN13: 29 | AT13: B | AU13: ถนนหรือแนวพื้นที่ | AV13: 4 | AW13: line_item | AX13: รายการใช้จ่าย | AY13: child | AZ13: TRUE | BC13: area_projection | BD13: ชื่อสถานที่หรือหน่วยรับงบจากเอกสาร; ยังไม่ยืนยันพิกัด | BG13: 305,613,700 | BH13: 0 | BI13: 0 | BJ13: ค่าที่ดินและสิ่งก่อสร้าง | BK13: 24 | BL13: ค่าที่ดินและสิ่งก่อสร้าง | BM13: ยังไม่ยืนยันความสัมพันธ์งบหลัก–งบย่อย | BO13: แนวถนนสายหลักในพื้นที่กลุ่มกรุงธนเหนือ; เขตคลองสาน 2 จุด 6 กล้อง | BP13: แสดงเป็นรายการหลัก | BT13: 0 | BU13: not_applicable | BV13: [] | BW13: เทียบชื่อโครงการ วงเงิน และจำนวนจุด/กล้องรายเขตกับภาพ PDF แล้ว 17 กันยายน 2569; ยังไม่มีรายชื่อจุดติดตั้งรายจุด | BX13: ไม่ปรากฏในเอกสาร | BY13: ไม่ปรากฏในเอกสาร | BZ13: สำนักส่วนกลาง | CA13: 70018-29-05399-30-1 | CB13: ข้อมูลตั้งงบประมาณปี 2570 ที่แปลงจาก PDF เป็น Machine-Readable; ไม่ใช่ยอดเบิกจ่ายหรือราคาสัญญา
A14: คลองสาน | B14: สำนักงานเขตคลองสาน | C14: ปรับปรุงถนนข้างสวนป่าเฉลิมพระเกียรติใต้สะพาน สมเด็จพระเจ้าตากสินมหาราช จากถนนเจริญนคร ถึงจุดที่กำหนดให้ | D14: 2,489,000 | E14: ระบายน้ำและป้องกันน้ำท่วม | F14: รายการหลักจากตารางงบ | H14: รายการในเอกสารสำนักงานเขต | I14: ไม่รวมซ้ำ: ยอดรวมสำนักงานเขตใช้ตัวเลขสรุปหน้า 3 | J14: RAW-70043-46-05313-1-1 | K14: BKK70-RAW-70043-46-05313-1-1 | L14: RAW-70043-46-line-2-2-1 | M14: BKK70-RAW-70043-46-line-2-2-1 | P14: 05313-1 | Q14: (1) ปรับปรุงถนนข้างสวนป่าเฉลิมพระเกียรติใต้สะพาน สมเด็จพระเจ้าตากสินมหาราช จากถนนเจริญนคร ถึงจุดที่กำหนดให้ | R14: (1) ปรับปรุงถนนข้างสวนป่าเฉลิมพระเกียรติใต้สะพาน สมเด็จพระเจ้าตากสินมหาราช จากถนนเจริญนคร ถึงจุดที่กำหนดให้ — รายละเอียด: ตามแบบเลขที่ ขคส. 7/2570 • รื้อผิวทาง ค.ส.ล. เดิม พร้อมขนทิ้ง พื้นที่ประมาณ 950 ตร.ม. • รื้อท่อระบายน้ำ ค.ส.ล. ขนาดเส้นผ่านศูนย์กลาง 0.60 ม. เดิม พร้อมขนทิ้ง ยาวประมาณ 166 ม. — อยู่ในงานบำรุงรักษาซ่อมแซม | S14: 70043 - สำนักงานเขตคลองสาน - งบประมาณ พ.ศ. 2570.pdf | T14: 46 | U14: https://data.bangkok.go.th/dataset/cd29e51a-3f50-49b1-8423-7c0c68014074/resource/5e616241-61e4-4fa8-822a-e375ab6ddc07/download/70043-.pdf | W14: FALSE | X14: FALSE | Z14: ก่อสร้างหรือปรับปรุง | AD14: 0 | AE14: 0 | AF14: ปานกลาง | AS14: 05313-1 | AT14: B | AU14: ถนนหรือแนวพื้นที่ | AV14: 3 | AY14: child | AZ14: FALSE | BA14: ไม่ปรากฏในเอกสาร | BC14: published_relation | BD14: ยังไม่ระบุพิกัด | BG14: 14,397,500 | BH14: 0 | BI14: 0 | BJ14: ค่าที่ดินและสิ่งก่อสร้าง | BK14: 46 | BL14: ค่าที่ดินและสิ่งก่อสร้าง | BM14: งบย่อยรวมตรงกับงบหลัก | BO14: เขตคลองสาน | BP14: รายการภายในงบหลัก | BT14: 0 | BU14: not_applicable | BV14: [] | BW14: ตรวจรหัส ชื่อ และวงเงินด้วยกฎอัตโนมัติ; ควรเทียบภาพ PDF ก่อนใช้อ้างอิงทางการ | BX14: ไม่ปรากฏในเอกสาร | BY14: ไม่ปรากฏในเอกสาร | BZ14: สำนักงานเขต | CA14: 70043-46-05313-1-1 | CB14: ข้อมูลตั้งงบประมาณปี 2570 ที่แปลงจาก PDF เป็น Machine-Readable; ไม่ใช่ยอดเบิกจ่ายหรือราคาสัญญา
A15: คลองสาน | B15: สำนักงานเขตคลองสาน | C15: ขุดลอกคลองต้นไทร (ช่วงที่ 1) จากถนนกรุงธนบุรี ถึง แม่น้ำเจ้าพระยา และขุดลอกคลองต้นไทร (ช่วงที่2) จากบ้านเลขที่ 144 สุดระยะคลอง ถึงคลองต้นไทรช่วงที่ 1 | D15: 1,786,000 | E15: ระบายน้ำและป้องกันน้ำท่วม | F15: รายการหลักจากตารางงบ | H15: รายการในเอกสารสำนักงานเขต | I15: ไม่รวมซ้ำ: ยอดรวมสำนักงานเขตใช้ตัวเลขสรุปหน้า 3 | J15: RAW-70043-51-05314-1-1 | K15: BKK70-RAW-70043-51-05314-1-1 | L15: DHIER-70043-372118da8d47 | M15: BKK70-DHIER-70043-372118da8d47 | P15: 05314-1 | Q15: (1) ขุดลอกคลองต้นไทร (ช่วงที่ 1) จากถนนกรุงธนบุรี ถึง แม่น้ำเจ้าพระยา และขุดลอกคลองต้นไทร (ช่วงที่2) จากบ้านเลขที่ 144 สุดระยะคลอง ถึงคลองต้นไทรช่วงที่ 1 | R15: (1) ขุดลอกคลองต้นไทร (ช่วงที่ 1) จากถนนกรุงธนบุรี ถึง แม่น้ำเจ้าพระยา และขุดลอกคลองต้นไทร (ช่วงที่2) จากบ้านเลขที่ 144 สุดระยะคลอง ถึงคลองต้นไทรช่วงที่ 1 — รายละเอียด: คลองต้นไทร (ช่วงที่ 1) ฯ • ขุดลอกคลองกว้างประมาณ 4.60 ม. - 8.90 ม. ความยาวประมาณ 914 ม. ลึกจากระดับ ท้องคลองเดิมถึงระดับขุดลอกเฉลี่ย 0.61 ม. ระดับขุดลอก -1.5 ม. รทก. ปริมาณดิน 3,672.27 ลบ.ม. คลองต้นไทร (ช่วงที่ 2) ฯ • ขุดลอกคลองกว้างประมาณ 2.10 ม. - 4.80 ม. ความยาวประมาณ 79 ม. ลึกจากระดับ ท้องคลองเดิมถึงระดับขุดลอกเฉลี่ย 0.61 ม. ระดับขุดลอก -1.5 ม. รทก. ปริมาณดิน 162.40 ลบ.ม. — อยู่ในงานระบายน้ำและแก้ไขปัญหาน้ำท่วม | S15: 70043 - สำนักงานเขตคลองสาน - งบประมาณ พ.ศ. 2570.pdf | T15: 51 | U15: https://data.bangkok.go.th/dataset/cd29e51a-3f50-49b1-8423-7c0c68014074/resource/5e616241-61e4-4fa8-822a-e375ab6ddc07/download/70043-.pdf | W15: FALSE | X15: FALSE | Z15: บริหารหรือดำเนินงาน | AD15: 0 | AE15: 0 | AF15: ปานกลาง | AS15: 05314-1 | AT15: B | AU15: ถนนหรือแนวพื้นที่ | AV15: 3 | AY15: child | AZ15: FALSE | BC15: budget_code_to_reconstructed_category | BD15: ชื่อสถานที่หรือหน่วยรับงบจากเอกสาร; ยังไม่ยืนยันพิกัด | BG15: 3,395,000 | BH15: 0 | BI15: 0 | BJ15: ค่าที่ดินและสิ่งก่อสร้าง | BK15: 51 | BL15: ค่าที่ดินและสิ่งก่อสร้าง | BM15: งบย่อยรวมตรงกับงบหลัก | BP15: รายการภายในงบหลัก | BT15: 0 | BU15: not_applicable | BV15: [] | BW15: ตรวจรหัส ชื่อ และวงเงินด้วยกฎอัตโนมัติ; ควรเทียบภาพ PDF ก่อนใช้อ้างอิงทางการ | BX15: ไม่ปรากฏในเอกสาร | BY15: ไม่ปรากฏในเอกสาร | BZ15: สำนักงานเขต | CA15: 70043-51-05314-1-1 | CB15: ข้อมูลตั้งงบประมาณปี 2570 ที่แปลงจาก PDF เป็น Machine-Readable; ไม่ใช่ยอดเบิกจ่ายหรือราคาสัญญา
A16: คลองสาน | B16: สำนักงานเขตคลองสาน | C16: ปรับปรุงสวนป่าเฉลิมพระเกียรติเชิงสะพานพระปกเกล้า | D16: 1,085,000 | E16: ระบายน้ำและป้องกันน้ำท่วม | F16: รายการหลักจากตารางงบ | H16: รายการในเอกสารสำนักงานเขต | I16: ไม่รวมซ้ำ: ยอดรวมสำนักงานเขตใช้ตัวเลขสรุปหน้า 3 | J16: RAW-70043-40-05313-1-1 | K16: BKK70-RAW-70043-40-05313-1-1 | L16: RAW-70043-40-line-2-2-1 | M16: BKK70-RAW-70043-40-line-2-2-1 | P16: 05313-1 | Q16: (1) ปรับปรุงสวนป่าเฉลิมพระเกียรติเชิงสะพานพระปกเกล้า | R16: (1) ปรับปรุงสวนป่าเฉลิมพระเกียรติเชิงสะพานพระปกเกล้า — รายละเอียด: ปรับปรุงรางระบายน้ำภายในสวน • ตามแบบเลขที่ ขคส. 23/2570 • งานรื้อถอน พร้อมขนทิ้ง — อยู่ในงานดูแลสวนและพื้นที่สีเขียว | S16: 70043 - สำนักงานเขตคลองสาน - งบประมาณ พ.ศ. 2570.pdf | T16: 40 | U16: https://data.bangkok.go.th/dataset/cd29e51a-3f50-49b1-8423-7c0c68014074/resource/5e616241-61e4-4fa8-822a-e375ab6ddc07/download/70043-.pdf | W16: FALSE | X16: FALSE | Z16: ก่อสร้างหรือปรับปรุง | AD16: 0 | AE16: 0 | AF16: ปานกลาง | AS16: 05313-1 | AT16: B | AU16: ถนนหรือแนวพื้นที่ | AV16: 3 | AY16: child | AZ16: FALSE | BA16: ไม่ปรากฏในเอกสาร | BC16: published_relation | BD16: ยังไม่ระบุพิกัด | BG16: 1,085,000 | BH16: 0 | BI16: 0 | BJ16: ค่าที่ดินและสิ่งก่อสร้าง | BK16: 40 | BL16: ค่าที่ดินและสิ่งก่อสร้าง | BM16: งบย่อยรวมตรงกับงบหลัก | BO16: เขตคลองสาน | BP16: รายการภายในงบหลัก | BT16: 0 | BU16: not_applicable | BV16: [] | BW16: ตรวจรหัส ชื่อ และวงเงินด้วยกฎอัตโนมัติ; ควรเทียบภาพ PDF ก่อนใช้อ้างอิงทางการ | BX16: ไม่ปรากฏในเอกสาร | BY16: ไม่ปรากฏในเอกสาร | BZ16: สำนักงานเขต | CA16: 70043-40-05313-1-1 | CB16: ข้อมูลตั้งงบประมาณปี 2570 ที่แปลงจาก PDF เป็น Machine-Readable; ไม่ใช่ยอดเบิกจ่ายหรือราคาสัญญา
A17: คลองสามวา | B17: สำนักงานเขตคลองสามวา | C17: ปรับปรุงซอยพร้อมพัฒน์ จากซอยหทัยราษฎร์ 39 ถึงสะพานข้ามคลองสามตะวันตก | D17: 39,273,000 | E17: ระบายน้ำและป้องกันน้ำท่วม | F17: รายการหลักจากตารางงบ | H17: รายการในเอกสารสำนักงานเขต | I17: ไม่รวมซ้ำ: ยอดรวมสำนักงานเขตใช้ตัวเลขสรุปหน้า 3 | J17: RAW-70072-52-05313-2-1 | K17: BKK70-RAW-70072-52-05313-2-1 | L17: DHIER-70072-b257033e8ef8 | M17: BKK70-DHIER-70072-b257033e8ef8 | P17: 05313-2 | Q17: (1) ปรับปรุงซอยพร้อมพัฒน์ จากซอยหทัยราษฎร์ 39 ถึงสะพานข้ามคลองสามตะวันตก | R17: (1) ปรับปรุงซอยพร้อมพัฒน์ จากซอยหทัยราษฎร์ 39 ถึงสะพานข้ามคลองสามตะวันตก — รายละเอียด: รื้อผิวทาง ค.ส.ล.เดิมและทางเท้าเดิม เนื้อที่ประมาณ 11,300 ตร.ม. • ปรับพื้นฐานเดิมบดอัดแน่น เนื้อที่ประมาณ 11,300 ตร.ม. • สร้างท่อระบายน้ำ ค.ส.ล. ขนาดเส้นผ่าศูนย์กลาง 0.80 ม. ตามแบบ มนก.-04 ยาวประมาณ 94 ม. — อยู่ในงานบำรุงรักษาซ่อมแซม | S17: 70072 - สำนักงานเขตคลองสามวา - งบประมาณ พ.ศ. 2570.pdf | T17: 52 | U17: https://data.bangkok.go.th/dataset/cd29e51a-3f50-49b1-8423-7c0c68014074/resource/1a2063c9-845f-4a91-a672-d76d37b30871/download/70072-.pdf | W17: FALSE | X17: FALSE | Z17: ก่อสร้างหรือปรับปรุง | AD17: 0 | AE17: 0 | AF17: ปานกลาง | AS17: 05313-2 | AT17: B | AU17: ถนนหรือแนวพื้นที่ | AV17: 3 | AY17: child | AZ17: FALSE | BA17: ไม่ปรากฏในเอกสาร | BC17: budget_code_to_reconstructed_category | BD17: ยังไม่ระบุพิกัด | BG17: 85,078,000 | BH17: 0 | BI17: 0 | BJ17: ค่าที่ดินและสิ่งก่อสร้าง | BK17: 52 | BL17: ค่าที่ดินและสิ่งก่อสร้าง | BM17: งบย่อยรวมตรงกับงบหลัก | BO17: เขตคลองสามวา | BP17: รายการภายในงบหลัก | BT17: 0 | BU17: not_applicable | BV17: [] | BW17: ตรวจรหัส ชื่อ และวงเงินด้วยกฎอัตโนมัติ; ควรเทียบภาพ PDF ก่อนใช้อ้างอิงทางการ | BX17: ไม่ปรากฏในเอกสาร | BY17: ไม่ปรากฏในเอกสาร | BZ17: สำนักงานเขต | CA17: 70072-52-05313-2-1 | CB17: ข้อมูลตั้งงบประมาณปี 2570 ที่แปลงจาก PDF เป็น Machine-Readable; ไม่ใช่ยอดเบิกจ่ายหรือราคาสัญญา
A18: คลองสามวา | B18: สำนักการศึกษา | C18: ก่อสร้างอาคารเรียนอเนกประสงค์ 5 ชั้น โรงเรียนวัดแป้นทอง สำนักงานเขตคลองสามวา | D18: 29,423,600 | E18: การศึกษา | F18: รายการใช้จ่าย | G18: canonical | H18: รายการของสำนักส่วนกลางที่ระบุชื่อเขต | I18: รายการจากสำนักส่วนกลาง: ระบุชื่อเขตชัดในเอกสาร | J18: RAW-70013-31-05303-3-1 | K18: BKK70-RAW-70013-31-05303-3-1 | L18: HIER-70013-178aa3b87160 | M18: BKK70-HIER-70013-178aa3b87160 | N18: RAW-70013-31-05303-3-1 | O18: BKK70-RAW-70013-31-05303-3-1 | P18: 05303-3 | Q18: ก่อสร้างอาคารเรียนอเนกประสงค์ 5 ชั้น โรงเรียนวัดแป้นทอง สำนักงานเขตคลองสามวา | R18: ก่อสร้างอาคารเรียนอเนกประสงค์ 5 ชั้น โรงเรียนวัดแป้นทอง สำนักงานเขตคลองสามวา — รายละเอียด: ก่อสร้างอาคารเรียนอเนกประสงค์ 5 ชั้น 1 หลัง • ชั้น 1 สำนักงาน • ชั้น 2 ห้องเรียนอนุบาล — อยู่ในโครงการก่อสร้างอาคารเรียนอเนกประสงค์ 5 ชั้น โรงเรียนวัดแป้นทอง สำนักงานเขตคลองสามวา | S18: 70013 - สำนักการศึกษา - งบประมาณ พ.ศ. 2570.pdf | T18: 31 | U18: https://drive.google.com/file/d/1go8hmylbEXpMWmF4QYmXNHb1eHmBZlrl/view?usp=drivesdk | V18: 29,423,600 | W18: FALSE | X18: FALSE | Z18: ก่อสร้างหรือปรับปรุง | AC18: document | AD18: 0 | AE18: 0 | AF18: ปานกลาง | AT18: B | AU18: ถนนหรือแนวพื้นที่ | AV18: 4 | AW18: line_item | AX18: รายการใช้จ่าย | AY18: child | AZ18: FALSE | BA18: ไม่ปรากฏในเอกสาร | BD18: ยังไม่ระบุพิกัด | BG18: 176,026,000 | BH18: 0 | BI18: 0 | BJ18: ค่าที่ดินและสิ่งก่อสร้าง | BK18: 26 | BL18: ค่าที่ดินและสิ่งก่อสร้าง | BM18: ยังไม่ยืนยันความสัมพันธ์งบหลัก–งบย่อย | BN18: 24 | BO18: เขตคลองสามวา | BP18: รายการภายในงบหลัก | BT18: 0 | BU18: not_applicable | BV18: [] | BW18: ตรวจรหัส ชื่อ และวงเงินด้วยกฎอัตโนมัติ; ควรเทียบภาพ PDF ก่อนใช้อ้างอิงทางการ | BX18: ไม่ปรากฏในเอกสาร | BY18: ไม่ปรากฏในเอกสาร | BZ18: สำนักส่วนกลาง | CA18: 70013-31-05303-3-1 | CB18: ข้อมูลตั้งงบประมาณปี 2570 ที่แปลงจาก PDF เป็น Machine-Readable; ไม่ใช่ยอดเบิกจ่ายหรือราคาสัญญา | CC18: 29
A19: คลองสามวา | B19: สำนักการจราจรและขนส่ง | C19: ปรับปรุงสัญญาณไฟจราจรทางแยก พื้นที่พระนครใต้ 7 ทางแยก | D19: 23,415,000 | E19: ระบายน้ำและป้องกันน้ำท่วม | F19: รายการใช้จ่าย | G19: area_projection | H19: วงเงินรวมของรายการที่กล่าวถึงหลายเขต | I19: วงเงินร่วมหลายพื้นที่: เอกสารไม่แยกวงเงินรายเขต | J19: RAW-70018-26-05399-13-1-46 | K19: BKK70-RAW-70018-26-05399-13-1 | L19: RAW-70018-24-line-2-1-2-1 | M19: BKK70-RAW-70018-24-line-2-1-2-1 | N19: RAW-70018-26-05399-13-1-5 | O19: BKK70-RAW-70018-26-05399-13-1 | P19: 05399-13 | Q19: (7) ปรับปรุงสัญญาณไฟจราจรทางแยก พื้นที่พระนครใต้ 7 ทางแยก | R19: (7) ปรับปรุงสัญญาณไฟจราจรทางแยก พื้นที่พระนครใต้ 7 ทางแยก — รายละเอียด: บริเวณทางแยกปัญญาอินทรา เขตคลองสามวา • บริเวณทางแยกคู้บ อน - พระยาสุเรนทร์ • เขตคลองสามวา — อยู่ในผลผลิตโครงข่ายการจราจร | S19: 70018 - สำนักการจราจรและขนส่ง - งบประมาณ พ.ศ. 2570.pdf | T19: 26 | U19: https://drive.google.com/file/d/1-947x5WJCaV-kwSzaKeO253Y5L4A5IIb/view?usp=drivesdk | W19: FALSE | X19: TRUE | Z19: ก่อสร้างหรือปรับปรุง | AC19: document | AD19: 0 | AE19: 0 | AF19: ปานกลาง | AT19: C | AU19: หลายเขต | AV19: 4 | AW19: line_item | AX19: รายการใช้จ่าย | AY19: child | AZ19: TRUE | BC19: area_projection | BD19: ชื่อสถานที่หรือหน่วยรับงบจากเอกสาร; ยังไม่ยืนยันพิกัด | BG19: 305,613,700 | BH19: 0 | BI19: 0 | BJ19: ค่าที่ดินและสิ่งก่อสร้าง | BK19: 24 | BL19: ค่าที่ดินและสิ่งก่อสร้าง | BM19: ยังไม่ยืนยันความสัมพันธ์งบหลัก–งบย่อย | BP19: แสดงเป็นรายการหลัก | BT19: 0 | BU19: not_applicable | BV19: [] | BW19: ตรวจรหัส ชื่อ และวงเงินด้วยกฎอัตโนมัติ; ควรเทียบภาพ PDF ก่อนใช้อ้างอิงทางการ | BX19: ไม่ปรากฏในเอกสาร | BY19: ไม่ปรากฏในเอกสาร | BZ19: สำนักส่วนกลาง | CA19: 70018-26-05399-13-1 | CB19: ข้อมูลตั้งงบประมาณปี 2570 ที่แปลงจาก PDF เป็น Machine-Readable; ไม่ใช่ยอดเบิกจ่ายหรือราคาสัญญา
A20: คลองสามวา | B20: สำนักการจราจรและขนส่ง | C20: ติดตั้ง กล้องโทรทัศน์วงจรปิด (CCTV) บริเวณตรอก ซอย ในพื้นที่กลุ่ม กรุงเทพตะวันออก | D20: 9,172,000 | E20: ความปลอดภัยและป้องกันภัย | F20: รายการใช้จ่าย | G20: area_projection | H20: วงเงินรวมของรายการที่กล่าวถึงหลายเขต | I20: วงเงินร่วมหลายพื้นที่: เอกสารไม่แยกวงเงินรายเขต | J20: RAW-70018-45-05399-1-2-46 | K20: BKK70-RAW-70018-45-05399-1-2 | L20: HIER-70018-8a352b769744 | M20: BKK70-HIER-70018-8a352b769744 | N20: RAW-70018-45-05399-1-2-11 | O20: BKK70-RAW-70018-45-05399-1-2 | P20: 05399-1 | Q20: ติดตั้ง กล้องโทรทัศน์วงจรปิด (CCTV) บริเวณตรอก ซอย ในพื้นที่กลุ่ม กรุงเทพตะวันออก | R20: ติดตั้ง กล้องโทรทัศน์วงจรปิด (CCTV) บริเวณตรอก ซอย ในพื้นที่กลุ่ม กรุงเทพตะวันออก — รายละเอียด: บริเวณพื้นที่เขตลาดกระบัง จำนวน 15 จุด รวม 37 กล้อง • บริเวณพื้นที่เขตประเวศ จำนวน 1 จุด รวม 3 กล้อง • บริเวณพื้นที่เขตมีนบุรี จำนวน 16 จุด รวม 38 กล้อง — อยู่ในโครงการติดตั้งกล้องโทรทัศน์วงจรปิด (CCTV) | S20: 70018 - สำนักการจราจรและขนส่ง - งบประมาณ พ.ศ. 2570.pdf | T20: 45 | U20: https://drive.google.com/file/d/1-947x5WJCaV-kwSzaKeO253Y5L4A5IIb/view?usp=drivesdk | W20: FALSE | X20: TRUE | Z20: บริหารหรือดำเนินงาน | AC20: document | AD20: 0 | AE20: 0 | AF20: ปานกลาง | AT20: C | AU20: หลายเขต | AV20: 4 | AW20: line_item | AX20: รายการใช้จ่าย | AY20: child | AZ20: TRUE | BC20: area_projection | BD20: ชื่อสถานที่หรือหน่วยรับงบจากเอกสาร; ยังไม่ยืนยันพิกัด | BG20: 9,172,000 | BH20: 0 | BI20: 0 | BJ20: ค่าที่ดินและสิ่งก่อสร้าง | BK20: 45 | BL20: ค่าที่ดินและสิ่งก่อสร้าง | BM20: ยังไม่ยืนยันความสัมพันธ์งบหลัก–งบย่อย | BN20: 43 | BP20: แสดงเป็นรายการหลัก | BT20: 0 | BU20: not_applicable | BV20: [] | BW20: ตรวจรหัส ชื่อ และวงเงินด้วยกฎอัตโนมัติ; ควรเทียบภาพ PDF ก่อนใช้อ้างอิงทางการ | BX20: ไม่ปรากฏในเอกสาร | BY20: ไม่ปรากฏในเอกสาร | BZ20: สำนักส่วนกลาง | CA20: 70018-45-05399-1-2 | CB20: ข้อมูลตั้งงบประมาณปี 2570 ที่แปลงจาก PDF เป็น Machine-Readable; ไม่ใช่ยอดเบิกจ่ายหรือราคาสัญญา
A21: คลองสามวา | B21: สำนักงานเขตคลองสามวา | C21: ปรับปรุงซอยวัดสุขใจ 22 จากถนนวัดสุขใจ | D21: 1,029,000 | E21: ถนน ทางเท้า และการเดินทาง | F21: รายการหลักจากตารางงบ | H21: รายการในเอกสารสำนักงานเขต | I21: ไม่รวมซ้ำ: ยอดรวมสำนักงานเขตใช้ตัวเลขสรุปหน้า 3 | J21: RAW-70072-56-05313-15-1 | K21: BKK70-RAW-70072-56-05313-15-1 | L21: DHIER-70072-b257033e8ef8 | M21: BKK70-DHIER-70072-b257033e8ef8 | P21: 05313-15 | Q21: (6) ปรับปรุงซอยวัดสุขใจ 22 จากถนนวัดสุขใจ | R21: (6) ปรับปรุงซอยวัดสุขใจ 22 จากถนนวัดสุขใจ — รายละเอียด: ถึงบ้านเลขที่ 49 • ปรับพื้นฐานเดิมบดอัดแน่น เนื้อที่ประมาณ 1,125 ตร.ม. • สร้างชั้นพื้นทาง (BASE COURSE) หินคลุกบดอัดแน่น กว้างประมาณ 6 ม. หรือตามสภาพ หนาเฉลี่ย 0.15 ม. ตามแบบ มท.-01 เนื้อที่ประมาณ 1,125 ตร.ม. — อยู่ในงานบำรุงรักษาซ่อมแซม | S21: 70072 - สำนักงานเขตคลองสามวา - งบประมาณ พ.ศ. 2570.pdf | T21: 56 | U21: https://data.bangkok.go.th/dataset/cd29e51a-3f50-49b1-8423-7c0c68014074/resource/1a2063c9-845f-4a91-a672-d76d37b30871/download/70072-.pdf | W21: FALSE | X21: FALSE | Z21: ก่อสร้างหรือปรับปรุง | AD21: 0 | AE21: 0 | AF21: ปานกลาง | AS21: 05313-15 | AT21: B | AU21: ถนนหรือแนวพื้นที่ | AV21: 3 | AY21: child | AZ21: FALSE | BA21: ไม่ปรากฏในเอกสาร | BC21: budget_code_to_reconstructed_category | BD21: ยังไม่ระบุพิกัด | BG21: 85,078,000 | BH21: 0 | BI21: 0 | BJ21: ค่าที่ดินและสิ่งก่อสร้าง | BK21: 52 | BL21: ค่าที่ดินและสิ่งก่อสร้าง | BM21: งบย่อยรวมตรงกับงบหลัก | BO21: เขตคลองสามวา | BP21: รายการภายในงบหลัก | BT21: 0 | BU21: not_applicable | BV21: [] | BW21: ตรวจรหัส ชื่อ และวงเงินด้วยกฎอัตโนมัติ; ควรเทียบภาพ PDF ก่อนใช้อ้างอิงทางการ | BX21: ไม่ปรากฏในเอกสาร | BY21: ไม่ปรากฏในเอกสาร | BZ21: สำนักงานเขต | CA21: 70072-56-05313-15-1 | CB21: ข้อมูลตั้งงบประมาณปี 2570 ที่แปลงจาก PDF เป็น Machine-Readable; ไม่ใช่ยอดเบิกจ่ายหรือราคาสัญญา
A22: คลองสามวา | B22: สำนักงานเขตคลองสามวา | C22: เครื่องปรับอากาศ แบบแยกส่วน (ราคารวมค่าติดตั้ง) แบบตั้งพื้นหรือแบบแขวน (ระบบ Inverter) ขนาด 36,000 บีทียู 13 เครื่อง (โรงเรียนบ้านหนองระแหง) | D22: 696,800 | E22: การศึกษา | F22: รายการหลักจากตารางงบ | H22: รายการในเอกสารสำนักงานเขต | I22: ไม่รวมซ้ำ: ยอดรวมสำนักงานเขตใช้ตัวเลขสรุปหน้า 3 | J22: RAW-70072-65-05101-4-1 | K22: BKK70-RAW-70072-65-05101-4-1 | L22: RAW-70072-65-line-2-1-1 | M22: BKK70-RAW-70072-65-line-2-1-1 | P22: 05101-4 | Q22: (4) เครื่องปรับอากาศ แบบแยกส่วน (ราคารวมค่าติดตั้ง) แบบตั้งพื้นหรือแบบแขวน (ระบบ Inverter) ขนาด 36,000 บีทียู 13 เครื่อง (โรงเรียนบ้านหนองระแหง) | R22: (4) เครื่องปรับอากาศ แบบแยกส่วน (ราคารวมค่าติดตั้ง) แบบตั้งพื้นหรือแบบแขวน (ระบบ Inverter) ขนาด 36,000 บีทียู 13 เครื่อง (โรงเรียนบ้านหนองระแหง) — อยู่ในงานงบประมาณโรงเรียน | S22: 70072 - สำนักงานเขตคลองสามวา - งบประมาณ พ.ศ. 2570.pdf | T22: 65 | U22: https://data.bangkok.go.th/dataset/cd29e51a-3f50-49b1-8423-7c0c68014074/resource/1a2063c9-845f-4a91-a672-d76d37b30871/download/70072-.pdf | W22: FALSE | X22: FALSE | Z22: จัดซื้อครุภัณฑ์ | AD22: 0 | AE22: 0 | AF22: ปานกลาง | AS22: 05101-4 | AT22: A | AU22: จุดหรืออาคาร | AV22: 3 | AY22: child | AZ22: FALSE | BC22: published_relation | BD22: ชื่อสถานที่หรือหน่วยรับงบจากเอกสาร; ยังไม่ยืนยันพิกัด | BG22: 4,556,675 | BH22: 0 | BI22: 0 | BJ22: ค่าครุภัณฑ์ | BK22: 65 | BL22: ค่าครุภัณฑ์ | BM22: งบย่อยรวมตรงกับงบหลัก | BP22: รายการภายในงบหลัก | BT22: 0 | BU22: not_applicable | BV22: [] | BW22: ตรวจรหัส ชื่อ และวงเงินด้วยกฎอัตโนมัติ; ควรเทียบภาพ PDF ก่อนใช้อ้างอิงทางการ | BX22: ไม่ปรากฏในเอกสาร | BY22: ไม่ปรากฏในเอกสาร | BZ22: สำนักงานเขต | CA22: 70072-65-05101-4-1 | CB22: ข้อมูลตั้งงบประมาณปี 2570 ที่แปลงจาก PDF เป็น Machine-Readable; ไม่ใช่ยอดเบิกจ่ายหรือราคาสัญญา
A23: คันนายาว | B23: สำนักการโยธา | C23: ปรับปรุงถนนสวนสยาม พื้นที่เขตคันนายาว | D23: 33,853,000 | E23: ถนน ทางเท้า และการเดินทาง | F23: รายการใช้จ่าย | G23: canonical | H23: รายการของสำนักส่วนกลางที่ระบุชื่อเขต | I23: รายการจากสำนักส่วนกลาง: ระบุชื่อเขตชัดในเอกสาร | J23: RAW-70014-73-05313-1-1 | K23: BKK70-RAW-70014-73-05313-1-1 | L23: HIER-70014-d79d7aa71996 | M23: BKK70-HIER-70014-d79d7aa71996 | N23: RAW-70014-73-05313-1-1 | O23: BKK70-RAW-70014-73-05313-1-1 | P23: 05313-1 | Q23: ปรับปรุงถนนสวนสยาม พื้นที่เขตคันนายาว | R23: ปรับปรุงถนนสวนสยาม พื้นที่เขตคันนายาว — รายละเอียด: ปรับปรุงผิวจราจร ค.ส.ล. หนา 0.25 ม. ตามแบบรูปและรายการ เนื้อที่ประมาณ 1,600 ตร.ม. • ปรับปรุงทางเท้ากระเบื้องซีเมนต์ปูพื้น ขนาด 0.40x0.40x0.035 ม. Shot Blast • (ผิวไม่เคลือบ) ตามแบบรูปและรายการ — อยู่ในโครงการปรับปรุงถนนสวนสยาม พื้นที่เขตคันนายาว | S23: 70014 - สำนักการโยธา - งบประมาณ พ.ศ. 2570.pdf | T23: 73 | U23: https://drive.google.com/file/d/16Y16ZUrhcuEhxuguxxGQ2TmFH4fxxBaT/view?usp=drivesdk | V23: 33,853,000 | W23: FALSE | X23: FALSE | Z23: ก่อสร้างหรือปรับปรุง | AC23: document | AD23: 0 | AE23: 0 | AF23: ปานกลาง | AT23: B | AU23: ถนนหรือแนวพื้นที่ | AV23: 4 | AW23: line_item | AX23: รายการใช้จ่าย | AY23: child | AZ23: FALSE | BA23: ไม่ปรากฏในเอกสาร | BD23: ยังไม่ระบุพิกัด | BG23: 33,853,000 | BH23: 0 | BI23: 0 | BJ23: ค่าที่ดินและสิ่งก่อสร้าง | BK23: 73 | BL23: ค่าที่ดินและสิ่งก่อสร้าง | BM23: ยังไม่ยืนยันความสัมพันธ์งบหลัก–งบย่อย | BN23: 71 | BO23: เขตคันนายาว | BP23: รายการภายในงบหลัก | BT23: 0 | BU23: not_applicable | BV23: [] | BW23: ตรวจรหัส ชื่อ และวงเงินด้วยกฎอัตโนมัติ; ควรเทียบภาพ PDF ก่อนใช้อ้างอิงทางการ | BX23: ไม่ปรากฏในเอกสาร | BY23: ไม่ปรากฏในเอกสาร | BZ23: สำนักส่วนกลาง | CA23: 70014-73-05313-1-1 | CB23: ข้อมูลตั้งงบประมาณปี 2570 ที่แปลงจาก PDF เป็น Machine-Readable; ไม่ใช่ยอดเบิกจ่ายหรือราคาสัญญา | CC23: 71
A24: คันนายาว | B24: สำนักการจราจรและขนส่ง | C24: ติดตั้ง กล้องโทรทัศน์วงจรปิด (CCTV) แนวถนนสายหลักในพื้นที่กลุ่ม กรุงเทพตะวันออก | D24: 10,464,000 | E24: ถนน ทางเท้า และการเดินทาง | F24: รายการใช้จ่าย | G24: area_projection | H24: วงเงินรวมของรายการที่กล่าวถึงหลายเขต | I24: วงเงินร่วมหลายพื้นที่: เอกสารไม่แยกวงเงินรายเขต | J24: RAW-70018-29-05399-28-1-43 | K24: BKK70-RAW-70018-29-05399-28-1 | L24: RAW-70018-24-line-2-1-2-1 | M24: BKK70-RAW-70018-24-line-2-1-2-1 | N24: RAW-70018-29-05399-28-1-11 | O24: BKK70-RAW-70018-29-05399-28-1 | P24: 05399-28 | Q24: (16) ติดตั้ง กล้องโทรทัศน์วงจรปิด (CCTV) แนวถนนสายหลักในพื้นที่กลุ่ม กรุงเทพตะวันออก | R24: (16) ติดตั้ง กล้องโทรทัศน์วงจรปิด (CCTV) แนวถนนสายหลักในพื้นที่กลุ่ม กรุงเทพตะวันออก — รายละเอียด: บริเวณพื้นที่เขตลาดกระบัง จำนวน 8 จุด รวม 16 กล้อง • บริเวณพื้นที่เขตประเวศ จำนวน 2 จุด รวม 4 กล้อง • บริเวณพื้นที่เขตสะพานสูง จำนวน 4 จุด รวม 10 กล้อง — อยู่ในผลผลิตโครงข่ายการจราจร | S24: 70018 - สำนักการจราจรและขนส่ง - งบประมาณ พ.ศ. 2570.pdf | T24: 29 | U24: https://drive.google.com/file/d/1-947x5WJCaV-kwSzaKeO253Y5L4A5IIb/view?usp=drivesdk | W24: FALSE | X24: TRUE | Z24: บริหารหรือดำเนินงาน | AC24: document | AD24: 0 | AE24: 0 | AF24: ปานกลาง | AT24: B | AU24: ถนนหรือแนวพื้นที่ | AV24: 4 | AW24: line_item | AX24: รายการใช้จ่าย | AY24: child | AZ24: TRUE | BC24: area_projection | BD24: ชื่อสถานที่หรือหน่วยรับงบจากเอกสาร; ยังไม่ยืนยันพิกัด | BG24: 305,613,700 | BH24: 0 | BI24: 0 | BJ24: ค่าที่ดินและสิ่งก่อสร้าง | BK24: 24 | BL24: ค่าที่ดินและสิ่งก่อสร้าง | BM24: ยังไม่ยืนยันความสัมพันธ์งบหลัก–งบย่อย | BP24: แสดงเป็นรายการหลัก | BT24: 0 | BU24: not_applicable | BV24: [] | BW24: ตรวจรหัส ชื่อ และวงเงินด้วยกฎอัตโนมัติ; ควรเทียบภาพ PDF ก่อนใช้อ้างอิงทางการ | BX24: ไม่ปรากฏในเอกสาร | BY24: ไม่ปรากฏในเอกสาร | BZ24: สำนักส่วนกลาง | CA24: 70018-29-05399-28-1 | CB24: ข้อมูลตั้งงบประมาณปี 2570 ที่แปลงจาก PDF เป็น Machine-Readable; ไม่ใช่ยอดเบิกจ่ายหรือราคาสัญญา
A25: คันนายาว | B25: สำนักการจราจรและขนส่ง | C25: ติดตั้ง กล้องโทรทัศน์วงจรปิด (CCTV) บริเวณตรอก ซอย ในพื้นที่กลุ่ม กรุงเทพตะวันออก | D25: 9,172,000 | E25: ความปลอดภัยและป้องกันภัย | F25: รายการใช้จ่าย | G25: area_projection | H25: วงเงินรวมของรายการที่กล่าวถึงหลายเขต | I25: วงเงินร่วมหลายพื้นที่: เอกสารไม่แยกวงเงินรายเขต | J25: RAW-70018-45-05399-1-2-43 | K25: BKK70-RAW-70018-45-05399-1-2 | L25: HIER-70018-8a352b769744 | M25: BKK70-HIER-70018-8a352b769744 | N25: RAW-70018-45-05399-1-2-11 | O25: BKK70-RAW-70018-45-05399-1-2 | P25: 05399-1 | Q25: ติดตั้ง กล้องโทรทัศน์วงจรปิด (CCTV) บริเวณตรอก ซอย ในพื้นที่กลุ่ม กรุงเทพตะวันออก | R25: ติดตั้ง กล้องโทรทัศน์วงจรปิด (CCTV) บริเวณตรอก ซอย ในพื้นที่กลุ่ม กรุงเทพตะวันออก — รายละเอียด: บริเวณพื้นที่เขตลาดกระบัง จำนวน 15 จุด รวม 37 กล้อง • บริเวณพื้นที่เขตประเวศ จำนวน 1 จุด รวม 3 กล้อง • บริเวณพื้นที่เขตมีนบุรี จำนวน 16 จุด รวม 38 กล้อง — อยู่ในโครงการติดตั้งกล้องโทรทัศน์วงจรปิด (CCTV) | S25: 70018 - สำนักการจราจรและขนส่ง - งบประมาณ พ.ศ. 2570.pdf | T25: 45 | U25: https://drive.google.com/file/d/1-947x5WJCaV-kwSzaKeO253Y5L4A5IIb/view?usp=drivesdk | W25: FALSE | X25: TRUE | Z25: บริหารหรือดำเนินงาน | AC25: document | AD25: 0 | AE25: 0 | AF25: ปานกลาง | AT25: C | AU25: หลายเขต | AV25: 4 | AW25: line_item | AX25: รายการใช้จ่าย | AY25: child | AZ25: TRUE | BC25: area_projection | BD25: ชื่อสถานที่หรือหน่วยรับงบจากเอกสาร; ยังไม่ยืนยันพิกัด | BG25: 9,172,000 | BH25: 0 | BI25: 0 | BJ25: ค่าที่ดินและสิ่งก่อสร้าง | BK25: 45 | BL25: ค่าที่ดินและสิ่งก่อสร้าง | BM25: ยังไม่ยืนยันความสัมพันธ์งบหลัก–งบย่อย | BN25: 43 | BP25: แสดงเป็นรายการหลัก | BT25: 0 | BU25: not_applicable | BV25: [] | BW25: ตรวจรหัส ชื่อ และวงเงินด้วยกฎอัตโนมัติ; ควรเทียบภาพ PDF ก่อนใช้อ้างอิงทางการ | BX25: ไม่ปรากฏในเอกสาร | BY25: ไม่ปรากฏในเอกสาร | BZ25: สำนักส่วนกลาง | CA25: 70018-45-05399-1-2 | CB25: ข้อมูลตั้งงบประมาณปี 2570 ที่แปลงจาก PDF เป็น Machine-Readable; ไม่ใช่ยอดเบิกจ่ายหรือราคาสัญญา
A26: คันนายาว | B26: สำนักงานเขตคันนายาว | C26: โต๊ะเรียนและเก้าอี้เรียน (มอก.) ระดับ 4 สำหรับ ชั้น ป.1 - ป.4 150 ชุด (โรงเรียนจินดาบำรุง) | D26: 237,000 | E26: การศึกษา | F26: รายการหลักจากตารางงบ | H26: รายการในเอกสารสำนักงานเขต | I26: ไม่รวมซ้ำ: ยอดรวมสำนักงานเขตใช้ตัวเลขสรุปหน้า 3 | J26: RAW-70069-74-05198-2-1 | K26: BKK70-RAW-70069-74-05198-2-1 | L26: RAW-70069-74-line-2-1-1 | M26: BKK70-RAW-70069-74-line-2-1-1 | P26: 05198-2 | Q26: (3) โต๊ะเรียนและเก้าอี้เรียน (มอก.) ระดับ 4 สำหรับ ชั้น ป.1 - ป.4 150 ชุด (โรงเรียนจินดาบำรุง) | R26: (3) โต๊ะเรียนและเก้าอี้เรียน (มอก.) ระดับ 4 สำหรับ ชั้น ป.1 - ป.4 150 ชุด (โรงเรียนจินดาบำรุง) — อยู่ในงานงบประมาณโรงเรียน | S26: 70069 - สำนักงานเขตคันนายาว - งบประมาณ พ.ศ. 2570.pdf | T26: 74 | U26: https://data.bangkok.go.th/dataset/cd29e51a-3f50-49b1-8423-7c0c68014074/resource/d5b85257-3ac1-4da6-85ed-30fe4ef39ee0/download/70069-.pdf | W26: FALSE | X26: FALSE | Z26: บริหารหรือดำเนินงาน | AD26: 0 | AE26: 0 | AF26: ปานกลาง | AS26: 05198-2 | AT26: A | AU26: จุดหรืออาคาร | AV26: 3 | AY26: child | AZ26: FALSE | BC26: published_relation | BD26: ชื่อสถานที่หรือหน่วยรับงบจากเอกสาร; ยังไม่ยืนยันพิกัด | BG26: 542,280 | BH26: 0 | BI26: 0 | BJ26: ค่าครุภัณฑ์ | BK26: 74 | BL26: ค่าครุภัณฑ์ | BM26: งบย่อยรวมตรงกับงบหลัก | BP26: รายการภายในงบหลัก | BT26: 0 | BU26: not_applicable | BV26: [] | BW26: ตรวจรหัส ชื่อ และวงเงินด้วยกฎอัตโนมัติ; ควรเทียบภาพ PDF ก่อนใช้อ้างอิงทางการ | BX26: ไม่ปรากฏในเอกสาร | BY26: ไม่ปรากฏในเอกสาร | BZ26: สำนักงานเขต | CA26: 70069-74-05198-2-1 | CB26: ข้อมูลตั้งงบประมาณปี 2570 ที่แปลงจาก PDF เป็น Machine-Readable; ไม่ใช่ยอดเบิกจ่ายหรือราคาสัญญา
A27: คันนายาว | B27: สำนักงานเขตคันนายาว | C27: เครื่องพิมพ์สำเนาระบบดิจิทัล ความละเอียด 300 x 400 จุดต่อตารางนิ้ว 1 เครื่อง (โรงเรียนคันนายาว) | D27: 117,000 | E27: การศึกษา | F27: รายการหลักจากตารางงบ | H27: รายการในเอกสารสำนักงานเขต | I27: ไม่รวมซ้ำ: ยอดรวมสำนักงานเขตใช้ตัวเลขสรุปหน้า 3 | J27: RAW-70069-74-05199-3-1 | K27: BKK70-RAW-70069-74-05199-3-1 | L27: RAW-70069-74-line-2-1-1 | M27: BKK70-RAW-70069-74-line-2-1-1 | P27: 05199-3 | Q27: (4) เครื่องพิมพ์สำเนาระบบดิจิทัล ความละเอียด 300 x 400 จุดต่อตารางนิ้ว 1 เครื่อง (โรงเรียนคันนายาว) | R27: (4) เครื่องพิมพ์สำเนาระบบดิจิทัล ความละเอียด 300 x 400 จุดต่อตารางนิ้ว 1 เครื่อง (โรงเรียนคันนายาว) — อยู่ในงานงบประมาณโรงเรียน | S27: 70069 - สำนักงานเขตคันนายาว - งบประมาณ พ.ศ. 2570.pdf | T27: 74 | U27: https://data.bangkok.go.th/dataset/cd29e51a-3f50-49b1-8423-7c0c68014074/resource/d5b85257-3ac1-4da6-85ed-30fe4ef39ee0/download/70069-.pdf | W27: FALSE | X27: FALSE | Z27: จัดซื้อครุภัณฑ์ | AD27: 0 | AE27: 0 | AF27: ปานกลาง | AS27: 05199-3 | AT27: A | AU27: จุดหรืออาคาร | AV27: 3 | AY27: child | AZ27: FALSE | BC27: published_relation | BD27: ชื่อสถานที่หรือหน่วยรับงบจากเอกสาร; ยังไม่ยืนยันพิกัด | BG27: 542,280 | BH27: 0 | BI27: 0 | BJ27: ค่าครุภัณฑ์ | BK27: 74 | BL27: ค่าครุภัณฑ์ | BM27: งบย่อยรวมตรงกับงบหลัก | BP27: รายการภายในงบหลัก | BT27: 0 | BU27: not_applicable | BV27: [] | BW27: ตรวจรหัส ชื่อ และวงเงินด้วยกฎอัตโนมัติ; ควรเทียบภาพ PDF ก่อนใช้อ้างอิงทางการ | BX27: ไม่ปรากฏในเอกสาร | BY27: ไม่ปรากฏในเอกสาร | BZ27: สำนักงานเขต | CA27: 70069-74-05199-3-1 | CB27: ข้อมูลตั้งงบประมาณปี 2570 ที่แปลงจาก PDF เป็น Machine-Readable; ไม่ใช่ยอดเบิกจ่ายหรือราคาสัญญา
A28: คันนายาว | B28: สำนักงานเขตคันนายาว | C28: พัดลมติดผนัง ขนาด 18 นิ้ว 52 เครื่อง (โรงเรียนคันนายาว) | D28: 98,280 | E28: การศึกษา | F28: รายการหลักจากตารางงบ | H28: รายการในเอกสารสำนักงานเขต | I28: ไม่รวมซ้ำ: ยอดรวมสำนักงานเขตใช้ตัวเลขสรุปหน้า 3 | J28: RAW-70069-74-05104-1-1 | K28: BKK70-RAW-70069-74-05104-1-1 | L28: RAW-70069-74-line-2-1-1 | M28: BKK70-RAW-70069-74-line-2-1-1 | P28: 05104-1 | Q28: (1) พัดลมติดผนัง ขนาด 18 นิ้ว 52 เครื่อง (โรงเรียนคันนายาว) | R28: (1) พัดลมติดผนัง ขนาด 18 นิ้ว 52 เครื่อง (โรงเรียนคันนายาว) — อยู่ในงานงบประมาณโรงเรียน | S28: 70069 - สำนักงานเขตคันนายาว - งบประมาณ พ.ศ. 2570.pdf | T28: 74 | U28: https://data.bangkok.go.th/dataset/cd29e51a-3f50-49b1-8423-7c0c68014074/resource/d5b85257-3ac1-4da6-85ed-30fe4ef39ee0/download/70069-.pdf | W28: FALSE | X28: FALSE | Z28: จัดซื้อครุภัณฑ์ | AD28: 0 | AE28: 0 | AF28: ปานกลาง | AS28: 05104-1 | AT28: A | AU28: จุดหรืออาคาร | AV28: 3 | AY28: child | AZ28: FALSE | BC28: published_relation | BD28: ชื่อสถานที่หรือหน่วยรับงบจากเอกสาร; ยังไม่ยืนยันพิกัด | BG28: 542,280 | BH28: 0 | BI28: 0 | BJ28: ค่าครุภัณฑ์ | BK28: 74 | BL28: ค่าครุภัณฑ์ | BM28: งบย่อยรวมตรงกับงบหลัก | BP28: รายการภายในงบหลัก | BT28: 0 | BU28: not_applicable | BV28: [] | BW28: ตรวจรหัส ชื่อ และวงเงินด้วยกฎอัตโนมัติ; ควรเทียบภาพ PDF ก่อนใช้อ้างอิงทางการ | BX28: ไม่ปรากฏในเอกสาร | BY28: ไม่ปรากฏในเอกสาร | BZ28: สำนักงานเขต | CA28: 70069-74-05104-1-1 | CB28: ข้อมูลตั้งงบประมาณปี 2570 ที่แปลงจาก PDF เป็น Machine-Readable; ไม่ใช่ยอดเบิกจ่ายหรือราคาสัญญา
A29: จตุจักร | B29: สำนักงานเขตจตุจักร | C29: ก่อสร้างเขื่อน ค.ส.ล. คลองลาดยาว จากถนนงามวงศ์วานถึงคลองบางเขน | D29: 14,189,300 | E29: ระบายน้ำและป้องกันน้ำท่วม | F29: รายการหลักจากตารางงบ | H29: รายการในเอกสารสำนักงานเขต | I29: ไม่รวมซ้ำ: ยอดรวมสำนักงานเขตใช้ตัวเลขสรุปหน้า 3 | J29: RAW-70052-53-05315-1-1 | K29: BKK70-RAW-70052-53-05315-1-1 | L29: DHIER-70052-eadf96077e4d | M29: BKK70-DHIER-70052-eadf96077e4d | P29: 05315-1 | Q29: ก่อสร้างเขื่อน ค.ส.ล. คลองลาดยาว จากถนนงามวงศ์วานถึงคลองบางเขน | R29: ก่อสร้างเขื่อน ค.ส.ล. คลองลาดยาว จากถนนงามวงศ์วานถึงคลองบางเขน — รายละเอียด: สร้างเขื่อน ค.ส.ล. ตามแบบ KL-5601 (KL-4) ความยาวประมาณ 20 ม. • สร้างเขื่อน ค.ส.ล. ตามแบบ KA-5601 (KA-1) ความยาวประมาณ 1,180 ม. — อยู่ในโครงการก่อสร้างเขื่อน ค.ส.ล. คลองลาดยาว จากถนนงามวงศ์วานถึงคลองบางเขน | S29: 70052 - สำนักงานเขตจตุจักร - งบประมาณ พ.ศ. 2570.pdf | T29: 53 | U29: https://data.bangkok.go.th/dataset/cd29e51a-3f50-49b1-8423-7c0c68014074/resource/333c072f-d81a-4582-8c53-eee5a6b4bb50/download/70052-.pdf | W29: FALSE | X29: FALSE | Z29: ก่อสร้างหรือปรับปรุง | AD29: 0 | AE29: 0 | AF29: ปานกลาง | AS29: 05315-1 | AT29: B | AU29: ถนนหรือแนวพื้นที่ | AV29: 3 | AY29: child | AZ29: FALSE | BA29: ไม่ปรากฏในเอกสาร | BC29: budget_code_to_reconstructed_category | BD29: ยังไม่ระบุพิกัด | BG29: 14,189,300 | BH29: 0 | BI29: 0 | BJ29: ค่าที่ดินและสิ่งก่อสร้าง | BK29: 53 | BL29: ค่าที่ดินและสิ่งก่อสร้าง | BM29: งบย่อยรวมตรงกับงบหลัก | BO29: เขตจตุจักร | BP29: รายการภายในงบหลัก | BT29: 0 | BU29: not_applicable | BV29: [] | BW29: ตรวจรหัส ชื่อ และวงเงินด้วยกฎอัตโนมัติ; ควรเทียบภาพ PDF ก่อนใช้อ้างอิงทางการ | BX29: ไม่ปรากฏในเอกสาร | BY29: ไม่ปรากฏในเอกสาร | BZ29: สำนักงานเขต | CA29: 70052-53-05315-1-1 | CB29: ข้อมูลตั้งงบประมาณปี 2570 ที่แปลงจาก PDF เป็น Machine-Readable; ไม่ใช่ยอดเบิกจ่ายหรือราคาสัญญา
A30: จตุจักร | B30: สำนักงานเขตจตุจักร | C30: ปรับปรุงซอยลาดพร้าว 1 จากถนนลาดพร้าวถึงท้ายซอยลาดพร้าว 1 | D30: 9,270,000 | E30: ระบายน้ำและป้องกันน้ำท่วม | F30: รายการหลักจากตารางงบ | H30: รายการในเอกสารสำนักงานเขต | I30: ไม่รวมซ้ำ: ยอดรวมสำนักงานเขตใช้ตัวเลขสรุปหน้า 3 | J30: RAW-70052-51-05313-9-1 | K30: BKK70-RAW-70052-51-05313-9-1 | L30: DHIER-70052-4df3ffab5e04 | M30: BKK70-DHIER-70052-4df3ffab5e04 | P30: 05313-9 | Q30: (7) ปรับปรุงซอยลาดพร้าว 1 จากถนนลาดพร้าวถึงท้ายซอยลาดพร้าว 1 | R30: (7) ปรับปรุงซอยลาดพร้าว 1 จากถนนลาดพร้าวถึงท้ายซอยลาดพร้าว 1 — รายละเอียด: งานบ่อพักท่อระบายน้ำในผิวจราจร • เสริมขอบบ่อพัก ค.ส.ล. ตามแบบ มนก.-01 จำนวน 145 บ่อ • ฝาบ่อพักรางวีเหล็กหล่อ ตามแบบ มนก.-01 จำนวน 145 ฝา — อยู่ในงานบำรุงรักษาซ่อมแซม | S30: 70052 - สำนักงานเขตจตุจักร - งบประมาณ พ.ศ. 2570.pdf | T30: 51 | U30: https://data.bangkok.go.th/dataset/cd29e51a-3f50-49b1-8423-7c0c68014074/resource/333c072f-d81a-4582-8c53-eee5a6b4bb50/download/70052-.pdf | W30: FALSE | X30: FALSE | Z30: ก่อสร้างหรือปรับปรุง | AD30: 0 | AE30: 0 | AF30: ปานกลาง | AS30: 05313-9 | AT30: B | AU30: ถนนหรือแนวพื้นที่ | AV30: 3 | AY30: child | AZ30: FALSE | BA30: ไม่ปรากฏในเอกสาร | BC30: budget_code_to_reconstructed_category | BD30: ยังไม่ระบุพิกัด | BG30: 112,830,000 | BH30: 0 | BI30: 0 | BJ30: ค่าที่ดินและสิ่งก่อสร้าง | BK30: 46 | BL30: ค่าที่ดินและสิ่งก่อสร้าง | BM30: งบย่อยรวมตรงกับงบหลัก | BO30: เขตจตุจักร | BP30: รายการภายในงบหลัก | BT30: 0 | BU30: not_applicable | BV30: [] | BW30: ตรวจรหัส ชื่อ และวงเงินด้วยกฎอัตโนมัติ; ควรเทียบภาพ PDF ก่อนใช้อ้างอิงทางการ | BX30: ไม่ปรากฏในเอกสาร | BY30: ไม่ปรากฏในเอกสาร | BZ30: สำนักงานเขต | CA30: 70052-51-05313-9-1 | CB30: ข้อมูลตั้งงบประมาณปี 2570 ที่แปลงจาก PDF เป็น Machine-Readable; ไม่ใช่ยอดเบิกจ่ายหรือราคาสัญญา
A31: จตุจักร | B31: สำนักการจราจรและขนส่ง | C31: ติดตั้ง กล้องโทรทัศน์วงจรปิด (CCTV) แนวถนนสายหลักในพื้นที่กลุ่ม กรุงเทพเหนือ | D31: 8,510,000 | E31: ถนน ทางเท้า และการเดินทาง | F31: รายการใช้จ่าย | G31: canonical | H31: วงเงินรวมของรายการที่กล่าวถึงหลายเขต | I31: วงเงินร่วมหลายพื้นที่: เอกสารไม่แยกวงเงินรายเขต | J31: RAW-70018-29-05399-31-1-26 | K31: BKK70-RAW-70018-29-05399-31-1 | L31: RAW-70018-24-line-2-1-2-1 | M31: BKK70-RAW-70018-24-line-2-1-2-1 | N31: RAW-70018-29-05399-31-1-26 | O31: BKK70-RAW-70018-29-05399-31-1 | P31: 05399-31 | Q31: (19) ติดตั้ง กล้องโทรทัศน์วงจรปิด (CCTV) แนวถนนสายหลักในพื้นที่กลุ่ม กรุงเทพเหนือ | R31: (19) ติดตั้ง กล้องโทรทัศน์วงจรปิด (CCTV) แนวถนนสายหลักในพื้นที่กลุ่ม กรุงเทพเหนือ — รายละเอียด: บริเวณพื้นที่เขตจตุจักร จำนวน 34 จุด รวม 84 กล้อง • บริเวณพื้นที่เขตหลักสี่ จำนวน 16 จุด รวม 37 กล้อง — อยู่ในผลผลิตโครงข่ายการจราจร | S31: 70018 - สำนักการจราจรและขนส่ง - งบประมาณ พ.ศ. 2570.pdf | T31: 29 | U31: https://drive.google.com/file/d/1-947x5WJCaV-kwSzaKeO253Y5L4A5IIb/view?usp=drivesdk | W31: FALSE | X31: TRUE | Z31: บริหารหรือดำเนินงาน | AC31: document | AD31: 0 | AE31: 0 | AF31: ปานกลาง | AT31: B | AU31: ถนนหรือแนวพื้นที่ | AV31: 4 | AW31: line_item | AX31: รายการใช้จ่าย | AY31: child | AZ31: FALSE | BD31: ชื่อสถานที่หรือหน่วยรับงบจากเอกสาร; ยังไม่ยืนยันพิกัด | BG31: 305,613,700 | BH31: 0 | BI31: 0 | BJ31: ค่าที่ดินและสิ่งก่อสร้าง | BK31: 24 | BL31: ค่าที่ดินและสิ่งก่อสร้าง | BM31: ยังไม่ยืนยันความสัมพันธ์งบหลัก–งบย่อย | BP31: รายการภายในงบหลัก | BT31: 0 | BU31: not_applicable | BV31: [] | BW31: ตรวจรหัส ชื่อ และวงเงินด้วยกฎอัตโนมัติ; ควรเทียบภาพ PDF ก่อนใช้อ้างอิงทางการ | BX31: ไม่ปรากฏในเอกสาร | BY31: ไม่ปรากฏในเอกสาร | BZ31: สำนักส่วนกลาง | CA31: 70018-29-05399-31-1 | CB31: ข้อมูลตั้งงบประมาณปี 2570 ที่แปลงจาก PDF เป็น Machine-Readable; ไม่ใช่ยอดเบิกจ่ายหรือราคาสัญญา | CC31: 27
A32: จตุจักร | B32: สำนักการจราจรและขนส่ง | C32: ติดตั้ง กล้องโทรทัศน์วงจรปิด (CCTV) บริเวณตรอก ซอย ในพื้นที่กลุ่ม กรุงเทพเหนือ | D32: 7,345,000 | E32: ถนน ทางเท้า และการเดินทาง | F32: รายการใช้จ่าย | G32: area_projection | H32: วงเงินรวมของรายการที่กล่าวถึงหลายเขต | I32: วงเงินร่วมหลายพื้นที่: เอกสารไม่แยกวงเงินรายเขต | J32: RAW-70018-44-05399-1-2-26 | K32: BKK70-RAW-70018-44-05399-1-2 | L32: HIER-70018-9a2955e7705e | M32: BKK70-HIER-70018-9a2955e7705e | N32: RAW-70018-44-05399-1-2-12 | O32: BKK70-RAW-70018-44-05399-1-2 | P32: 05399-1 | Q32: ติดตั้ง กล้องโทรทัศน์วงจรปิด (CCTV) บริเวณตรอก ซอย ในพื้นที่กลุ่ม กรุงเทพเหนือ | R32: ติดตั้ง กล้องโทรทัศน์วงจรปิด (CCTV) บริเวณตรอก ซอย ในพื้นที่กลุ่ม กรุงเทพเหนือ — รายละเอียด: บริเวณพื้นที่เขตจตุจักร จำนวน 10 จุด รวม 30 กล้อง • บริเวณพื้นที่เขตดอนเมือง จำนวน 11 จุด รวม 33 กล้อง • บริเวณพื้นที่เขตลาดพร้าว จำนวน 11 จุด รวม 33 กล้อง — อยู่ในโครงการติดตั้งกล้องโทรทัศน์วงจรปิด (CCTV) | S32: 70018 - สำนักการจราจรและขนส่ง - งบประมาณ พ.ศ. 2570.pdf | T32: 44 | U32: https://drive.google.com/file/d/1-947x5WJCaV-kwSzaKeO253Y5L4A5IIb/view?usp=drivesdk | W32: FALSE | X32: TRUE | Z32: บริหารหรือดำเนินงาน | AC32: document | AD32: 0 | AE32: 0 | AF32: ปานกลาง | AT32: C | AU32: หลายเขต | AV32: 4 | AW32: line_item | AX32: รายการใช้จ่าย | AY32: child | AZ32: TRUE | BC32: area_projection | BD32: ชื่อสถานที่หรือหน่วยรับงบจากเอกสาร; ยังไม่ยืนยันพิกัด | BG32: 7,345,000 | BH32: 0 | BI32: 0 | BJ32: ค่าที่ดินและสิ่งก่อสร้าง | BK32: 44 | BL32: ค่าที่ดินและสิ่งก่อสร้าง | BM32: ยังไม่ยืนยันความสัมพันธ์งบหลัก–งบย่อย | BN32: 42 | BP32: แสดงเป็นรายการหลัก | BT32: 0 | BU32: not_applicable | BV32: [] | BW32: ตรวจรหัส ชื่อ และวงเงินด้วยกฎอัตโนมัติ; ควรเทียบภาพ PDF ก่อนใช้อ้างอิงทางการ | BX32: ไม่ปรากฏในเอกสาร | BY32: ไม่ปรากฏในเอกสาร | BZ32: สำนักส่วนกลาง | CA32: 70018-44-05399-1-2 | CB32: ข้อมูลตั้งงบประมาณปี 2570 ที่แปลงจาก PDF เป็น Machine-Readable; ไม่ใช่ยอดเบิกจ่ายหรือราคาสัญญา
A33: จตุจักร | B33: สำนักงานเขตจตุจักร | C33: ปรับปรุงซอยลาดพร้าว 41 จากคลองน้ำแก้วถึงซอยลาดพร้าว 41 แยก 8 | D33: 6,130,000 | E33: ระบายน้ำและป้องกันน้ำท่วม | F33: รายการหลักจากตารางงบ | H33: รายการในเอกสารสำนักงานเขต | I33: ไม่รวมซ้ำ: ยอดรวมสำนักงานเขตใช้ตัวเลขสรุปหน้า 3 | J33: RAW-70052-51-05313-10-1 | K33: BKK70-RAW-70052-51-05313-10-1 | L33: DHIER-70052-4df3ffab5e04 | M33: BKK70-DHIER-70052-4df3ffab5e04 | P33: 05313-10 | Q33: (8) ปรับปรุงซอยลาดพร้าว 41 จากคลองน้ำแก้วถึงซอยลาดพร้าว 41 แยก 8 | R33: (8) ปรับปรุงซอยลาดพร้าว 41 จากคลองน้ำแก้วถึงซอยลาดพร้าว 41 แยก 8 — รายละเอียด: งานบ่อพักท่อระบายน้ำในผิวจราจร • รื้อรางวี ค.ส.ล. เดิม ยาวประมาณ 1,000 ม. • สร้างรางวี ค.ส.ล. สำหรับผิวทางหนา 0.15 ม. ตามแบบมน.-01 ยาวประมาณ 1,000 ม. — อยู่ในงานบำรุงรักษาซ่อมแซม | S33: 70052 - สำนักงานเขตจตุจักร - งบประมาณ พ.ศ. 2570.pdf | T33: 51 | U33: https://data.bangkok.go.th/dataset/cd29e51a-3f50-49b1-8423-7c0c68014074/resource/333c072f-d81a-4582-8c53-eee5a6b4bb50/download/70052-.pdf | W33: FALSE | X33: FALSE | Z33: ก่อสร้างหรือปรับปรุง | AD33: 0 | AE33: 0 | AF33: ปานกลาง | AS33: 05313-10 | AT33: B | AU33: ถนนหรือแนวพื้นที่ | AV33: 3 | AY33: child | AZ33: FALSE | BA33: ไม่ปรากฏในเอกสาร | BC33: budget_code_to_reconstructed_category | BD33: ยังไม่ระบุพิกัด | BG33: 112,830,000 | BH33: 0 | BI33: 0 | BJ33: ค่าที่ดินและสิ่งก่อสร้าง | BK33: 46 | BL33: ค่าที่ดินและสิ่งก่อสร้าง | BM33: งบย่อยรวมตรงกับงบหลัก | BO33: เขตจตุจักร | BP33: รายการภายในงบหลัก | BT33: 0 | BU33: not_applicable | BV33: [] | BW33: ตรวจรหัส ชื่อ และวงเงินด้วยกฎอัตโนมัติ; ควรเทียบภาพ PDF ก่อนใช้อ้างอิงทางการ | BX33: ไม่ปรากฏในเอกสาร | BY33: ไม่ปรากฏในเอกสาร | BZ33: สำนักงานเขต | CA33: 70052-51-05313-10-1 | CB33: ข้อมูลตั้งงบประมาณปี 2570 ที่แปลงจาก PDF เป็น Machine-Readable; ไม่ใช่ยอดเบิกจ่ายหรือราคาสัญญา
A34: จอมทอง | B34: สำนักงานเขตจอมทอง | C34: ก่อสร้างเขื่อน ค.ส.ล. (ดาดท้องคลอง) ลำกระโดงข้างหมู่บ้านเนอวานา 1 จากคลองบางหว้า ถึงคลองรางบัว (จอมทอง) | D34: 25,486,000 | E34: ระบายน้ำและป้องกันน้ำท่วม | F34: รายการหลักจากตารางงบ | H34: รายการในเอกสารสำนักงานเขต | I34: ไม่รวมซ้ำ: ยอดรวมสำนักงานเขตใช้ตัวเลขสรุปหน้า 3 | J34: RAW-70062-53-05315-1-1 | K34: BKK70-RAW-70062-53-05315-1-1 | L34: DHIER-70062-d13df0fdf9dc | M34: BKK70-DHIER-70062-d13df0fdf9dc | P34: 05315-1 | Q34: (1) ก่อสร้างเขื่อน ค.ส.ล. (ดาดท้องคลอง) ลำกระโดงข้างหมู่บ้านเนอวานา 1 จากคลองบางหว้า ถึงคลองรางบัว (จอมทอง) | R34: (1) ก่อสร้างเขื่อน ค.ส.ล. (ดาดท้องคลอง) ลำกระโดงข้างหมู่บ้านเนอวานา 1 จากคลองบางหว้า ถึงคลองรางบัว (จอมทอง) — รายละเอียด: ก่อสร้างเขื่อน ค.ส.ล. (ดาดท้องคลอง) ตามแบบ AB.9.50003-02 • ก่อสร้างเขื่อน ค.ส.ล. (ไม่มีทางเดินหลังเขื่อน) ตามแบบ AB.9.50003-02 ความยาวรวม 2 ฝั่ง ยาวประมาณ 1,200 ม. • ก่อสร้างดาดท้องคลอง ตามแบบ AB.9.50003-02 พื้นที่ประมาณ 2,700 ตร.ม. — อยู่ในงานระบายน้ำและแก้ไขปัญหาน้ำท่วม | S34: 70062 - สำนักงานเขตจอมทอง - งบประมาณ พ.ศ. 2570.pdf | T34: 53 | U34: https://data.bangkok.go.th/dataset/cd29e51a-3f50-49b1-8423-7c0c68014074/resource/7277a583-607b-4283-b7fb-84a62ad5b4de/download/70062-.pdf | W34: FALSE | X34: FALSE | Z34: ก่อสร้างหรือปรับปรุง | AD34: 0 | AE34: 0 | AF34: ปานกลาง | AS34: 05315-1 | AT34: B | AU34: ถนนหรือแนวพื้นที่ | AV34: 3 | AY34: child | AZ34: FALSE | BA34: ไม่ปรากฏในเอกสาร | BC34: budget_code_to_reconstructed_category | BD34: ยังไม่ระบุพิกัด | BG34: 46,272,000 | BH34: 0 | BI34: 0 | BJ34: ค่าที่ดินและสิ่งก่อสร้าง | BK34: 53 | BL34: ค่าที่ดินและสิ่งก่อสร้าง | BM34: งบย่อยรวมตรงกับงบหลัก | BO34: เขตจอมทอง | BP34: รายการภายในงบหลัก | BT34: 0 | BU34: not_applicable | BV34: [] | BW34: ตรวจรหัส ชื่อ และวงเงินด้วยกฎอัตโนมัติ; ควรเทียบภาพ PDF ก่อนใช้อ้างอิงทางการ | BX34: ไม่ปรากฏในเอกสาร | BY34: ไม่ปรากฏในเอกสาร | BZ34: สำนักงานเขต | CA34: 70062-53-05315-1-1 | CB34: ข้อมูลตั้งงบประมาณปี 2570 ที่แปลงจาก PDF เป็น Machine-Readable; ไม่ใช่ยอดเบิกจ่ายหรือราคาสัญญา
A35: จอมทอง | B35: สำนักการจราจรและขนส่ง | C35: ติดตั้ง กล้องโทรทัศน์วงจรปิด (CCTV) บริเวณตรอก ซอย ในพื้นที่กลุ่ม กรุงธนเหนือ | D35: 9,163,000 | E35: ความปลอดภัยและป้องกันภัย | F35: รายการใช้จ่าย | G35: area_projection | H35: วงเงินรวมหลายเขต ไม่แยกรายเขต | I35: วงเงินร่วมหลายพื้นที่: เอกสารไม่แยกวงเงินรายเขต ห้ามนับยอดเต็มซ้ำในแต่ละเขต | J35: RAW-70018-46-05399-1-2-36 | K35: BKK70-RAW-70018-46-05399-1-2 | L35: HIER-70018-ebae4a576017 | M35: BKK70-HIER-70018-ebae4a576017 | N35: RAW-70018-46-05399-1-2-16 | O35: BKK70-RAW-70018-46-05399-1-2 | P35: 05399-1 | Q35: ติดตั้ง กล้องโทรทัศน์วงจรปิด (CCTV) บริเวณตรอก ซอย ในพื้นที่กลุ่ม กรุงธนเหนือ | R35: เขตจอมทอง 13 จุด 39 กล้อง ภายในโครงการกลุ่มกรุงธนเหนือที่ระบุ 8 เขต วงเงินเป็นยอดรวมโครงการและไม่ได้แยกรายเขต | S35: 70018 - สำนักการจราจรและขนส่ง - งบประมาณ พ.ศ. 2570.pdf | T35: 46 | U35: https://drive.google.com/file/d/1-947x5WJCaV-kwSzaKeO253Y5L4A5IIb/view?usp=drivesdk | W35: FALSE | X35: TRUE | Z35: บริหารหรือดำเนินงาน | AC35: document | AD35: 0 | AE35: 0 | AF35: ปานกลาง | AJ35: เอกสารระบุชื่อเขตและจำนวนจุดติดตั้งโดยตรง | AK35: สูง | AL35: เอกสาร 70018 หน้า PDF 46: เขตจอมทอง 13 จุด 39 กล้อง | AM35: เทียบภาพ PDF และบริบทโครงการแล้ว 17 กันยายน 2569; วงเงินร่วม ไม่แยกรายเขต | AN35: 46 | AT35: C | AU35: หลายเขต | AV35: 4 | AW35: line_item | AX35: รายการใช้จ่าย | AY35: child | AZ35: TRUE | BC35: area_projection | BD35: ชื่อสถานที่หรือหน่วยรับงบจากเอกสาร; ยังไม่ยืนยันพิกัด | BG35: 9,163,000 | BH35: 0 | BI35: 0 | BJ35: ค่าที่ดินและสิ่งก่อสร้าง | BK35: 46 | BL35: ค่าที่ดินและสิ่งก่อสร้าง | BM35: ยังไม่ยืนยันความสัมพันธ์งบหลัก–งบย่อย | BN35: 44 | BO35: ตรอกซอยในพื้นที่กลุ่มกรุงธนเหนือ; เขตจอมทอง 13 จุด 39 กล้อง | BP35: แสดงเป็นรายการหลัก | BT35: 0 | BU35: not_applicable | BV35: [] | BW35: เทียบชื่อโครงการ วงเงิน และจำนวนจุด/กล้องรายเขตกับภาพ PDF แล้ว 17 กันยายน 2569; ยังไม่มีรายชื่อจุดติดตั้งรายจุด | BX35: ไม่ปรากฏในเอกสาร | BY35: ไม่ปรากฏในเอกสาร | BZ35: สำนักส่วนกลาง | CA35: 70018-46-05399-1-2 | CB35: ข้อมูลตั้งงบประมาณปี 2570 ที่แปลงจาก PDF เป็น Machine-Readable; ไม่ใช่ยอดเบิกจ่ายหรือราคาสัญญา
A36: จอมทอง | B36: สำนักงานเขตจอมทอง | C36: ก่อสร้างเขื่อน ค.ส.ล. คลองต้นโพธิ์ จากซอยพระรามที่ 2 ซอย 3 แยก 3 ถึงคลองบางปะแก้ว | D36: 8,738,000 | E36: ระบายน้ำและป้องกันน้ำท่วม | F36: รายการหลักจากตารางงบ | H36: รายการในเอกสารสำนักงานเขต | I36: ไม่รวมซ้ำ: ยอดรวมสำนักงานเขตใช้ตัวเลขสรุปหน้า 3 | J36: RAW-70062-54-05316-1-1 | K36: BKK70-RAW-70062-54-05316-1-1 | L36: DHIER-70062-d13df0fdf9dc | M36: BKK70-DHIER-70062-d13df0fdf9dc | P36: 05316-1 | Q36: (4) ก่อสร้างเขื่อน ค.ส.ล. คลองต้นโพธิ์ จากซอยพระรามที่ 2 ซอย 3 แยก 3 ถึงคลองบางปะแก้ว | R36: (4) ก่อสร้างเขื่อน ค.ส.ล. คลองต้นโพธิ์ จากซอยพระรามที่ 2 ซอย 3 แยก 3 ถึงคลองบางปะแก้ว — รายละเอียด: ก่อสร้างเขื่อน ค.ส.ล. (ไม่มีทางเดินหลังเขื่อน) ตามแบบ AB.9.50003-02 ความยาวรวม 2 ฝั่ง ยาวประมาณ 485 ม. — อยู่ในงานระบายน้ำและแก้ไขปัญหาน้ำท่วม | S36: 70062 - สำนักงานเขตจอมทอง - งบประมาณ พ.ศ. 2570.pdf | T36: 54 | U36: https://data.bangkok.go.th/dataset/cd29e51a-3f50-49b1-8423-7c0c68014074/resource/7277a583-607b-4283-b7fb-84a62ad5b4de/download/70062-.pdf | W36: FALSE | X36: FALSE | Z36: ก่อสร้างหรือปรับปรุง | AD36: 0 | AE36: 0 | AF36: ปานกลาง | AS36: 05316-1 | AT36: B | AU36: ถนนหรือแนวพื้นที่ | AV36: 3 | AY36: child | AZ36: FALSE | BA36: ไม่ปรากฏในเอกสาร | BC36: budget_code_to_reconstructed_category | BD36: ยังไม่ระบุพิกัด | BG36: 46,272,000 | BH36: 0 | BI36: 0 | BJ36: ค่าที่ดินและสิ่งก่อสร้าง | BK36: 53 | BL36: ค่าที่ดินและสิ่งก่อสร้าง | BM36: งบย่อยรวมตรงกับงบหลัก | BO36: เขตจอมทอง | BP36: รายการภายในงบหลัก | BT36: 0 | BU36: not_applicable | BV36: [] | BW36: ตรวจรหัส ชื่อ และวงเงินด้วยกฎอัตโนมัติ; ควรเทียบภาพ PDF ก่อนใช้อ้างอิงทางการ | BX36: ไม่ปรากฏในเอกสาร | BY36: ไม่ปรากฏในเอกสาร | BZ36: สำนักงานเขต | CA36: 70062-54-05316-1-1 | CB36: ข้อมูลตั้งงบประมาณปี 2570 ที่แปลงจาก PDF เป็น Machine-Readable; ไม่ใช่ยอดเบิกจ่ายหรือราคาสัญญา
A37: จอมทอง | B37: สำนักงานเขตจอมทอง | C37: ก่อสร้างเขื่อน ค.ส.ล. (ดาดท้องคลอง) ลำกระโดงแยกคลองเจ้าคุณ (1) จากสะพานท่อ ค.ส.ล. ซอยพระรามที่ 2 ซอย 25 ถึงคลองขวางบางปะแก้ว | D37: 8,729,000 | E37: ระบายน้ำและป้องกันน้ำท่วม | F37: รายการหลักจากตารางงบ | H37: รายการในเอกสารสำนักงานเขต | I37: ไม่รวมซ้ำ: ยอดรวมสำนักงานเขตใช้ตัวเลขสรุปหน้า 3 | J37: RAW-70062-54-05315-4-1 | K37: BKK70-RAW-70062-54-05315-4-1 | L37: DHIER-70062-d13df0fdf9dc | M37: BKK70-DHIER-70062-d13df0fdf9dc | P37: 05315-4 | Q37: (3) ก่อสร้างเขื่อน ค.ส.ล. (ดาดท้องคลอง) ลำกระโดงแยกคลองเจ้าคุณ (1) จากสะพานท่อ ค.ส.ล. ซอยพระรามที่ 2 ซอย 25 ถึงคลองขวางบางปะแก้ว | R37: (3) ก่อสร้างเขื่อน ค.ส.ล. (ดาดท้องคลอง) ลำกระโดงแยกคลองเจ้าคุณ (1) จากสะพานท่อ ค.ส.ล. ซอยพระรามที่ 2 ซอย 25 ถึงคลองขวางบางปะแก้ว — รายละเอียด: ก่อสร้างเขื่อน ค.ส.ล. (ดาดท้องคลอง) ตามแบบ AB.9.50003-02 • ก่อสร้างเขื่อน ค.ส.ล. (ไม่มีทางเดินหลังเขื่อน) ตามแบบ AB.9.50003-02 ยาวประมาณ 343 ม. • ก่อสร้างดาดท้องคลอง ตามแบบ AB.9.50003-02 พื้นที่ประมาณ 1,000 ตร.ม. — อยู่ในงานระบายน้ำและแก้ไขปัญหาน้ำท่วม | S37: 70062 - สำนักงานเขตจอมทอง - งบประมาณ พ.ศ. 2570.pdf | T37: 54 | U37: https://data.bangkok.go.th/dataset/cd29e51a-3f50-49b1-8423-7c0c68014074/resource/7277a583-607b-4283-b7fb-84a62ad5b4de/download/70062-.pdf | W37: FALSE | X37: FALSE | Z37: ก่อสร้างหรือปรับปรุง | AD37: 0 | AE37: 0 | AF37: ปานกลาง | AS37: 05315-4 | AT37: B | AU37: ถนนหรือแนวพื้นที่ | AV37: 3 | AY37: child | AZ37: FALSE | BA37: ไม่ปรากฏในเอกสาร | BC37: budget_code_to_reconstructed_category | BD37: ยังไม่ระบุพิกัด | BG37: 46,272,000 | BH37: 0 | BI37: 0 | BJ37: ค่าที่ดินและสิ่งก่อสร้าง | BK37: 53 | BL37: ค่าที่ดินและสิ่งก่อสร้าง | BM37: งบย่อยรวมตรงกับงบหลัก | BO37: เขตจอมทอง | BP37: รายการภายในงบหลัก | BT37: 0 | BU37: not_applicable | BV37: [] | BW37: ตรวจรหัส ชื่อ และวงเงินด้วยกฎอัตโนมัติ; ควรเทียบภาพ PDF ก่อนใช้อ้างอิงทางการ | BX37: ไม่ปรากฏในเอกสาร | BY37: ไม่ปรากฏในเอกสาร | BZ37: สำนักงานเขต | CA37: 70062-54-05315-4-1 | CB37: ข้อมูลตั้งงบประมาณปี 2570 ที่แปลงจาก PDF เป็น Machine-Readable; ไม่ใช่ยอดเบิกจ่ายหรือราคาสัญญา
A38: ดอนเมือง | B38: สำนักงานเขตดอนเมือง | C38: ค่าจ้างประจำ | D38: 77,108,500 | E38: บุคลากรและค่าตอบแทน | F38: รายการหลักจากตารางงบ | H38: รายการในเอกสารสำนักงานเขต | I38: ไม่รวมซ้ำ: ยอดรวมสำนักงานเขตใช้ตัวเลขสรุปหน้า 3 | J38: RAW-70051-31-01201-1-1 | K38: BKK70-RAW-70051-31-01201-1-1 | L38: DHIER-70051-b81e0d0903cf | M38: BKK70-DHIER-70051-b81e0d0903cf | P38: 01201-1 | Q38: (1) ค่าจ้างประจำ | R38: (1) ค่าจ้างประจำ — อยู่ในงานรายจ่ายบุคลากร | S38: 70051 - สำนักงานเขตดอนเมือง - งบประมาณ พ.ศ. 2570.pdf | T38: 31 | U38: https://data.bangkok.go.th/dataset/cd29e51a-3f50-49b1-8423-7c0c68014074/resource/81e192cb-8178-47d9-8060-52437bff510f/download/70051-.pdf | W38: FALSE | X38: FALSE | Z38: จ้างบริการ | AD38: 0 | AE38: 0 | AF38: ปานกลาง | AS38: 01201-1 | AT38: C | AU38: ทั้งเขตหรือหลายพื้นที่ | AV38: 2 | AY38: child | AZ38: FALSE | BA38: ไม่ปรากฏในเอกสาร | BC38: heading_or_code_to_budget_type | BD38: ยังไม่ระบุพิกัด | BG38: 199,471,500 | BH38: 0 | BI38: 0 | BJ38: งบบุคลากร | BK38: 31 | BL38: งบบุคลากร | BM38: งบย่อยรวมตรงกับงบหลัก | BO38: เขตดอนเมือง | BP38: รายการภายในงบหลัก | BT38: 0 | BU38: not_applicable | BV38: [] | BW38: ตรวจรหัส ชื่อ และวงเงินด้วยกฎอัตโนมัติ; ควรเทียบภาพ PDF ก่อนใช้อ้างอิงทางการ | BX38: ไม่ปรากฏในเอกสาร | BY38: ไม่ปรากฏในเอกสาร | BZ38: สำนักงานเขต | CA38: 70051-31-01201-1-1 | CB38: ข้อมูลตั้งงบประมาณปี 2570 ที่แปลงจาก PDF เป็น Machine-Readable; ไม่ใช่ยอดเบิกจ่ายหรือราคาสัญญา
A39: ดอนเมือง | B39: สำนักงานเขตดอนเมือง | C39: ปรับปรุงถนนช่างอากาศอุทิศ จากป้ายหมู่บ้านศิริสุขถึงซอยช่างอากาศอุทิศ 27 | D39: 12,895,000 | E39: ระบายน้ำและป้องกันน้ำท่วม | F39: รายการหลักจากตารางงบ | H39: รายการในเอกสารสำนักงานเขต | I39: ไม่รวมซ้ำ: ยอดรวมสำนักงานเขตใช้ตัวเลขสรุปหน้า 3 | J39: RAW-70051-47-05313-9-1 | K39: BKK70-RAW-70051-47-05313-9-1 | L39: DHIER-70051-c757cd113a55 | M39: BKK70-DHIER-70051-c757cd113a55 | P39: 05313-9 | Q39: (2) ปรับปรุงถนนช่างอากาศอุทิศ จากป้ายหมู่บ้านศิริสุขถึงซอยช่างอากาศอุทิศ 27 | R39: (2) ปรับปรุงถนนช่างอากาศอุทิศ จากป้ายหมู่บ้านศิริสุขถึงซอยช่างอากาศอุทิศ 27 — รายละเอียด: รื้อบ่อพักท่อระบายน้ำเดิม ขนาดเส้นผ่าศูนย์กลาง 0.30 ม. พร้อมขนทิ้ง จำนวน 24 บ่อ • สร้างท่อระบายน้ำ ค.ส.ล. ขนาดเส้นผ่าศูนย์กลาง 1.50 ม. ตามแบบ มนก.-05 ยาวประมาณ 250 ม. • สร้างบ่อพักท่อระบายน้ำ ค.ส.ล. ขนาดเส้นผ่าศูนย์กลาง 1.50 ม. ตามแบบ มนก.-05 พร้อมฝาบ่อพักในผิวจราจรแบบกลม ตามแบบ มนก.-05 จำนวน 24 บ่อ — อยู่ในงานบำรุงรักษาซ่อมแซม | S39: 70051 - สำนักงานเขตดอนเมือง - งบประมาณ พ.ศ. 2570.pdf | T39: 47 | U39: https://data.bangkok.go.th/dataset/cd29e51a-3f50-49b1-8423-7c0c68014074/resource/81e192cb-8178-47d9-8060-52437bff510f/download/70051-.pdf | W39: FALSE | X39: FALSE | Z39: ก่อสร้างหรือปรับปรุง | AD39: 0 | AE39: 0 | AF39: ปานกลาง | AS39: 05313-9 | AT39: B | AU39: ถนนหรือแนวพื้นที่ | AV39: 3 | AY39: child | AZ39: FALSE | BA39: ไม่ปรากฏในเอกสาร | BC39: budget_code_to_reconstructed_category | BD39: ยังไม่ระบุพิกัด | BG39: 179,517,000 | BH39: 0 | BI39: 0 | BJ39: ค่าที่ดินและสิ่งก่อสร้าง | BK39: 46 | BL39: ค่าที่ดินและสิ่งก่อสร้าง | BM39: งบย่อยรวมตรงกับงบหลัก | BO39: เขตดอนเมือง | BP39: รายการภายในงบหลัก | BT39: 0 | BU39: not_applicable | BV39: [] | BW39: ตรวจรหัส ชื่อ และวงเงินด้วยกฎอัตโนมัติ; ควรเทียบภาพ PDF ก่อนใช้อ้างอิงทางการ | BX39: ไม่ปรากฏในเอกสาร | BY39: ไม่ปรากฏในเอกสาร | BZ39: สำนักงานเขต | CA39: 70051-47-05313-9-1 | CB39: ข้อมูลตั้งงบประมาณปี 2570 ที่แปลงจาก PDF เป็น Machine-Readable; ไม่ใช่ยอดเบิกจ่ายหรือราคาสัญญา
A40: ดอนเมือง | B40: สำนักงานเขตดอนเมือง | C40: ปรับปรุงถนนโกสุมรวมใจ จากโรงเรียนวัดเวฬุวนารามถึงคลองตาอูฐ | D40: 9,171,000 | E40: การศึกษา | F40: รายการหลักจากตารางงบ | H40: รายการในเอกสารสำนักงานเขต | I40: ไม่รวมซ้ำ: ยอดรวมสำนักงานเขตใช้ตัวเลขสรุปหน้า 3 | J40: RAW-70051-54-05313-24-1 | K40: BKK70-RAW-70051-54-05313-24-1 | L40: DHIER-70051-c757cd113a55 | M40: BKK70-DHIER-70051-c757cd113a55 | P40: 05313-24 | Q40: (11) ปรับปรุงถนนโกสุมรวมใจ จากโรงเรียนวัดเวฬุวนารามถึงคลองตาอูฐ | R40: (11) ปรับปรุงถนนโกสุมรวมใจ จากโรงเรียนวัดเวฬุวนารามถึงคลองตาอูฐ — รายละเอียด: รื้อไหล่ทางเดิม พร้อมบดอัดแน่น เนื้อที่ประมาณ 750 ตร.ม. • รื้อรางวีเดิม พร้อมขนทิ้ง ยาวประมาณ 860 ม. • รื้อขอบบ่อพักท่อระบายน้ำเดิม พร้อมขนทิ้ง จำนวน 33 บ่อ — อยู่ในงานบำรุงรักษาซ่อมแซม | S40: 70051 - สำนักงานเขตดอนเมือง - งบประมาณ พ.ศ. 2570.pdf | T40: 54 | U40: https://data.bangkok.go.th/dataset/cd29e51a-3f50-49b1-8423-7c0c68014074/resource/81e192cb-8178-47d9-8060-52437bff510f/download/70051-.pdf | W40: FALSE | X40: FALSE | Z40: ก่อสร้างหรือปรับปรุง | AD40: 0 | AE40: 0 | AF40: ปานกลาง | AS40: 05313-24 | AT40: B | AU40: ถนนหรือแนวพื้นที่ | AV40: 3 | AY40: child | AZ40: FALSE | BA40: ไม่ปรากฏในเอกสาร | BC40: budget_code_to_reconstructed_category | BD40: ยังไม่ระบุพิกัด | BG40: 179,517,000 | BH40: 0 | BI40: 0 | BJ40: ค่าที่ดินและสิ่งก่อสร้าง | BK40: 46 | BL40: ค่าที่ดินและสิ่งก่อสร้าง | BM40: งบย่อยรวมตรงกับงบหลัก | BO40: เขตดอนเมือง | BP40: รายการภายในงบหลัก | BT40: 0 | BU40: not_applicable | BV40: [] | BW40: ตรวจรหัส ชื่อ และวงเงินด้วยกฎอัตโนมัติ; ควรเทียบภาพ PDF ก่อนใช้อ้างอิงทางการ | BX40: ไม่ปรากฏในเอกสาร | BY40: ไม่ปรากฏในเอกสาร | BZ40: สำนักงานเขต | CA40: 70051-54-05313-24-1 | CB40: ข้อมูลตั้งงบประมาณปี 2570 ที่แปลงจาก PDF เป็น Machine-Readable; ไม่ใช่ยอดเบิกจ่ายหรือราคาสัญญา
A41: ดอนเมือง | B41: สำนักการจราจรและขนส่ง | C41: ติดตั้ง กล้องโทรทัศน์วงจรปิด (CCTV) บริเวณตรอก ซอย ในพื้นที่กลุ่ม กรุงเทพเหนือ | D41: 7,345,000 | E41: ถนน ทางเท้า และการเดินทาง | F41: รายการใช้จ่าย | G41: area_projection | H41: วงเงินรวมของรายการที่กล่าวถึงหลายเขต | I41: วงเงินร่วมหลายพื้นที่: เอกสารไม่แยกวงเงินรายเขต | J41: RAW-70018-44-05399-1-2-25 | K41: BKK70-RAW-70018-44-05399-1-2 | L41: HIER-70018-9a2955e7705e | M41: BKK70-HIER-70018-9a2955e7705e | N41: RAW-70018-44-05399-1-2-12 | O41: BKK70-RAW-70018-44-05399-1-2 | P41: 05399-1 | Q41: ติดตั้ง กล้องโทรทัศน์วงจรปิด (CCTV) บริเวณตรอก ซอย ในพื้นที่กลุ่ม กรุงเทพเหนือ | R41: ติดตั้ง กล้องโทรทัศน์วงจรปิด (CCTV) บริเวณตรอก ซอย ในพื้นที่กลุ่ม กรุงเทพเหนือ — รายละเอียด: บริเวณพื้นที่เขตจตุจักร จำนวน 10 จุด รวม 30 กล้อง • บริเวณพื้นที่เขตดอนเมือง จำนวน 11 จุด รวม 33 กล้อง • บริเวณพื้นที่เขตลาดพร้าว จำนวน 11 จุด รวม 33 กล้อง — อยู่ในโครงการติดตั้งกล้องโทรทัศน์วงจรปิด (CCTV) | S41: 70018 - สำนักการจราจรและขนส่ง - งบประมาณ พ.ศ. 2570.pdf | T41: 44 | U41: https://drive.google.com/file/d/1-947x5WJCaV-kwSzaKeO253Y5L4A5IIb/view?usp=drivesdk | W41: FALSE | X41: TRUE | Z41: บริหารหรือดำเนินงาน | AC41: document | AD41: 0 | AE41: 0 | AF41: ปานกลาง | AT41: C | AU41: หลายเขต | AV41: 4 | AW41: line_item | AX41: รายการใช้จ่าย | AY41: child | AZ41: TRUE | BC41: area_projection | BD41: ชื่อสถานที่หรือหน่วยรับงบจากเอกสาร; ยังไม่ยืนยันพิกัด | BG41: 7,345,000 | BH41: 0 | BI41: 0 | BJ41: ค่าที่ดินและสิ่งก่อสร้าง | BK41: 44 | BL41: ค่าที่ดินและสิ่งก่อสร้าง | BM41: ยังไม่ยืนยันความสัมพันธ์งบหลัก–งบย่อย | BN41: 42 | BP41: แสดงเป็นรายการหลัก | BT41: 0 | BU41: not_applicable | BV41: [] | BW41: ตรวจรหัส ชื่อ และวงเงินด้วยกฎอัตโนมัติ; ควรเทียบภาพ PDF ก่อนใช้อ้างอิงทางการ | BX41: ไม่ปรากฏในเอกสาร | BY41: ไม่ปรากฏในเอกสาร | BZ41: สำนักส่วนกลาง | CA41: 70018-44-05399-1-2 | CB41: ข้อมูลตั้งงบประมาณปี 2570 ที่แปลงจาก PDF เป็น Machine-Readable; ไม่ใช่ยอดเบิกจ่ายหรือราคาสัญญา
A42: ดินแดง | B42: สำนักการระบายน้ำ | C42: จ้างเดินระบบ บำรุงรักษา และบริหารจัดการ โรงควบคุมคุณภาพน้ำดินแดง ระยะที่ 5 | D42: 161,244,000 | E42: ระบายน้ำและป้องกันน้ำท่วม | F42: รายการใช้จ่าย | G42: area_projection | H42: วงเงินรวมของรายการที่กล่าวถึงหลายเขต | I42: วงเงินร่วมหลายพื้นที่: เอกสารไม่แยกวงเงินรายเขต | J42: RAW-70015-88-07199-5-1-37 | K42: BKK70-RAW-70015-88-07199-5-1 | L42: HIER-70015-93e200686ebf | M42: BKK70-HIER-70015-93e200686ebf | N42: RAW-70015-88-07199-5-1-1 | O42: BKK70-RAW-70015-88-07199-5-1 | P42: 07199-5 | Q42: จ้างเดินระบบ บำรุงรักษา และบริหารจัดการ โรงควบคุมคุณภาพน้ำดินแดง ระยะที่ 5 | R42: จ้างเดินระบบ บำรุงรักษา และบริหารจัดการ โรงควบคุมคุณภาพน้ำดินแดง ระยะที่ 5 — รายละเอียด: เดินระบบ บำรุงรักษา และบริหารจัดการ • โรงควบคุมคุณภาพน้ำดินแดง สถานีสูบน้ำเสีย • 7 แห่ง และระบบท่อรวบรวมน้ำเสีย ดังนี้ — อยู่ในโครงการจ้างเดินระบบ บำรุงรักษา และบริหารจัดการโรงควบคุมคุณภาพน้ำ ดินแดง ระยะที่ 5 | S42: 70015 - สำนักการระบายน้ำ - งบประมาณ พ.ศ. 2570.pdf | T42: 88 | U42: https://drive.google.com/file/d/19B2U5T7iWxi_s62-_EDEnnFypzgc-Frf/view?usp=drivesdk | W42: FALSE | X42: TRUE | Z42: จัดซื้อครุภัณฑ์ | AC42: document | AD42: 0 | AE42: 0 | AF42: ปานกลาง | AT42: C | AU42: หลายเขต | AV42: 2 | AW42: line_item | AX42: รายการใช้จ่าย | AY42: child | AZ42: TRUE | BC42: area_projection | BD42: ชื่อสถานที่หรือหน่วยรับงบจากเอกสาร; ยังไม่ยืนยันพิกัด | BG42: 690,187,920 | BH42: 0 | BI42: 0 | BJ42: งบรายจ่ายอื่น | BK42: 80 | BL42: งบรายจ่ายอื่น | BM42: ยังไม่ยืนยันความสัมพันธ์งบหลัก–งบย่อย | BN42: 78 | BP42: แสดงเป็นรายการหลัก | BT42: 0 | BU42: not_applicable | BV42: [] | BW42: ตรวจรหัส ชื่อ และวงเงินด้วยกฎอัตโนมัติ; ควรเทียบภาพ PDF ก่อนใช้อ้างอิงทางการ | BX42: ไม่ปรากฏในเอกสาร | BY42: ไม่ปรากฏในเอกสาร | BZ42: สำนักส่วนกลาง | CA42: 70015-88-07199-5-1 | CB42: ข้อมูลตั้งงบประมาณปี 2570 ที่แปลงจาก PDF เป็น Machine-Readable; ไม่ใช่ยอดเบิกจ่ายหรือราคาสัญญา
A43: ดินแดง | B43: สำนักงานเขตดินแดง | C43: ปรับปรุงทางเท้าซอยประชาสงเคราะห์ 23 จากบ้านเลขที่ 108 ถึงซอยวิภาวดีรังสิต 2 แยก 4-3 ซอยประชาสงเคราะห์ 23 แยก 1 จากซอยประชาสงเคราะห์ 23 ถึงบ้านเลขที่ 175 ซอยวิภาวดีรังสิต 2 แยก 4-5 แยก 4-7 และแยก 4-9 | D43: 8,929,000 | E43: ระบายน้ำและป้องกันน้ำท่วม | F43: รายการหลักจากตารางงบ | H43: รายการในเอกสารสำนักงานเขต | I43: ไม่รวมซ้ำ: ยอดรวมสำนักงานเขตใช้ตัวเลขสรุปหน้า 3 | J43: RAW-70063-48-05313-5-1 | K43: BKK70-RAW-70063-48-05313-5-1 | L43: DHIER-70063-38a2ed84d1ea | M43: BKK70-DHIER-70063-38a2ed84d1ea | P43: 05313-5 | Q43: (3) ปรับปรุงทางเท้าซอยประชาสงเคราะห์ 23 จากบ้านเลขที่ 108 ถึงซอยวิภาวดีรังสิต 2 แยก 4-3 ซอยประชาสงเคราะห์ 23 แยก 1 จากซอยประชาสงเคราะห์ 23 ถึงบ้านเลขที่ 175 ซอยวิภาวดีรังสิต 2 แยก 4-5 แยก 4-7 และแยก 4-9 | R43: (3) ปรับปรุงทางเท้าซอยประชาสงเคราะห์ 23 จากบ้านเลขที่ 108 ถึงซอยวิภาวดีรังสิต 2 แยก 4-3 ซอยประชาสงเคราะห์ 23 แยก 1 จากซอยประชาสงเคราะห์ 23 ถึงบ้านเลขที่ 175 ซอยวิภาวดีรังสิต 2 แยก 4-5 แยก 4-7 และแยก 4-9 — รายละเอียด: ทุบรื้อทางเท้า และคันหิน ค.ส.ล. เดิม พร้อมขนทิ้ง เนื้อที่ประมาณ 1,870 ตร.ม. • สร้างคันหิน ค.ส.ล. หนา 0.15 ม. ตามแบบ มทก.-05 ยาวประมาณ 1,528 ม. • สร้างขอบบ่อพักท่อระบายน้ำในทางเท้า ตามแบบ มนก.-02 จำนวน 95 บ่อ — อยู่ในงานบำรุงรักษาซ่อมแซม | S43: 70063 - สำนักงานเขตดินแดง - งบประมาณ พ.ศ. 2570.pdf | T43: 48 | U43: https://data.bangkok.go.th/dataset/cd29e51a-3f50-49b1-8423-7c0c68014074/resource/8ade26b9-34db-431c-809a-913f5fced4ac/download/70063-.pdf | W43: FALSE | X43: FALSE | Z43: ก่อสร้างหรือปรับปรุง | AD43: 0 | AE43: 0 | AF43: ปานกลาง | AS43: 05313-5 | AT43: B | AU43: ถนนหรือแนวพื้นที่ | AV43: 3 | AY43: child | AZ43: FALSE | BA43: ไม่ปรากฏในเอกสาร | BC43: budget_code_to_reconstructed_category | BD43: ยังไม่ระบุพิกัด | BG43: 21,221,000 | BH43: 0 | BI43: 0 | BJ43: ค่าที่ดินและสิ่งก่อสร้าง | BK43: 47 | BL43: ค่าที่ดินและสิ่งก่อสร้าง | BM43: งบย่อยรวมตรงกับงบหลัก | BO43: เขตดินแดง | BP43: รายการภายในงบหลัก | BT43: 0 | BU43: not_applicable | BV43: [] | BW43: ตรวจรหัส ชื่อ และวงเงินด้วยกฎอัตโนมัติ; ควรเทียบภาพ PDF ก่อนใช้อ้างอิงทางการ | BX43: ไม่ปรากฏในเอกสาร | BY43: ไม่ปรากฏในเอกสาร | BZ43: สำนักงานเขต | CA43: 70063-48-05313-5-1 | CB43: ข้อมูลตั้งงบประมาณปี 2570 ที่แปลงจาก PDF เป็น Machine-Readable; ไม่ใช่ยอดเบิกจ่ายหรือราคาสัญญา
A44: ดินแดง | B44: สำนักงานเขตดินแดง | C44: ปรับปรุงซอยประชาสงเคราะห์ 33 จากถนนประชาสงเคราะห์ ถึงซอยประชาสงเคราะห์ 45 ซอยประชาสงเคราะห์ 33 แยก 1 แยก 3 แยก 4 แยก 5 แยก 6 และแยก 8 | D44: 8,252,000 | E44: ระบายน้ำและป้องกันน้ำท่วม | F44: รายการหลักจากตารางงบ | H44: รายการในเอกสารสำนักงานเขต | I44: ไม่รวมซ้ำ: ยอดรวมสำนักงานเขตใช้ตัวเลขสรุปหน้า 3 | J44: RAW-70063-48-05313-4-1 | K44: BKK70-RAW-70063-48-05313-4-1 | L44: DHIER-70063-38a2ed84d1ea | M44: BKK70-DHIER-70063-38a2ed84d1ea | P44: 05313-4 | Q44: (2) ปรับปรุงซอยประชาสงเคราะห์ 33 จากถนนประชาสงเคราะห์ ถึงซอยประชาสงเคราะห์ 45 ซอยประชาสงเคราะห์ 33 แยก 1 แยก 3 แยก 4 แยก 5 แยก 6 และแยก 8 | R44: (2) ปรับปรุงซอยประชาสงเคราะห์ 33 จากถนนประชาสงเคราะห์ ถึงซอยประชาสงเคราะห์ 45 ซอยประชาสงเคราะห์ 33 แยก 1 แยก 3 แยก 4 แยก 5 แยก 6 และแยก 8 — รายละเอียด: ทุบสกัดเสริมขอบบ่อพักท่อระบายน้ำขนาด 0.80 ม. ตามแบบ มนก.-01 จำนวน 175 บ่อ • ฝาบ่อพักท่อระบายน้ำ (ฝาเหล็กหล่อเหนียว) หนา 10 ซม. จำนวน 175 ฝา • สร้างผิวทางแอสฟัลต์คอนกรีต หนา 0.10 ม. พร้อม Tack Coat ตามแบบ มทก.-04 เนื้อที่ประมาณ 4,080 ตร.ม. — อยู่ในงานบำรุงรักษาซ่อมแซม | S44: 70063 - สำนักงานเขตดินแดง - งบประมาณ พ.ศ. 2570.pdf | T44: 48 | U44: https://data.bangkok.go.th/dataset/cd29e51a-3f50-49b1-8423-7c0c68014074/resource/8ade26b9-34db-431c-809a-913f5fced4ac/download/70063-.pdf | W44: FALSE | X44: FALSE | Z44: ก่อสร้างหรือปรับปรุง | AD44: 0 | AE44: 0 | AF44: ปานกลาง | AS44: 05313-4 | AT44: B | AU44: ถนนหรือแนวพื้นที่ | AV44: 3 | AY44: child | AZ44: FALSE | BA44: ไม่ปรากฏในเอกสาร | BC44: budget_code_to_reconstructed_category | BD44: ยังไม่ระบุพิกัด | BG44: 21,221,000 | BH44: 0 | BI44: 0 | BJ44: ค่าที่ดินและสิ่งก่อสร้าง | BK44: 47 | BL44: ค่าที่ดินและสิ่งก่อสร้าง | BM44: งบย่อยรวมตรงกับงบหลัก | BO44: เขตดินแดง | BP44: รายการภายในงบหลัก | BT44: 0 | BU44: not_applicable | BV44: [] | BW44: ตรวจรหัส ชื่อ และวงเงินด้วยกฎอัตโนมัติ; ควรเทียบภาพ PDF ก่อนใช้อ้างอิงทางการ | BX44: ไม่ปรากฏในเอกสาร | BY44: ไม่ปรากฏในเอกสาร | BZ44: สำนักงานเขต | CA44: 70063-48-05313-4-1 | CB44: ข้อมูลตั้งงบประมาณปี 2570 ที่แปลงจาก PDF เป็น Machine-Readable; ไม่ใช่ยอดเบิกจ่ายหรือราคาสัญญา
A45: ดินแดง | B45: สำนักงานเขตดินแดง | C45: ปรับปรุงซอยอินทามระ 22 จากถนนสุทธิสารวินิจฉัย ถึงบ้านเลขที่ 80/1 | D45: 4,040,000 | E45: ระบายน้ำและป้องกันน้ำท่วม | F45: รายการหลักจากตารางงบ | H45: รายการในเอกสารสำนักงานเขต | I45: ไม่รวมซ้ำ: ยอดรวมสำนักงานเขตใช้ตัวเลขสรุปหน้า 3 | J45: RAW-70063-47-05313-3-1 | K45: BKK70-RAW-70063-47-05313-3-1 | L45: DHIER-70063-38a2ed84d1ea | M45: BKK70-DHIER-70063-38a2ed84d1ea | P45: 05313-3 | Q45: (1) ปรับปรุงซอยอินทามระ 22 จากถนนสุทธิสารวินิจฉัย ถึงบ้านเลขที่ 80/1 | R45: (1) ปรับปรุงซอยอินทามระ 22 จากถนนสุทธิสารวินิจฉัย ถึงบ้านเลขที่ 80/1 — รายละเอียด: ทุบสกัดเสริมขอบบ่อพักท่อระบายน้ำขนาด 0.80 ม. ตามแบบ มทก.-01 จำนวน 63 บ่อ • ฝาบ่อพักท่อระบายน้ำ (ฝาเหล็กหล่อเหนียว) หนา 10 ซม. จำนวน 63 ฝา • สร้างผิวทางแอสฟัลต์คอนกรีต หนา 0.10 ม. พร้อม Tack Coat ตามแบบ มทก.-04 เนื้อที่ประมาณ 2,665 ตร.ม. — อยู่ในงานบำรุงรักษาซ่อมแซม | S45: 70063 - สำนักงานเขตดินแดง - งบประมาณ พ.ศ. 2570.pdf | T45: 47 | U45: https://data.bangkok.go.th/dataset/cd29e51a-3f50-49b1-8423-7c0c68014074/resource/8ade26b9-34db-431c-809a-913f5fced4ac/download/70063-.pdf | W45: FALSE | X45: FALSE | Z45: ก่อสร้างหรือปรับปรุง | AD45: 0 | AE45: 0 | AF45: ปานกลาง | AS45: 05313-3 | AT45: B | AU45: ถนนหรือแนวพื้นที่ | AV45: 3 | AY45: child | AZ45: FALSE | BA45: ไม่ปรากฏในเอกสาร | BC45: budget_code_to_reconstructed_category | BD45: ยังไม่ระบุพิกัด | BG45: 21,221,000 | BH45: 0 | BI45: 0 | BJ45: ค่าที่ดินและสิ่งก่อสร้าง | BK45: 47 | BL45: ค่าที่ดินและสิ่งก่อสร้าง | BM45: งบย่อยรวมตรงกับงบหลัก | BO45: เขตดินแดง | BP45: รายการภายในงบหลัก | BT45: 0 | BU45: not_applicable | BV45: [] | BW45: ตรวจรหัส ชื่อ และวงเงินด้วยกฎอัตโนมัติ; ควรเทียบภาพ PDF ก่อนใช้อ้างอิงทางการ | BX45: ไม่ปรากฏในเอกสาร | BY45: ไม่ปรากฏในเอกสาร | BZ45: สำนักงานเขต | CA45: 70063-47-05313-3-1 | CB45: ข้อมูลตั้งงบประมาณปี 2570 ที่แปลงจาก PDF เป็น Machine-Readable; ไม่ใช่ยอดเบิกจ่ายหรือราคาสัญญา
A46: ดุสิต | B46: มหาวิทยาลัยนวมินทราธิราช | C46: มหาวิทยาลัยนวมินทราธิราชและบริการสาธารณสุข | D46: 2,507,407,940 | E46: สุขภาพและสาธารณสุข | F46: รายการจากสำนักส่วนกลาง | H46: งบก้อนหลักของมหาวิทยาลัยและหน่วยบริการหลักในเขตดุสิต | I46: รายการจากสำนักส่วนกลาง: วงเงินเฉพาะพื้นที่ แต่ไม่นับรวมยอดสำนักงานเขต | J46: VIEW-00339 | K46: BKK70-CEN-NMU-001 | P46: 1801001 | Q46: งานเงินอุดหนุนทั่วไปให้กับมหาวิทยาลัยนวมินทราธิราช | R46: เงินอุดหนุนสำหรับการผลิตบัณฑิต บริการสาธารณสุข บุคลากร ครุภัณฑ์ 9 โครงการของมหาวิทยาลัย และการก่อสร้างหอพักนักศึกษาพยาบาลพร้อมอาคารจอดรถ | S46: 70077 - มหาวิทยาลัยนวมินทราธิราช - งบประมาณ พ.ศ. 2570.pdf | T46: 5-6 | U46: https://drive.google.com/file/d/1DFInpP6ER1J_KuuRqinpRdUVoxemiXjI/view?usp=drivesdk | V46: 2,507,407,940 | W46: FALSE | X46: FALSE | Y46: 10,000,000 | Z46: อุดหนุนการศึกษาและบริการสาธารณสุข | AF46: สูง | AT46: C | AU46: ครอบคลุมหลายอาคารหรือหน่วยงานในเขต | AZ46: TRUE | BA46: มหาวิทยาลัยนวมินทราธิราช; วชิรพยาบาล; คณะพยาบาลศาสตร์เกื้อการุณย์ | BD46: มหาวิทยาลัยนวมินทราธิราช วชิรพยาบาล และคณะพยาบาลศาสตร์เกื้อการุณย์มีที่ตั้งหลักในเขตดุสิต; เอกสารงบไม่ได้แยกวงเงินรายอาคาร | BO46: มหาวิทยาลัยนวมินทราธิราช; คณะแพทยศาสตร์วชิรพยาบาล; คณะพยาบาลศาสตร์เกื้อการุณย์ | BP46: หลัก | BV46: [] | BW46: ตรวจยอด 11 รายการย่อยและยืนยันที่ตั้งหน่วยงานหลักในเขตดุสิตแล้ว | BX46: ถนนสามเสน; ถนนขาว | BY46: ไม่ปรากฏในเอกสาร | BZ46: สำนักส่วนกลาง | CB46: รายการที่ตั้งงบประมาณปี 2570 ตามเอกสาร ไม่ใช่ยอดเบิกจ่าย ราคาสัญญา หรือหลักฐานว่าเริ่มดำเนินงานแล้ว
A47: ดุสิต | B47: สำนักงานเขตดุสิต | C47: เงินเดือน ค่าจ้าง และค่าตอบแทนบุคลากร | D47: 210,882,000 | E47: บุคลากรและค่าตอบแทน | F47: งาน/โครงการ | H47: ยอดรวมงาน/โครงการของสำนักงานเขต | I47: นับในยอดรวมสำนักงานเขต | J47: VIEW-00265 | K47: BKK70-DST-W-001 | P47: 1300023 | Q47: งานรายจ่ายบุคลากร | R47: งบรวมสำหรับเงินเดือน ค่าจ้าง และค่าตอบแทนบุคลากร ตามกรอบงานหรือโครงการของสำนักงานเขต | S47: 70033 - สำนักงานเขตดุสิต - งบประมาณ พ.ศ. 2570.pdf | T47: 3 | U47: https://drive.google.com/file/d/1w6-VfEbqdEjXXUiOGW9pCY4WTQo4mcnj/view?usp=drivesdk | W47: TRUE | X47: FALSE | Z47: บริหารหรือดำเนินงาน | AD47: 210,882,000 | AE47: 18 | AF47: สูง | AT47: D | AU47: งบบริหารภายใน | AV47: 0 | AY47: exact | AZ47: FALSE | BA47: ไม่ปรากฏในเอกสาร | BD47: ยังไม่ระบุพิกัด | BH47: 210,882,000 | BI47: 18 | BM47: งบย่อยรวมตรงกับงบหลัก | BO47: ไม่ปรากฏในเอกสาร | BP47: งบบริหารภายใน | BT47: 0 | BU47: exact | BV47: [] | BW47: ตรวจยอดรวมระดับงาน/โครงการแล้ว | BX47: ไม่ปรากฏในเอกสาร | BY47: ไม่ปรากฏในเอกสาร | BZ47: สำนักงานเขต | CB47: รายการที่ตั้งงบประมาณปี 2570 ตามเอกสาร ไม่ใช่ยอดเบิกจ่าย ราคาสัญญา หรือหลักฐานว่าเริ่มดำเนินงานแล้ว
A48: ดุสิต | B48: สำนักการระบายน้ำ | C48: เดินระบบและดูแลโรงควบคุมคุณภาพน้ำดินแดง | D48: 161,244,000 | E48: ระบบระบายน้ำและป้องกันน้ำท่วม | F48: รายการใช้จ่าย | G48: area_projection | H48: วงเงินรวมหลายเขต ไม่แยกรายเขต | I48: วงเงินร่วมหลายพื้นที่: ห้ามนับเต็มซ้ำในแต่ละเขต | J48: VIEW-00312 | K48: BKK70-CEN-DRA-006 | L48: HIER-70015-93e200686ebf | M48: BKK70-HIER-70015-93e200686ebf | N48: RAW-70015-88-07199-5-1-1 | O48: BKK70-RAW-70015-88-07199-5-1 | P48: 07199-5 | Q48: จ้างเดินระบบ บำรุงรักษา และบริหารจัดการโรงควบคุมคุณภาพน้ำดินแดง ระยะที่ 5 | R48: เดินระบบและบำรุงรักษาโรงควบคุมคุณภาพน้ำดินแดง สถานีสูบน้ำเสีย 7 แห่ง บ่อพัก และท่อรวบรวมน้ำเสีย | S48: 70015 - สำนักการระบายน้ำ - งบประมาณ พ.ศ. 2570.pdf | T48: 87-88 | U48: https://drive.google.com/file/d/19B2U5T7iWxi_s62-_EDEnnFypzgc-Frf/view?usp=drivesdk | W48: FALSE | X48: TRUE | Y48: 0 | Z48: จ้างเดินระบบและบำรุงรักษา | AC48: document | AD48: 0 | AE48: 0 | AF48: สูง | AT48: C | AU48: ครอบคลุมหลายจุดหรือหลายเขต | AV48: 2 | AW48: line_item | AX48: รายการใช้จ่าย | AY48: child | AZ48: TRUE | BA48: โรงควบคุมคุณภาพน้ำดินแดง | BC48: area_projection | BD48: เอกสารระบุว่าเป็นบางส่วนของแต่ละเขต แต่ไม่แจกแจงขอบเขตย่อย | BG48: 690,187,920 | BJ48: งบรายจ่ายอื่น | BK48: 80 | BL48: งบรายจ่ายอื่น | BN48: 78 | BO48: โรงควบคุมคุณภาพน้ำดินแดงและพื้นที่บริการ | BP48: เกี่ยวข้องหลายพื้นที่ | BT48: 0 | BU48: not_applicable | BV48: [] | BW48: ยืนยันเป็นโครงการร่วมแล้ว เมื่อ 23 กรกฎาคม 2569; ยังไม่มีวงเงินแยกรายเขต | BX48: ไม่ปรากฏในเอกสาร | BY48: ไม่ปรากฏในเอกสาร | BZ48: สำนักส่วนกลาง | CB48: รายการที่ตั้งงบประมาณปี 2570 ตามเอกสาร ไม่ใช่ยอดเบิกจ่าย ราคาสัญญา หรือหลักฐานว่าเริ่มดำเนินงานแล้ว | CC48: 86
A49: ดุสิต | B49: สำนักการโยธา | C49: สร้างทางยกระดับและถนนจากสะพานเกียกกายถึงแยกสะพานแดง | D49: 157,000,000 | E49: ถนนและทางเท้า | F49: รายการใช้จ่าย | G49: area_projection | H49: เฉพาะแนวงานในเขตดุสิต | I49: รายการจากสำนักส่วนกลาง: วงเงินเฉพาะพื้นที่ แต่ไม่นับรวมยอดสำนักงานเขต | J49: VIEW-00297 | K49: BKK70-CEN-YOT-004 | L49: RAW-70014-56-line-2-1-2-1 | M49: BKK70-RAW-70014-56-line-2-1-2-1 | N49: RAW-70014-59-05312-1-1 | O49: BKK70-RAW-70014-59-05312-1-1 | P49: 05312-1 | Q49: ก่อสร้างสะพานข้ามแม่น้ำเจ้าพระยา บริเวณแยกเกียกกาย ช่วงที่ 3 ก่อสร้างทางยกระดับและถนนฝั่งพระนครจากแม่น้ำเจ้าพระยาถึงแยกสะพานแดง | R49: ก่อสร้างทางยกระดับ 4 ช่องจราจรยาวประมาณ 1,400 เมตร และปรับปรุงถนนพื้นราบ ระบบระบายน้ำ ไฟส่องสว่าง และระบบจราจร | S49: 70014 - สำนักการโยธา - งบประมาณ พ.ศ. 2570.pdf | T49: 58-59 | U49: https://drive.google.com/file/d/16Y16ZUrhcuEhxuguxxGQ2TmFH4fxxBaT/view?usp=drivesdk | V49: 157,000,000 | W49: FALSE | X49: FALSE | Y49: 96,250,000 | Z49: ก่อสร้าง | AC49: document | AD49: 0 | AE49: 0 | AF49: สูง | AT49: B | AU49: แนวถนน คลอง หรือพื้นที่ | AV49: 4 | AW49: line_item | AX49: รายการใช้จ่าย | AY49: child | AZ49: TRUE | BA49: อาคารรัฐสภาแห่งใหม่; แยกสะพานแดง | BC49: area_projection | BD49: ตรวจแนวงานจากแม่น้ำเจ้าพระยาถึงแยกสะพานแดงแล้วว่าอยู่ในเขตดุสิต; ยังไม่บันทึกแนวเส้น | BF49: จากแม่น้ำเจ้าพระยาบริเวณแยกเกียกกายถึงแยกสะพานแดง เขตดุสิต กรุงเทพมหานคร | BG49: 2,114,522,630 | BJ49: ค่าที่ดินและสิ่งก่อสร้าง | BK49: 56 | BL49: ค่าที่ดินและสิ่งก่อสร้าง | BO49: จากแม่น้ำเจ้าพระยาบริเวณแยกเกียกกายถึงแยกสะพานแดง | BP49: หลัก | BT49: 0 | BU49: not_applicable | BV49: [] | BW49: ยืนยันเป็นงบจากสำนักส่วนกลางที่ลงในเขตดุสิตแล้ว เมื่อ 23 กรกฎาคม 2569 | BX49: แนวจากแยกเกียกกายถึงแยกสะพานแดง | BY49: ไม่ปรากฏในเอกสาร | BZ49: สำนักส่วนกลาง | CB49: รายการที่ตั้งงบประมาณปี 2570 ตามเอกสาร ไม่ใช่ยอดเบิกจ่าย ราคาสัญญา หรือหลักฐานว่าเริ่มดำเนินงานแล้ว | CC49: 57
A50: ดุสิต | B50: สำนักการระบายน้ำ | C50: เดินระบบและดูแลศูนย์สิ่งแวดล้อมบางซื่อและระบบบำบัดน้ำเสีย | D50: 153,804,000 | E50: ระบบระบายน้ำและป้องกันน้ำท่วม | F50: รายการใช้จ่าย | G50: area_projection | H50: วงเงินรวมหลายเขต ไม่แยกรายเขต | I50: วงเงินร่วมหลายพื้นที่: ห้ามนับเต็มซ้ำในแต่ละเขต | J50: VIEW-00308 | K50: BKK70-CEN-DRA-005 | L50: HIER-70015-93e200686ebf | M50: BKK70-HIER-70015-93e200686ebf | N50: CANON-VIEW-00308 | O50: BKK70-CEN-DRA-005 | P50: 07199-3 | Q50: จ้างเดินระบบ บำรุงรักษา และบริหารจัดการศูนย์การศึกษาและอนุรักษ์สิ่งแวดล้อมบางซื่อ ระยะที่ 3 | R50: บริหารศูนย์การศึกษาและอนุรักษ์สิ่งแวดล้อมบางซื่อ และเดินระบบบำบัดน้ำเสีย | S50: 70015 - สำนักการระบายน้ำ - งบประมาณ พ.ศ. 2570.pdf | T50: 84 | U50: https://drive.google.com/file/d/19B2U5T7iWxi_s62-_EDEnnFypzgc-Frf/view?usp=drivesdk | W50: FALSE | X50: TRUE | Y50: 0 | Z50: จ้างเดินระบบและบำรุงรักษา | AC50: document | AD50: 0 | AE50: 0 | AF50: สูง | AT50: C | AU50: ครอบคลุมหลายจุดหรือหลายเขต | AV50: 2 | AW50: line_item | AX50: รายการใช้จ่าย | AY50: child | AZ50: TRUE | BA50: ศูนย์การศึกษาและอนุรักษ์สิ่งแวดล้อมบางซื่อ | BC50: area_projection | BD50: เอกสารระบุเขตที่ครอบคลุม แต่ไม่แจกแจงตำแหน่งย่อย | BF50: ศูนย์การศึกษาและอนุรักษ์สิ่งแวดล้อมบางซื่อ เขตดุสิต กรุงเทพมหานคร | BG50: 690,187,920 | BJ50: งบรายจ่ายอื่น | BK50: 80 | BL50: งบรายจ่ายอื่น | BN50: 78 | BO50: ศูนย์การศึกษาและอนุรักษ์สิ่งแวดล้อมบางซื่อและพื้นที่บริการ | BP50: เกี่ยวข้องหลายพื้นที่ | BT50: 0 | BU50: not_applicable | BV50: [] | BW50: ยืนยันเป็นโครงการร่วมแล้ว เมื่อ 23 กรกฎาคม 2569; ยังไม่มีวงเงินแยกรายเขต | BX50: ไม่ปรากฏในเอกสาร | BY50: ไม่ปรากฏในเอกสาร | BZ50: สำนักส่วนกลาง | CB50: รายการที่ตั้งงบประมาณปี 2570 ตามเอกสาร ไม่ใช่ยอดเบิกจ่าย ราคาสัญญา หรือหลักฐานว่าเริ่มดำเนินงานแล้ว | CC50: 82
A51: ดุสิต | B51: สำนักการระบายน้ำ | C51: ปรับปรุงสถานีสูบน้ำคลองสามเสน | D51: 117,000,000 | E51: ระบบระบายน้ำและป้องกันน้ำท่วม | F51: รายการใช้จ่าย | G51: area_projection | H51: รวมพื้นที่ต่อเนื่องหลายเขต | I51: วงเงินร่วมหลายพื้นที่: ห้ามนับเต็มซ้ำในแต่ละเขต | J51: VIEW-00304 | K51: BKK70-CEN-DRA-001 | L51: RAW-70015-38-line-2-2-1 | M51: BKK70-RAW-70015-38-line-2-2-1 | N51: CANON-VIEW-00304 | O51: BKK70-CEN-DRA-001 | P51: 05316-1 | Q51: ปรับปรุงสถานีสูบน้ำคลองสามเสน แขวงวชิรพยาบาล เขตดุสิต กรุงเทพมหานคร | R51: ปรับปรุงสถานีสูบน้ำขนาด 45 ลูกบาศก์เมตรต่อวินาที ประตูระบายน้ำ 2 แห่ง และภูมิทัศน์ เพื่อช่วยพื้นที่ถนนนครไชยศรี สุโขทัย พระรามที่ 5 และใกล้เคียง | S51: 70015 - สำนักการระบายน้ำ - งบประมาณ พ.ศ. 2570.pdf | T51: 39 | U51: https://drive.google.com/file/d/19B2U5T7iWxi_s62-_EDEnnFypzgc-Frf/view?usp=drivesdk | W51: FALSE | X51: TRUE | Y51: 36,380,000 | Z51: ปรับปรุง | AC51: document | AD51: 0 | AE51: 0 | AF51: สูง | AT51: A | AU51: จุดหรือสถานที่เฉพาะ | AV51: 4 | AW51: line_item | AX51: รายการใช้จ่าย | AY51: child | AZ51: TRUE | BA51: สถานีสูบน้ำคลองสามเสน | BC51: area_projection | BD51: เอกสารระบุสถานี แขวง และเขต; ไม่บันทึกพิกัด | BF51: สถานีสูบน้ำคลองสามเสน เขตดุสิต กรุงเทพมหานคร | BG51: 583,000,000 | BJ51: ค่าที่ดินและสิ่งก่อสร้าง | BK51: 38 | BL51: ค่าที่ดินและสิ่งก่อสร้าง | BO51: สถานีสูบน้ำคลองสามเสน แขวงวชิรพยาบาล เขตดุสิต | BP51: หลัก | BT51: 0 | BU51: not_applicable | BV51: [] | BW51: ยืนยันเป็นโครงการร่วมแล้ว เมื่อ 23 กรกฎาคม 2569; ยังไม่มีวงเงินแยกรายเขต | BX51: ถนนสามเสนและพื้นที่ต่อเนื่อง | BY51: ไม่ปรากฏในเอกสาร | BZ51: สำนักส่วนกลาง | CB51: รายการที่ตั้งงบประมาณปี 2570 ตามเอกสาร ไม่ใช่ยอดเบิกจ่าย ราคาสัญญา หรือหลักฐานว่าเริ่มดำเนินงานแล้ว | CC51: 37
A52: ดุสิต | B52: สำนักการระบายน้ำ | C52: สร้างระบบน้ำเสียและระบายน้ำที่แยกศรีอยุธยา-นครราชสีมา | D52: 85,961,202 | E52: ระบบระบายน้ำและป้องกันน้ำท่วม | F52: รายการใช้จ่าย | G52: area_projection | H52: เฉพาะพื้นที่ในเขต | I52: รายการจากสำนักส่วนกลาง: วงเงินเฉพาะพื้นที่ แต่ไม่นับรวมยอดสำนักงานเขต | J52: VIEW-00314 | K52: BKK70-CEN-DRA-008 | L52: RAW-70015-117-line-2-2-1 | M52: BKK70-RAW-70015-117-line-2-2-1 | N52: RAW-70015-123-05399-2-1 | O52: BKK70-RAW-70015-123-05399-2-1 | P52: 05399-2 | Q52: ก่อสร้างระบบรวบรวมน้ำเสียและระบบระบายน้ำ บริเวณถนนศรีอยุธยาตัดถนนนครราชสีมา พื้นที่เขตดุสิต ระยะที่ 1 | R52: ก่อสร้างบ่อสูบ บ่อเกรอะ บ่อดักไขมัน ท่อสูบส่งน้ำเสีย บ่อหน่วงน้ำ ระบบระบายน้ำ เครื่องสูบน้ำ และระบบควบคุม SCADA | S52: 70015 - สำนักการระบายน้ำ - งบประมาณ พ.ศ. 2570.pdf | T52: 122-123 | U52: https://drive.google.com/file/d/19B2U5T7iWxi_s62-_EDEnnFypzgc-Frf/view?usp=drivesdk | V52: 85,961,202 | W52: FALSE | X52: FALSE | Y52: 0 | Z52: ก่อสร้าง | AC52: document | AD52: 0 | AE52: 0 | AF52: สูง | AT52: A | AU52: จุดหรือสถานที่เฉพาะ | AV52: 4 | AW52: line_item | AX52: รายการใช้จ่าย | AY52: child | AZ52: TRUE | BA52: แยกศรีอยุธยา-นครราชสีมา | BC52: area_projection | BD52: เอกสารระบุจุดตัดถนนและชื่อเขต; ไม่บันทึกพิกัด | BF52: ถนนศรีอยุธยาตัดถนนนครราชสีมา เขตดุสิต เขตดุสิต กรุงเทพมหานคร | BG52: 188,047,386 | BJ52: ค่าที่ดินและสิ่งก่อสร้าง | BK52: 117 | BL52: ค่าที่ดินและสิ่งก่อสร้าง | BO52: ถนนศรีอยุธยาตัดถนนนครราชสีมา เขตดุสิต | BP52: หลัก | BT52: 0 | BU52: not_applicable | BV52: [] | BW52: ตรวจภาพต้นฉบับแล้ว | BX52: ถนนศรีอยุธยา; ถนนนครราชสีมา | BY52: ไม่ปรากฏในเอกสาร | BZ52: สำนักส่วนกลาง | CB52: รายการที่ตั้งงบประมาณปี 2570 ตามเอกสาร ไม่ใช่ยอดเบิกจ่าย ราคาสัญญา หรือหลักฐานว่าเริ่มดำเนินงานแล้ว | CC52: 121
A53: ดุสิต | B53: สำนักการระบายน้ำ | C53: ก่อสร้างระบบรวบรวมน้ำเสียและระบบระบายน้ำ บริเวณถนนศรีอยุธยาตัดถนนนครราชสีมา พื้นที่เขตดุสิต ระยะที่ 1 | D53: 85,961,202 | E53: ระบายน้ำและป้องกันน้ำท่วม | F53: รายการใช้จ่าย | G53: canonical | H53: รายการของสำนักส่วนกลางที่ระบุชื่อเขต | I53: รายการจากสำนักส่วนกลาง: ระบุชื่อเขตชัดในเอกสาร | J53: RAW-70015-123-05399-2-1 | K53: BKK70-RAW-70015-123-05399-2-1 | L53: RAW-70015-117-line-2-2-1 | M53: BKK70-RAW-70015-117-line-2-2-1 | N53: RAW-70015-123-05399-2-1 | O53: BKK70-RAW-70015-123-05399-2-1 | P53: 05399-2 | Q53: ก่อสร้างระบบรวบรวมน้ำเสียและระบบระบายน้ำ บริเวณถนนศรีอยุธยาตัดถนนนครราชสีมา พื้นที่เขตดุสิต ระยะที่ 1 | R53: ก่อสร้างระบบรวบรวมน้ำเสียและระบบระบายน้ำ บริเวณถนนศรีอยุธยาตัดถนนนครราชสีมา พื้นที่เขตดุสิต ระยะที่ 1 — รายละเอียด: 1. งานก่อสร้างระบบรวบรวมน้ำเสีย • 1.1 ก่อสร้างบ่อสูบน้ำเสีย ขนาด 2.40 x 2.40 เมตร จำนวน 6 บ่อ • 1.2 ก่อสร้างบ่อเกรอะ ขนาด 4.50 x 6.50 เมตร จำนวน 5 บ่อ — อยู่ในโครงการก่อสร้างระบบรวบรวมน้ำเสียและระบบระบายน้ำ บริเวณถนนศรีอยุธยาตัดถนนนครราชสีมา พื้นที่เขตดุสิต ระยะที่ 1 | S53: 70015 - สำนักการระบายน้ำ - งบประมาณ พ.ศ. 2570.pdf | T53: 123 | U53: https://drive.google.com/file/d/19B2U5T7iWxi_s62-_EDEnnFypzgc-Frf/view?usp=drivesdk | V53: 85,961,202 | W53: FALSE | X53: FALSE | Z53: ก่อสร้างหรือปรับปรุง | AC53: document | AD53: 0 | AE53: 0 | AF53: ปานกลาง | AT53: B | AU53: ถนนหรือแนวพื้นที่ | AV53: 4 | AW53: line_item | AX53: รายการใช้จ่าย | AY53: child | AZ53: FALSE | BA53: ไม่ปรากฏในเอกสาร | BD53: ยังไม่ระบุพิกัด | BG53: 188,047,386 | BH53: 0 | BI53: 0 | BJ53: ค่าที่ดินและสิ่งก่อสร้าง | BK53: 117 | BL53: ค่าที่ดินและสิ่งก่อสร้าง | BM53: ยังไม่ยืนยันความสัมพันธ์งบหลัก–งบย่อย | BO53: เขตดุสิต | BP53: รายการภายในงบหลัก | BT53: 0 | BU53: not_applicable | BV53: [] | BW53: ตรวจรหัส ชื่อ และวงเงินด้วยกฎอัตโนมัติ; ควรเทียบภาพ PDF ก่อนใช้อ้างอิงทางการ | BX53: ไม่ปรากฏในเอกสาร | BY53: ไม่ปรากฏในเอกสาร | BZ53: สำนักส่วนกลาง | CA53: 70015-123-05399-2-1 | CB53: ข้อมูลตั้งงบประมาณปี 2570 ที่แปลงจาก PDF เป็น Machine-Readable; ไม่ใช่ยอดเบิกจ่ายหรือราคาสัญญา | CC53: 121
A54: ดุสิต | B54: สำนักการระบายน้ำ | C54: สร้างเขื่อนคลองสามเสนและปรับปรุงทางเดินริมคลอง | D54: 85,000,000 | E54: ระบบระบายน้ำและป้องกันน้ำท่วม | F54: รายการใช้จ่าย | G54: area_projection | H54: แนวคลองหลายพื้นที่ ไม่แยกวงเงินรายเขต | I54: วงเงินร่วมหลายพื้นที่: ห้ามนับเต็มซ้ำในแต่ละเขต | J54: VIEW-00316 | K54: BKK70-CEN-DRA-010 | L54: RAW-70015-50-line-2-1-2-1 | M54: BKK70-RAW-70015-50-line-2-1-2-1 | N54: CANON-VIEW-00316 | O54: BKK70-CEN-DRA-010 | P54: 05315-13 | Q54: ก่อสร้างเขื่อน ค.ส.ล. คลองสามเสน ช่วงจากถนนสามเสนถึงถนนพระรามที่ 6 และปรับปรุงทางเดินหลังเขื่อน จากถนนพระรามที่ 6 ถึงอนุสาวรีย์ชัยสมรภูมิ | R54: ก่อสร้างเขื่อนคอนกรีตยาวประมาณ 2,100 เมตร ปรับปรุงทางเดินยาว 5,400 เมตร ติดตั้งบันได 150 แห่ง และราวกันตกประมาณ 7,500 เมตร | S54: 70015 - สำนักการระบายน้ำ - งบประมาณ พ.ศ. 2570.pdf | T54: 66 | U54: https://drive.google.com/file/d/19B2U5T7iWxi_s62-_EDEnnFypzgc-Frf/view?usp=drivesdk | W54: FALSE | X54: TRUE | Y54: 0 | Z54: ก่อสร้างและปรับปรุง | AC54: document | AD54: 0 | AE54: 0 | AF54: สูง | AT54: B | AU54: แนวถนน คลอง หรือพื้นที่ | AV54: 4 | AW54: line_item | AX54: รายการใช้จ่าย | AY54: child | AZ54: TRUE | BA54: คลองสามเสน; อนุสาวรีย์ชัยสมรภูมิ | BC54: area_projection | BD54: ชื่อแนวโครงการเกี่ยวข้องกับพื้นที่ดุสิต แต่ PDF ไม่แจกแจงแนวเขตตลอดเส้น | BF54: คลองสามเสน จากถนนสามเสนถึงถนนพระรามที่ 6 และต่อถึงอนุสาวรีย์ชัยสมรภูมิ เขตดุสิต กรุงเทพมหานคร | BG54: 1,133,626,506 | BJ54: ค่าที่ดินและสิ่งก่อสร้าง | BK54: 50 | BL54: ค่าที่ดินและสิ่งก่อสร้าง | BO54: คลองสามเสน จากถนนสามเสนถึงถนนพระรามที่ 6 และต่อถึงอนุสาวรีย์ชัยสมรภูมิ | BP54: เกี่ยวข้องหลายพื้นที่ | BT54: 0 | BU54: not_applicable | BV54: [] | BW54: ยืนยันเป็นโครงการร่วมแล้ว เมื่อ 23 กรกฎาคม 2569; ยังไม่มีวงเงินแยกรายเขต | BX54: ถนนสามเสน; ถนนพระรามที่ 6 | BY54: ไม่ปรากฏในเอกสาร | BZ54: สำนักส่วนกลาง | CB54: รายการที่ตั้งงบประมาณปี 2570 ตามเอกสาร ไม่ใช่ยอดเบิกจ่าย ราคาสัญญา หรือหลักฐานว่าเริ่มดำเนินงานแล้ว | CC54: 64
A55: ดุสิต | B55: สำนักการโยธา | C55: ปรับปรุงถนนประดิพัทธ์จากแยกสะพานแดงถึงถนนเทอดดำริ | D55: 69,125,000 | E55: ถนนและทางเท้า | F55: รายการใช้จ่าย | G55: area_projection | H55: เฉพาะแนวถนนในเขตดุสิต | I55: รายการจากสำนักส่วนกลาง: วงเงินเฉพาะพื้นที่ แต่ไม่นับรวมยอดสำนักงานเขต | J55: VIEW-00303 | K55: BKK70-CEN-YOT-009 | L55: RAW-70014-56-line-2-1-2-1 | M55: BKK70-RAW-70014-56-line-2-1-2-1 | N55: RAW-70014-60-05312-2-1 | O55: BKK70-RAW-70014-60-05312-2-1 | P55: 05312-2 | Q55: ก่อสร้างปรับปรุงถนนประดิพัทธ์จากแยกสะพานแดงถึงถนนเทอดดำริ | R55: ก่อสร้างปรับปรุงถนน 6 ช่องจราจรยาวประมาณ 550 เมตร พร้อมแยกสะพานแดง ทางเท้า ระบบระบายน้ำ ไฟส่องสว่าง และเครื่องหมายจราจร | S55: 70014 - สำนักการโยธา - งบประมาณ พ.ศ. 2570.pdf | T55: 60-61 | U55: https://drive.google.com/file/d/16Y16ZUrhcuEhxuguxxGQ2TmFH4fxxBaT/view?usp=drivesdk | V55: 69,125,000 | W55: FALSE | X55: FALSE | Y55: 0 | Z55: ก่อสร้างและปรับปรุง | AC55: document | AD55: 0 | AE55: 0 | AF55: สูง | AT55: B | AU55: แนวถนน คลอง หรือพื้นที่ | AV55: 4 | AW55: line_item | AX55: รายการใช้จ่าย | AY55: child | AZ55: FALSE | BA55: แยกสะพานแดง | BC55: area_projection | BD55: ตรวจแนวถนนจากแยกสะพานแดงถึงถนนเทอดดำริแล้วว่าอยู่ในเขตดุสิต; ยังไม่บันทึกแนวเส้น | BF55: แยกสะพานแดง เขตดุสิต กรุงเทพมหานคร | BG55: 2,114,522,630 | BJ55: ค่าที่ดินและสิ่งก่อสร้าง | BK55: 56 | BL55: ค่าที่ดินและสิ่งก่อสร้าง | BO55: ถนนประดิพัทธ์ จากแยกสะพานแดงถึงถนนเทอดดำริ | BP55: หลัก | BT55: 0 | BU55: not_applicable | BV55: [] | BW55: ยืนยันเป็นงบจากสำนักส่วนกลางที่ลงในเขตดุสิตแล้ว เมื่อ 23 กรกฎาคม 2569 | BX55: ถนนประดิพัทธ์ | BY55: ไม่ปรากฏในเอกสาร | BZ55: สำนักส่วนกลาง | CB55: รายการที่ตั้งงบประมาณปี 2570 ตามเอกสาร ไม่ใช่ยอดเบิกจ่าย ราคาสัญญา หรือหลักฐานว่าเริ่มดำเนินงานแล้ว | CC55: 58
A56: ดุสิต | B56: สำนักการระบายน้ำ | C56: เดินระบบและดูแลอุโมงค์ระบายน้ำใต้คลองบางซื่อ | D56: 48,000,000 | E56: ระบบระบายน้ำและป้องกันน้ำท่วม | F56: รายการใช้จ่าย | G56: area_projection | H56: วงเงินรวมหลายเขต ไม่แยกรายเขต | I56: วงเงินร่วมหลายพื้นที่: ห้ามนับเต็มซ้ำในแต่ละเขต | J56: VIEW-00305 | K56: BKK70-CEN-DRA-002 | L56: HIER-70015-5d8cdb488dba | M56: BKK70-HIER-70015-5d8cdb488dba | N56: RAW-70015-44-07199-1-1 | O56: BKK70-RAW-70015-44-07199-1-1 | P56: 07199-1 | Q56: เดินระบบ บำรุงรักษา และบริหารจัดการอุโมงค์ระบายน้ำใต้คลองบางซื่อ จากคลองลาดพร้าวถึงแม่น้ำเจ้าพระยา ระยะที่ 2 | R56: จ้างเดินระบบ บำรุงรักษา และซ่อมแซมอุโมงค์ สถานีสูบน้ำ อาคารรับน้ำ 3 แห่ง และอาคารทิ้งน้ำ | S56: 70015 - สำนักการระบายน้ำ - งบประมาณ พ.ศ. 2570.pdf | T56: 43-44 | U56: https://drive.google.com/file/d/19B2U5T7iWxi_s62-_EDEnnFypzgc-Frf/view?usp=drivesdk | W56: FALSE | X56: TRUE | Y56: 0 | Z56: จ้างเดินระบบและบำรุงรักษา | AC56: document | AD56: 0 | AE56: 0 | AF56: สูง | AT56: C | AU56: ครอบคลุมหลายจุดหรือหลายเขต | AV56: 2 | AW56: line_item | AX56: รายการใช้จ่าย | AY56: child | AZ56: TRUE | BA56: อุโมงค์ระบายน้ำใต้คลองบางซื่อ | BC56: area_projection | BD56: เอกสารระบุเขตที่ครอบคลุม แต่ไม่แจกแจงตำแหน่งย่อย | BF56: อุโมงค์ระบายน้ำใต้คลองบางซื่อ เขตดุสิต กรุงเทพมหานคร | BG56: 154,710,600 | BJ56: งบรายจ่ายอื่น | BK56: 43 | BL56: งบรายจ่ายอื่น | BN56: 41 | BO56: อุโมงค์ใต้คลองบางซื่อ จากคลองลาดพร้าวถึงแม่น้ำเจ้าพระยา | BP56: เกี่ยวข้องหลายพื้นที่ | BT56: 0 | BU56: not_applicable | BV56: [] | BW56: ยืนยันเป็นโครงการร่วมแล้ว เมื่อ 23 กรกฎาคม 2569; ยังไม่มีวงเงินแยกรายเขต | BX56: ไม่ปรากฏในเอกสาร | BY56: ไม่ปรากฏในเอกสาร | BZ56: สำนักส่วนกลาง | CB56: รายการที่ตั้งงบประมาณปี 2570 ตามเอกสาร ไม่ใช่ยอดเบิกจ่าย ราคาสัญญา หรือหลักฐานว่าเริ่มดำเนินงานแล้ว | CC56: 42
A57: ดุสิต | B57: สำนักการโยธา | C57: ปรับปรุงถนนและทางเท้าถนนพระรามที่ 5 | D57: 48,000,000 | E57: ถนนและทางเท้า | F57: รายการใช้จ่าย | G57: area_projection | H57: เฉพาะแนวถนนในเขต | I57: รายการจากสำนักส่วนกลาง: วงเงินเฉพาะพื้นที่ แต่ไม่นับรวมยอดสำนักงานเขต | J57: VIEW-00301 | K57: BKK70-CEN-YOT-007 | L57: HIER-70014-ee7f2f179189 | M57: BKK70-HIER-70014-ee7f2f179189 | N57: CANON-VIEW-00301 | O57: BKK70-CEN-YOT-007 | P57: 05313-34 | Q57: ปรับปรุงผิวจราจรและทางเท้าถนนพระรามที่ 5 ช่วงจากถนนพิษณุโลกถึงถนนประดิพัทธ์ พื้นที่เขตดุสิต | R57: ปรับปรุงทางเท้าประมาณ 9,600 ตารางเมตร และผิวจราจรประมาณ 46,282 ตารางเมตร จากถนนพิษณุโลกถึงถนนประดิพัทธ์ | S57: 70014 - สำนักการโยธา - งบประมาณ พ.ศ. 2570.pdf | T57: 68 | U57: https://drive.google.com/file/d/16Y16ZUrhcuEhxuguxxGQ2TmFH4fxxBaT/view?usp=drivesdk | V57: 48,000,000 | W57: FALSE | X57: FALSE | Y57: 0 | Z57: ปรับปรุง | AC57: document | AD57: 0 | AE57: 0 | AF57: สูง | AT57: B | AU57: แนวถนน คลอง หรือพื้นที่ | AV57: 4 | AW57: line_item | AX57: รายการใช้จ่าย | AY57: child | AZ57: TRUE | BA57: ช่วงถนนพิษณุโลก-ถนนประดิพัทธ์ | BC57: area_projection | BD57: เอกสารระบุชื่อถนน ช่วงถนน และเขต; ไม่บันทึกแนวเส้น | BF57: ช่วงถนนพิษณุโลก-ถนนประดิพัทธ์ เขตดุสิต กรุงเทพมหานคร | BG57: 995,893,499 | BJ57: ค่าที่ดินและสิ่งก่อสร้าง | BK57: 67 | BL57: ค่าที่ดินและสิ่งก่อสร้าง | BN57: 65 | BO57: ถนนพระรามที่ 5 จากถนนพิษณุโลกถึงถนนประดิพัทธ์ | BP57: หลัก | BT57: 0 | BU57: not_applicable | BV57: [] | BW57: ตรวจภาพต้นฉบับแล้ว | BX57: ถนนพระรามที่ 5 | BY57: ไม่ปรากฏในเอกสาร | BZ57: สำนักส่วนกลาง | CB57: รายการที่ตั้งงบประมาณปี 2570 ตามเอกสาร ไม่ใช่ยอดเบิกจ่าย ราคาสัญญา หรือหลักฐานว่าเริ่มดำเนินงานแล้ว | CC57: 66
A58: ดุสิต | B58: สำนักการระบายน้ำ | C58: ปรับปรุงท่อและสถานีสูบน้ำเสียที่ได้รับผลกระทบจากรถไฟเชื่อมสามสนามบิน | D58: 40,000,000 | E58: ระบบระบายน้ำและป้องกันน้ำท่วม | F58: รายการใช้จ่าย | G58: area_projection | H58: รวมพื้นที่ต่อเนื่องหลายเขต | I58: วงเงินร่วมหลายพื้นที่: ห้ามนับเต็มซ้ำในแต่ละเขต | J58: VIEW-00315 | K58: BKK70-CEN-DRA-009 | L58: HIER-70015-a6298cc212ad | M58: BKK70-HIER-70015-a6298cc212ad | N58: RAW-70015-136-05399-1-1 | O58: BKK70-RAW-70015-136-05399-1-1 | P58: 05399-1 | Q58: ปรับปรุงระบบรวบรวมน้ำเสียโรงควบคุมคุณภาพน้ำดินแดงที่ได้รับผลกระทบจากโครงการรถไฟเชื่อมสามสนามบิน | R58: สร้างท่อรวบรวมน้ำเสียขนาด 1.20 เมตร ยาวประมาณ 2,160 เมตร ท่อขนาด 0.40 เมตร ยาวประมาณ 1,140 เมตร และสถานีสูบน้ำเสีย 2 แห่ง | S58: 70015 - สำนักการระบายน้ำ - งบประมาณ พ.ศ. 2570.pdf | T58: 135-136 | U58: https://drive.google.com/file/d/19B2U5T7iWxi_s62-_EDEnnFypzgc-Frf/view?usp=drivesdk | W58: FALSE | X58: TRUE | Y58: 118,231,800 | Z58: ก่อสร้างและปรับปรุง | AC58: document | AD58: 0 | AE58: 0 | AF58: สูง | AT58: B | AU58: แนวถนน คลอง หรือพื้นที่ | AV58: 1 | AW58: line_item | AX58: รายการใช้จ่าย | AY58: child | AZ58: TRUE | BA58: คลองเปรมประชากร; คลองสามเสน | BC58: area_projection | BD58: เอกสารระบุเขตดุสิตและพื้นที่ต่อเนื่อง แต่ไม่แจกแจงแนวท่อดิจิทัล | BG58: 40,000,000 | BJ58: โครงการปรับปรุงระบบรวบรวมน้ำเสียโรงควบคุมคุณภาพน้ำดินแดง | BK58: 136 | BL58: โครงการปรับปรุงระบบรวบรวมน้ำเสียโรงควบคุมคุณภาพน้ำดินแดง | BN58: 134 | BO58: บริเวณคลองเปรมประชากรและคลองสามเสน; เขตดุสิตและพื้นที่ต่อเนื่อง | BP58: หลัก | BT58: 0 | BU58: not_applicable | BV58: [] | BW58: ยืนยันเป็นโครงการร่วมแล้ว เมื่อ 23 กรกฎาคม 2569; ยังไม่มีวงเงินแยกรายเขต | BX58: ไม่ปรากฏในเอกสาร | BY58: ไม่ปรากฏในเอกสาร | BZ58: สำนักส่วนกลาง | CB58: รายการที่ตั้งงบประมาณปี 2570 ตามเอกสาร ไม่ใช่ยอดเบิกจ่าย ราคาสัญญา หรือหลักฐานว่าเริ่มดำเนินงานแล้ว
A59: ดุสิต | B59: สำนักการโยธา | C59: ปรับปรุงทางเท้าถนนราชดำเนินนอก | D59: 39,000,000 | E59: ถนนและทางเท้า | F59: รายการใช้จ่าย | G59: area_projection | H59: วงเงินรวมหลายเขต ไม่แยกรายเขต | I59: วงเงินร่วมหลายพื้นที่: ห้ามนับเต็มซ้ำในแต่ละเขต | J59: VIEW-00299 | K59: BKK70-CEN-YOT-006 | L59: HIER-70014-ee7f2f179189 | M59: BKK70-HIER-70014-ee7f2f179189 | N59: CANON-VIEW-00299 | O59: BKK70-CEN-YOT-006 | P59: 05313-33 | Q59: ปรับปรุงทางเท้าถนนราชดำเนินนอก ช่วงจากถนนศรีอยุธยาถึงถนนนครสวรรค์ พื้นที่เขตดุสิตและเขตป้อมปราบศัตรูพ่าย | R59: ปรับปรุงทางเท้ากระเบื้องซีเมนต์พื้นที่ประมาณ 23,100 ตารางเมตร จากถนนศรีอยุธยาถึงถนนนครสวรรค์ | S59: 70014 - สำนักการโยธา - งบประมาณ พ.ศ. 2570.pdf | T59: 68 | U59: https://drive.google.com/file/d/16Y16ZUrhcuEhxuguxxGQ2TmFH4fxxBaT/view?usp=drivesdk | W59: FALSE | X59: TRUE | Y59: 0 | Z59: ปรับปรุง | AC59: document | AD59: 0 | AE59: 0 | AF59: สูง | AT59: B | AU59: แนวถนน คลอง หรือพื้นที่ | AV59: 4 | AW59: line_item | AX59: รายการใช้จ่าย | AY59: child | AZ59: TRUE | BA59: ช่วงถนนศรีอยุธยา-ถนนนครสวรรค์ | BC59: area_projection | BD59: เอกสารระบุชื่อถนน ช่วงถนน และชื่อทั้งสองเขต; ไม่บันทึกแนวเส้น | BF59: ช่วงถนนศรีอยุธยา-ถนนนครสวรรค์ เขตดุสิต กรุงเทพมหานคร | BG59: 995,893,499 | BJ59: ค่าที่ดินและสิ่งก่อสร้าง | BK59: 67 | BL59: ค่าที่ดินและสิ่งก่อสร้าง | BN59: 65 | BO59: ถนนราชดำเนินนอก จากถนนศรีอยุธยาถึงถนนนครสวรรค์ | BP59: หลัก | BT59: 0 | BU59: not_applicable | BV59: [] | BW59: ยืนยันเป็นโครงการร่วมแล้ว เมื่อ 23 กรกฎาคม 2569; ยังไม่มีวงเงินแยกรายเขต | BX59: ถนนราชดำเนินนอก | BY59: ไม่ปรากฏในเอกสาร | BZ59: สำนักส่วนกลาง | CB59: รายการที่ตั้งงบประมาณปี 2570 ตามเอกสาร ไม่ใช่ยอดเบิกจ่าย ราคาสัญญา หรือหลักฐานว่าเริ่มดำเนินงานแล้ว | CC59: 66
A60: ดุสิต | B60: สำนักงานเขตดุสิต | C60: ค่าใช้จ่ายและการลงทุนของโรงเรียนสังกัดเขต | D60: 37,970,470 | E60: โรงเรียนและการศึกษา | F60: งาน/โครงการ | H60: ยอดรวมงาน/โครงการของสำนักงานเขต | I60: นับในยอดรวมสำนักงานเขต | J60: VIEW-00286 | K60: BKK70-DST-W-022 | P60: 1300022 | Q60: งานงบประมาณโรงเรียน | R60: งบรวมสำหรับค่าใช้จ่ายและการลงทุนของโรงเรียนสังกัดเขต ตามกรอบงานหรือโครงการของสำนักงานเขต | S60: 70033 - สำนักงานเขตดุสิต - งบประมาณ พ.ศ. 2570.pdf | T60: 4 | U60: https://drive.google.com/file/d/1w6-VfEbqdEjXXUiOGW9pCY4WTQo4mcnj/view?usp=drivesdk | W60: TRUE | X60: FALSE | Z60: บริหารหรือดำเนินงาน | AD60: 37,970,470 | AE60: 54 | AF60: สูง | AT60: C | AU60: ครอบคลุมหลายจุดหรือทั้งเขต | AV60: 0 | AY60: exact | AZ60: TRUE | BA60: ไม่ปรากฏในเอกสาร | BD60: ยังไม่ระบุพิกัด | BH60: 37,970,470 | BI60: 54 | BM60: งบย่อยรวมตรงกับงบหลัก | BO60: หลายพื้นที่/ทั้งเขต | BP60: งานบริการทั้งเขต | BT60: 0 | BU60: exact | BV60: [] | BW60: ตรวจยอดรวมระดับงาน/โครงการแล้ว | BX60: ไม่ปรากฏในเอกสาร | BY60: ไม่ปรากฏในเอกสาร | BZ60: สำนักงานเขต | CB60: รายการที่ตั้งงบประมาณปี 2570 ตามเอกสาร ไม่ใช่ยอดเบิกจ่าย ราคาสัญญา หรือหลักฐานว่าเริ่มดำเนินงานแล้ว
A61: ดุสิต | B61: สำนักการระบายน้ำ | C61: สร้างและปรับปรุงระบบรวบรวมน้ำเสียแถวราชวิถี-ศรีอยุธยา-คลองสามเสน | D61: 30,000,000 | E61: ระบบระบายน้ำและป้องกันน้ำท่วม | F61: รายการใช้จ่าย | G61: area_projection | H61: เฉพาะพื้นที่ในเขต | I61: รายการจากสำนักส่วนกลาง: วงเงินเฉพาะพื้นที่ แต่ไม่นับรวมยอดสำนักงานเขต | J61: VIEW-00313 | K61: BKK70-CEN-DRA-007 | L61: RAW-70015-117-line-2-2-1 | M61: BKK70-RAW-70015-117-line-2-2-1 | N61: RAW-70015-117-05399-5-1 | O61: BKK70-RAW-70015-117-05399-5-1 | P61: 05399-5 | Q61: ก่อสร้างและปรับปรุงระบบรวบรวมน้ำเสียบริเวณถนนราชวิถี ถนนศรีอยุธยา และริมคลองสามเสน พื้นที่เขตดุสิต | R61: ก่อสร้างบ่อสูบน้ำเสีย บ่อเกรอะ ระบบรวบรวมน้ำเสีย และงานที่เกี่ยวข้องในพื้นที่เขตดุสิต | S61: 70015 - สำนักการระบายน้ำ - งบประมาณ พ.ศ. 2570.pdf | T61: 117-118 | U61: https://drive.google.com/file/d/19B2U5T7iWxi_s62-_EDEnnFypzgc-Frf/view?usp=drivesdk | V61: 30,000,000 | W61: FALSE | X61: FALSE | Y61: 0 | Z61: ก่อสร้างและปรับปรุง | AC61: document | AD61: 0 | AE61: 0 | AF61: สูง | AT61: B | AU61: แนวถนน คลอง หรือพื้นที่ | AV61: 4 | AW61: line_item | AX61: รายการใช้จ่าย | AY61: child | AZ61: TRUE | BA61: ริมคลองสามเสน | BC61: area_projection | BD61: เอกสารระบุถนน คลอง และชื่อเขต; ไม่บันทึกแนวเส้น | BF61: ริมคลองสามเสน เขตดุสิต กรุงเทพมหานคร | BG61: 188,047,386 | BJ61: ค่าที่ดินและสิ่งก่อสร้าง | BK61: 117 | BL61: ค่าที่ดินและสิ่งก่อสร้าง | BO61: ถนนราชวิถี ถนนศรีอยุธยา และริมคลองสามเสน เขตดุสิต | BP61: หลัก | BT61: 0 | BU61: not_applicable | BV61: [] | BW61: ตรวจภาพต้นฉบับแล้ว | BX61: ถนนราชวิถี; ถนนศรีอยุธยา | BY61: ไม่ปรากฏในเอกสาร | BZ61: สำนักส่วนกลาง | CB61: รายการที่ตั้งงบประมาณปี 2570 ตามเอกสาร ไม่ใช่ยอดเบิกจ่าย ราคาสัญญา หรือหลักฐานว่าเริ่มดำเนินงานแล้ว | CC61: 115
A62: ดุสิต | B62: สำนักการระบายน้ำ | C62: ก่อสร้างและปรับปรุงระบบรวบรวมน้ำเสีย บริเวณถนนราชวิถี ถนนศรีอยุธยา และริมคลองสามเสน พื้นที่เขตดุสิต | D62: 30,000,000 | E62: ระบายน้ำและป้องกันน้ำท่วม | F62: รายการใช้จ่าย | G62: canonical | H62: รายการของสำนักส่วนกลางที่ระบุชื่อเขต | I62: รายการจากสำนักส่วนกลาง: ระบุชื่อเขตชัดในเอกสาร | J62: RAW-70015-117-05399-5-1 | K62: BKK70-RAW-70015-117-05399-5-1 | L62: RAW-70015-117-line-2-2-1 | M62: BKK70-RAW-70015-117-line-2-2-1 | N62: RAW-70015-117-05399-5-1 | O62: BKK70-RAW-70015-117-05399-5-1 | P62: 05399-5 | Q62: ก่อสร้างและปรับปรุงระบบรวบรวมน้ำเสีย บริเวณถนนราชวิถี ถนนศรีอยุธยา และริมคลองสามเสน พื้นที่เขตดุสิต | R62: ก่อสร้างและปรับปรุงระบบรวบรวมน้ำเสีย บริเวณถนนราชวิถี ถนนศรีอยุธยา และริมคลองสามเสน พื้นที่เขตดุสิต — รายละเอียด: ก่อสร้างบ่อสูบน้ำเสีย ขนาด 2.40 x 2.40 เมตร จำนวน 1 บ่อ • ก่อสร้างบ่อเกรอะ ขนาด 2.40 x 2.40 เมตร จำนวน 1 บ่อ • ก่อสร้างบ่อเกรอะสำเร็จรูป ขนาด 2.00 ลบ.ม. จำนวน 1 บ่อ — อยู่ในผลผลิตจัดการคุณภาพน้ำ | S62: 70015 - สำนักการระบายน้ำ - งบประมาณ พ.ศ. 2570.pdf | T62: 117 | U62: https://drive.google.com/file/d/19B2U5T7iWxi_s62-_EDEnnFypzgc-Frf/view?usp=drivesdk | V62: 30,000,000 | W62: FALSE | X62: FALSE | Z62: ก่อสร้างหรือปรับปรุง | AC62: document | AD62: 0 | AE62: 0 | AF62: ปานกลาง | AT62: B | AU62: ถนนหรือแนวพื้นที่ | AV62: 4 | AW62: line_item | AX62: รายการใช้จ่าย | AY62: child | AZ62: FALSE | BA62: ไม่ปรากฏในเอกสาร | BD62: ยังไม่ระบุพิกัด | BG62: 188,047,386 | BH62: 0 | BI62: 0 | BJ62: ค่าที่ดินและสิ่งก่อสร้าง | BK62: 117 | BL62: ค่าที่ดินและสิ่งก่อสร้าง | BM62: ยังไม่ยืนยันความสัมพันธ์งบหลัก–งบย่อย | BO62: เขตดุสิต | BP62: รายการภายในงบหลัก | BT62: 0 | BU62: not_applicable | BV62: [] | BW62: ตรวจรหัส ชื่อ และวงเงินด้วยกฎอัตโนมัติ; ควรเทียบภาพ PDF ก่อนใช้อ้างอิงทางการ | BX62: ไม่ปรากฏในเอกสาร | BY62: ไม่ปรากฏในเอกสาร | BZ62: สำนักส่วนกลาง | CA62: 70015-117-05399-5-1 | CB62: ข้อมูลตั้งงบประมาณปี 2570 ที่แปลงจาก PDF เป็น Machine-Readable; ไม่ใช่ยอดเบิกจ่ายหรือราคาสัญญา | CC62: 115
A63: ดุสิต | B63: สำนักงานเขตดุสิต | C63: บริหารงานรักษาความสะอาด | D63: 21,187,980 | E63: ความสะอาดและขยะ | F63: งาน/โครงการ | H63: ยอดรวมงาน/โครงการของสำนักงานเขต | I63: นับในยอดรวมสำนักงานเขต | J63: VIEW-00271 | K63: BKK70-DST-W-007 | P63: 1300006 | Q63: งานบริหารทั่วไปฝ่ายรักษาความสะอาด | R63: งบรวมสำหรับบริหารงานรักษาความสะอาด ตามกรอบงานหรือโครงการของสำนักงานเขต | S63: 70033 - สำนักงานเขตดุสิต - งบประมาณ พ.ศ. 2570.pdf | T63: 3 | U63: https://drive.google.com/file/d/1w6-VfEbqdEjXXUiOGW9pCY4WTQo4mcnj/view?usp=drivesdk | W63: TRUE | X63: FALSE | Z63: บริหารหรือดำเนินงาน | AD63: 21,187,980 | AE63: 6 | AF63: สูง | AT63: D | AU63: งบบริหารภายใน | AV63: 0 | AY63: exact | AZ63: FALSE | BA63: ไม่ปรากฏในเอกสาร | BD63: ยังไม่ระบุพิกัด | BH63: 21,187,980 | BI63: 6 | BM63: งบย่อยรวมตรงกับงบหลัก | BO63: ไม่ปรากฏในเอกสาร | BP63: งบบริหารภายใน | BT63: 0 | BU63: exact | BV63: [] | BW63: ตรวจยอดรวมระดับงาน/โครงการแล้ว | BX63: ไม่ปรากฏในเอกสาร | BY63: ไม่ปรากฏในเอกสาร | BZ63: สำนักงานเขต | CB63: รายการที่ตั้งงบประมาณปี 2570 ตามเอกสาร ไม่ใช่ยอดเบิกจ่าย ราคาสัญญา หรือหลักฐานว่าเริ่มดำเนินงานแล้ว
A64: ดุสิต | B64: สำนักงานเขตดุสิต | C64: บริหารและให้บริการสำนักงานเขต | D64: 20,924,272 | E64: อาคารและสถานที่ราชการ | F64: งาน/โครงการ | H64: ยอดรวมงาน/โครงการของสำนักงานเขต | I64: นับในยอดรวมสำนักงานเขต | J64: VIEW-00266 | K64: BKK70-DST-W-002 | P64: 1300001 | Q64: งานอำนวยการและบริหารสำนักงานเขต | R64: งบรวมสำหรับบริหารและให้บริการสำนักงานเขต ตามกรอบงานหรือโครงการของสำนักงานเขต | S64: 70033 - สำนักงานเขตดุสิต - งบประมาณ พ.ศ. 2570.pdf | T64: 3 | U64: https://drive.google.com/file/d/1w6-VfEbqdEjXXUiOGW9pCY4WTQo4mcnj/view?usp=drivesdk | W64: TRUE | X64: FALSE | Z64: บริหารหรือดำเนินงาน | AD64: 20,924,272 | AE64: 10 | AF64: สูง | AT64: D | AU64: งบบริหารภายใน | AV64: 0 | AY64: exact | AZ64: FALSE | BA64: ไม่ปรากฏในเอกสาร | BD64: ยังไม่ระบุพิกัด | BH64: 20,924,272 | BI64: 10 | BM64: งบย่อยรวมตรงกับงบหลัก | BO64: ไม่ปรากฏในเอกสาร | BP64: งบบริหารภายใน | BT64: 0 | BU64: exact | BV64: [] | BW64: ตรวจยอดรวมระดับงาน/โครงการแล้ว | BX64: ไม่ปรากฏในเอกสาร | BY64: ไม่ปรากฏในเอกสาร | BZ64: สำนักงานเขต | CB64: รายการที่ตั้งงบประมาณปี 2570 ตามเอกสาร ไม่ใช่ยอดเบิกจ่าย ราคาสัญญา หรือหลักฐานว่าเริ่มดำเนินงานแล้ว
A65: ดุสิต | B65: สำนักการจราจรและขนส่ง | C65: บริหารการเดินเรือคลองผดุงกรุงเกษม | D65: 20,642,822 | E65: ถนนและทางเท้า | F65: รายการใช้จ่าย | G65: area_projection | H65: แนวคลองหลายพื้นที่ ไม่แยกวงเงินรายเขต | I65: วงเงินร่วมหลายพื้นที่: ห้ามนับเต็มซ้ำในแต่ละเขต | J65: VIEW-00323 | K65: BKK70-CEN-TRF-004 | L65: HIER-70018-45d1f85912f0 | M65: BKK70-HIER-70018-45d1f85912f0 | N65: CANON-VIEW-00323 | O65: BKK70-CEN-TRF-004 | P65: 07199-3 | Q65: ค่าใช้จ่ายในการพัฒนาระบบการเดินเรือในคลองผดุงกรุงเกษม ระยะที่ 2 | R65: บริหารจัดการเดินเรือในคลองผดุงกรุงเกษม โดยเส้นทางเชื่อมย่านตลาดโบ๊เบ๊และท่าเทเวศร์ | S65: 70018 - สำนักการจราจรและขนส่ง - งบประมาณ พ.ศ. 2570.pdf | T65: 40 | U65: https://drive.google.com/file/d/1-947x5WJCaV-kwSzaKeO253Y5L4A5IIb/view?usp=drivesdk | W65: FALSE | X65: TRUE | Y65: 0 | Z65: จ้างบริการเดินเรือ | AC65: document | AD65: 0 | AE65: 0 | AF65: สูง | AT65: B | AU65: แนวถนน คลอง หรือพื้นที่ | AV65: 2 | AW65: line_item | AX65: รายการใช้จ่าย | AY65: child | AZ65: TRUE | BA65: ตลาดโบ๊เบ๊; ท่าเทเวศร์ | BC65: area_projection | BD65: ชื่อคลองจาก PDF; จุดเชื่อมย่านจากหน้ารายละเอียดโครงการ กทม.; ต้องตรวจแนวเขตหากทำแผนที่ | BF65: คลองผดุงกรุงเกษม เขตดุสิต กรุงเทพมหานคร | BG65: 1,850,084,858 | BJ65: งบรายจ่ายอื่น | BK65: 37 | BL65: งบรายจ่ายอื่น | BN65: 35 | BO65: คลองผดุงกรุงเกษม | BP65: เกี่ยวข้องหลายพื้นที่ | BT65: 0 | BU65: not_applicable | BV65: [] | BW65: ยืนยันเป็นโครงการร่วมแล้ว เมื่อ 23 กรกฎาคม 2569; ยังไม่มีวงเงินแยกรายเขต | BX65: คลองผดุงกรุงเกษม | BY65: ไม่ปรากฏในเอกสาร | BZ65: สำนักส่วนกลาง | CB65: รายการที่ตั้งงบประมาณปี 2570 ตามเอกสาร ไม่ใช่ยอดเบิกจ่าย ราคาสัญญา หรือหลักฐานว่าเริ่มดำเนินงานแล้ว | CC65: 38
A66: ดุสิต | B66: สำนักงานเขตดุสิต | C66: ซ่อมถนน ทางเท้า และโครงสร้างในความรับผิดชอบ | D66: 14,104,500 | E66: ถนนและทางเท้า | F66: งาน/โครงการ | H66: ยอดรวมงาน/โครงการของสำนักงานเขต | I66: นับในยอดรวมสำนักงานเขต | J66: VIEW-00279 | K66: BKK70-DST-W-015 | P66: 1300014 | Q66: งานบำรุงรักษาซ่อมแซม | R66: งบรวมสำหรับซ่อมถนน ทางเท้า และโครงสร้างในความรับผิดชอบ ตามกรอบงานหรือโครงการของสำนักงานเขต | S66: 70033 - สำนักงานเขตดุสิต - งบประมาณ พ.ศ. 2570.pdf | T66: 3 | U66: https://drive.google.com/file/d/1w6-VfEbqdEjXXUiOGW9pCY4WTQo4mcnj/view?usp=drivesdk | W66: TRUE | X66: FALSE | Z66: ซ่อมแซมและบำรุงรักษา | AD66: 14,104,500 | AE66: 5 | AF66: สูง | AT66: C | AU66: ครอบคลุมหลายจุดหรือทั้งเขต | AV66: 0 | AY66: exact | AZ66: TRUE | BA66: ไม่ปรากฏในเอกสาร | BD66: ยังไม่ระบุพิกัด | BH66: 14,104,500 | BI66: 5 | BM66: งบย่อยรวมตรงกับงบหลัก | BO66: หลายพื้นที่/ทั้งเขต | BP66: งานบริการทั้งเขต | BT66: 0 | BU66: exact | BV66: [] | BW66: ตรวจยอดรวมระดับงาน/โครงการแล้ว | BX66: ไม่ปรากฏในเอกสาร | BY66: ไม่ปรากฏในเอกสาร | BZ66: สำนักงานเขต | CB66: รายการที่ตั้งงบประมาณปี 2570 ตามเอกสาร ไม่ใช่ยอดเบิกจ่าย ราคาสัญญา หรือหลักฐานว่าเริ่มดำเนินงานแล้ว
A67: ดุสิต | B67: สำนักงานเขตดุสิต | C67: บริหารงานการศึกษาของเขต | D67: 12,229,400 | E67: โรงเรียนและการศึกษา | F67: งาน/โครงการ | H67: ยอดรวมงาน/โครงการของสำนักงานเขต | I67: นับในยอดรวมสำนักงานเขต | J67: VIEW-00285 | K67: BKK70-DST-W-021 | P67: 1300021 | Q67: งานบริหารทั่วไปฝ่ายการศึกษา | R67: งบรวมสำหรับบริหารงานการศึกษาของเขต ตามกรอบงานหรือโครงการของสำนักงานเขต | S67: 70033 - สำนักงานเขตดุสิต - งบประมาณ พ.ศ. 2570.pdf | T67: 4 | U67: https://drive.google.com/file/d/1w6-VfEbqdEjXXUiOGW9pCY4WTQo4mcnj/view?usp=drivesdk | W67: TRUE | X67: FALSE | Z67: บริหารหรือดำเนินงาน | AD67: 12,229,400 | AE67: 5 | AF67: สูง | AT67: D | AU67: งบบริหารภายใน | AV67: 0 | AY67: exact | AZ67: FALSE | BA67: ไม่ปรากฏในเอกสาร | BD67: ยังไม่ระบุพิกัด | BH67: 12,229,400 | BI67: 5 | BM67: งบย่อยรวมตรงกับงบหลัก | BO67: ไม่ปรากฏในเอกสาร | BP67: งบบริหารภายใน | BT67: 0 | BU67: exact | BV67: [] | BW67: ตรวจยอดรวมระดับงาน/โครงการแล้ว | BX67: ไม่ปรากฏในเอกสาร | BY67: ไม่ปรากฏในเอกสาร | BZ67: สำนักงานเขต | CB67: รายการที่ตั้งงบประมาณปี 2570 ตามเอกสาร ไม่ใช่ยอดเบิกจ่าย ราคาสัญญา หรือหลักฐานว่าเริ่มดำเนินงานแล้ว
A68: ดุสิต | B68: สำนักงานเขตดุสิต | C68: โรงเรียนสองภาษา | D68: 11,512,800 | E68: โรงเรียนและการศึกษา | F68: งาน/โครงการ | H68: ยอดรวมงาน/โครงการของสำนักงานเขต | I68: นับในยอดรวมสำนักงานเขต | J68: VIEW-00293 | K68: BKK70-DST-W-029 | P68: 1300022-P247 | Q68: โครงการโรงเรียนสองภาษา | R68: งบรวมสำหรับโรงเรียนสองภาษา ตามกรอบงานหรือโครงการของสำนักงานเขต | S68: 70033 - สำนักงานเขตดุสิต - งบประมาณ พ.ศ. 2570.pdf | T68: 4 | U68: https://drive.google.com/file/d/1w6-VfEbqdEjXXUiOGW9pCY4WTQo4mcnj/view?usp=drivesdk | W68: TRUE | X68: FALSE | Z68: จัดกิจกรรม/บริการประชาชน | AD68: 11,512,800 | AE68: 1 | AF68: สูง | AT68: C | AU68: ครอบคลุมหลายจุดหรือทั้งเขต | AV68: 0 | AY68: exact | AZ68: TRUE | BA68: ไม่ปรากฏในเอกสาร | BD68: ยังไม่ระบุพิกัด | BH68: 11,512,800 | BI68: 1 | BM68: งบย่อยรวมตรงกับงบหลัก | BO68: หลายพื้นที่/ทั้งเขต | BP68: งานบริการทั้งเขต | BT68: 0 | BU68: exact | BV68: [] | BW68: ตรวจยอดรวมระดับงาน/โครงการแล้ว | BX68: ไม่ปรากฏในเอกสาร | BY68: ไม่ปรากฏในเอกสาร | BZ68: สำนักงานเขต | CB68: รายการที่ตั้งงบประมาณปี 2570 ตามเอกสาร ไม่ใช่ยอดเบิกจ่าย ราคาสัญญา หรือหลักฐานว่าเริ่มดำเนินงานแล้ว
A69: ดุสิต | B69: สำนักงานเขตดุสิต | C69: บริการชุมชนและสวัสดิการ | D69: 10,810,900 | E69: ชุมชนและสวัสดิการ | F69: งาน/โครงการ | H69: ยอดรวมงาน/โครงการของสำนักงานเขต | I69: นับในยอดรวมสำนักงานเขต | J69: VIEW-00282 | K69: BKK70-DST-W-018 | P69: 1300017 | Q69: งานพัฒนาชุมชนและบริการสังคม | R69: งบรวมสำหรับบริการชุมชนและสวัสดิการ ตามกรอบงานหรือโครงการของสำนักงานเขต | S69: 70033 - สำนักงานเขตดุสิต - งบประมาณ พ.ศ. 2570.pdf | T69: 3 | U69: https://drive.google.com/file/d/1w6-VfEbqdEjXXUiOGW9pCY4WTQo4mcnj/view?usp=drivesdk | W69: TRUE | X69: FALSE | Z69: จ้างบริการ | AD69: 10,810,900 | AE69: 12 | AF69: สูง | AT69: C | AU69: ครอบคลุมหลายจุดหรือทั้งเขต | AV69: 0 | AY69: exact | AZ69: TRUE | BA69: ไม่ปรากฏในเอกสาร | BD69: ยังไม่ระบุพิกัด | BH69: 10,810,900 | BI69: 12 | BM69: งบย่อยรวมตรงกับงบหลัก | BO69: หลายพื้นที่/ทั้งเขต | BP69: งานบริการทั้งเขต | BT69: 0 | BU69: exact | BV69: [] | BW69: ตรวจยอดรวมระดับงาน/โครงการแล้ว | BX69: ไม่ปรากฏในเอกสาร | BY69: ไม่ปรากฏในเอกสาร | BZ69: สำนักงานเขต | CB69: รายการที่ตั้งงบประมาณปี 2570 ตามเอกสาร ไม่ใช่ยอดเบิกจ่าย ราคาสัญญา หรือหลักฐานว่าเริ่มดำเนินงานแล้ว
A70: ดุสิต | B70: สำนักงานเขตดุสิต | C70: ชุมชนเข้มแข็งพัฒนาตนเองตามหลักปรัชญาเศรษฐกิจพอเพียง | D70: 8,600,000 | E70: ชุมชนและสวัสดิการ | F70: งาน/โครงการ | H70: ยอดรวมงาน/โครงการของสำนักงานเขต | I70: นับในยอดรวมสำนักงานเขต | J70: VIEW-00290 | K70: BKK70-DST-W-026 | P70: 1300017-P735 | Q70: โครงการชุมชนเข้มแข็งพัฒนาตนเองตามหลักปรัชญาเศรษฐกิจพอเพียง | R70: งบรวมสำหรับชุมชนเข้มแข็งพัฒนาตนเองตามหลักปรัชญาเศรษฐกิจพอเพียง ตามกรอบงานหรือโครงการของสำนักงานเขต | S70: 70033 - สำนักงานเขตดุสิต - งบประมาณ พ.ศ. 2570.pdf | T70: 4 | U70: https://drive.google.com/file/d/1w6-VfEbqdEjXXUiOGW9pCY4WTQo4mcnj/view?usp=drivesdk | W70: TRUE | X70: FALSE | Z70: จัดกิจกรรม/บริการประชาชน | AD70: 8,600,000 | AE70: 1 | AF70: สูง | AT70: C | AU70: ครอบคลุมหลายจุดหรือทั้งเขต | AV70: 0 | AY70: exact | AZ70: TRUE | BA70: ไม่ปรากฏในเอกสาร | BD70: ยังไม่ระบุพิกัด | BH70: 8,600,000 | BI70: 1 | BM70: งบย่อยรวมตรงกับงบหลัก | BO70: หลายพื้นที่/ทั้งเขต | BP70: งานบริการทั้งเขต | BT70: 0 | BU70: exact | BV70: [] | BW70: ตรวจยอดรวมระดับงาน/โครงการแล้ว | BX70: ไม่ปรากฏในเอกสาร | BY70: ไม่ปรากฏในเอกสาร | BZ70: สำนักงานเขต | CB70: รายการที่ตั้งงบประมาณปี 2570 ตามเอกสาร ไม่ใช่ยอดเบิกจ่าย ราคาสัญญา หรือหลักฐานว่าเริ่มดำเนินงานแล้ว
A71: ดุสิต | B71: สำนักการจราจรและขนส่ง | C71: ติดตั้ง CCTV บนถนนสายหลักในพื้นที่กลุ่มกรุงเทพกลาง | D71: 8,370,000 | E71: ความปลอดภัยและป้องกันภัย | F71: รายการใช้จ่าย | G71: area_projection | H71: วงเงินรวมหลายเขต ไม่แยกรายเขต | I71: วงเงินร่วมหลายพื้นที่: เอกสารไม่แยกวงเงินรายเขต ห้ามนับยอดเต็มซ้ำในแต่ละเขต | J71: VIEW-00319 | K71: BKK70-CEN-TRF-002 | L71: RAW-70018-24-line-2-1-2-1 | M71: BKK70-RAW-70018-24-line-2-1-2-1 | N71: CANON-VIEW-00319 | O71: BKK70-CEN-TRF-002 | P71: 05399-26 | Q71: ติดตั้งกล้องโทรทัศน์วงจรปิด (CCTV) แนวถนนสายหลักในพื้นที่กลุ่มกรุงเทพกลาง | R71: เขตดุสิต 3 จุด 8 กล้อง ภายในโครงการกลุ่มกรุงเทพกลางที่ระบุ 4 เขต วงเงินเป็นยอดรวมโครงการและไม่ได้แยกรายเขต | S71: 70018 - สำนักการจราจรและขนส่ง - งบประมาณ พ.ศ. 2570.pdf | T71: 28 | U71: https://drive.google.com/file/d/1-947x5WJCaV-kwSzaKeO253Y5L4A5IIb/view?usp=drivesdk | W71: FALSE | X71: TRUE | Y71: 0 | Z71: ติดตั้ง | AC71: document | AD71: 0 | AE71: 0 | AF71: สูง | AJ71: เอกสารระบุชื่อเขตและจำนวนจุดติดตั้งโดยตรง | AK71: สูง | AL71: เอกสาร 70018 หน้า PDF 28: เขตดุสิต 3 จุด 8 กล้อง | AM71: เทียบภาพ PDF และบริบทโครงการแล้ว 17 กันยายน 2569; วงเงินร่วม ไม่แยกรายเขต | AN71: 28 | AT71: C | AU71: ครอบคลุมหลายจุดหรือหลายเขต | AV71: 4 | AW71: line_item | AX71: รายการใช้จ่าย | AY71: child | AZ71: TRUE | BA71: ไม่ปรากฏในเอกสาร | BC71: area_projection | BD71: เอกสารระบุจำนวนจุดและกล้องรายเขต แต่ไม่ระบุชื่อจุด | BG71: 305,613,700 | BJ71: ค่าที่ดินและสิ่งก่อสร้าง | BK71: 24 | BL71: ค่าที่ดินและสิ่งก่อสร้าง | BO71: แนวถนนสายหลักในพื้นที่กลุ่มกรุงเทพกลาง; เขตดุสิต 3 จุด 8 กล้อง | BP71: หลัก | BT71: 0 | BU71: not_applicable | BV71: [] | BW71: เทียบชื่อโครงการ วงเงิน และจำนวนจุด/กล้องรายเขตกับภาพ PDF แล้ว 17 กันยายน 2569; ยังไม่มีรายชื่อจุดติดตั้งรายจุด | BX71: ไม่ปรากฏชื่อถนนรายจุดในเอกสาร | BY71: ไม่ปรากฏในเอกสาร | BZ71: สำนักส่วนกลาง | CB71: รายการที่ตั้งงบประมาณปี 2570 ตามเอกสาร ไม่ใช่ยอดเบิกจ่าย ราคาสัญญา หรือหลักฐานว่าเริ่มดำเนินงานแล้ว | CC71: 26
A72: ดุสิต | B72: สำนักงานเขตดุสิต | C72: บริหารงานเทศกิจและงานคดี | D72: 7,700,540 | E72: สวนและพื้นที่สีเขียว | F72: งาน/โครงการ | H72: ยอดรวมงาน/โครงการของสำนักงานเขต | I72: นับในยอดรวมสำนักงานเขต | J72: VIEW-00275 | K72: BKK70-DST-W-011 | P72: 1300010 | Q72: งานบริหารทั่วไปและสอบสวนดำเนินคดี | R72: งบรวมสำหรับบริหารงานเทศกิจและงานคดี ตามกรอบงานหรือโครงการของสำนักงานเขต | S72: 70033 - สำนักงานเขตดุสิต - งบประมาณ พ.ศ. 2570.pdf | T72: 3 | U72: https://drive.google.com/file/d/1w6-VfEbqdEjXXUiOGW9pCY4WTQo4mcnj/view?usp=drivesdk | W72: TRUE | X72: FALSE | Z72: บริหารหรือดำเนินงาน | AD72: 7,700,540 | AE72: 3 | AF72: สูง | AT72: D | AU72: งบบริหารภายใน | AV72: 0 | AY72: exact | AZ72: FALSE | BA72: ไม่ปรากฏในเอกสาร | BD72: ยังไม่ระบุพิกัด | BH72: 7,700,540 | BI72: 3 | BM72: งบย่อยรวมตรงกับงบหลัก | BO72: ไม่ปรากฏในเอกสาร | BP72: งบบริหารภายใน | BT72: 0 | BU72: exact | BV72: [] | BW72: ตรวจยอดรวมระดับงาน/โครงการแล้ว | BX72: ไม่ปรากฏในเอกสาร | BY72: ไม่ปรากฏในเอกสาร | BZ72: สำนักงานเขต | CB72: รายการที่ตั้งงบประมาณปี 2570 ตามเอกสาร ไม่ใช่ยอดเบิกจ่าย ราคาสัญญา หรือหลักฐานว่าเริ่มดำเนินงานแล้ว
A73: ดุสิต | B73: สำนักงานเขตดุสิต | C73: บริหารงานพัฒนาชุมชน | D73: 7,223,100 | E73: ชุมชนและสวัสดิการ | F73: งาน/โครงการ | H73: ยอดรวมงาน/โครงการของสำนักงานเขต | I73: นับในยอดรวมสำนักงานเขต | J73: VIEW-00281 | K73: BKK70-DST-W-017 | P73: 1300016 | Q73: งานบริหารทั่วไปฝ่ายพัฒนาชุมชน | R73: งบรวมสำหรับบริหารงานพัฒนาชุมชน ตามกรอบงานหรือโครงการของสำนักงานเขต | S73: 70033 - สำนักงานเขตดุสิต - งบประมาณ พ.ศ. 2570.pdf | T73: 3 | U73: https://drive.google.com/file/d/1w6-VfEbqdEjXXUiOGW9pCY4WTQo4mcnj/view?usp=drivesdk | W73: TRUE | X73: FALSE | Z73: บริหารหรือดำเนินงาน | AD73: 7,223,100 | AE73: 3 | AF73: สูง | AT73: D | AU73: งบบริหารภายใน | AV73: 0 | AY73: exact | AZ73: FALSE | BA73: ไม่ปรากฏในเอกสาร | BD73: ยังไม่ระบุพิกัด | BH73: 7,223,100 | BI73: 3 | BM73: งบย่อยรวมตรงกับงบหลัก | BO73: ไม่ปรากฏในเอกสาร | BP73: งบบริหารภายใน | BT73: 0 | BU73: exact | BV73: [] | BW73: ตรวจยอดรวมระดับงาน/โครงการแล้ว | BX73: ไม่ปรากฏในเอกสาร | BY73: ไม่ปรากฏในเอกสาร | BZ73: สำนักงานเขต | CB73: รายการที่ตั้งงบประมาณปี 2570 ตามเอกสาร ไม่ใช่ยอดเบิกจ่าย ราคาสัญญา หรือหลักฐานว่าเริ่มดำเนินงานแล้ว
A74: ดุสิต | B74: สำนักการจราจรและขนส่ง | C74: ติดตั้ง CCTV ในตรอกซอยในพื้นที่กลุ่มกรุงเทพกลาง | D74: 5,930,000 | E74: ความปลอดภัยและป้องกันภัย | F74: รายการใช้จ่าย | G74: area_projection | H74: วงเงินรวมหลายเขต ไม่แยกรายเขต | I74: วงเงินร่วมหลายพื้นที่: เอกสารไม่แยกวงเงินรายเขต ห้ามนับยอดเต็มซ้ำในแต่ละเขต | J74: VIEW-00327 | K74: BKK70-CEN-TRF-005 | L74: HIER-70018-db755bc7ea6f | M74: BKK70-HIER-70018-db755bc7ea6f | N74: CANON-VIEW-00327 | O74: BKK70-CEN-TRF-005 | P74: 05399-1 | Q74: ติดตั้งกล้องโทรทัศน์วงจรปิด (CCTV) บริเวณตรอก ซอย ในพื้นที่กลุ่มกรุงเทพกลาง | R74: เขตดุสิต 6 จุด 19 กล้อง ภายในโครงการกลุ่มกรุงเทพกลางที่ระบุ 9 เขต วงเงินเป็นยอดรวมโครงการและไม่ได้แยกรายเขต | S74: 70018 - สำนักการจราจรและขนส่ง - งบประมาณ พ.ศ. 2570.pdf | T74: 44 | U74: https://drive.google.com/file/d/1-947x5WJCaV-kwSzaKeO253Y5L4A5IIb/view?usp=drivesdk | W74: FALSE | X74: TRUE | Y74: 0 | Z74: ติดตั้ง | AC74: document | AD74: 0 | AE74: 0 | AF74: สูง | AJ74: เอกสารระบุชื่อเขตและจำนวนจุดติดตั้งโดยตรง | AK74: สูง | AL74: เอกสาร 70018 หน้า PDF 44: เขตดุสิต 6 จุด 19 กล้อง | AM74: เทียบภาพ PDF และบริบทโครงการแล้ว 17 กันยายน 2569; วงเงินร่วม ไม่แยกรายเขต | AN74: 44 | AT74: C | AU74: ครอบคลุมหลายจุดหรือหลายเขต | AV74: 4 | AW74: line_item | AX74: รายการใช้จ่าย | AY74: child | AZ74: TRUE | BA74: ไม่ปรากฏในเอกสาร | BC74: area_projection | BD74: เอกสารระบุจำนวนจุดและกล้องรายเขต แต่ไม่ระบุชื่อจุด | BG74: 5,930,000 | BJ74: ค่าที่ดินและสิ่งก่อสร้าง | BK74: 44 | BL74: ค่าที่ดินและสิ่งก่อสร้าง | BN74: 42 | BO74: ตรอกซอยในพื้นที่กลุ่มกรุงเทพกลาง; เขตดุสิต 6 จุด 19 กล้อง | BP74: หลัก | BT74: 0 | BU74: not_applicable | BV74: [] | BW74: เทียบชื่อโครงการ วงเงิน และจำนวนจุด/กล้องรายเขตกับภาพ PDF แล้ว 17 กันยายน 2569; ยังไม่มีรายชื่อจุดติดตั้งรายจุด | BX74: ไม่ปรากฏในเอกสาร | BY74: ไม่ปรากฏชื่อซอยรายจุดในเอกสาร | BZ74: สำนักส่วนกลาง | CB74: รายการที่ตั้งงบประมาณปี 2570 ตามเอกสาร ไม่ใช่ยอดเบิกจ่าย ราคาสัญญา หรือหลักฐานว่าเริ่มดำเนินงานแล้ว | CC74: 42
A75: ดุสิต | B75: สำนักการโยธา | C75: จ้างควบคุมงานทางยกระดับสะพานเกียกกาย ช่วงที่ 3 | D75: 5,400,000 | E75: ถนนและทางเท้า | F75: รายการใช้จ่าย | G75: area_projection | H75: เฉพาะแนวงานในเขตดุสิต | I75: รายการจากสำนักส่วนกลาง: วงเงินเฉพาะพื้นที่ แต่ไม่นับรวมยอดสำนักงานเขต | J75: VIEW-00298 | K75: BKK70-CEN-YOT-005 | L75: RAW-70014-56-line-2-1-2-1 | M75: BKK70-RAW-70014-56-line-2-1-2-1 | N75: RAW-70014-63-05399-1-1 | O75: BKK70-RAW-70014-63-05399-1-1 | P75: 05399-1 | Q75: จ้างควบคุมงานโครงการก่อสร้างสะพานข้ามแม่น้ำเจ้าพระยา บริเวณแยกเกียกกาย ช่วงที่ 3 ก่อสร้างทางยกระดับและถนนฝั่งพระนครจากแม่น้ำเจ้าพระยาถึงแยกสะพานแดง | R75: ตรวจสอบแบบ แผนงาน และควบคุมการก่อสร้างทางยกระดับและถนนจากบริเวณแยกเกียกกายถึงแยกสะพานแดง | S75: 70014 - สำนักการโยธา - งบประมาณ พ.ศ. 2570.pdf | T75: 62-63 | U75: https://drive.google.com/file/d/16Y16ZUrhcuEhxuguxxGQ2TmFH4fxxBaT/view?usp=drivesdk | V75: 5,400,000 | W75: FALSE | X75: FALSE | Y75: 0 | Z75: จ้างควบคุมงาน | AC75: document | AD75: 0 | AE75: 0 | AF75: สูง | AT75: B | AU75: แนวถนน คลอง หรือพื้นที่ | AV75: 4 | AW75: line_item | AX75: รายการใช้จ่าย | AY75: child | AZ75: TRUE | BA75: แยกเกียกกาย; แยกสะพานแดง | BC75: area_projection | BD75: ตรวจแนวงานจากแม่น้ำเจ้าพระยาถึงแยกสะพานแดงแล้วว่าอยู่ในเขตดุสิต; ยังไม่บันทึกแนวเส้น | BF75: จากแม่น้ำเจ้าพระยาบริเวณแยกเกียกกายถึงแยกสะพานแดง เขตดุสิต กรุงเทพมหานคร | BG75: 2,114,522,630 | BJ75: ค่าที่ดินและสิ่งก่อสร้าง | BK75: 56 | BL75: ค่าที่ดินและสิ่งก่อสร้าง | BO75: จากแม่น้ำเจ้าพระยาบริเวณแยกเกียกกายถึงแยกสะพานแดง | BP75: หลัก | BT75: 0 | BU75: not_applicable | BV75: [] | BW75: ยืนยันเป็นงบจากสำนักส่วนกลางที่ลงในเขตดุสิตแล้ว เมื่อ 23 กรกฎาคม 2569 | BX75: แนวจากแยกเกียกกายถึงแยกสะพานแดง | BY75: ไม่ปรากฏในเอกสาร | BZ75: สำนักส่วนกลาง | CB75: รายการที่ตั้งงบประมาณปี 2570 ตามเอกสาร ไม่ใช่ยอดเบิกจ่าย ราคาสัญญา หรือหลักฐานว่าเริ่มดำเนินงานแล้ว | CC75: 61
A76: ดุสิต | B76: สำนักงานเขตดุสิต | C76: ดูแลระบบระบายน้ำและแก้ปัญหาน้ำท่วม | D76: 5,282,500 | E76: ระบบระบายน้ำและป้องกันน้ำท่วม | F76: งาน/โครงการ | H76: ยอดรวมงาน/โครงการของสำนักงานเขต | I76: นับในยอดรวมสำนักงานเขต | J76: VIEW-00280 | K76: BKK70-DST-W-016 | P76: 1300015 | Q76: งานระบายน้ำและแก้ไขปัญหาน้ำท่วม | R76: งบรวมสำหรับดูแลระบบระบายน้ำและแก้ปัญหาน้ำท่วม ตามกรอบงานหรือโครงการของสำนักงานเขต | S76: 70033 - สำนักงานเขตดุสิต - งบประมาณ พ.ศ. 2570.pdf | T76: 3 | U76: https://drive.google.com/file/d/1w6-VfEbqdEjXXUiOGW9pCY4WTQo4mcnj/view?usp=drivesdk | W76: TRUE | X76: FALSE | Z76: บริหารหรือดำเนินงาน | AD76: 5,282,500 | AE76: 5 | AF76: สูง | AT76: C | AU76: ครอบคลุมหลายจุดหรือทั้งเขต | AV76: 0 | AY76: exact | AZ76: TRUE | BA76: ไม่ปรากฏในเอกสาร | BD76: ยังไม่ระบุพิกัด | BH76: 5,282,500 | BI76: 5 | BM76: งบย่อยรวมตรงกับงบหลัก | BO76: หลายพื้นที่/ทั้งเขต | BP76: งานบริการทั้งเขต | BT76: 0 | BU76: exact | BV76: [] | BW76: ตรวจยอดรวมระดับงาน/โครงการแล้ว | BX76: ไม่ปรากฏในเอกสาร | BY76: ไม่ปรากฏในเอกสาร | BZ76: สำนักงานเขต | CB76: รายการที่ตั้งงบประมาณปี 2570 ตามเอกสาร ไม่ใช่ยอดเบิกจ่าย ราคาสัญญา หรือหลักฐานว่าเริ่มดำเนินงานแล้ว
A77: ดุสิต | B77: สำนักงานเขตดุสิต | C77: ปรับปรุงถนนสุคันธาราม | D77: 4,754,000 | E77: ถนนและทางเท้า | F77: รายการย่อย | H77: รายการย่อยภายในยอดรวมงาน/โครงการของสำนักงานเขต | I77: ไม่รวมซ้ำ: เป็นรายละเอียดภายในยอดงาน/โครงการ | J77: VIEW-00226 | K77: BKK70-DST-I-0040 | L77: VIEW-00279 | M77: BKK70-DST-W-015 | P77: 05313-2 | Q77: ปรับปรุงถนนสุคันธาราม - ปรับปรุงผิวทางแอสฟัลต์คอนกรีต ความหนา 5 ซม. พร้อม Prime Coat กว้างประมาณ 12.30 - 12.50 ม. หรือตามสภาพ ตามแบบ มทก.-04 เนื้อที่ประมาณ 9,303 ตร.ม. - ตีเส้นจราจร Thermoplastic Paint สีเหลือง เนื้อที่ประมาณ 73.98 ตร.ม. - ตีเส้นจราจร Thermoplastic Paint สีขาว เนื้อที่ประมาณ 329.92 ตร.ม. - รื้อขอบบ่อพักท่อระบายน้ำ ขนาด 2.50×3.40 ม. จำนวน 3 บ่อ - รื้อขอบบ่อพักท่อระบายน้ำ แบบกลม จำนวน 4 บ่อ - รื้อขอบบ่อพักท่อระบายน้ำ ขนาด 0.90x1.30 ม. จำนวน 1 บ่อ - เสริมขอบบ่อพักท่อระบายน้ำ ขนาด 2.50×3.40 ม. ตามแบบ ขดส. 10/70 จำนวน 3 บ่อ - เสริมขอบบ่อพักท่อระบายน้ำ แบบกลม ตามแบบ มนก.-05 จำนวน 4 บ่อ - เสริมขอบบ่อพักท่อระบายน้ำ ขนาด 0.90x1.30 ม. ตามแบบ ขดส. 10/70 จำนวน 1 บ่อ | R77: งบสำหรับปรับปรุงถนนสุคันธาราม ตามรายละเอียดในเอกสาร | S77: 70033 - สำนักงานเขตดุสิต - งบประมาณ พ.ศ. 2570.pdf | T77: 51 | U77: https://drive.google.com/file/d/1w6-VfEbqdEjXXUiOGW9pCY4WTQo4mcnj/view?usp=drivesdk | W77: FALSE | X77: FALSE | Z77: ปรับปรุง | AD77: 0 | AE77: 0 | AF77: สูง | AO77: ซ่อมถนน ทางเท้า และโครงสร้างในความรับผิดชอบ | AP77: งานบำรุงรักษาซ่อมแซม | AQ77: BKK70-DST-W-015 | AR77: VIEW-00279 | AT77: B | AU77: แนวถนนหรือพื้นที่ | AV77: 1 | AY77: child | AZ77: FALSE | BA77: ไม่ปรากฏในเอกสาร | BC77: published_relation | BD77: ยังไม่ระบุพิกัด | BF77: ถนนสุคันธาราม เขตดุสิต กรุงเทพมหานคร | BG77: 14,104,500 | BH77: 0 | BI77: 0 | BJ77: งานบำรุงรักษาซ่อมแซม | BK77: 3 | BL77: ซ่อมถนน ทางเท้า และโครงสร้างในความรับผิดชอบ | BM77: งบย่อยรวมตรงกับงบหลัก | BO77: ถนนสุคันธาราม | BP77: งบย่อย | BT77: 0 | BU77: not_applicable | BV77: [] | BW77: ตรวจเชิงโครงสร้างแล้ว - ควรสุ่มตรวจภาพต้นฉบับ | BX77: ถนนสุคันธาราม | BY77: ไม่ปรากฏในเอกสาร | BZ77: สำนักงานเขต | CB77: รายการที่ตั้งงบประมาณปี 2570 ตามเอกสาร ไม่ใช่ยอดเบิกจ่าย ราคาสัญญา หรือหลักฐานว่าเริ่มดำเนินงานแล้ว | CC77: 49
A78: ดุสิต | B78: สำนักงานเขตดุสิต | C78: ปรับปรุงโรงเรียนวัดเบญจมพิตร | D78: 4,640,000 | E78: โรงเรียนและการศึกษา | F78: รายการย่อย | H78: รายการย่อยภายในยอดรวมงาน/โครงการของสำนักงานเขต | I78: ไม่รวมซ้ำ: เป็นรายละเอียดภายในยอดงาน/โครงการ | J78: VIEW-00264 | K78: BKK70-DST-I-0092 | L78: VIEW-00286 | M78: BKK70-DST-W-022 | P78: 05304-8 | Q78: ปรับปรุงโรงเรียนวัดเบญจมพิตร - ก่อสร้างโดมหลังคาลานกีฬาอเนกประสงค์ - ครุภัณฑ์ ตามแบบเลขที่ ขดส. 7/70 | R78: งบสำหรับปรับปรุงโรงเรียนวัดเบญจมพิตร ตามรายละเอียดในเอกสาร | S78: 70033 - สำนักงานเขตดุสิต - งบประมาณ พ.ศ. 2570.pdf | T78: 61 | U78: https://drive.google.com/file/d/1w6-VfEbqdEjXXUiOGW9pCY4WTQo4mcnj/view?usp=drivesdk | W78: FALSE | X78: FALSE | Z78: ก่อสร้าง | AD78: 0 | AE78: 0 | AF78: สูง | AO78: ค่าใช้จ่ายและการลงทุนของโรงเรียนสังกัดเขต | AP78: งานงบประมาณโรงเรียน | AQ78: BKK70-DST-W-022 | AR78: VIEW-00286 | AT78: A | AU78: ระบุตำแหน่งเฉพาะได้ | AV78: 1 | AY78: child | AZ78: FALSE | BA78: โรงเรียนวัดเบญจมพิตร | BC78: published_relation | BD78: ยังไม่ระบุพิกัด | BF78: โรงเรียนวัดเบญจมพิตร เขตดุสิต กรุงเทพมหานคร | BG78: 37,970,470 | BH78: 0 | BI78: 0 | BJ78: งานงบประมาณโรงเรียน | BK78: 4 | BL78: ค่าใช้จ่ายและการลงทุนของโรงเรียนสังกัดเขต | BM78: งบย่อยรวมตรงกับงบหลัก | BO78: โรงเรียนวัดเบญจมพิตร | BP78: งบย่อย | BT78: 0 | BU78: not_applicable | BV78: [] | BW78: ตรวจเชิงโครงสร้างแล้ว - ควรสุ่มตรวจภาพต้นฉบับ | BX78: ไม่ปรากฏในเอกสาร | BY78: ไม่ปรากฏในเอกสาร | BZ78: สำนักงานเขต | CB78: รายการที่ตั้งงบประมาณปี 2570 ตามเอกสาร ไม่ใช่ยอดเบิกจ่าย ราคาสัญญา หรือหลักฐานว่าเริ่มดำเนินงานแล้ว | CC78: 59
A79: ดุสิต | B79: สำนักงานเขตดุสิต | C79: เก็บขยะและสิ่งปฏิกูล | D79: 3,885,100 | E79: ความสะอาดและขยะ | F79: งาน/โครงการ | H79: ยอดรวมงาน/โครงการของสำนักงานเขต | I79: นับในยอดรวมสำนักงานเขต | J79: VIEW-00273 | K79: BKK70-DST-W-009 | P79: 1300008 | Q79: งานเก็บขยะมูลฝอยและขนถ่ายสิ่งปฏิกูล | R79: งบรวมสำหรับเก็บขยะและสิ่งปฏิกูล ตามกรอบงานหรือโครงการของสำนักงานเขต | S79: 70033 - สำนักงานเขตดุสิต - งบประมาณ พ.ศ. 2570.pdf | T79: 3 | U79: https://drive.google.com/file/d/1w6-VfEbqdEjXXUiOGW9pCY4WTQo4mcnj/view?usp=drivesdk | W79: TRUE | X79: FALSE | Z79: บริหารหรือดำเนินงาน | AD79: 3,885,100 | AE79: 3 | AF79: สูง | AT79: C | AU79: ครอบคลุมหลายจุดหรือทั้งเขต | AV79: 0 | AY79: exact | AZ79: TRUE | BA79: ไม่ปรากฏในเอกสาร | BD79: ยังไม่ระบุพิกัด | BH79: 3,885,100 | BI79: 3 | BM79: งบย่อยรวมตรงกับงบหลัก | BO79: หลายพื้นที่/ทั้งเขต | BP79: งานบริการทั้งเขต | BT79: 0 | BU79: exact | BV79: [] | BW79: ตรวจยอดรวมระดับงาน/โครงการแล้ว | BX79: ไม่ปรากฏในเอกสาร | BY79: ไม่ปรากฏในเอกสาร | BZ79: สำนักงานเขต | CB79: รายการที่ตั้งงบประมาณปี 2570 ตามเอกสาร ไม่ใช่ยอดเบิกจ่าย ราคาสัญญา หรือหลักฐานว่าเริ่มดำเนินงานแล้ว
A80: ดุสิต | B80: สำนักงานเขตดุสิต | C80: ดูแลสวนและพื้นที่สีเขียว | D80: 2,218,500 | E80: สวนและพื้นที่สีเขียว | F80: งาน/โครงการ | H80: ยอดรวมงาน/โครงการของสำนักงานเขต | I80: นับในยอดรวมสำนักงานเขต | J80: VIEW-00274 | K80: BKK70-DST-W-010 | P80: 1300009 | Q80: งานดูแลสวนและพื้นที่สีเขียว | R80: งบรวมสำหรับดูแลสวนและพื้นที่สีเขียว ตามกรอบงานหรือโครงการของสำนักงานเขต | S80: 70033 - สำนักงานเขตดุสิต - งบประมาณ พ.ศ. 2570.pdf | T80: 3 | U80: https://drive.google.com/file/d/1w6-VfEbqdEjXXUiOGW9pCY4WTQo4mcnj/view?usp=drivesdk | W80: TRUE | X80: FALSE | Z80: บริหารหรือดำเนินงาน | AD80: 2,218,500 | AE80: 6 | AF80: สูง | AT80: C | AU80: ครอบคลุมหลายจุดหรือทั้งเขต | AV80: 0 | AY80: exact | AZ80: TRUE | BA80: ไม่ปรากฏในเอกสาร | BD80: ยังไม่ระบุพิกัด | BH80: 2,218,500 | BI80: 6 | BM80: งบย่อยรวมตรงกับงบหลัก | BO80: หลายพื้นที่/ทั้งเขต | BP80: งานบริการทั้งเขต | BT80: 0 | BU80: exact | BV80: [] | BW80: ตรวจยอดรวมระดับงาน/โครงการแล้ว | BX80: ไม่ปรากฏในเอกสาร | BY80: ไม่ปรากฏในเอกสาร | BZ80: สำนักงานเขต | CB80: รายการที่ตั้งงบประมาณปี 2570 ตามเอกสาร ไม่ใช่ยอดเบิกจ่าย ราคาสัญญา หรือหลักฐานว่าเริ่มดำเนินงานแล้ว
A81: ดุสิต | B81: สำนักงานเขตดุสิต | C81: กวาดและล้างพื้นที่สาธารณะ | D81: 1,750,800 | E81: ความสะอาดและขยะ | F81: งาน/โครงการ | H81: ยอดรวมงาน/โครงการของสำนักงานเขต | I81: นับในยอดรวมสำนักงานเขต | J81: VIEW-00272 | K81: BKK70-DST-W-008 | P81: 1300007 | Q81: งานกวาดทำความสะอาดที่และทางสาธารณะ | R81: งบรวมสำหรับกวาดและล้างพื้นที่สาธารณะ ตามกรอบงานหรือโครงการของสำนักงานเขต | S81: 70033 - สำนักงานเขตดุสิต - งบประมาณ พ.ศ. 2570.pdf | T81: 3 | U81: https://drive.google.com/file/d/1w6-VfEbqdEjXXUiOGW9pCY4WTQo4mcnj/view?usp=drivesdk | W81: TRUE | X81: FALSE | Z81: บริหารหรือดำเนินงาน | AD81: 1,750,800 | AE81: 2 | AF81: สูง | AT81: C | AU81: ครอบคลุมหลายจุดหรือทั้งเขต | AV81: 0 | AY81: exact | AZ81: TRUE | BA81: ไม่ปรากฏในเอกสาร | BD81: ยังไม่ระบุพิกัด | BH81: 1,750,800 | BI81: 2 | BM81: งบย่อยรวมตรงกับงบหลัก | BO81: หลายพื้นที่/ทั้งเขต | BP81: งานบริการทั้งเขต | BT81: 0 | BU81: exact | BV81: [] | BW81: ตรวจยอดรวมระดับงาน/โครงการแล้ว | BX81: ไม่ปรากฏในเอกสาร | BY81: ไม่ปรากฏในเอกสาร | BZ81: สำนักงานเขต | CB81: รายการที่ตั้งงบประมาณปี 2570 ตามเอกสาร ไม่ใช่ยอดเบิกจ่าย ราคาสัญญา หรือหลักฐานว่าเริ่มดำเนินงานแล้ว
A82: ดุสิต | B82: สำนักงานเขตดุสิต | C82: ปรับปรุงทางเท้าถนนลิขิต | D82: 1,715,000 | E82: ถนนและทางเท้า | F82: รายการย่อย | H82: รายการย่อยภายในยอดรวมงาน/โครงการของสำนักงานเขต | I82: ไม่รวมซ้ำ: เป็นรายละเอียดภายในยอดงาน/โครงการ | J82: VIEW-00228 | K82: BKK70-DST-I-0042 | L82: VIEW-00279 | M82: BKK70-DST-W-015 | P82: 05313-4 | Q82: ปรับปรุงทางเท้าถนนลิขิต - รื้อพื้นทางเท้าและคอกต้นไม้เดิม พร้อมขนทิ้ง เนื้อที่ประมาณ 432 ตร.ม. - รื้อขอบบ่อพักและฝาบ่อพักเดิม จำนวน 23 บ่อ - รื้อคันหินและช่องตะแกรงรับน้าเดิม พร้อมขนทิ้ง ความยาวประมาณ 301 ม. - ปรับปรุงทางเท้าปูกระเบื้องซีเมนต์ขนาด 40x40x3.5 ซม. กระเบื้องแบบที่ 1 (แบบผิวพ่น) ตามแบบ มทก.-16 เนื้อที่ประมาณ 414 ตร.ม. - ปรับปรุงคอกต้นไม้ ตามแบบ มทก.-15 (แบบ B) จำนวน 3 แห่ง - ปรับปรุงคอกต้นไม้ ตามแบบ มทก.-15 (แบบ C) จำนวน 3 แห่ง - ปรับปรุงคันหิน ค.ส.ล. (สาเร็จรูป) สูง 18.5 ซม. ตามแบบ มทก.-05 ความยาวประมาณ 301 ม. - ปรับปรุงขอบบ่อพักพร้อมฝาบ่อพัก ค.ส.ล. ตามแบบ มนก.-03 จำนวน 23 บ่อ - ปรับปรุงช่องรับน้า ตามแบบ มทก.-07 จำนวน 23 แห่ง | R82: งบสำหรับปรับปรุงทางเท้าถนนลิขิต ตามรายละเอียดในเอกสาร | S82: 70033 - สำนักงานเขตดุสิต - งบประมาณ พ.ศ. 2570.pdf | T82: 52 | U82: https://drive.google.com/file/d/1w6-VfEbqdEjXXUiOGW9pCY4WTQo4mcnj/view?usp=drivesdk | W82: FALSE | X82: FALSE | Z82: ปรับปรุง | AD82: 0 | AE82: 0 | AF82: สูง | AO82: ซ่อมถนน ทางเท้า และโครงสร้างในความรับผิดชอบ | AP82: งานบำรุงรักษาซ่อมแซม | AQ82: BKK70-DST-W-015 | AR82: VIEW-00279 | AT82: B | AU82: แนวถนนหรือพื้นที่ | AV82: 1 | AY82: child | AZ82: FALSE | BA82: ไม่ปรากฏในเอกสาร | BC82: published_relation | BD82: ยังไม่ระบุพิกัด | BF82: ถนนลิขิต เขตดุสิต กรุงเทพมหานคร | BG82: 14,104,500 | BH82: 0 | BI82: 0 | BJ82: งานบำรุงรักษาซ่อมแซม | BK82: 3 | BL82: ซ่อมถนน ทางเท้า และโครงสร้างในความรับผิดชอบ | BM82: งบย่อยรวมตรงกับงบหลัก | BO82: ถนนลิขิต | BP82: งบย่อย | BT82: 0 | BU82: not_applicable | BV82: [] | BW82: ตรวจเชิงโครงสร้างแล้ว - ควรสุ่มตรวจภาพต้นฉบับ | BX82: ถนนลิขิต | BY82: ไม่ปรากฏในเอกสาร | BZ82: สำนักงานเขต | CB82: รายการที่ตั้งงบประมาณปี 2570 ตามเอกสาร ไม่ใช่ยอดเบิกจ่าย ราคาสัญญา หรือหลักฐานว่าเริ่มดำเนินงานแล้ว | CC82: 50
A83: ดุสิต | B83: สำนักงานเขตดุสิต | C83: จัดเก็บภาษีและรายได้ของเขต | D83: 1,640,700 | E83: การค้า ตลาด และเทศกิจ | F83: งาน/โครงการ | H83: ยอดรวมงาน/โครงการของสำนักงานเขต | I83: นับในยอดรวมสำนักงานเขต | J83: VIEW-00270 | K83: BKK70-DST-W-006 | P83: 1300005 | Q83: งานบริหารทั่วไปและจัดเก็บรายได้ | R83: งบรวมสำหรับจัดเก็บภาษีและรายได้ของเขต ตามกรอบงานหรือโครงการของสำนักงานเขต | S83: 70033 - สำนักงานเขตดุสิต - งบประมาณ พ.ศ. 2570.pdf | T83: 3 | U83: https://drive.google.com/file/d/1w6-VfEbqdEjXXUiOGW9pCY4WTQo4mcnj/view?usp=drivesdk | W83: TRUE | X83: FALSE | Z83: บริหารหรือดำเนินงาน | AD83: 1,640,700 | AE83: 5 | AF83: สูง | AT83: D | AU83: งบบริหารภายใน | AV83: 0 | AY83: exact | AZ83: FALSE | BA83: ไม่ปรากฏในเอกสาร | BD83: ยังไม่ระบุพิกัด | BH83: 1,640,700 | BI83: 5 | BM83: งบย่อยรวมตรงกับงบหลัก | BO83: ไม่ปรากฏในเอกสาร | BP83: งบบริหารภายใน | BT83: 0 | BU83: exact | BV83: [] | BW83: ตรวจยอดรวมระดับงาน/โครงการแล้ว | BX83: ไม่ปรากฏในเอกสาร | BY83: ไม่ปรากฏในเอกสาร | BZ83: สำนักงานเขต | CB83: รายการที่ตั้งงบประมาณปี 2570 ตามเอกสาร ไม่ใช่ยอดเบิกจ่าย ราคาสัญญา หรือหลักฐานว่าเริ่มดำเนินงานแล้ว
A84: ดุสิต | B84: สำนักงานเขตดุสิต | C84: บริการทะเบียนประชาชน | D84: 1,546,560 | E84: การบริหารสำนักงาน | F84: งาน/โครงการ | H84: ยอดรวมงาน/โครงการของสำนักงานเขต | I84: นับในยอดรวมสำนักงานเขต | J84: VIEW-00268 | K84: BKK70-DST-W-004 | P84: 1300003 | Q84: งานบริหารทั่วไปและบริการทะเบียน | R84: งบรวมสำหรับบริการทะเบียนประชาชน ตามกรอบงานหรือโครงการของสำนักงานเขต | S84: 70033 - สำนักงานเขตดุสิต - งบประมาณ พ.ศ. 2570.pdf | T84: 3 | U84: https://drive.google.com/file/d/1w6-VfEbqdEjXXUiOGW9pCY4WTQo4mcnj/view?usp=drivesdk | W84: TRUE | X84: FALSE | Z84: จ้างบริการ | AD84: 1,546,560 | AE84: 7 | AF84: สูง | AT84: D | AU84: งบบริหารภายใน | AV84: 0 | AY84: exact | AZ84: FALSE | BA84: ไม่ปรากฏในเอกสาร | BD84: ยังไม่ระบุพิกัด | BH84: 1,546,560 | BI84: 7 | BM84: งบย่อยรวมตรงกับงบหลัก | BO84: ไม่ปรากฏในเอกสาร | BP84: งบบริหารภายใน | BT84: 0 | BU84: exact | BV84: [] | BW84: ตรวจยอดรวมระดับงาน/โครงการแล้ว | BX84: ไม่ปรากฏในเอกสาร | BY84: ไม่ปรากฏในเอกสาร | BZ84: สำนักงานเขต | CB84: รายการที่ตั้งงบประมาณปี 2570 ตามเอกสาร ไม่ใช่ยอดเบิกจ่าย ราคาสัญญา หรือหลักฐานว่าเริ่มดำเนินงานแล้ว
A85: ดุสิต | B85: สำนักงานเขตดุสิต | C85: ปรับปรุงซอยระนอง 1 | D85: 1,467,000 | E85: อื่น ๆ | F85: รายการย่อย | H85: รายการย่อยภายในยอดรวมงาน/โครงการของสำนักงานเขต | I85: ไม่รวมซ้ำ: เป็นรายละเอียดภายในยอดงาน/โครงการ | J85: VIEW-00227 | K85: BKK70-DST-I-0041 | L85: VIEW-00279 | M85: BKK70-DST-W-015 | P85: 05313-3 | Q85: ปรับปรุงซอยระนอง 1 - ปรับปรุงผิวทางแอสฟัลต์คอนกรีต หนาเฉลี่ย 5 ซม. พร้อม Prime Coat กว้างประมาณ 5.00 ม. หรือตามสภาพ ตามแบบ มทก.-04 เนื้อที่ประมาณ 2,903 ตร.ม. - รื้อขอบบ่อพัก ขนาด 2.60×2.60 ม. จำนวน 3 บ่อ - เสริมขอบบ่อพัก ขนาด 2.60×2.60 ม. ตามแบบ ขดส. 1/70 จำนวน 3 บ่อ | R85: งบสำหรับปรับปรุงซอยระนอง 1 ตามรายละเอียดในเอกสาร | S85: 70033 - สำนักงานเขตดุสิต - งบประมาณ พ.ศ. 2570.pdf | T85: 52 | U85: https://drive.google.com/file/d/1w6-VfEbqdEjXXUiOGW9pCY4WTQo4mcnj/view?usp=drivesdk | W85: FALSE | X85: FALSE | Z85: ปรับปรุง | AD85: 0 | AE85: 0 | AF85: สูง | AO85: ซ่อมถนน ทางเท้า และโครงสร้างในความรับผิดชอบ | AP85: งานบำรุงรักษาซ่อมแซม | AQ85: BKK70-DST-W-015 | AR85: VIEW-00279 | AT85: B | AU85: แนวถนนหรือพื้นที่ | AV85: 1 | AY85: child | AZ85: FALSE | BA85: ไม่ปรากฏในเอกสาร | BC85: published_relation | BD85: ยังไม่ระบุพิกัด | BF85: ซอยระนอง 1 เขตดุสิต กรุงเทพมหานคร | BG85: 14,104,500 | BH85: 0 | BI85: 0 | BJ85: งานบำรุงรักษาซ่อมแซม | BK85: 3 | BL85: ซ่อมถนน ทางเท้า และโครงสร้างในความรับผิดชอบ | BM85: งบย่อยรวมตรงกับงบหลัก | BO85: ซอยระนอง 1 | BP85: งบย่อย | BT85: 0 | BU85: not_applicable | BV85: [] | BW85: ตรวจเชิงโครงสร้างแล้ว - ควรสุ่มตรวจภาพต้นฉบับ | BX85: ไม่ปรากฏในเอกสาร | BY85: ซอยระนอง 1 | BZ85: สำนักงานเขต | CB85: รายการที่ตั้งงบประมาณปี 2570 ตามเอกสาร ไม่ใช่ยอดเบิกจ่าย ราคาสัญญา หรือหลักฐานว่าเริ่มดำเนินงานแล้ว | CC85: 50
A86: ดุสิต | B86: สำนักงานเขตดุสิต | C86: บริหารงานโยธา | D86: 1,381,178 | E86: การบริหารสำนักงาน | F86: งาน/โครงการ | H86: ยอดรวมงาน/โครงการของสำนักงานเขต | I86: นับในยอดรวมสำนักงานเขต | J86: VIEW-00277 | K86: BKK70-DST-W-013 | P86: 1300012 | Q86: งานบริหารทั่วไปฝ่ายโยธา | R86: งบรวมสำหรับบริหารงานโยธา ตามกรอบงานหรือโครงการของสำนักงานเขต | S86: 70033 - สำนักงานเขตดุสิต - งบประมาณ พ.ศ. 2570.pdf | T86: 3 | U86: https://drive.google.com/file/d/1w6-VfEbqdEjXXUiOGW9pCY4WTQo4mcnj/view?usp=drivesdk | W86: TRUE | X86: FALSE | Z86: บริหารหรือดำเนินงาน | AD86: 1,381,178 | AE86: 6 | AF86: สูง | AT86: D | AU86: งบบริหารภายใน | AV86: 0 | AY86: exact | AZ86: FALSE | BA86: ไม่ปรากฏในเอกสาร | BD86: ยังไม่ระบุพิกัด | BH86: 1,381,178 | BI86: 6 | BM86: งบย่อยรวมตรงกับงบหลัก | BO86: ไม่ปรากฏในเอกสาร | BP86: งบบริหารภายใน | BT86: 0 | BU86: exact | BV86: [] | BW86: ตรวจยอดรวมระดับงาน/โครงการแล้ว | BX86: ไม่ปรากฏในเอกสาร | BY86: ไม่ปรากฏในเอกสาร | BZ86: สำนักงานเขต | CB86: รายการที่ตั้งงบประมาณปี 2570 ตามเอกสาร ไม่ใช่ยอดเบิกจ่าย ราคาสัญญา หรือหลักฐานว่าเริ่มดำเนินงานแล้ว
A87: ดุสิต | B87: สำนักงานเขตดุสิต | C87: บริหารงานสิ่งแวดล้อมและสุขาภิบาล | D87: 1,143,600 | E87: สุขภาพและสาธารณสุข | F87: งาน/โครงการ | H87: ยอดรวมงาน/โครงการของสำนักงานเขต | I87: นับในยอดรวมสำนักงานเขต | J87: VIEW-00283 | K87: BKK70-DST-W-019 | P87: 1300018 | Q87: งานบริหารทั่วไปฝ่ายสิ่งแวดล้อมและสุขาภิบาล | R87: งบรวมสำหรับบริหารงานสิ่งแวดล้อมและสุขาภิบาล ตามกรอบงานหรือโครงการของสำนักงานเขต | S87: 70033 - สำนักงานเขตดุสิต - งบประมาณ พ.ศ. 2570.pdf | T87: 3 | U87: https://drive.google.com/file/d/1w6-VfEbqdEjXXUiOGW9pCY4WTQo4mcnj/view?usp=drivesdk | W87: TRUE | X87: FALSE | Z87: บริหารหรือดำเนินงาน | AD87: 1,143,600 | AE87: 4 | AF87: สูง | AT87: D | AU87: งบบริหารภายใน | AV87: 0 | AY87: exact | AZ87: FALSE | BA87: ไม่ปรากฏในเอกสาร | BD87: ยังไม่ระบุพิกัด | BH87: 1,143,600 | BI87: 4 | BM87: งบย่อยรวมตรงกับงบหลัก | BO87: ไม่ปรากฏในเอกสาร | BP87: งบบริหารภายใน | BT87: 0 | BU87: exact | BV87: [] | BW87: ตรวจยอดรวมระดับงาน/โครงการแล้ว | BX87: ไม่ปรากฏในเอกสาร | BY87: ไม่ปรากฏในเอกสาร | BZ87: สำนักงานเขต | CB87: รายการที่ตั้งงบประมาณปี 2570 ตามเอกสาร ไม่ใช่ยอดเบิกจ่าย ราคาสัญญา หรือหลักฐานว่าเริ่มดำเนินงานแล้ว
A88: ดุสิต | B88: สำนักงานเขตดุสิต | C88: จ้างงานคนพิการเพื่อปฏิบัติงาน | D88: 1,134,000 | E88: ชุมชนและสวัสดิการ | F88: งาน/โครงการ | H88: ยอดรวมงาน/โครงการของสำนักงานเขต | I88: นับในยอดรวมสำนักงานเขต | J88: VIEW-00288 | K88: BKK70-DST-W-024 | P88: 1300016-P004 | Q88: โครงการจ้างงานคนพิการเพื่อปฏิบัติงาน | R88: งบรวมสำหรับจ้างงานคนพิการเพื่อปฏิบัติงาน ตามกรอบงานหรือโครงการของสำนักงานเขต | S88: 70033 - สำนักงานเขตดุสิต - งบประมาณ พ.ศ. 2570.pdf | T88: 4 | U88: https://drive.google.com/file/d/1w6-VfEbqdEjXXUiOGW9pCY4WTQo4mcnj/view?usp=drivesdk | W88: TRUE | X88: FALSE | Z88: จ้างบริการ | AD88: 1,134,000 | AE88: 1 | AF88: สูง | AT88: C | AU88: ครอบคลุมหลายจุดหรือทั้งเขต | AV88: 0 | AY88: exact | AZ88: TRUE | BA88: ไม่ปรากฏในเอกสาร | BD88: ยังไม่ระบุพิกัด | BH88: 1,134,000 | BI88: 1 | BM88: งบย่อยรวมตรงกับงบหลัก | BO88: หลายพื้นที่/ทั้งเขต | BP88: งานบริการทั้งเขต | BT88: 0 | BU88: exact | BV88: [] | BW88: ตรวจยอดรวมระดับงาน/โครงการแล้ว | BX88: ไม่ปรากฏในเอกสาร | BY88: ไม่ปรากฏในเอกสาร | BZ88: สำนักงานเขต | CB88: รายการที่ตั้งงบประมาณปี 2570 ตามเอกสาร ไม่ใช่ยอดเบิกจ่าย ราคาสัญญา หรือหลักฐานว่าเริ่มดำเนินงานแล้ว
A89: ดุสิต | B89: สำนักงานเขตดุสิต | C89: บริหารการเงินและงบประมาณของเขต | D89: 1,039,100 | E89: การบริหารสำนักงาน | F89: งาน/โครงการ | H89: ยอดรวมงาน/โครงการของสำนักงานเขต | I89: นับในยอดรวมสำนักงานเขต | J89: VIEW-00269 | K89: BKK70-DST-W-005 | P89: 1300004 | Q89: งานบริหารทั่วไปและบริหารการคลัง | R89: งบรวมสำหรับบริหารการเงินและงบประมาณของเขต ตามกรอบงานหรือโครงการของสำนักงานเขต | S89: 70033 - สำนักงานเขตดุสิต - งบประมาณ พ.ศ. 2570.pdf | T89: 3 | U89: https://drive.google.com/file/d/1w6-VfEbqdEjXXUiOGW9pCY4WTQo4mcnj/view?usp=drivesdk | W89: TRUE | X89: FALSE | Z89: บริหารหรือดำเนินงาน | AD89: 1,039,100 | AE89: 8 | AF89: สูง | AT89: D | AU89: งบบริหารภายใน | AV89: 0 | AY89: exact | AZ89: FALSE | BA89: ไม่ปรากฏในเอกสาร | BD89: ยังไม่ระบุพิกัด | BH89: 1,039,100 | BI89: 8 | BM89: งบย่อยรวมตรงกับงบหลัก | BO89: ไม่ปรากฏในเอกสาร | BP89: งบบริหารภายใน | BT89: 0 | BU89: exact | BV89: [] | BW89: ตรวจยอดรวมระดับงาน/โครงการแล้ว | BX89: ไม่ปรากฏในเอกสาร | BY89: ไม่ปรากฏในเอกสาร | BZ89: สำนักงานเขต | CB89: รายการที่ตั้งงบประมาณปี 2570 ตามเอกสาร ไม่ใช่ยอดเบิกจ่าย ราคาสัญญา หรือหลักฐานว่าเริ่มดำเนินงานแล้ว
A90: ดุสิต | B90: การพาณิชย์ของกรุงเทพมหานคร | C90: เฝ้าระวังและแจ้งเหตุให้สถานธนานุบาล 21 แห่ง | D90: 943,740 | E90: ความปลอดภัยและป้องกันภัย | F90: รายการใช้จ่าย | G90: area_projection | H90: วงเงินรวม 21 สาขา ไม่แยกรายสาขาหรือรายเขต | I90: วงเงินร่วมหลายพื้นที่: ห้ามนับเต็มซ้ำในแต่ละเขต | J90: VIEW-00345 | K90: BKK70-CEN-COM-004 | L90: HIER-70078-0038415eaf0f | M90: BKK70-HIER-70078-0038415eaf0f | N90: CANON-VIEW-00343 | O90: BKK70-CEN-COM-004 | P90: 07199-23 | Q90: ค่าใช้จ่ายในการจ้างบริการเฝ้าระวังและแจ้งเหตุสัญญาณเตือนภัย | R90: จ้างบริการเฝ้าระวังและแจ้งเหตุสัญญาณเตือนภัยให้ สถานธนานุบาล 21 แห่ง รวมสำราญราษฎร์ในเขตพระนคร ถนนเสือป่าในเขตป้อมปราบศัตรูพ่าย และเทเวศร์ในเขตดุสิต | S90: 70078 - การพาณิชย์ของกรุงเทพมหานคร - งบประมาณ พ.ศ. 2570.pdf | T90: 17 | U90: https://drive.google.com/file/d/1mDKUmRBLeuPDc3f4Wpgnl5giUDsFfLzo/view?usp=drivesdk | W90: FALSE | X90: TRUE | Y90: 0 | Z90: จ้างบริการรักษาความปลอดภัย | AC90: document | AD90: 0 | AE90: 0 | AF90: สูง | AT90: A | AU90: หลายจุดในหลายเขต | AV90: 1 | AW90: line_item | AX90: รายการใช้จ่าย | AY90: child | AZ90: TRUE | BA90: สถานธนานุบาลเทเวศร์ | BC90: area_projection | BD90: ชื่อสถานธนานุบาลเทเวศร์ปรากฏใน PDF และตรวจที่อยู่แล้วว่าอยู่ในเขตดุสิต; วงเงินเป็นของ 21 สาขารวมกัน | BF90: ถนนสามเสน เขตดุสิต กรุงเทพมหานคร | BG90: 943,740 | BJ90: โครงการจ้างบริการเฝ้าระวังและแจ้งเหตุสัญญาณเตือนภัย | BK90: 17 | BL90: โครงการจ้างบริการเฝ้าระวังและแจ้งเหตุสัญญาณเตือนภัย | BN90: 11 | BO90: สถานธนานุบาลเทเวศร์ | BP90: เกี่ยวข้องหลายพื้นที่ | BT90: 0 | BU90: not_applicable | BV90: [] | BW90: ตรวจรายชื่อสาขา วงเงิน และเขตที่ตั้งแล้ว; ยังไม่มีวงเงินรายสาขา | BX90: ถนนสามเสน | BY90: ไม่ปรากฏในเอกสาร | BZ90: สำนักส่วนกลาง | CB90: รายการที่ตั้งงบประมาณปี 2570 ตามเอกสาร ไม่ใช่ยอดเบิกจ่าย ราคาสัญญา หรือหลักฐานว่าเริ่มดำเนินงานแล้ว
A91: ดุสิต | B91: สำนักงานเขตดุสิต | C91: ปรับปรุงโรงเรียนวัดสมณานัมบริหาร | D91: 913,000 | E91: โรงเรียนและการศึกษา | F91: รายการย่อย | H91: รายการย่อยภายในยอดรวมงาน/โครงการของสำนักงานเขต | I91: ไม่รวมซ้ำ: เป็นรายละเอียดภายในยอดงาน/โครงการ | J91: VIEW-00263 | K91: BKK70-DST-I-0091 | L91: VIEW-00286 | M91: BKK70-DST-W-022 | P91: 05304-7 | Q91: ปรับปรุงโรงเรียนวัดสมณานัมบริหาร - ปรับปรุงห้องรับประทานอาหาร ตามแบบเลขที่ ขดส. 2/70 | R91: งบสำหรับปรับปรุงโรงเรียนวัดสมณานัมบริหาร ตามรายละเอียดในเอกสาร | S91: 70033 - สำนักงานเขตดุสิต - งบประมาณ พ.ศ. 2570.pdf | T91: 61 | U91: https://drive.google.com/file/d/1w6-VfEbqdEjXXUiOGW9pCY4WTQo4mcnj/view?usp=drivesdk | W91: FALSE | X91: FALSE | Z91: ปรับปรุง | AD91: 0 | AE91: 0 | AF91: สูง | AO91: ค่าใช้จ่ายและการลงทุนของโรงเรียนสังกัดเขต | AP91: งานงบประมาณโรงเรียน | AQ91: BKK70-DST-W-022 | AR91: VIEW-00286 | AT91: A | AU91: ระบุตำแหน่งเฉพาะได้ | AV91: 1 | AY91: child | AZ91: FALSE | BA91: โรงเรียนวัดสมณานัมบริหาร | BC91: published_relation | BD91: ยังไม่ระบุพิกัด | BF91: โรงเรียนวัดสมณานัมบริหาร เขตดุสิต กรุงเทพมหานคร | BG91: 37,970,470 | BH91: 0 | BI91: 0 | BJ91: งานงบประมาณโรงเรียน | BK91: 4 | BL91: ค่าใช้จ่ายและการลงทุนของโรงเรียนสังกัดเขต | BM91: งบย่อยรวมตรงกับงบหลัก | BO91: โรงเรียนวัดสมณานัมบริหาร | BP91: งบย่อย | BT91: 0 | BU91: not_applicable | BV91: [] | BW91: ตรวจเชิงโครงสร้างแล้ว - ควรสุ่มตรวจภาพต้นฉบับ | BX91: ไม่ปรากฏในเอกสาร | BY91: ไม่ปรากฏในเอกสาร | BZ91: สำนักงานเขต | CB91: รายการที่ตั้งงบประมาณปี 2570 ตามเอกสาร ไม่ใช่ยอดเบิกจ่าย ราคาสัญญา หรือหลักฐานว่าเริ่มดำเนินงานแล้ว | CC91: 59
A92: ดุสิต | B92: สำนักงานเขตดุสิต | C92: ปรับปรุงโรงเรียนวัดธรรมาภิรตาราม | D92: 897,000 | E92: โรงเรียนและการศึกษา | F92: รายการย่อย | H92: รายการย่อยภายในยอดรวมงาน/โครงการของสำนักงานเขต | I92: ไม่รวมซ้ำ: เป็นรายละเอียดภายในยอดงาน/โครงการ | J92: VIEW-00262 | K92: BKK70-DST-I-0090 | L92: VIEW-00286 | M92: BKK70-DST-W-022 | P92: 05304-6 | Q92: ปรับปรุงโรงเรียนวัดธรรมาภิรตาราม - ปรับปรุงบ้านพักพนักงานและสถานที่ - ปรับปรุงห้องน้านักเรียนชายด้านหลังอาคาร 1 - ปรับปรุงห้องน้านักเรียนหญิงด้านหลังอาคาร 1 - ติดตั้งหลังคาทางเดินไปห้องน้านักเรียนชาย หลังอาคาร 1 - ปรับปรุงลานกีฬาอเนกประสงค์ ตามแบบเลขที่ ขดส. 4/70 | R92: งบสำหรับปรับปรุงโรงเรียนวัดธรรมาภิรตาราม ตามรายละเอียดในเอกสาร | S92: 70033 - สำนักงานเขตดุสิต - งบประมาณ พ.ศ. 2570.pdf | T92: 61 | U92: https://drive.google.com/file/d/1w6-VfEbqdEjXXUiOGW9pCY4WTQo4mcnj/view?usp=drivesdk | W92: FALSE | X92: FALSE | Z92: ปรับปรุง | AD92: 0 | AE92: 0 | AF92: สูง | AO92: ค่าใช้จ่ายและการลงทุนของโรงเรียนสังกัดเขต | AP92: งานงบประมาณโรงเรียน | AQ92: BKK70-DST-W-022 | AR92: VIEW-00286 | AT92: A | AU92: ระบุตำแหน่งเฉพาะได้ | AV92: 1 | AY92: child | AZ92: FALSE | BA92: โรงเรียนวัดธรรมาภิรตาราม | BC92: published_relation | BD92: ยังไม่ระบุพิกัด | BF92: โรงเรียนวัดธรรมาภิรตาราม เขตดุสิต กรุงเทพมหานคร | BG92: 37,970,470 | BH92: 0 | BI92: 0 | BJ92: งานงบประมาณโรงเรียน | BK92: 4 | BL92: ค่าใช้จ่ายและการลงทุนของโรงเรียนสังกัดเขต | BM92: งบย่อยรวมตรงกับงบหลัก | BO92: โรงเรียนวัดธรรมาภิรตาราม | BP92: งบย่อย | BT92: 0 | BU92: not_applicable | BV92: [] | BW92: ตรวจเชิงโครงสร้างแล้ว - ควรสุ่มตรวจภาพต้นฉบับ | BX92: ไม่ปรากฏในเอกสาร | BY92: ไม่ปรากฏในเอกสาร | BZ92: สำนักงานเขต | CB92: รายการที่ตั้งงบประมาณปี 2570 ตามเอกสาร ไม่ใช่ยอดเบิกจ่าย ราคาสัญญา หรือหลักฐานว่าเริ่มดำเนินงานแล้ว | CC92: 59
A93: ดุสิต | B93: การพาณิชย์ของกรุงเทพมหานคร | C93: ระบบเปิด–ปิดประตูอัตโนมัติให้สถานธนานุบาล 21 แห่ง | D93: 630,000 | E93: ความปลอดภัยและป้องกันภัย | F93: รายการใช้จ่าย | G93: area_projection | H93: วงเงินรวม 21 สาขา ไม่แยกรายสาขาหรือรายเขต | I93: วงเงินร่วมหลายพื้นที่: ห้ามนับเต็มซ้ำในแต่ละเขต | J93: VIEW-00348 | K93: BKK70-CEN-COM-005 | L93: HIER-70078-f640f2ec0750 | M93: BKK70-HIER-70078-f640f2ec0750 | N93: RAW-70078-18-07199-18-1 | O93: BKK70-RAW-70078-18-07199-18-1 | P93: 07199-18 | Q93: ค่าใช้จ่ายในการบริการระบบควบคุม เปิด - ปิดประตูอัตโนมัติ (Access Control) | R93: จ้างบริการระบบควบคุมเปิด–ปิดประตูอัตโนมัติ (Access Control) ให้ สถานธนานุบาล 21 แห่ง รวมสำราญราษฎร์ในเขตพระนคร ถนนเสือป่าในเขตป้อมปราบศัตรูพ่าย และเทเวศร์ในเขตดุสิต | S93: 70078 - การพาณิชย์ของกรุงเทพมหานคร - งบประมาณ พ.ศ. 2570.pdf | T93: 18-19 | U93: https://drive.google.com/file/d/1mDKUmRBLeuPDc3f4Wpgnl5giUDsFfLzo/view?usp=drivesdk | W93: FALSE | X93: TRUE | Y93: 0 | Z93: จ้างบริการระบบรักษาความปลอดภัย | AC93: document | AD93: 0 | AE93: 0 | AF93: สูง | AT93: A | AU93: หลายจุดในหลายเขต | AV93: 1 | AW93: line_item | AX93: รายการใช้จ่าย | AY93: child | AZ93: TRUE | BA93: สถานธนานุบาลเทเวศร์ | BC93: area_projection | BD93: ชื่อสถานธนานุบาลเทเวศร์ปรากฏใน PDF และตรวจที่อยู่แล้วว่าอยู่ในเขตดุสิต; วงเงินเป็นของ 21 สาขารวมกัน | BF93: ถนนสามเสน เขตดุสิต กรุงเทพมหานคร | BG93: 630,000 | BJ93: โครงการบริการระบบควบคุม เปิด - ปิดประตูอัตโนมัติ (Access Control) | BK93: 18 | BL93: โครงการบริการระบบควบคุม เปิด - ปิดประตูอัตโนมัติ (Access Control) | BN93: 12 | BO93: สถานธนานุบาลเทเวศร์ | BP93: เกี่ยวข้องหลายพื้นที่ | BT93: 0 | BU93: not_applicable | BV93: [] | BW93: ตรวจรายชื่อสาขา วงเงิน และเขตที่ตั้งแล้ว; ยังไม่มีวงเงินรายสาขา | BX93: ถนนสามเสน | BY93: ไม่ปรากฏในเอกสาร | BZ93: สำนักส่วนกลาง | CB93: รายการที่ตั้งงบประมาณปี 2570 ตามเอกสาร ไม่ใช่ยอดเบิกจ่าย ราคาสัญญา หรือหลักฐานว่าเริ่มดำเนินงานแล้ว
A94: ดุสิต | B94: สำนักงานเขตดุสิต | C94: งานปกครองและป้องกันภัย | D94: 542,620 | E94: ความปลอดภัยและป้องกันภัย | F94: งาน/โครงการ | H94: ยอดรวมงาน/โครงการของสำนักงานเขต | I94: นับในยอดรวมสำนักงานเขต | J94: VIEW-00267 | K94: BKK70-DST-W-003 | P94: 1300002 | Q94: งานปกครอง | R94: งบรวมสำหรับงานปกครองและป้องกันภัย ตามกรอบงานหรือโครงการของสำนักงานเขต | S94: 70033 - สำนักงานเขตดุสิต - งบประมาณ พ.ศ. 2570.pdf | T94: 3 | U94: https://drive.google.com/file/d/1w6-VfEbqdEjXXUiOGW9pCY4WTQo4mcnj/view?usp=drivesdk | W94: TRUE | X94: FALSE | Z94: บริหารหรือดำเนินงาน | AD94: 542,620 | AE94: 3 | AF94: สูง | AT94: C | AU94: ครอบคลุมหลายจุดหรือทั้งเขต | AV94: 0 | AY94: exact | AZ94: TRUE | BA94: ไม่ปรากฏในเอกสาร | BD94: ยังไม่ระบุพิกัด | BH94: 542,620 | BI94: 3 | BM94: งบย่อยรวมตรงกับงบหลัก | BO94: หลายพื้นที่/ทั้งเขต | BP94: งานบริการทั้งเขต | BT94: 0 | BU94: exact | BV94: [] | BW94: ตรวจยอดรวมระดับงาน/โครงการแล้ว | BX94: ไม่ปรากฏในเอกสาร | BY94: ไม่ปรากฏในเอกสาร | BZ94: สำนักงานเขต | CB94: รายการที่ตั้งงบประมาณปี 2570 ตามเอกสาร ไม่ใช่ยอดเบิกจ่าย ราคาสัญญา หรือหลักฐานว่าเริ่มดำเนินงานแล้ว
A95: ดุสิต | B95: สำนักการโยธา | C95: จ้างที่ปรึกษาคุมงานสะพานเกียกกาย ช่วงที่ 2 | D95: 514,335 | E95: ถนนและทางเท้า | F95: รายการใช้จ่าย | G95: area_projection | H95: รวมพื้นที่ต่อเนื่องหลายเขต | I95: วงเงินร่วมหลายพื้นที่: ห้ามนับเต็มซ้ำในแต่ละเขต | J95: VIEW-00296 | K95: BKK70-CEN-YOT-003 | L95: RAW-70014-56-line-2-1-2-1 | M95: BKK70-RAW-70014-56-line-2-1-2-1 | N95: CANON-VIEW-00296 | O95: BKK70-CEN-YOT-003 | P95: 05399-2 | Q95: จ้างที่ปรึกษาควบคุมการก่อสร้างโครงการก่อสร้างสะพานข้ามแม่น้ำเจ้าพระยา บริเวณแยกเกียกกาย ช่วงที่ 2 | R95: จ้างที่ปรึกษาควบคุมงานก่อสร้างสะพานข้ามแม่น้ำเจ้าพระยาบริเวณแยกเกียกกาย ช่วงที่ 2 | S95: 70014 - สำนักการโยธา - งบประมาณ พ.ศ. 2570.pdf | T95: 58 | U95: https://drive.google.com/file/d/16Y16ZUrhcuEhxuguxxGQ2TmFH4fxxBaT/view?usp=drivesdk | W95: FALSE | X95: TRUE | Y95: 1,242,000 | Z95: จ้างควบคุมงาน | AC95: document | AD95: 0 | AE95: 0 | AF95: สูง | AT95: B | AU95: แนวถนน คลอง หรือพื้นที่ | AV95: 4 | AW95: line_item | AX95: รายการใช้จ่าย | AY95: child | AZ95: TRUE | BA95: แยกเกียกกาย | BC95: area_projection | BD95: ยืนยันความเกี่ยวข้องกับพื้นที่ดุสิตจากระบบติดตามโครงการของกรุงเทพมหานคร; ไม่บันทึกพิกัดหรือแนวเส้น | BF95: แยกเกียกกายและสะพานข้ามแม่น้ำเจ้าพระยา เขตดุสิต กรุงเทพมหานคร | BG95: 2,114,522,630 | BJ95: ค่าที่ดินและสิ่งก่อสร้าง | BK95: 56 | BL95: ค่าที่ดินและสิ่งก่อสร้าง | BO95: แยกเกียกกายและสะพานข้ามแม่น้ำเจ้าพระยา | BP95: เกี่ยวข้องหลายพื้นที่ | BT95: 0 | BU95: not_applicable | BV95: [] | BW95: ยืนยันเป็นโครงการร่วมแล้ว เมื่อ 23 กรกฎาคม 2569; ยังไม่มีวงเงินแยกรายเขต | BX95: ไม่ปรากฏในเอกสาร | BY95: ไม่ปรากฏในเอกสาร | BZ95: สำนักส่วนกลาง | CB95: รายการที่ตั้งงบประมาณปี 2570 ตามเอกสาร ไม่ใช่ยอดเบิกจ่าย ราคาสัญญา หรือหลักฐานว่าเริ่มดำเนินงานแล้ว | CC95: 56
A96: ดุสิต | B96: สำนักงานเขตดุสิต | C96: ส่งเสริมกิจกรรมสโมสรกีฬาและลานกีฬา | D96: 497,800 | E96: ชุมชนและสวัสดิการ | F96: งาน/โครงการ | H96: ยอดรวมงาน/โครงการของสำนักงานเขต | I96: นับในยอดรวมสำนักงานเขต | J96: VIEW-00289 | K96: BKK70-DST-W-025 | P96: 1300017-P608 | Q96: โครงการส่งเสริมกิจกรรมสโมสรกีฬาและลานกีฬา | R96: งบรวมสำหรับส่งเสริมกิจกรรมสโมสรกีฬาและลานกีฬา ตามกรอบงานหรือโครงการของสำนักงานเขต | S96: 70033 - สำนักงานเขตดุสิต - งบประมาณ พ.ศ. 2570.pdf | T96: 4 | U96: https://drive.google.com/file/d/1w6-VfEbqdEjXXUiOGW9pCY4WTQo4mcnj/view?usp=drivesdk | W96: TRUE | X96: FALSE | Z96: จัดกิจกรรม/บริการประชาชน | AD96: 497,800 | AE96: 1 | AF96: สูง | AT96: C | AU96: ครอบคลุมหลายจุดหรือทั้งเขต | AV96: 0 | AY96: exact | AZ96: TRUE | BA96: ไม่ปรากฏในเอกสาร | BD96: ยังไม่ระบุพิกัด | BH96: 497,800 | BI96: 1 | BM96: งบย่อยรวมตรงกับงบหลัก | BO96: หลายพื้นที่/ทั้งเขต | BP96: งานบริการทั้งเขต | BT96: 0 | BU96: exact | BV96: [] | BW96: ตรวจยอดรวมระดับงาน/โครงการแล้ว | BX96: ไม่ปรากฏในเอกสาร | BY96: ไม่ปรากฏในเอกสาร | BZ96: สำนักงานเขต | CB96: รายการที่ตั้งงบประมาณปี 2570 ตามเอกสาร ไม่ใช่ยอดเบิกจ่าย ราคาสัญญา หรือหลักฐานว่าเริ่มดำเนินงานแล้ว
A97: ดุสิต | B97: สำนักงานเขตดุสิต | C97: เครื่องปรับอากาศ แบบแยกส่วน (ราคารวมค่าติดตั้ง) แบบตั้งพื้นหรือแบบแขวน (ระบบ Inverter) ขนาด 24,000 บีทียู 10 เครื่อง | D97: 409,000 | E97: โรงเรียนและการศึกษา | F97: รายการย่อย | H97: รายการย่อยภายในยอดรวมงาน/โครงการของสำนักงานเขต | I97: ไม่รวมซ้ำ: เป็นรายละเอียดภายในยอดงาน/โครงการ | J97: VIEW-00230 | K97: BKK70-DST-I-0058 | L97: VIEW-00286 | M97: BKK70-DST-W-022 | P97: 05101-1 | Q97: เครื่องปรับอากาศ แบบแยกส่วน (ราคารวมค่าติดตั้ง) แบบตั้งพื้นหรือแบบแขวน (ระบบ Inverter) ขนาด 24,000 บีทียู 10 เครื่อง | R97: งบสำหรับจัดซื้อหรือติดตั้งเครื่องปรับอากาศ แบบแยกส่วน (ราคารวมค่าติดตั้ง) แบบตั้งพื้นหรือแบบแขวน (ระบบ Inverter) ขนาด 24,000 บีทียู 10 เครื่อง ตามรายละเอียดในเอกสาร | S97: 70033 - สำนักงานเขตดุสิต - งบประมาณ พ.ศ. 2570.pdf | T97: 60 | U97: https://drive.google.com/file/d/1w6-VfEbqdEjXXUiOGW9pCY4WTQo4mcnj/view?usp=drivesdk | W97: FALSE | X97: FALSE | Z97: ติดตั้ง | AD97: 0 | AE97: 0 | AF97: สูง | AO97: ค่าใช้จ่ายและการลงทุนของโรงเรียนสังกัดเขต | AP97: งานงบประมาณโรงเรียน | AQ97: BKK70-DST-W-022 | AR97: VIEW-00286 | AT97: A | AU97: ระบุตำแหน่งเฉพาะได้ | AV97: 1 | AY97: child | AZ97: FALSE | BA97: โรงเรียนวัดเทวราชกุญชร | BC97: published_relation | BD97: ยังไม่ระบุพิกัด | BF97: โรงเรียนวัดเทวราชกุญชร เขตดุสิต กรุงเทพมหานคร | BG97: 37,970,470 | BH97: 0 | BI97: 0 | BJ97: งานงบประมาณโรงเรียน | BK97: 4 | BL97: ค่าใช้จ่ายและการลงทุนของโรงเรียนสังกัดเขต | BM97: งบย่อยรวมตรงกับงบหลัก | BO97: โรงเรียนวัดเทวราชกุญชร | BP97: งบย่อย | BT97: 0 | BU97: not_applicable | BV97: [] | BW97: ตรวจเชิงโครงสร้างแล้ว - ควรสุ่มตรวจภาพต้นฉบับ | BX97: ไม่ปรากฏในเอกสาร | BY97: ไม่ปรากฏในเอกสาร | BZ97: สำนักงานเขต | CB97: รายการที่ตั้งงบประมาณปี 2570 ตามเอกสาร ไม่ใช่ยอดเบิกจ่าย ราคาสัญญา หรือหลักฐานว่าเริ่มดำเนินงานแล้ว | CC97: 58
A98: ดุสิต | B98: สำนักงานเขตดุสิต | C98: ป้องกันและควบคุมโรค | D98: 334,400 | E98: สุขภาพและสาธารณสุข | F98: งาน/โครงการ | H98: ยอดรวมงาน/โครงการของสำนักงานเขต | I98: นับในยอดรวมสำนักงานเขต | J98: VIEW-00284 | K98: BKK70-DST-W-020 | P98: 1300020 | Q98: งานป้องกันและควบคุมโรค | R98: งบรวมสำหรับป้องกันและควบคุมโรค ตามกรอบงานหรือโครงการของสำนักงานเขต | S98: 70033 - สำนักงานเขตดุสิต - งบประมาณ พ.ศ. 2570.pdf | T98: 4 | U98: https://drive.google.com/file/d/1w6-VfEbqdEjXXUiOGW9pCY4WTQo4mcnj/view?usp=drivesdk | W98: TRUE | X98: FALSE | Z98: บริหารหรือดำเนินงาน | AD98: 334,400 | AE98: 1 | AF98: สูง | AT98: C | AU98: ครอบคลุมหลายจุดหรือทั้งเขต | AV98: 0 | AY98: exact | AZ98: TRUE | BA98: ไม่ปรากฏในเอกสาร | BD98: ยังไม่ระบุพิกัด | BH98: 334,400 | BI98: 1 | BM98: งบย่อยรวมตรงกับงบหลัก | BO98: หลายพื้นที่/ทั้งเขต | BP98: งานบริการทั้งเขต | BT98: 0 | BU98: exact | BV98: [] | BW98: ตรวจยอดรวมระดับงาน/โครงการแล้ว | BX98: ไม่ปรากฏในเอกสาร | BY98: ไม่ปรากฏในเอกสาร | BZ98: สำนักงานเขต | CB98: รายการที่ตั้งงบประมาณปี 2570 ตามเอกสาร ไม่ใช่ยอดเบิกจ่าย ราคาสัญญา หรือหลักฐานว่าเริ่มดำเนินงานแล้ว
A99: ดุสิต | B99: สำนักงานเขตดุสิต | C99: อนุญาตและควบคุมอาคาร | D99: 250,000 | E99: อาคารและสถานที่ราชการ | F99: งาน/โครงการ | H99: ยอดรวมงาน/โครงการของสำนักงานเขต | I99: นับในยอดรวมสำนักงานเขต | J99: VIEW-00278 | K99: BKK70-DST-W-014 | P99: 1300013 | Q99: งานอนุญาตก่อสร้าง ควบคุมอาคารและผังเมือง | R99: งบรวมสำหรับอนุญาตและควบคุมอาคาร ตามกรอบงานหรือโครงการของสำนักงานเขต | S99: 70033 - สำนักงานเขตดุสิต - งบประมาณ พ.ศ. 2570.pdf | T99: 3 | U99: https://drive.google.com/file/d/1w6-VfEbqdEjXXUiOGW9pCY4WTQo4mcnj/view?usp=drivesdk | W99: TRUE | X99: FALSE | Z99: ก่อสร้าง | AF99: สูง | AT99: C | AU99: ครอบคลุมหลายจุดหรือทั้งเขต | AZ99: TRUE | BA99: ไม่ปรากฏในเอกสาร | BD99: ยังไม่ระบุพิกัด | BO99: หลายพื้นที่/ทั้งเขต | BP99: งานบริการทั้งเขต | BV99: [] | BW99: ตรวจยอดรวมระดับงาน/โครงการแล้ว | BX99: ไม่ปรากฏในเอกสาร | BY99: ไม่ปรากฏในเอกสาร | BZ99: สำนักงานเขต | CB99: รายการที่ตั้งงบประมาณปี 2570 ตามเอกสาร ไม่ใช่ยอดเบิกจ่าย ราคาสัญญา หรือหลักฐานว่าเริ่มดำเนินงานแล้ว
A100: ดุสิต | B100: สำนักงานเขตดุสิต | C100: กรุงเทพฯ เมืองอาหารปลอดภัย | D100: 228,820 | E100: สุขภาพและสาธารณสุข | F100: งาน/โครงการ | H100: ยอดรวมงาน/โครงการของสำนักงานเขต | I100: นับในยอดรวมสำนักงานเขต | J100: VIEW-00291 | K100: BKK70-DST-W-027 | P100: 1300019-P115 | Q100: โครงการกรุงเทพฯ เมืองอาหารปลอดภัย | R100: งบรวมสำหรับกรุงเทพฯ เมืองอาหารปลอดภัย ตามกรอบงานหรือโครงการของสำนักงานเขต | S100: 70033 - สำนักงานเขตดุสิต - งบประมาณ พ.ศ. 2570.pdf | T100: 4 | U100: https://drive.google.com/file/d/1w6-VfEbqdEjXXUiOGW9pCY4WTQo4mcnj/view?usp=drivesdk | W100: TRUE | X100: FALSE | Z100: จัดกิจกรรม/บริการประชาชน | AD100: 228,820 | AE100: 1 | AF100: สูง | AT100: C | AU100: ครอบคลุมหลายจุดหรือทั้งเขต | AV100: 0 | AY100: exact | AZ100: TRUE | BA100: ไม่ปรากฏในเอกสาร | BD100: ยังไม่ระบุพิกัด | BH100: 228,820 | BI100: 1 | BM100: งบย่อยรวมตรงกับงบหลัก | BO100: หลายพื้นที่/ทั้งเขต | BP100: งานบริการทั้งเขต | BT100: 0 | BU100: exact | BV100: [] | BW100: ตรวจยอดรวมระดับงาน/โครงการแล้ว | BX100: ไม่ปรากฏในเอกสาร | BY100: ไม่ปรากฏในเอกสาร | BZ100: สำนักงานเขต | CB100: รายการที่ตั้งงบประมาณปี 2570 ตามเอกสาร ไม่ใช่ยอดเบิกจ่าย ราคาสัญญา หรือหลักฐานว่าเริ่มดำเนินงานแล้ว
A101: ดุสิต | B101: สำนักงานเขตดุสิต | C101: ชุดเครื่องเสียงกลางแจ้ง พร้อมติดตั้ง 1 ชุด | D101: 185,350 | E101: โรงเรียนและการศึกษา | F101: รายการย่อย | H101: รายการย่อยภายในยอดรวมงาน/โครงการของสำนักงานเขต | I101: ไม่รวมซ้ำ: เป็นรายละเอียดภายในยอดงาน/โครงการ | J101: VIEW-00261 | K101: BKK70-DST-I-0089 | L101: VIEW-00286 | M101: BKK70-DST-W-022 | P101: 05199-26 | Q101: ชุดเครื่องเสียงกลางแจ้ง พร้อมติดตั้ง 1 ชุด | R101: งบสำหรับจัดซื้อหรือติดตั้งชุดเครื่องเสียงกลางแจ้ง พร้อมติดตั้ง 1 ชุด ตามรายละเอียดในเอกสาร | S101: 70033 - สำนักงานเขตดุสิต - งบประมาณ พ.ศ. 2570.pdf | T101: 61 | U101: https://drive.google.com/file/d/1w6-VfEbqdEjXXUiOGW9pCY4WTQo4mcnj/view?usp=drivesdk | W101: FALSE | X101: FALSE | Z101: ติดตั้ง | AD101: 0 | AE101: 0 | AF101: สูง | AO101: ค่าใช้จ่ายและการลงทุนของโรงเรียนสังกัดเขต | AP101: งานงบประมาณโรงเรียน | AQ101: BKK70-DST-W-022 | AR101: VIEW-00286 | AT101: A | AU101: ระบุตำแหน่งเฉพาะได้ | AV101: 1 | AY101: child | AZ101: FALSE | BA101: โรงเรียนวัดธรรมาภิรตาราม | BC101: published_relation | BD101: ยังไม่ระบุพิกัด | BF101: โรงเรียนวัดธรรมาภิรตาราม เขตดุสิต กรุงเทพมหานคร | BG101: 37,970,470 | BH101: 0 | BI101: 0 | BJ101: งานงบประมาณโรงเรียน | BK101: 4 | BL101: ค่าใช้จ่ายและการลงทุนของโรงเรียนสังกัดเขต | BM101: งบย่อยรวมตรงกับงบหลัก | BO101: โรงเรียนวัดธรรมาภิรตาราม | BP101: งบย่อย | BT101: 0 | BU101: not_applicable | BV101: [] | BW101: ตรวจเชิงโครงสร้างแล้ว - ควรสุ่มตรวจภาพต้นฉบับ | BX101: ไม่ปรากฏในเอกสาร | BY101: ไม่ปรากฏในเอกสาร | BZ101: สำนักงานเขต | CB101: รายการที่ตั้งงบประมาณปี 2570 ตามเอกสาร ไม่ใช่ยอดเบิกจ่าย ราคาสัญญา หรือหลักฐานว่าเริ่มดำเนินงานแล้ว | CC101: 59
A102: ดุสิต | B102: สำนักงานเขตดุสิต | C102: เครื่องคอมพิวเตอร์ สำหรับงานสำนักงาน (จอแสดงภาพขนาดไม่น้อยกว่า 23 นิ้ว) | D102: 114,000 | E102: โรงเรียนและการศึกษา | F102: รายการย่อย | H102: รายการย่อยภายในยอดรวมงาน/โครงการของสำนักงานเขต | I102: ไม่รวมซ้ำ: เป็นรายละเอียดภายในยอดงาน/โครงการ | J102: VIEW-00229 | K102: BKK70-DST-I-0057 | L102: VIEW-00286 | M102: BKK70-DST-W-022 | P102: 05105-1 | Q102: เครื่องคอมพิวเตอร์ สำหรับงานสำนักงาน (จอแสดงภาพขนาดไม่น้อยกว่า 23 นิ้ว) พร้อมชุดโปรแกรมระบบปฏิบัติการสำหรับ เครื่องคอมพิวเตอร์แบบสิทธิการใช้งานภายใน สำนักงาน ประเภทติดตั้งมาจากโรงงาน (OEM) ที่มีลิขสิทธิ์ที่ถูกต้องตามกฎหมาย 4 เครื่อง | R102: งบสำหรับจัดซื้อหรือติดตั้งเครื่องคอมพิวเตอร์ สำหรับงานสำนักงาน (จอแสดงภาพขนาดไม่น้อยกว่า 23 นิ้ว) ตามรายละเอียดในเอกสาร | S102: 70033 - สำนักงานเขตดุสิต - งบประมาณ พ.ศ. 2570.pdf | T102: 59 | U102: https://drive.google.com/file/d/1w6-VfEbqdEjXXUiOGW9pCY4WTQo4mcnj/view?usp=drivesdk | W102: FALSE | X102: FALSE | Z102: ติดตั้ง | AD102: 0 | AE102: 0 | AF102: สูง | AO102: ค่าใช้จ่ายและการลงทุนของโรงเรียนสังกัดเขต | AP102: งานงบประมาณโรงเรียน | AQ102: BKK70-DST-W-022 | AR102: VIEW-00286 | AT102: A | AU102: ระบุตำแหน่งเฉพาะได้ | AV102: 1 | AY102: child | AZ102: FALSE | BA102: โรงเรียนวัดจันทรสโมสร | BC102: published_relation | BD102: ยังไม่ระบุพิกัด | BF102: โรงเรียนวัดจันทรสโมสร เขตดุสิต กรุงเทพมหานคร | BG102: 37,970,470 | BH102: 0 | BI102: 0 | BJ102: งานงบประมาณโรงเรียน | BK102: 4 | BL102: ค่าใช้จ่ายและการลงทุนของโรงเรียนสังกัดเขต | BM102: งบย่อยรวมตรงกับงบหลัก | BO102: โรงเรียนวัดจันทรสโมสร | BP102: งบย่อย | BT102: 0 | BU102: not_applicable | BV102: [] | BW102: ตรวจเชิงโครงสร้างแล้ว - ควรสุ่มตรวจภาพต้นฉบับ | BX102: ไม่ปรากฏในเอกสาร | BY102: ไม่ปรากฏในเอกสาร | BZ102: สำนักงานเขต | CB102: รายการที่ตั้งงบประมาณปี 2570 ตามเอกสาร ไม่ใช่ยอดเบิกจ่าย ราคาสัญญา หรือหลักฐานว่าเริ่มดำเนินงานแล้ว | CC102: 57
A103: ดุสิต | B103: สำนักงานเขตดุสิต | C103: เครื่องคอมพิวเตอร์ สำหรับงานสำนักงาน (จอแสดงภาพขนาดไม่น้อยกว่า 23 นิ้ว) | D103: 114,000 | E103: โรงเรียนและการศึกษา | F103: รายการย่อย | H103: รายการย่อยภายในยอดรวมงาน/โครงการของสำนักงานเขต | I103: ไม่รวมซ้ำ: เป็นรายละเอียดภายในยอดงาน/โครงการ | J103: VIEW-00250 | K103: BKK70-DST-I-0078 | L103: VIEW-00286 | M103: BKK70-DST-W-022 | P103: 05105-3 | Q103: เครื่องคอมพิวเตอร์ สำหรับงานสำนักงาน (จอแสดงภาพขนาดไม่น้อยกว่า 23 นิ้ว) พร้อมชุดโปรแกรมระบบปฏิบัติการสำหรับ เครื่องคอมพิวเตอร์แบบสิทธิการใช้งานภายใน สำนักงาน ประเภทติดตั้งมาจากโรงงาน (OEM) ที่มีลิขสิทธิ์ที่ถูกต้องตามกฎหมาย 4 เครื่อง | R103: งบสำหรับจัดซื้อหรือติดตั้งเครื่องคอมพิวเตอร์ สำหรับงานสำนักงาน (จอแสดงภาพขนาดไม่น้อยกว่า 23 นิ้ว) ตามรายละเอียดในเอกสาร | S103: 70033 - สำนักงานเขตดุสิต - งบประมาณ พ.ศ. 2570.pdf | T103: 61 | U103: https://drive.google.com/file/d/1w6-VfEbqdEjXXUiOGW9pCY4WTQo4mcnj/view?usp=drivesdk | W103: FALSE | X103: FALSE | Z103: ติดตั้ง | AD103: 0 | AE103: 0 | AF103: สูง | AO103: ค่าใช้จ่ายและการลงทุนของโรงเรียนสังกัดเขต | AP103: งานงบประมาณโรงเรียน | AQ103: BKK70-DST-W-022 | AR103: VIEW-00286 | AT103: A | AU103: ระบุตำแหน่งเฉพาะได้ | AV103: 1 | AY103: child | AZ103: FALSE | BA103: โรงเรียนวัดสมณานัมบริหาร | BC103: published_relation | BD103: ยังไม่ระบุพิกัด | BF103: โรงเรียนวัดสมณานัมบริหาร เขตดุสิต กรุงเทพมหานคร | BG103: 37,970,470 | BH103: 0 | BI103: 0 | BJ103: งานงบประมาณโรงเรียน | BK103: 4 | BL103: ค่าใช้จ่ายและการลงทุนของโรงเรียนสังกัดเขต | BM103: งบย่อยรวมตรงกับงบหลัก | BO103: โรงเรียนวัดสมณานัมบริหาร | BP103: งบย่อย | BT103: 0 | BU103: not_applicable | BV103: [] | BW103: ตรวจเชิงโครงสร้างแล้ว - ควรสุ่มตรวจภาพต้นฉบับ | BX103: ไม่ปรากฏในเอกสาร | BY103: ไม่ปรากฏในเอกสาร | BZ103: สำนักงานเขต | CB103: รายการที่ตั้งงบประมาณปี 2570 ตามเอกสาร ไม่ใช่ยอดเบิกจ่าย ราคาสัญญา หรือหลักฐานว่าเริ่มดำเนินงานแล้ว | CC103: 59
A104: ดุสิต | B104: สำนักงานเขตดุสิต | C104: เครื่องปรับอากาศ แบบแยกส่วน (ราคารวมค่าติดตั้ง) แบบตั้งพื้นหรือแบบแขวน ขนาด 44,000 บีทียู 2 เครื่อง | D104: 104,000 | E104: โรงเรียนและการศึกษา | F104: รายการย่อย | H104: รายการย่อยภายในยอดรวมงาน/โครงการของสำนักงานเขต | I104: ไม่รวมซ้ำ: เป็นรายละเอียดภายในยอดงาน/โครงการ | J104: VIEW-00241 | K104: BKK70-DST-I-0069 | L104: VIEW-00286 | M104: BKK70-DST-W-022 | P104: 05101-7 | Q104: เครื่องปรับอากาศ แบบแยกส่วน (ราคารวมค่าติดตั้ง) แบบตั้งพื้นหรือแบบแขวน ขนาด 44,000 บีทียู 2 เครื่อง | R104: งบสำหรับจัดซื้อหรือติดตั้งเครื่องปรับอากาศ แบบแยกส่วน (ราคารวมค่าติดตั้ง) แบบตั้งพื้นหรือแบบแขวน ขนาด 44,000 บีทียู 2 เครื่อง ตามรายละเอียดในเอกสาร | S104: 70033 - สำนักงานเขตดุสิต - งบประมาณ พ.ศ. 2570.pdf | T104: 60 | U104: https://drive.google.com/file/d/1w6-VfEbqdEjXXUiOGW9pCY4WTQo4mcnj/view?usp=drivesdk | W104: FALSE | X104: FALSE | Z104: ติดตั้ง | AD104: 0 | AE104: 0 | AF104: สูง | AO104: ค่าใช้จ่ายและการลงทุนของโรงเรียนสังกัดเขต | AP104: งานงบประมาณโรงเรียน | AQ104: BKK70-DST-W-022 | AR104: VIEW-00286 | AT104: A | AU104: ระบุตำแหน่งเฉพาะได้ | AV104: 1 | AY104: child | AZ104: FALSE | BA104: โรงเรียนวัดสวัสดิ์วารีสีมาราม | BC104: published_relation | BD104: ยังไม่ระบุพิกัด | BF104: โรงเรียนวัดสวัสดิ์วารีสีมาราม เขตดุสิต กรุงเทพมหานคร | BG104: 37,970,470 | BH104: 0 | BI104: 0 | BJ104: งานงบประมาณโรงเรียน | BK104: 4 | BL104: ค่าใช้จ่ายและการลงทุนของโรงเรียนสังกัดเขต | BM104: งบย่อยรวมตรงกับงบหลัก | BO104: โรงเรียนวัดสวัสดิ์วารีสีมาราม | BP104: งบย่อย | BT104: 0 | BU104: not_applicable | BV104: [] | BW104: ตรวจเชิงโครงสร้างแล้ว - ควรสุ่มตรวจภาพต้นฉบับ | BX104: ไม่ปรากฏในเอกสาร | BY104: ไม่ปรากฏในเอกสาร | BZ104: สำนักงานเขต | CB104: รายการที่ตั้งงบประมาณปี 2570 ตามเอกสาร ไม่ใช่ยอดเบิกจ่าย ราคาสัญญา หรือหลักฐานว่าเริ่มดำเนินงานแล้ว | CC104: 58
A105: ดุสิต | B105: สำนักงานเขตดุสิต | C105: เครื่องถ่ายเอกสาร ระบบดิจิทัล (ขาว-ดา) ความเร็ว 20 แผ่นต่อนาที 1 เครื่อง | D105: 92,100 | E105: โรงเรียนและการศึกษา | F105: รายการย่อย | H105: รายการย่อยภายในยอดรวมงาน/โครงการของสำนักงานเขต | I105: ไม่รวมซ้ำ: เป็นรายละเอียดภายในยอดงาน/โครงการ | J105: VIEW-00233 | K105: BKK70-DST-I-0061 | L105: VIEW-00286 | M105: BKK70-DST-W-022 | P105: 05198-2 | Q105: เครื่องถ่ายเอกสาร ระบบดิจิทัล (ขาว-ดา) ความเร็ว 20 แผ่นต่อนาที 1 เครื่อง | R105: งบสำหรับจัดซื้อหรือติดตั้งเครื่องถ่ายเอกสาร ระบบดิจิทัล (ขาว-ดา) ความเร็ว 20 แผ่นต่อนาที 1 เครื่อง ตามรายละเอียดในเอกสาร | S105: 70033 - สำนักงานเขตดุสิต - งบประมาณ พ.ศ. 2570.pdf | T105: 60 | U105: https://drive.google.com/file/d/1w6-VfEbqdEjXXUiOGW9pCY4WTQo4mcnj/view?usp=drivesdk | W105: FALSE | X105: FALSE | Z105: จัดซื้อ | AD105: 0 | AE105: 0 | AF105: สูง | AO105: ค่าใช้จ่ายและการลงทุนของโรงเรียนสังกัดเขต | AP105: งานงบประมาณโรงเรียน | AQ105: BKK70-DST-W-022 | AR105: VIEW-00286 | AT105: A | AU105: ระบุตำแหน่งเฉพาะได้ | AV105: 1 | AY105: child | AZ105: FALSE | BA105: โรงเรียนวัดประชาระบือธรรม | BC105: published_relation | BD105: ยังไม่ระบุพิกัด | BF105: โรงเรียนวัดประชาระบือธรรม เขตดุสิต กรุงเทพมหานคร | BG105: 37,970,470 | BH105: 0 | BI105: 0 | BJ105: งานงบประมาณโรงเรียน | BK105: 4 | BL105: ค่าใช้จ่ายและการลงทุนของโรงเรียนสังกัดเขต | BM105: งบย่อยรวมตรงกับงบหลัก | BO105: โรงเรียนวัดประชาระบือธรรม | BP105: งบย่อย | BT105: 0 | BU105: not_applicable | BV105: [] | BW105: ตรวจเชิงโครงสร้างแล้ว - ควรสุ่มตรวจภาพต้นฉบับ | BX105: ไม่ปรากฏในเอกสาร | BY105: ไม่ปรากฏในเอกสาร | BZ105: สำนักงานเขต | CB105: รายการที่ตั้งงบประมาณปี 2570 ตามเอกสาร ไม่ใช่ยอดเบิกจ่าย ราคาสัญญา หรือหลักฐานว่าเริ่มดำเนินงานแล้ว | CC105: 58
A106: ดุสิต | B106: สำนักงานเขตดุสิต | C106: ตู้เหล็ก แบบ 4 ลิ้นชัก 12 ตู้ | D106: 86,400 | E106: โรงเรียนและการศึกษา | F106: รายการย่อย | H106: รายการย่อยภายในยอดรวมงาน/โครงการของสำนักงานเขต | I106: ไม่รวมซ้ำ: เป็นรายละเอียดภายในยอดงาน/โครงการ | J106: VIEW-00258 | K106: BKK70-DST-I-0086 | L106: VIEW-00286 | M106: BKK70-DST-W-022 | P106: 05109-3 | Q106: ตู้เหล็ก แบบ 4 ลิ้นชัก 12 ตู้ | R106: งบสำหรับจัดซื้อหรือติดตั้งตู้เหล็ก แบบ 4 ลิ้นชัก 12 ตู้ ตามรายละเอียดในเอกสาร | S106: 70033 - สำนักงานเขตดุสิต - งบประมาณ พ.ศ. 2570.pdf | T106: 61 | U106: https://drive.google.com/file/d/1w6-VfEbqdEjXXUiOGW9pCY4WTQo4mcnj/view?usp=drivesdk | W106: FALSE | X106: FALSE | Z106: จัดซื้อ | AD106: 0 | AE106: 0 | AF106: สูง | AO106: ค่าใช้จ่ายและการลงทุนของโรงเรียนสังกัดเขต | AP106: งานงบประมาณโรงเรียน | AQ106: BKK70-DST-W-022 | AR106: VIEW-00286 | AT106: A | AU106: ระบุตำแหน่งเฉพาะได้ | AV106: 1 | AY106: child | AZ106: FALSE | BA106: โรงเรียนวัดธรรมาภิรตาราม | BC106: published_relation | BD106: ยังไม่ระบุพิกัด | BF106: โรงเรียนวัดธรรมาภิรตาราม เขตดุสิต กรุงเทพมหานคร | BG106: 37,970,470 | BH106: 0 | BI106: 0 | BJ106: งานงบประมาณโรงเรียน | BK106: 4 | BL106: ค่าใช้จ่ายและการลงทุนของโรงเรียนสังกัดเขต | BM106: งบย่อยรวมตรงกับงบหลัก | BO106: โรงเรียนวัดธรรมาภิรตาราม | BP106: งบย่อย | BT106: 0 | BU106: not_applicable | BV106: [] | BW106: ตรวจเชิงโครงสร้างแล้ว - ควรสุ่มตรวจภาพต้นฉบับ | BX106: ไม่ปรากฏในเอกสาร | BY106: ไม่ปรากฏในเอกสาร | BZ106: สำนักงานเขต | CB106: รายการที่ตั้งงบประมาณปี 2570 ตามเอกสาร ไม่ใช่ยอดเบิกจ่าย ราคาสัญญา หรือหลักฐานว่าเริ่มดำเนินงานแล้ว | CC106: 59
A107: ดุสิต | B107: สำนักงานเขตดุสิต | C107: อาสาสมัครกรุงเทพมหานครด้านการป้องกันและแก้ไขปัญหายาและสารเสพติด | D107: 86,000 | E107: ความปลอดภัยและป้องกันภัย | F107: งาน/โครงการ | H107: ยอดรวมงาน/โครงการของสำนักงานเขต | I107: นับในยอดรวมสำนักงานเขต | J107: VIEW-00287 | K107: BKK70-DST-W-023 | P107: 1300002-P121 | Q107: โครงการอาสาสมัครกรุงเทพมหานครด้านการป้องกันและแก้ไขปัญหายาและสารเสพติด | R107: งบรวมสำหรับอาสาสมัครกรุงเทพมหานครด้านการป้องกันและแก้ไขปัญหายาและสารเสพติด ตามกรอบงานหรือโครงการของสำนักงานเขต | S107: 70033 - สำนักงานเขตดุสิต - งบประมาณ พ.ศ. 2570.pdf | T107: 4 | U107: https://drive.google.com/file/d/1w6-VfEbqdEjXXUiOGW9pCY4WTQo4mcnj/view?usp=drivesdk | W107: TRUE | X107: FALSE | Z107: จัดกิจกรรม/บริการประชาชน | AD107: 86,000 | AE107: 1 | AF107: สูง | AT107: C | AU107: ครอบคลุมหลายจุดหรือทั้งเขต | AV107: 0 | AY107: exact | AZ107: TRUE | BA107: ไม่ปรากฏในเอกสาร | BD107: ยังไม่ระบุพิกัด | BH107: 86,000 | BI107: 1 | BM107: งบย่อยรวมตรงกับงบหลัก | BO107: หลายพื้นที่/ทั้งเขต | BP107: งานบริการทั้งเขต | BT107: 0 | BU107: exact | BV107: [] | BW107: ตรวจยอดรวมระดับงาน/โครงการแล้ว | BX107: ไม่ปรากฏในเอกสาร | BY107: ไม่ปรากฏในเอกสาร | BZ107: สำนักงานเขต | CB107: รายการที่ตั้งงบประมาณปี 2570 ตามเอกสาร ไม่ใช่ยอดเบิกจ่าย ราคาสัญญา หรือหลักฐานว่าเริ่มดำเนินงานแล้ว
A108: ดุสิต | B108: สำนักงานเขตดุสิต | C108: ขิมผีเสื้อ 10 ตัว | D108: 75,000 | E108: โรงเรียนและการศึกษา | F108: รายการย่อย | H108: รายการย่อยภายในยอดรวมงาน/โครงการของสำนักงานเขต | I108: ไม่รวมซ้ำ: เป็นรายละเอียดภายในยอดงาน/โครงการ | J108: VIEW-00232 | K108: BKK70-DST-I-0060 | L108: VIEW-00286 | M108: BKK70-DST-W-022 | P108: 05133-1 | Q108: ขิมผีเสื้อ 10 ตัว | R108: งบสำหรับจัดซื้อหรือติดตั้งขิมผีเสื้อ 10 ตัว ตามรายละเอียดในเอกสาร | S108: 70033 - สำนักงานเขตดุสิต - งบประมาณ พ.ศ. 2570.pdf | T108: 60 | U108: https://drive.google.com/file/d/1w6-VfEbqdEjXXUiOGW9pCY4WTQo4mcnj/view?usp=drivesdk | W108: FALSE | X108: FALSE | Z108: บริหารหรือดำเนินงาน | AD108: 0 | AE108: 0 | AF108: สูง | AO108: ค่าใช้จ่ายและการลงทุนของโรงเรียนสังกัดเขต | AP108: งานงบประมาณโรงเรียน | AQ108: BKK70-DST-W-022 | AR108: VIEW-00286 | AT108: A | AU108: ระบุตำแหน่งเฉพาะได้ | AV108: 1 | AY108: child | AZ108: FALSE | BA108: โรงเรียนวัดประชาระบือธรรม | BC108: published_relation | BD108: ยังไม่ระบุพิกัด | BF108: โรงเรียนวัดประชาระบือธรรม เขตดุสิต กรุงเทพมหานคร | BG108: 37,970,470 | BH108: 0 | BI108: 0 | BJ108: งานงบประมาณโรงเรียน | BK108: 4 | BL108: ค่าใช้จ่ายและการลงทุนของโรงเรียนสังกัดเขต | BM108: งบย่อยรวมตรงกับงบหลัก | BO108: โรงเรียนวัดประชาระบือธรรม | BP108: งบย่อย | BT108: 0 | BU108: not_applicable | BV108: [] | BW108: ตรวจเชิงโครงสร้างแล้ว - ควรสุ่มตรวจภาพต้นฉบับ | BX108: ไม่ปรากฏในเอกสาร | BY108: ไม่ปรากฏในเอกสาร | BZ108: สำนักงานเขต | CB108: รายการที่ตั้งงบประมาณปี 2570 ตามเอกสาร ไม่ใช่ยอดเบิกจ่าย ราคาสัญญา หรือหลักฐานว่าเริ่มดำเนินงานแล้ว | CC108: 58
A109: ดุสิต | B109: สำนักงานเขตดุสิต | C109: เปิดโรงเรียนสู่การเรียนรู้ (Open Education) | D109: 69,120 | E109: โรงเรียนและการศึกษา | F109: งาน/โครงการ | H109: ยอดรวมงาน/โครงการของสำนักงานเขต | I109: นับในยอดรวมสำนักงานเขต | J109: VIEW-00292 | K109: BKK70-DST-W-028 | P109: 1300022-P221 | Q109: โครงการเปิดโรงเรียนสู่การเรียนรู้ (Open Education) | R109: งบรวมสำหรับเปิดโรงเรียนสู่การเรียนรู้ (Open Education) ตามกรอบงานหรือโครงการของสำนักงานเขต | S109: 70033 - สำนักงานเขตดุสิต - งบประมาณ พ.ศ. 2570.pdf | T109: 4 | U109: https://drive.google.com/file/d/1w6-VfEbqdEjXXUiOGW9pCY4WTQo4mcnj/view?usp=drivesdk | W109: TRUE | X109: FALSE | Z109: จัดกิจกรรม/บริการประชาชน | AD109: 69,120 | AE109: 1 | AF109: สูง | AT109: C | AU109: ครอบคลุมหลายจุดหรือทั้งเขต | AV109: 0 | AY109: exact | AZ109: TRUE | BA109: ไม่ปรากฏในเอกสาร | BD109: ยังไม่ระบุพิกัด | BH109: 69,120 | BI109: 1 | BM109: งบย่อยรวมตรงกับงบหลัก | BO109: หลายพื้นที่/ทั้งเขต | BP109: งานบริการทั้งเขต | BT109: 0 | BU109: exact | BV109: [] | BW109: ตรวจยอดรวมระดับงาน/โครงการแล้ว | BX109: ไม่ปรากฏในเอกสาร | BY109: ไม่ปรากฏในเอกสาร | BZ109: สำนักงานเขต | CB109: รายการที่ตั้งงบประมาณปี 2570 ตามเอกสาร ไม่ใช่ยอดเบิกจ่าย ราคาสัญญา หรือหลักฐานว่าเริ่มดำเนินงานแล้ว
A110: ดุสิต | B110: สำนักงานเขตดุสิต | C110: ตรวจและบังคับใช้กฎหมายในพื้นที่ | D110: 60,300 | E110: อื่น ๆ | F110: งาน/โครงการ | H110: ยอดรวมงาน/โครงการของสำนักงานเขต | I110: นับในยอดรวมสำนักงานเขต | J110: VIEW-00276 | K110: BKK70-DST-W-012 | P110: 1300011 | Q110: งานตรวจและบังคับใช้กฎหมาย | R110: งบรวมสำหรับตรวจและบังคับใช้กฎหมายในพื้นที่ ตามกรอบงานหรือโครงการของสำนักงานเขต | S110: 70033 - สำนักงานเขตดุสิต - งบประมาณ พ.ศ. 2570.pdf | T110: 3 | U110: https://drive.google.com/file/d/1w6-VfEbqdEjXXUiOGW9pCY4WTQo4mcnj/view?usp=drivesdk | W110: TRUE | X110: FALSE | Z110: บริหารหรือดำเนินงาน | AF110: สูง | AT110: C | AU110: ครอบคลุมหลายจุดหรือทั้งเขต | AZ110: TRUE | BA110: ไม่ปรากฏในเอกสาร | BD110: ยังไม่ระบุพิกัด | BO110: หลายพื้นที่/ทั้งเขต | BP110: งานบริการทั้งเขต | BV110: [] | BW110: ตรวจยอดรวมระดับงาน/โครงการแล้ว | BX110: ไม่ปรากฏในเอกสาร | BY110: ไม่ปรากฏในเอกสาร | BZ110: สำนักงานเขต | CB110: รายการที่ตั้งงบประมาณปี 2570 ตามเอกสาร ไม่ใช่ยอดเบิกจ่าย ราคาสัญญา หรือหลักฐานว่าเริ่มดำเนินงานแล้ว
A111: ดุสิต | B111: สำนักวัฒนธรรม กีฬา และการท่องเที่ยว | C111: ซื้อคอมพิวเตอร์สำนักงาน 2 เครื่องให้ห้องสมุดดุสิต | D111: 57,000 | E111: ศิลปวัฒนธรรมและการท่องเที่ยว | F111: รายการใช้จ่าย | G111: area_projection | H111: เฉพาะสถานที่ในเขต | I111: รายการจากสำนักส่วนกลาง: วงเงินเฉพาะพื้นที่ แต่ไม่นับรวมยอดสำนักงานเขต | J111: VIEW-00336 | K111: BKK70-CEN-CUL-006 | L111: RAW-70024-53-line-2-1-1 | M111: BKK70-RAW-70024-53-line-2-1-1 | N111: CANON-VIEW-00336 | O111: BKK70-CEN-CUL-006 | P111: 05105-3 | Q111: เครื่องคอมพิวเตอร์ สำหรับงานสำนักงาน พร้อมชุดโปรแกรมระบบปฏิบัติการ 2 เครื่อง | R111: จัดซื้อคอมพิวเตอร์สำนักงานพร้อมระบบปฏิบัติการ 2 เครื่องให้ห้องสมุดเพื่อการเรียนรู้ดุสิต | S111: 70024 - สำนักวัฒนธรรม กีฬา และการท่องเที่ยว - งบประมาณ พ.ศ. 2570.pdf | T111: 56 | U111: https://drive.google.com/file/d/1J8qW4B6-KNR34sfMSYIiXksbk10mkacF/view?usp=drivesdk | V111: 57,000 | W111: FALSE | X111: FALSE | Y111: 0 | Z111: จัดซื้อ | AC111: document | AD111: 0 | AE111: 0 | AF111: สูง | AT111: A | AU111: จุดหรือสถานที่เฉพาะ | AV111: 4 | AW111: line_item | AX111: รายการใช้จ่าย | AY111: child | AZ111: TRUE | BA111: ศูนย์ราชการกรุงเทพมหานคร (เกียกกาย) | BC111: area_projection | BD111: ยืนยันเขตและสถานที่จากเว็บไซต์ Greener Bangkok ของ กทม.; ไม่บันทึกพิกัด | BF111: ศูนย์ราชการกรุงเทพมหานคร (เกียกกาย) เขตดุสิต กรุงเทพมหานคร | BG111: 3,699,050 | BJ111: ค่าครุภัณฑ์ | BK111: 53 | BL111: ค่าครุภัณฑ์ | BO111: ห้องสมุดเพื่อการเรียนรู้ดุสิต | BP111: หลัก | BT111: 0 | BU111: not_applicable | BV111: [] | BW111: ตรวจภาพต้นฉบับและยืนยันเขตจากแหล่งทางการแล้ว | BX111: ถนนทหาร | BY111: ไม่ปรากฏในเอกสาร | BZ111: สำนักส่วนกลาง | CB111: รายการที่ตั้งงบประมาณปี 2570 ตามเอกสาร ไม่ใช่ยอดเบิกจ่าย ราคาสัญญา หรือหลักฐานว่าเริ่มดำเนินงานแล้ว | CC111: 54
A112: ดุสิต | B112: สำนักงานเขตดุสิต | C112: ตู้ล็อกเกอร์ไม้ 30 ช่อง 2 ตู้ | D112: 56,200 | E112: โรงเรียนและการศึกษา | F112: รายการย่อย | H112: รายการย่อยภายในยอดรวมงาน/โครงการของสำนักงานเขต | I112: ไม่รวมซ้ำ: เป็นรายละเอียดภายในยอดงาน/โครงการ | J112: VIEW-00260 | K112: BKK70-DST-I-0088 | L112: VIEW-00286 | M112: BKK70-DST-W-022 | P112: 05199-25 | Q112: ตู้ล็อกเกอร์ไม้ 30 ช่อง 2 ตู้ | R112: งบสำหรับจัดซื้อหรือติดตั้งตู้ล็อกเกอร์ไม้ 30 ช่อง 2 ตู้ ตามรายละเอียดในเอกสาร | S112: 70033 - สำนักงานเขตดุสิต - งบประมาณ พ.ศ. 2570.pdf | T112: 61 | U112: https://drive.google.com/file/d/1w6-VfEbqdEjXXUiOGW9pCY4WTQo4mcnj/view?usp=drivesdk | W112: FALSE | X112: FALSE | Z112: จัดซื้อ | AD112: 0 | AE112: 0 | AF112: สูง | AO112: ค่าใช้จ่ายและการลงทุนของโรงเรียนสังกัดเขต | AP112: งานงบประมาณโรงเรียน | AQ112: BKK70-DST-W-022 | AR112: VIEW-00286 | AT112: A | AU112: ระบุตำแหน่งเฉพาะได้ | AV112: 1 | AY112: child | AZ112: FALSE | BA112: โรงเรียนวัดธรรมาภิรตาราม | BC112: published_relation | BD112: ยังไม่ระบุพิกัด | BF112: โรงเรียนวัดธรรมาภิรตาราม เขตดุสิต กรุงเทพมหานคร | BG112: 37,970,470 | BH112: 0 | BI112: 0 | BJ112: งานงบประมาณโรงเรียน | BK112: 4 | BL112: ค่าใช้จ่ายและการลงทุนของโรงเรียนสังกัดเขต | BM112: งบย่อยรวมตรงกับงบหลัก | BO112: โรงเรียนวัดธรรมาภิรตาราม | BP112: งบย่อย | BT112: 0 | BU112: not_applicable | BV112: [] | BW112: ตรวจเชิงโครงสร้างแล้ว - ควรสุ่มตรวจภาพต้นฉบับ | BX112: ไม่ปรากฏในเอกสาร | BY112: ไม่ปรากฏในเอกสาร | BZ112: สำนักงานเขต | CB112: รายการที่ตั้งงบประมาณปี 2570 ตามเอกสาร ไม่ใช่ยอดเบิกจ่าย ราคาสัญญา หรือหลักฐานว่าเริ่มดำเนินงานแล้ว | CC112: 59
A113: ดุสิต | B113: สำนักงานเขตดุสิต | C113: เครื่องปรับอากาศ แบบแยกส่วน (ราคารวมค่าติดตั้ง) แบบตั้งพื้นหรือแบบแขวน ขนาด 44,000 บีทียู 1 เครื่อง | D113: 52,000 | E113: โรงเรียนและการศึกษา | F113: รายการย่อย | H113: รายการย่อยภายในยอดรวมงาน/โครงการของสำนักงานเขต | I113: ไม่รวมซ้ำ: เป็นรายละเอียดภายในยอดงาน/โครงการ | J113: VIEW-00231 | K113: BKK70-DST-I-0059 | L113: VIEW-00286 | M113: BKK70-DST-W-022 | P113: 05101-6 | Q113: เครื่องปรับอากาศ แบบแยกส่วน (ราคารวมค่าติดตั้ง) แบบตั้งพื้นหรือแบบแขวน ขนาด 44,000 บีทียู 1 เครื่อง | R113: งบสำหรับจัดซื้อหรือติดตั้งเครื่องปรับอากาศ แบบแยกส่วน (ราคารวมค่าติดตั้ง) แบบตั้งพื้นหรือแบบแขวน ขนาด 44,000 บีทียู 1 เครื่อง ตามรายละเอียดในเอกสาร | S113: 70033 - สำนักงานเขตดุสิต - งบประมาณ พ.ศ. 2570.pdf | T113: 60 | U113: https://drive.google.com/file/d/1w6-VfEbqdEjXXUiOGW9pCY4WTQo4mcnj/view?usp=drivesdk | W113: FALSE | X113: FALSE | Z113: ติดตั้ง | AD113: 0 | AE113: 0 | AF113: สูง | AO113: ค่าใช้จ่ายและการลงทุนของโรงเรียนสังกัดเขต | AP113: งานงบประมาณโรงเรียน | AQ113: BKK70-DST-W-022 | AR113: VIEW-00286 | AT113: A | AU113: ระบุตำแหน่งเฉพาะได้ | AV113: 1 | AY113: child | AZ113: FALSE | BA113: โรงเรียนวัดประชาระบือธรรม | BC113: published_relation | BD113: ยังไม่ระบุพิกัด | BF113: โรงเรียนวัดประชาระบือธรรม เขตดุสิต กรุงเทพมหานคร | BG113: 37,970,470 | BH113: 0 | BI113: 0 | BJ113: งานงบประมาณโรงเรียน | BK113: 4 | BL113: ค่าใช้จ่ายและการลงทุนของโรงเรียนสังกัดเขต | BM113: งบย่อยรวมตรงกับงบหลัก | BO113: โรงเรียนวัดประชาระบือธรรม | BP113: งบย่อย | BT113: 0 | BU113: not_applicable | BV113: [] | BW113: ตรวจเชิงโครงสร้างแล้ว - ควรสุ่มตรวจภาพต้นฉบับ | BX113: ไม่ปรากฏในเอกสาร | BY113: ไม่ปรากฏในเอกสาร | BZ113: สำนักงานเขต | CB113: รายการที่ตั้งงบประมาณปี 2570 ตามเอกสาร ไม่ใช่ยอดเบิกจ่าย ราคาสัญญา หรือหลักฐานว่าเริ่มดำเนินงานแล้ว | CC113: 58
A114: ดุสิต | B114: สำนักงานเขตดุสิต | C114: เครื่องปรับอากาศ แบบแยกส่วน (ราคารวมค่าติดตั้ง) แบบตั้งพื้นหรือแบบแขวน ขนาด 13,000 บีทียู 2 เครื่อง | D114: 47,000 | E114: โรงเรียนและการศึกษา | F114: รายการย่อย | H114: รายการย่อยภายในยอดรวมงาน/โครงการของสำนักงานเขต | I114: ไม่รวมซ้ำ: เป็นรายละเอียดภายในยอดงาน/โครงการ | J114: VIEW-00247 | K114: BKK70-DST-I-0075 | L114: VIEW-00286 | M114: BKK70-DST-W-022 | P114: 05101-4 | Q114: เครื่องปรับอากาศ แบบแยกส่วน (ราคารวมค่าติดตั้ง) แบบตั้งพื้นหรือแบบแขวน ขนาด 13,000 บีทียู 2 เครื่อง | R114: งบสำหรับจัดซื้อหรือติดตั้งเครื่องปรับอากาศ แบบแยกส่วน (ราคารวมค่าติดตั้ง) แบบตั้งพื้นหรือแบบแขวน ขนาด 13,000 บีทียู 2 เครื่อง ตามรายละเอียดในเอกสาร | S114: 70033 - สำนักงานเขตดุสิต - งบประมาณ พ.ศ. 2570.pdf | T114: 60 | U114: https://drive.google.com/file/d/1w6-VfEbqdEjXXUiOGW9pCY4WTQo4mcnj/view?usp=drivesdk | W114: FALSE | X114: FALSE | Z114: ติดตั้ง | AD114: 0 | AE114: 0 | AF114: สูง | AO114: ค่าใช้จ่ายและการลงทุนของโรงเรียนสังกัดเขต | AP114: งานงบประมาณโรงเรียน | AQ114: BKK70-DST-W-022 | AR114: VIEW-00286 | AT114: A | AU114: ระบุตำแหน่งเฉพาะได้ | AV114: 1 | AY114: child | AZ114: FALSE | BA114: โรงเรียนวัดสมณานัมบริหาร | BC114: published_relation | BD114: ยังไม่ระบุพิกัด | BF114: โรงเรียนวัดสมณานัมบริหาร เขตดุสิต กรุงเทพมหานคร | BG114: 37,970,470 | BH114: 0 | BI114: 0 | BJ114: งานงบประมาณโรงเรียน | BK114: 4 | BL114: ค่าใช้จ่ายและการลงทุนของโรงเรียนสังกัดเขต | BM114: งบย่อยรวมตรงกับงบหลัก | BO114: โรงเรียนวัดสมณานัมบริหาร | BP114: งบย่อย | BT114: 0 | BU114: not_applicable | BV114: [] | BW114: ตรวจเชิงโครงสร้างแล้ว - ควรสุ่มตรวจภาพต้นฉบับ | BX114: ไม่ปรากฏในเอกสาร | BY114: ไม่ปรากฏในเอกสาร | BZ114: สำนักงานเขต | CB114: รายการที่ตั้งงบประมาณปี 2570 ตามเอกสาร ไม่ใช่ยอดเบิกจ่าย ราคาสัญญา หรือหลักฐานว่าเริ่มดำเนินงานแล้ว | CC114: 58
A115: ดุสิต | B115: สำนักงานเขตดุสิต | C115: ตู้เหล็ก แบบ 3 ลิ้นชัก 6 ตู้ | D115: 41,700 | E115: โรงเรียนและการศึกษา | F115: รายการย่อย | H115: รายการย่อยภายในยอดรวมงาน/โครงการของสำนักงานเขต | I115: ไม่รวมซ้ำ: เป็นรายละเอียดภายในยอดงาน/โครงการ | J115: VIEW-00254 | K115: BKK70-DST-I-0082 | L115: VIEW-00286 | M115: BKK70-DST-W-022 | P115: 05199-2 | Q115: ตู้เหล็ก แบบ 3 ลิ้นชัก 6 ตู้ | R115: งบสำหรับจัดซื้อหรือติดตั้งตู้เหล็ก แบบ 3 ลิ้นชัก 6 ตู้ ตามรายละเอียดในเอกสาร | S115: 70033 - สำนักงานเขตดุสิต - งบประมาณ พ.ศ. 2570.pdf | T115: 61 | U115: https://drive.google.com/file/d/1w6-VfEbqdEjXXUiOGW9pCY4WTQo4mcnj/view?usp=drivesdk | W115: FALSE | X115: FALSE | Z115: จัดซื้อ | AD115: 0 | AE115: 0 | AF115: สูง | AO115: ค่าใช้จ่ายและการลงทุนของโรงเรียนสังกัดเขต | AP115: งานงบประมาณโรงเรียน | AQ115: BKK70-DST-W-022 | AR115: VIEW-00286 | AT115: A | AU115: ระบุตำแหน่งเฉพาะได้ | AV115: 1 | AY115: child | AZ115: FALSE | BA115: โรงเรียนวัดสมณานัมบริหาร | BC115: published_relation | BD115: ยังไม่ระบุพิกัด | BF115: โรงเรียนวัดสมณานัมบริหาร เขตดุสิต กรุงเทพมหานคร | BG115: 37,970,470 | BH115: 0 | BI115: 0 | BJ115: งานงบประมาณโรงเรียน | BK115: 4 | BL115: ค่าใช้จ่ายและการลงทุนของโรงเรียนสังกัดเขต | BM115: งบย่อยรวมตรงกับงบหลัก | BO115: โรงเรียนวัดสมณานัมบริหาร | BP115: งบย่อย | BT115: 0 | BU115: not_applicable | BV115: [] | BW115: ตรวจเชิงโครงสร้างแล้ว - ควรสุ่มตรวจภาพต้นฉบับ | BX115: ไม่ปรากฏในเอกสาร | BY115: ไม่ปรากฏในเอกสาร | BZ115: สำนักงานเขต | CB115: รายการที่ตั้งงบประมาณปี 2570 ตามเอกสาร ไม่ใช่ยอดเบิกจ่าย ราคาสัญญา หรือหลักฐานว่าเริ่มดำเนินงานแล้ว | CC115: 59
A116: ดุสิต | B116: สำนักงานเขตดุสิต | C116: ตู้เหล็ก แบบ 2 บาน 6 ตู้ | D116: 39,600 | E116: โรงเรียนและการศึกษา | F116: รายการย่อย | H116: รายการย่อยภายในยอดรวมงาน/โครงการของสำนักงานเขต | I116: ไม่รวมซ้ำ: เป็นรายละเอียดภายในยอดงาน/โครงการ | J116: VIEW-00257 | K116: BKK70-DST-I-0085 | L116: VIEW-00286 | M116: BKK70-DST-W-022 | P116: 05108-2 | Q116: ตู้เหล็ก แบบ 2 บาน 6 ตู้ | R116: งบสำหรับจัดซื้อหรือติดตั้งตู้เหล็ก แบบ 2 บาน 6 ตู้ ตามรายละเอียดในเอกสาร | S116: 70033 - สำนักงานเขตดุสิต - งบประมาณ พ.ศ. 2570.pdf | T116: 61 | U116: https://drive.google.com/file/d/1w6-VfEbqdEjXXUiOGW9pCY4WTQo4mcnj/view?usp=drivesdk | W116: FALSE | X116: FALSE | Z116: จัดซื้อ | AD116: 0 | AE116: 0 | AF116: สูง | AO116: ค่าใช้จ่ายและการลงทุนของโรงเรียนสังกัดเขต | AP116: งานงบประมาณโรงเรียน | AQ116: BKK70-DST-W-022 | AR116: VIEW-00286 | AT116: A | AU116: ระบุตำแหน่งเฉพาะได้ | AV116: 1 | AY116: child | AZ116: FALSE | BA116: โรงเรียนวัดธรรมาภิรตาราม | BC116: published_relation | BD116: ยังไม่ระบุพิกัด | BF116: โรงเรียนวัดธรรมาภิรตาราม เขตดุสิต กรุงเทพมหานคร | BG116: 37,970,470 | BH116: 0 | BI116: 0 | BJ116: งานงบประมาณโรงเรียน | BK116: 4 | BL116: ค่าใช้จ่ายและการลงทุนของโรงเรียนสังกัดเขต | BM116: งบย่อยรวมตรงกับงบหลัก | BO116: โรงเรียนวัดธรรมาภิรตาราม | BP116: งบย่อย | BT116: 0 | BU116: not_applicable | BV116: [] | BW116: ตรวจเชิงโครงสร้างแล้ว - ควรสุ่มตรวจภาพต้นฉบับ | BX116: ไม่ปรากฏในเอกสาร | BY116: ไม่ปรากฏในเอกสาร | BZ116: สำนักงานเขต | CB116: รายการที่ตั้งงบประมาณปี 2570 ตามเอกสาร ไม่ใช่ยอดเบิกจ่าย ราคาสัญญา หรือหลักฐานว่าเริ่มดำเนินงานแล้ว | CC116: 59
A117: ดุสิต | B117: สำนักงานเขตดุสิต | C117: โต๊ะเรียนและเก้าอี้เรียน (มอก.) ระดับ 4 สำหรับชั้น ป.1 | D117: 33,180 | E117: โรงเรียนและการศึกษา | F117: รายการย่อย | H117: รายการย่อยภายในยอดรวมงาน/โครงการของสำนักงานเขต | I117: ไม่รวมซ้ำ: เป็นรายละเอียดภายในยอดงาน/โครงการ | J117: VIEW-00256 | K117: BKK70-DST-I-0084 | L117: VIEW-00286 | M117: BKK70-DST-W-022 | P117: 05199-5 | Q117: โต๊ะเรียนและเก้าอี้เรียน (มอก.) ระดับ 4 สำหรับชั้น ป.1 - ป.4 21 ชุด | R117: งบสำหรับจัดซื้อหรือติดตั้งโต๊ะเรียนและเก้าอี้เรียน (มอก.) ระดับ 4 สำหรับชั้น ป.1 ตามรายละเอียดในเอกสาร | S117: 70033 - สำนักงานเขตดุสิต - งบประมาณ พ.ศ. 2570.pdf | T117: 61 | U117: https://drive.google.com/file/d/1w6-VfEbqdEjXXUiOGW9pCY4WTQo4mcnj/view?usp=drivesdk | W117: FALSE | X117: FALSE | Z117: จัดซื้อ | AD117: 0 | AE117: 0 | AF117: สูง | AO117: ค่าใช้จ่ายและการลงทุนของโรงเรียนสังกัดเขต | AP117: งานงบประมาณโรงเรียน | AQ117: BKK70-DST-W-022 | AR117: VIEW-00286 | AT117: A | AU117: ระบุตำแหน่งเฉพาะได้ | AV117: 1 | AY117: child | AZ117: FALSE | BA117: โรงเรียนวัดสมณานัมบริหาร | BC117: published_relation | BD117: ยังไม่ระบุพิกัด | BF117: โรงเรียนวัดสมณานัมบริหาร เขตดุสิต กรุงเทพมหานคร | BG117: 37,970,470 | BH117: 0 | BI117: 0 | BJ117: งานงบประมาณโรงเรียน | BK117: 4 | BL117: ค่าใช้จ่ายและการลงทุนของโรงเรียนสังกัดเขต | BM117: งบย่อยรวมตรงกับงบหลัก | BO117: โรงเรียนวัดสมณานัมบริหาร | BP117: งบย่อย | BT117: 0 | BU117: not_applicable | BV117: [] | BW117: ตรวจเชิงโครงสร้างแล้ว - ควรสุ่มตรวจภาพต้นฉบับ | BX117: ไม่ปรากฏในเอกสาร | BY117: ไม่ปรากฏในเอกสาร | BZ117: สำนักงานเขต | CB117: รายการที่ตั้งงบประมาณปี 2570 ตามเอกสาร ไม่ใช่ยอดเบิกจ่าย ราคาสัญญา หรือหลักฐานว่าเริ่มดำเนินงานแล้ว | CC117: 59
